Workbook

Sheet base banxico luis (hidden)
A1: Banco de México
A3: Balanza de pagos
A4: Ingresos por remesas, distribución por municipio
A6: Fecha de consulta: 19/03/2026 01:50:13
M9: =YEAR(M10) -> 2013 | N9: =YEAR(N10) -> 2013 | O9: 2013 | P9: 2013 | Q9: 2014 | R9: 2014 | S9: 2014 | T9: 2014 | U9: 2015 | V9: 2015 | W9: 2015 | X9: 2015 | Y9: 2016 | Z9: 2016 | AA9: 2016 | AB9: 2016 | AC9: 2017 | AD9: 2017 | AE9: 2017 | AF9: 2017 | AG9: 2018 | AH9: 2018 | AI9: 2018 | AJ9: 2018 | AK9: 2019 | AL9: 2019 | AM9: 2019 | AN9: 2019 | AO9: 2020 | AP9: 2020 | AQ9: 2020 | AR9: 2020 | AS9: 2021 | AT9: 2021 | AU9: 2021 | AV9: 2021 | AW9: 2022 | AX9: 2022 | AY9: 2022 | AZ9: 2022 | BA9: 2023 | BB9: 2023 | BC9: 2023 | BD9: 2023 | BE9: 2024 | BF9: 2024 | BG9: 2024 | BH9: 2024 | BI9: 2025 | BJ9: 2025 | BK9: 2025 | BL9: 2025
A10: Título | E10: Periodo disponible | F10: Periodicidad | G10: Cifra | H10: Unidad | I10: Base | J10: Aviso | K10: Tipo de información | L10: Serie | M10: 2013-01-01 | N10: 2013-04-01 | O10: 2013-07-01 | P10: 2013-10-01 | Q10: 2014-01-01 | R10: 2014-04-01 | S10: 2014-07-01 | T10: 2014-10-01 | U10: 2015-01-01 | V10: 2015-04-01 | W10: 2015-07-01 | X10: 2015-10-01 | Y10: 2016-01-01 | Z10: 2016-04-01 | AA10: 2016-07-01 | AB10: 2016-10-01 | AC10: 2017-01-01 | AD10: 2017-04-01 | AE10: 2017-07-01 | AF10: 2017-10-01 | AG10: 2018-01-01 | AH10: 2018-04-01 | AI10: 2018-07-01 | AJ10: 2018-10-01 | AK10: 2019-01-01 | AL10: 2019-04-01 | AM10: 2019-07-01 | AN10: 2019-10-01 | AO10: 2020-01-01 | AP10: 2020-04-01 | AQ10: 2020-07-01 | AR10: 2020-10-01 | AS10: 2021-01-01 | AT10: 2021-04-01 | AU10: 2021-07-01 | AV10: 2021-10-01 | AW10: 2022-01-01 | AX10: 2022-04-01 | AY10: 2022-07-01 | AZ10: 2022-10-01 | BA10: 2023-01-01 | BB10: 2023-04-01 | BC10: 2023-07-01 | BD10: 2023-10-01 | BE10: 2024-01-01 | BF10: 2024-04-01 | BG10: 2024-07-01 | BH10: 2024-10-01 | BI10: 2025-01-01 | BJ10: 2025-04-01 | BK10: 2025-07-01 | BL10: 2025-10-01 | BN10: 2013 | BO10: 2014 | BP10: 2015 | BQ10: 2016 | BR10: 2017 | BS10: 2018 | BT10: 2019 | BU10: 2020 | BV10: 2021 | BW10: 2022 | BX10: 2023 | BY10: 2024 | BZ10: 2025
A11: Ingresos por Remesas | B11: Distribución por Municipio | C11: Aguascalientes | D11: Aguascalientes | E11: Ene-Mar 2013 - Oct-Dic 2025 | F11: Trimestral | G11: Flujos | H11: Millones de Dólares | K11: Niveles | L11: SE41187 | M11: 40.690177 | N11: 47.164073 | O11: 44.001068 | P11: 46.419031 | Q11: 46.458792 | R11: 49.023317 | S11: 46.008212 | T11: 48.201841 | U11: 47.967284 | V11: 51.296273 | W11: 52.315916 | X11: 50.227159 | Y11: 52.842454 | Z11: 57.601149 | AA11: 59.16572 | AB11: 59.368743 | AC11: 57.980699 | AD11: 63.057783 | AE11: 61.756674 | AF11: 64.601995 | AG11: 60.96511 | AH11: 73.280705 | AI11: 69.217708 | AJ11: 73.065541 | AK11: 66.217691 | AL11: 76.917815 | AM11: 80.325247 | AN11: 75.890028 | AO11: 73.811528 | AP11: 78.793024 | AQ11: 76.604099 | AR11: 82.348782 | AS11: 82.405254 | AT11: 103.173135 | AU11: 102.919476 | AV11: 108.901307 | AW11: 102.83366 | AX11: 130.262718 | AY11: 139.269469 | AZ11: 140.740351 | BA11: 130.011696 | BB11: 151.723333 | BC11: 146.955423 | BD11: 142.420138 | BE11: 126.789255 | BF11: 153.299347 | BG11: 152.611875 | BH11: 146.013213 | BI11: 129.440379 | BJ11: 139.14422 | BK11: 143.836046 | BL11: 144.69142 | BN11: =SUMIFS($M11:$BL11,$M$9:$BL$9,BN$10) -> 178.274349 | BO11: =SUMIFS($M11:$BL11,$M$9:$BL$9,BO$10) -> 189.692162 | BP11: 201.806632 | BQ11: 228.978066 | BR11: 247.397151 | BS11: 276.529064 | BT11: 299.350781 | BU11: 311.557433 | BV11: 397.399172 | BW11: 513.106198 | BX11: 571.11059 | BY11: 578.71369 | BZ11: 557.112065
A12: Ingresos por Remesas | B12: Distribución por Municipio | C12: Aguascalientes | D12: Asientos | E12: Ene-Mar 2013 - Oct-Dic 2025 | F12: Trimestral | G12: Flujos | H12: Millones de Dólares | K12: Niveles | L12: SE41188 | M12: 1.275886 | N12: 1.606246 | O12: 1.502257 | P12: 1.388162 | Q12: 1.429231 | R12: 1.631231 | S12: 1.631423 | T12: 1.431992 | U12: 1.190699 | V12: 1.355659 | W12: 1.583431 | X12: 1.465107 | Y12: 1.362542 | Z12: 1.511175 | AA12: 1.518016 | AB12: 1.457666 | AC12: 1.492826 | AD12: 1.660461 | AE12: 1.737887 | AF12: 1.57892 | AG12: 1.325843 | AH12: 1.877705 | AI12: 1.789423 | AJ12: 1.754841 | AK12: 1.597535 | AL12: 2.020864 | AM12: 2.23902 | AN12: 2.069569 | AO12: 2.044574 | AP12: 1.576577 | AQ12: 2.385082 | AR12: 2.431872 | AS12: 2.433211 | AT12: 3.212922 | AU12: 3.341644 | AV12: 3.513433 | AW12: 3.207481 | AX12: 4.238066 | AY12: 2.794456 | AZ12: 2.609508 | BA12: 2.110338 | BB12: 2.487301 | BC12: 2.5562 | BD12: 2.595739 | BE12: 2.061161 | BF12: 2.60222 | BG12: 2.701753 | BH12: 2.542689 | BI12: 2.146409 | BJ12: 2.555421 | BK12: 2.306994 | BL12: 1.870158 | BN12: =SUMIFS($M12:$BL12,$M$9:$BL$9,BN$10) -> 5.772551 | BO12: 6.123877 | BP12: 5.594896 | BQ12: 5.849399 | BR12: 6.470094 | BS12: 6.747812 | BT12: 7.926988 | BU12: 8.438105 | BV12: 12.50121 | BW12: 12.849511 | BX12: 9.749578 | BY12: 9.907823 | BZ12: 8.878982
A13: Ingresos por Remesas | B13: Distribución por Municipio | C13: Aguascalientes | D13: Calvillo | E13: Ene-Mar 2013 - Oct-Dic 2025 | F13: Trimestral | G13: Flujos | H13: Millones de Dólares | K13: Niveles | L13: SE41189 | M13: 10.178654 | N13: 13.007311 | O13: 13.560433 | P13: 12.255393 | Q13: 12.457806 | R13: 15.183738 | S13: 16.484665 | T13: 16.178299 | U13: 14.820626 | V13: 16.968338 | W13: 19.539108 | X13: 17.466998 | Y13: 17.236465 | Z13: 20.321942 | AA13: 21.24425 | AB13: 20.426799 | AC13: 19.565801 | AD13: 21.678634 | AE13: 23.301668 | AF13: 21.881016 | AG13: 18.291227 | AH13: 24.435202 | AI13: 22.897106 | AJ13: 24.54882 | AK13: 19.661748 | AL13: 23.824148 | AM13: 26.738122 | AN13: 24.396324 | AO13: 24.997722 | AP13: 24.401831 | AQ13: 22.695943 | AR13: 24.641266 | AS13: 23.922551 | AT13: 31.256883 | AU13: 31.681861 | AV13: 32.795604 | AW13: 25.41826 | AX13: 30.942361 | AY13: 34.035223 | AZ13: 33.246612 | BA13: 28.156394 | BB13: 33.876008 | BC13: 35.849537 | BD13: 33.154972 | BE13: 27.632892 | BF13: 36.543144 | BG13: 39.715545 | BH13: 36.61137 | BI13: 31.107611 | BJ13: 35.324419 | BK13: 38.071048 | BL13: 36.714903 | BN13: 49.001791 | BO13: 60.304508 | BP13: 68.79507 | BQ13: 79.229456 | BR13: 86.427119 | BS13: 90.172355 | BT13: 94.620342 | BU13: 96.736762 | BV13: 119.656899 | BW13: 123.642456 | BX13: 131.036911 | BY13: 140.502951 | BZ13: 141.217981
A14: Ingresos por Remesas | B14: Distribución por Municipio | C14: Aguascalientes | D14: Cosío | E14: Ene-Mar 2013 - Oct-Dic 2025 | F14: Trimestral | G14: Flujos | H14: Millones de Dólares | K14: Niveles | L14: SE41190 | M14: 0.381639 | N14: 0.418806 | O14: 0.450624 | P14: 0.415966 | Q14: 0.382609 | R14: 0.516586 | S14: 0.437124 | T14: 0.474983 | U14: 0.425509 | V14: 0.504558 | W14: 0.489504 | X14: 0.458668 | Y14: 0.400584 | Z14: 0.527346 | AA14: 0.532115 | AB14: 0.49769 | AC14: 0.455583 | AD14: 0.592531 | AE14: 0.569799 | AF14: 0.480784 | AG14: 0.477717 | AH14: 0.55868 | AI14: 0.513314 | AJ14: 0.529762 | AK14: 0.51631 | AL14: 0.600788 | AM14: 0.653958 | AN14: 0.627819 | AO14: 0.596901 | AP14: 0.678277 | AQ14: 0.739281 | AR14: 0.767108 | AS14: 0.611792 | AT14: 1.002697 | AU14: 1.006253 | AV14: 1.084044 | AW14: 0.886365 | AX14: 1.157106 | AY14: 0.972692 | AZ14: 0.965481 | BA14: 0.856711 | BB14: 0.991971 | BC14: 1.059245 | BD14: 0.979019 | BE14: 0.822001 | BF14: 0.993196 | BG14: 0.932156 | BH14: 0.772979 | BI14: 0.748116 | BJ14: 0.78485 | BK14: 0.650252 | BL14: 0.574551 | BN14: 1.667035 | BO14: 1.811302 | BP14: 1.878239 | BQ14: 1.957735 | BR14: 2.098697 | BS14: 2.079473 | BT14: 2.398875 | BU14: 2.781567 | BV14: 3.704786 | BW14: 3.981644 | BX14: 3.886946 | BY14: 3.520332 | BZ14: 2.757769
A15: Ingresos por Remesas | B15: Distribución por Municipio | C15: Aguascalientes | D15: El Llano | E15: Ene-Mar 2013 - Oct-Dic 2025 | F15: Trimestral | G15: Flujos | H15: Millones de Dólares | K15: Niveles | L15: SE41191 | M15: 1.288662 | N15: 1.643225 | O15: 1.276505 | P15: 1.090384 | Q15: 0.183558 | R15: 0.02954 | S15: 0.056813 | T15: 0.029892 | U15: 0.191741 | V15: 0.174593 | W15: 0.167924 | X15: 0.184848 | Y15: 0.079373 | Z15: 0.09794 | AA15: 0.11204 | AB15: 0.110323 | AC15: 0.207134 | AD15: 0.221335 | AE15: 0.214779 | AF15: 0.223122 | AG15: 0.319698 | AH15: 0.420205 | AI15: 0.386952 | AJ15: 0.357499 | AK15: 0.395831 | AL15: 0.527647 | AM15: 0.354607 | AN15: 0.227052 | AO15: 0.216411 | AP15: 0.268053 | AQ15: 0.301255 | AR15: 0.282604 | AS15: 0.384669 | AT15: 0.58996 | AU15: 0.595976 | AV15: 0.686925 | AW15: 0.652568 | AX15: 1.097635 | AY15: 0.325136 | AZ15: 0.347641 | BA15: 0.314522 | BB15: 0.411424 | BC15: 0.398391 | BD15: 0.273385 | BE15: 0.21811 | BF15: 0.306182 | BG15: 0.25445 | BH15: 0.225846 | BI15: 0.246754 | BJ15: 0.303163 | BK15: 0.241088 | BL15: 0.183863 | BN15: 5.298776 | BO15: 0.299803 | BP15: 0.719106 | BQ15: 0.399676 | BR15: 0.86637 | BS15: 1.484354 | BT15: 1.505137 | BU15: 1.068323 | BV15: 2.25753 | BW15: 2.42298 | BX15: 1.397722 | BY15: 1.004588 | BZ15: 0.974868
A16: Ingresos por Remesas | B16: Distribución por Municipio | C16: Aguascalientes | D16: Jesús María | E16: Ene-Mar 2013 - Oct-Dic 2025 | F16: Trimestral | G16: Flujos | H16: Millones de Dólares | K16: Niveles | L16: SE41192 | M16: 2.214437 | N16: 2.927256 | O16: 2.541153 | P16: 2.595454 | Q16: 2.38908 | R16: 2.607322 | S16: 2.226213 | T16: 2.380224 | U16: 2.181735 | V16: 2.312979 | W16: 2.316894 | X16: 2.249082 | Y16: 2.178716 | Z16: 2.512247 | AA16: 2.516203 | AB16: 2.388997 | AC16: 2.495522 | AD16: 2.828343 | AE16: 3.020154 | AF16: 3.032564 | AG16: 2.805621 | AH16: 3.359961 | AI16: 2.967089 | AJ16: 3.065751 | AK16: 2.728974 | AL16: 3.386956 | AM16: 3.663664 | AN16: 3.401843 | AO16: 3.458832 | AP16: 3.843763 | AQ16: 5.930544 | AR16: 4.431108 | AS16: 4.440101 | AT16: 5.599753 | AU16: 6.292758 | AV16: 6.464137 | AW16: 5.618297 | AX16: 7.105227 | AY16: 7.076796 | AZ16: 7.391907 | BA16: 6.593382 | BB16: 7.808476 | BC16: 8.080289 | BD16: 7.580667 | BE16: 6.644803 | BF16: 8.326401 | BG16: 7.852106 | BH16: 8.901689 | BI16: 8.096684 | BJ16: 7.793336 | BK16: 6.901764 | BL16: 6.98108 | BN16: 10.2783 | BO16: 9.602839 | BP16: 9.06069 | BQ16: 9.596163 | BR16: 11.376583 | BS16: 12.198422 | BT16: 13.181437 | BU16: 17.664247 | BV16: 22.796749 | BW16: 27.192227 | BX16: 30.062814 | BY16: 31.724999 | BZ16: 29.772864
A17: Ingresos por Remesas | B17: Distribución por Municipio | C17: Aguascalientes | D17: Pabellón de Arteaga | E17: Ene-Mar 2013 - Oct-Dic 2025 | F17: Trimestral | G17: Flujos | H17: Millones de Dólares | K17: Niveles | L17: SE41193 | M17: 5.686349 | N17: 6.415342 | O17: 6.082879 | P17: 5.538099 | Q17: 4.897927 | R17: 5.554181 | S17: 5.116256 | T17: 5.386657 | U17: 4.74052 | V17: 5.643993 | W17: 5.722016 | X17: 5.424782 | Y17: 5.022646 | Z17: 5.796798 | AA17: 6.163368 | AB17: 6.420598 | AC17: 6.137989 | AD17: 6.869071 | AE17: 7.048134 | AF17: 7.341612 | AG17: 6.269499 | AH17: 8.126958 | AI17: 7.090226 | AJ17: 7.087708 | AK17: 5.802517 | AL17: 6.770599 | AM17: 7.699353 | AN17: 6.712668 | AO17: 8.148912 | AP17: 10.070801 | AQ17: 11.153394 | AR17: 10.627557 | AS17: 10.135245 | AT17: 13.119692 | AU17: 13.318428 | AV17: 13.956951 | AW17: 12.087821 | AX17: 14.974205 | AY17: 16.214217 | AZ17: 16.422008 | BA17: 14.2079 | BB17: 16.60416 | BC17: 16.951639 | BD17: 16.067993 | BE17: 13.512366 | BF17: 17.202165 | BG17: 17.510913 | BH17: 17.260615 | BI17: 16.652861 | BJ17: 18.550972 | BK17: 19.35695 | BL17: 18.948185 | BN17: 23.722669 | BO17: 20.955021 | BP17: 21.531311 | BQ17: 23.40341 | BR17: 27.396806 | BS17: 28.574391 | BT17: 26.985137 | BU17: 40.000664 | BV17: 50.530316 | BW17: 59.698251 | BX17: 63.831692 | BY17: 65.486059 | BZ17: 73.508968
A18: Ingresos por Remesas | B18: Distribución por Municipio | C18: Aguascalientes | D18: Rincón de Romos | E18: Ene-Mar 2013 - Oct-Dic 2025 | F18: Trimestral | G18: Flujos | H18: Millones de Dólares | K18: Niveles | L18: SE41194 | M18: 7.374496 | N18: 9.282096 | O18: 9.237989 | P18: 9.113302 | Q18: 8.805306 | R18: 9.581782 | S18: 8.967413 | T18: 9.004819 | U18: 8.784258 | V18: 9.323874 | W18: 9.924318 | X18: 9.434308 | Y18: 9.892859 | Z18: 10.896771 | AA18: 11.408139 | AB18: 10.681362 | AC18: 10.2928 | AD18: 11.627605 | AE18: 12.003491 | AF18: 12.007249 | AG18: 10.332698 | AH18: 13.181301 | AI18: 12.939651 | AJ18: 13.631213 | AK18: 11.350661 | AL18: 12.967442 | AM18: 13.80283 | AN18: 13.030314 | AO18: 13.034589 | AP18: 14.081961 | AQ18: 13.434288 | AR18: 14.684207 | AS18: 13.717025 | AT18: 17.909175 | AU18: 18.673393 | AV18: 19.162765 | AW18: 16.419201 | AX18: 19.486103 | AY18: 21.607357 | AZ18: 21.586665 | BA18: 18.220359 | BB18: 22.21951 | BC18: 24.228787 | BD18: 23.331768 | BE18: 19.008549 | BF18: 23.884469 | BG18: 25.305089 | BH18: 23.011979 | BI18: 20.395622 | BJ18: 22.527579 | BK18: 24.005927 | BL18: 22.532642 | BN18: 35.007883 | BO18: 36.35932 | BP18: 37.466758 | BQ18: 42.879131 | BR18: 45.931145 | BS18: 50.084863 | BT18: 51.151247 | BU18: 55.235045 | BV18: 69.462358 | BW18: 79.099326 | BX18: 88.000424 | BY18: 91.210086 | BZ18: 89.46177
A19: Ingresos por Remesas | B19: Distribución por Municipio | C19: Aguascalientes | D19: San Francisco de los Romo | E19: Ene-Mar 2013 - Oct-Dic 2025 | F19: Trimestral | G19: Flujos | H19: Millones de Dólares | K19: Niveles | L19: SE41195 | M19: 1.74687 | N19: 1.964945 | O19: 1.899378 | P19: 1.965419 | Q19: 2.175951 | R19: 2.405592 | S19: 2.328396 | T19: 2.42829 | U19: 2.387736 | V19: 2.480417 | W19: 2.303979 | X19: 2.384064 | Y19: 2.701439 | Z19: 3.07723 | AA19: 3.195322 | AB19: 3.406388 | AC19: 3.503309 | AD19: 3.914236 | AE19: 3.977175 | AF19: 3.76244 | AG19: 3.32988 | AH19: 4.325554 | AI19: 4.171255 | AJ19: 4.274692 | AK19: 3.944314 | AL19: 4.872569 | AM19: 4.694893 | AN19: 4.343083 | AO19: 4.478138 | AP19: 4.832041 | AQ19: 4.78956 | AR19: 5.36565 | AS19: 5.509265 | AT19: 6.98515 | AU19: 7.212094 | AV19: 7.483553 | AW19: 6.780311 | AX19: 8.355393 | AY19: 8.863876 | AZ19: 8.685803 | BA19: 7.881536 | BB19: 9.728337 | BC19: 9.430354 | BD19: 8.760212 | BE19: 7.133708 | BF19: 8.405686 | BG19: 8.348771 | BH19: 7.823178 | BI19: 6.963986 | BJ19: 7.986227 | BK19: 7.649278 | BL19: 7.660249 | BN19: 7.576612 | BO19: 9.338229 | BP19: 9.556196 | BQ19: 12.380379 | BR19: 15.15716 | BS19: 16.101381 | BT19: 17.854859 | BU19: 19.465389 | BV19: 27.190062 | BW19: 32.685383 | BX19: 35.800439 | BY19: 31.711343 | BZ19: 30.25974
A20: Ingresos por Remesas | B20: Distribución por Municipio | C20: Aguascalientes | D20: San José de Gracia | E20: Ene-Mar 2013 - Oct-Dic 2025 | F20: Trimestral | G20: Flujos | H20: Millones de Dólares | K20: Niveles | L20: SE41196 | M20: 0 | N20: 0 | O20: 0 | P20: 0 | Q20: 0 | R20: 0 | S20: 0 | T20: 0.000565 | U20: 0.083305 | V20: 0.126952 | W20: 0.197748 | X20: 0.163127 | Y20: 0.16546 | Z20: 0.215118 | AA20: 0.239152 | AB20: 0.229305 | AC20: 0.26261 | AD20: 0.320031 | AE20: 0.37425 | AF20: 0.380499 | AG20: 0.364616 | AH20: 0.491617 | AI20: 0.536079 | AJ20: 0.49698 | AK20: 0.453433 | AL20: 0.507721 | AM20: 0.589097 | AN20: 0.59338 | AO20: 0.598458 | AP20: 0.573909 | AQ20: 0.685974 | AR20: 0.809066 | AS20: 0.790882 | AT20: 0.88642 | AU20: 1.02009 | AV20: 1.103314 | AW20: 0.869904 | AX20: 1.060765 | AY20: 1.068368 | AZ20: 0.901229 | BA20: 0.637279 | BB20: 0.771815 | BC20: 0.83855 | BD20: 0.771244 | BE20: 0.673254 | BF20: 0.837188 | BG20: 0.81503 | BH20: 0.680221 | BI20: 0.594072 | BJ20: 0.728697 | BK20: 0.696135 | BL20: 0.498736 | BN20: 0 | BO20: 0.000565 | BP20: 0.571132 | BQ20: 0.849035 | BR20: 1.33739 | BS20: 1.889292 | BT20: 2.143631 | BU20: 2.667407 | BV20: 3.800706 | BW20: 3.900266 | BX20: 3.018888 | BY20: 3.005693 | BZ20: 2.51764
A21: Ingresos por Remesas | B21: Distribución por Municipio | C21: Aguascalientes | D21: Tepezalá | E21: Ene-Mar 2013 - Oct-Dic 2025 | F21: Trimestral | G21: Flujos | H21: Millones de Dólares | K21: Niveles | L21: SE41197 | M21: 0.057545 | N21: 0.048349 | O21: 0.028923 | P21: 0.020158 | Q21: 0.013825 | R21: 0.019351 | S21: 0.007063 | T21: 0.011579 | U21: 0.007176 | V21: 0.027741 | W21: 0.042696 | X21: 0.037549 | Y21: 0.028669 | Z21: 0.037562 | AA21: 0.053789 | AB21: 0.060009 | AC21: 0.062614 | AD21: 0.052054 | AE21: 0.069714 | AF21: 0.074335 | AG21: 0.054657 | AH21: 0.072739 | AI21: 0.074115 | AJ21: 0.065218 | AK21: 0.079045 | AL21: 0.086059 | AM21: 0.103962 | AN21: 0.122479 | AO21: 0.131171 | AP21: 0.22956 | AQ21: 0.301094 | AR21: 0.355405 | AS21: 0.344775 | AT21: 0.334953 | AU21: 0.475098 | AV21: 0.529619 | AW21: 0.475759 | AX21: 0.682675 | AY21: 0.225966 | AZ21: 0.200806 | BA21: 0.206147 | BB21: 0.253853 | BC21: 0.249548 | BD21: 0.197728 | BE21: 0.196186 | BF21: 0.280254 | BG21: 0.192965 | BH21: 0.210174 | BI21: 0.181841 | BJ21: 0.198791 | BK21: 0.19657 | BL21: 0.152459 | BN21: 0.154975 | BO21: 0.051818 | BP21: 0.115162 | BQ21: 0.180029 | BR21: 0.258717 | BS21: 0.266729 | BT21: 0.391545 | BU21: 1.01723 | BV21: 1.684445 | BW21: 1.585206 | BX21: 0.907276 | BY21: 0.879579 | BZ21: 0.729661
A22: Ingresos por Remesas | B22: Distribución por Municipio | C22: Aguascalientes | D22: No identificado | E22: Ene-Mar 2013 - Oct-Dic 2025 | F22: Trimestral | G22: Flujos | H22: Millones de Dólares | K22: Niveles | L22: SE41198 | M22: 0.041156 | N22: 0 | O22: 0 | P22: 0 | Q22: 0.000132 | R22: 0 | S22: 0 | T22: 0 | U22: 0 | V22: 0 | W22: 0 | X22: 0 | Y22: 0 | Z22: 0 | AA22: 0 | AB22: 0 | AC22: 0 | AD22: 0 | AE22: 0 | AF22: 0 | AG22: 0 | AH22: 0 | AI22: 0 | AJ22: 0.041388 | AK22: 0.058586 | AL22: 0.025527 | AM22: 0 | AN22: 0 | AO22: 0 | AP22: 0 | AQ22: 0 | AR22: 0 | AS22: 0 | AT22: 0 | AU22: 0.006601 | AV22: 0 | AW22: 0 | AX22: 0 | AY22: 0 | AZ22: 0 | BA22: 0.008194 | BB22: 0.006308 | BC22: 0.012984 | BD22: 0.04322 | BE22: 0.045233 | BF22: 0.032407 | BG22: 0.386596 | BH22: 0.047643 | BI22: 0.040716 | BJ22: 0.042991 | BK22: 0.030871 | BL22: 0.02143 | BN22: 0.041156 | BO22: 0.000132 | BP22: 0 | BQ22: 0 | BR22: 0 | BS22: 0.041388 | BT22: 0.084113 | BU22: 0 | BV22: 0.006601 | BW22: 0 | BX22: 0.070706 | BY22: 0.511879 | BZ22: 0.136008
A23: Ingresos por Remesas | B23: Distribución por Municipio | C23: Baja California | D23: Ensenada | E23: Ene-Mar 2013 - Oct-Dic 2025 | F23: Trimestral | G23: Flujos | H23: Millones de Dólares | K23: Niveles | L23: SE41199 | M23: 16.408642 | N23: 23.687549 | O23: 21.524873 | P23: 19.237162 | Q23: 19.888078 | R23: 22.399872 | S23: 23.387226 | T23: 24.352621 | U23: 22.900842 | V23: 26.558968 | W23: 28.619621 | X23: 24.943118 | Y23: 25.781309 | Z23: 30.340207 | AA23: 33.003577 | AB23: 31.82539 | AC23: 29.884188 | AD23: 38.320887 | AE23: 42.048637 | AF23: 40.97568 | AG23: 33.742903 | AH23: 47.754375 | AI23: 48.760934 | AJ23: 47.333965 | AK23: 36.628752 | AL23: 47.970921 | AM23: 54.256026 | AN23: 47.523867 | AO23: 46.159112 | AP23: 57.216465 | AQ23: 61.827483 | AR23: 59.353517 | AS23: 53.556357 | AT23: 66.025295 | AU23: 73.189965 | AV23: 69.431052 | AW23: 47.225589 | AX23: 51.729787 | AY23: 54.607936 | AZ23: 52.190385 | BA23: 49.24236 | BB23: 58.030071 | BC23: 62.851376 | BD23: 56.316465 | BE23: 47.986556 | BF23: 59.746119 | BG23: 61.273575 | BH23: 60.074545 | BI23: 51.486053 | BJ23: 74.35893 | BK23: 80.847415 | BL23: 69.515975 | BN23: 80.858226 | BO23: 90.027797 | BP23: 103.022549 | BQ23: 120.950483 | BR23: 151.229392 | BS23: 177.592177 | BT23: 186.379566 | BU23: 224.556577 | BV23: 262.202669 | BW23: 205.753697 | BX23: 226.440272 | BY23: 229.080795 | BZ23: 276.208373
A24: Ingresos por Remesas | B24: Distribución por Municipio | C24: Baja California | D24: Mexicali | E24: Ene-Mar 2013 - Oct-Dic 2025 | F24: Trimestral | G24: Flujos | H24: Millones de Dólares | K24: Niveles | L24: SE41200 | M24: 29.380282 | N24: 32.482138 | O24: 30.58414 | P24: 28.67384 | Q24: 28.550432 | R24: 31.087894 | S24: 30.624822 | T24: 29.903997 | U24: 29.785753 | V24: 34.576605 | W24: 34.858477 | X24: 30.800666 | Y24: 31.929537 | Z24: 35.446287 | AA24: 34.106113 | AB24: 31.902633 | AC24: 32.3549 | AD24: 36.644305 | AE24: 38.463897 | AF24: 36.397356 | AG24: 35.707921 | AH24: 44.347418 | AI24: 44.074275 | AJ24: 43.319895 | AK24: 41.195409 | AL24: 48.460825 | AM24: 51.171891 | AN24: 47.975389 | AO24: 52.913857 | AP24: 81.613717 | AQ24: 64.538401 | AR24: 61.340597 | AS24: 63.181 | AT24: 75.409384 | AU24: 73.846209 | AV24: 72.165758 | AW24: 62.357073 | AX24: 73.625181 | AY24: 74.141171 | AZ24: 75.556063 | BA24: 66.869057 | BB24: 69.81318 | BC24: 69.742649 | BD24: 64.677224 | BE24: 59.169373 | BF24: 69.312471 | BG24: 68.313343 | BH24: 68.362963 | BI24: 64.405898 | BJ24: 88.034015 | BK24: 93.925023 | BL24: 85.383873 | BN24: 121.1204 | BO24: 120.167145 | BP24: 130.021501 | BQ24: 133.38457 | BR24: 143.860458 | BS24: 167.449509 | BT24: 188.803514 | BU24: 260.406572 | BV24: 284.602351 | BW24: 285.679488 | BX24: 271.10211 | BY24: 265.15815 | BZ24: 331.748809
A25: Ingresos por Remesas | B25: Distribución por Municipio | C25: Baja California | D25: Playas de Rosarito | E25: Ene-Mar 2013 - Oct-Dic 2025 | F25: Trimestral | G25: Flujos | H25: Millones de Dólares | K25: Niveles | L25: SE41201 | M25: 6.026083 | N25: 6.939247 | O25: 6.750588 | P25: 6.988013 | Q25: 7.034408 | R25: 6.906617 | S25: 7.153088 | T25: 7.115924 | U25: 7.345132 | V25: 8.011674 | W25: 8.512615 | X25: 7.955012 | Y25: 8.566744 | Z25: 8.890327 | AA25: 8.599032 | AB25: 8.221596 | AC25: 8.581521 | AD25: 10.20703 | AE25: 10.28954 | AF25: 9.516658 | AG25: 9.159629 | AH25: 11.19569 | AI25: 10.454719 | AJ25: 11.164209 | AK25: 9.818953 | AL25: 10.201023 | AM25: 10.259599 | AN25: 9.484639 | AO25: 10.774758 | AP25: 12.668015 | AQ25: 12.347662 | AR25: 12.856169 | AS25: 13.722503 | AT25: 15.23309 | AU25: 15.251091 | AV25: 15.38175 | AW25: 14.679194 | AX25: 15.577232 | AY25: 16.563085 | AZ25: 17.078518 | BA25: 15.926529 | BB25: 17.864406 | BC25: 19.007827 | BD25: 18.521433 | BE25: 17.05623 | BF25: 19.15551 | BG25: 19.296806 | BH25: 19.760629 | BI25: 17.936527 | BJ25: 25.286252 | BK25: 27.071977 | BL25: 24.307625 | BN25: 26.703931 | BO25: 28.210037 | BP25: 31.824433 | BQ25: 34.277699 | BR25: 38.594749 | BS25: 41.974247 | BT25: 39.764214 | BU25: 48.646604 | BV25: 59.588434 | BW25: 63.898029 | BX25: 71.320195 | BY25: 75.269175 | BZ25: 94.602381
A26: Ingresos por Remesas | B26: Distribución por Municipio | C26: Baja California | D26: Tecate | E26: Ene-Mar 2013 - Oct-Dic 2025 | F26: Trimestral | G26: Flujos | H26: Millones de Dólares | K26: Niveles | L26: SE41202 | M26: 3.981576 | N26: 4.647453 | O26: 4.557267 | P26: 4.544851 | Q26: 4.533414 | R26: 4.719868 | S26: 4.755024 | T26: 4.844644 | U26: 4.842732 | V26: 5.647704 | W26: 5.778935 | X26: 5.492081 | Y26: 5.556885 | Z26: 5.767436 | AA26: 5.231723 | AB26: 5.181625 | AC26: 5.840001 | AD26: 6.729011 | AE26: 6.935257 | AF26: 7.324165 | AG26: 7.036254 | AH26: 8.600663 | AI26: 8.288075 | AJ26: 8.519098 | AK26: 7.9701 | AL26: 9.243664 | AM26: 9.619321 | AN26: 9.065294 | AO26: 9.834493 | AP26: 12.274625 | AQ26: 9.475439 | AR26: 10.39346 | AS26: 10.243004 | AT26: 11.526399 | AU26: 11.149774 | AV26: 11.213218 | AW26: 10.058376 | AX26: 11.208591 | AY26: 11.985566 | AZ26: 12.008283 | BA26: 11.138257 | BB26: 12.234574 | BC26: 12.607431 | BD26: 12.429929 | BE26: 11.413749 | BF26: 13.742899 | BG26: 13.806442 | BH26: 14.1744 | BI26: 12.949926 | BJ26: 17.74351 | BK26: 19.161502 | BL26: 17.060224 | BN26: 17.731147 | BO26: 18.85295 | BP26: 21.761452 | BQ26: 21.737669 | BR26: 26.828434 | BS26: 32.44409 | BT26: 35.898379 | BU26: 41.978017 | BV26: 44.132395 | BW26: 45.260816 | BX26: 48.410191 | BY26: 53.13749 | BZ26: 66.915162
A27: Ingresos por Remesas | B27: Distribución por Municipio | C27: Baja California | D27: Tijuana | E27: Ene-Mar 2013 - Oct-Dic 2025 | F27: Trimestral | G27: Flujos | H27: Millones de Dólares | K27: Niveles | L27: SE41203 | M27: 86.371815 | N27: 96.459654 | O27: 100.555397 | P27: 96.752574 | Q27: 89.431361 | R27: 94.907869 | S27: 95.060661 | T27: 93.186004 | U27: 89.834712 | V27: 98.623143 | W27: 101.467285 | X27: 96.892673 | Y27: 95.039043 | Z27: 96.418526 | AA27: 91.158728 | AB27: 88.756913 | AC27: 92.43178 | AD27: 101.610925 | AE27: 104.409018 | AF27: 105.608612 | AG27: 102.012478 | AH27: 119.336933 | AI27: 113.518389 | AJ27: 120.789581 | AK27: 110.95221 | AL27: 123.727206 | AM27: 128.447252 | AN27: 122.014217 | AO27: 137.539495 | AP27: 174.33752 | AQ27: 167.307224 | AR27: 160.612665 | AS27: 163.228857 | AT27: 187.717911 | AU27: 188.715419 | AV27: 185.746457 | AW27: 167.852524 | AX27: 187.015536 | AY27: 188.774794 | AZ27: 191.477309 | BA27: 182.348506 | BB27: 198.162912 | BC27: 207.298163 | BD27: 199.626721 | BE27: 177.458719 | BF27: 204.730214 | BG27: 200.795176 | BH27: 205.347143 | BI27: 187.53356 | BJ27: 256.084261 | BK27: 275.908215 | BL27: 247.308747 | BN27: 380.13944 | BO27: 372.585895 | BP27: 386.817813 | BQ27: 371.37321 | BR27: 404.060335 | BS27: 455.657381 | BT27: 485.140885 | BU27: 639.796904 | BV27: 725.408644 | BW27: 735.120163 | BX27: 787.436302 | BY27: 788.331252 | BZ27: 966.834783
A28: Ingresos por Remesas | B28: Distribución por Municipio | C28: Baja California | D28: No identificado | E28: Ene-Mar 2013 - Oct-Dic 2025 | F28: Trimestral | G28: Flujos | H28: Millones de Dólares | K28: Niveles | L28: SE41204 | M28: 0.052848 | N28: 0.054815 | O28: 0.00275 | P28: 0.005302 | Q28: 0.003683 | R28: 0.005114 | S28: 0.020018 | T28: 0.026224 | U28: 0.010554 | V28: 0.01929 | W28: 0 | X28: 0 | Y28: 0 | Z28: 0.832968 | AA28: 0 | AB28: 1.004924 | AC28: 0.02739 | AD28: 0 | AE28: 0.035459 | AF28: 0 | AG28: 0 | AH28: 0 | AI28: 0 | AJ28: 0.000491 | AK28: 0.000508 | AL28: 0.000615 | AM28: 0.002812 | AN28: 0.004453 | AO28: 0.002875 | AP28: 0.001015 | AQ28: 0.002315 | AR28: 0.195147 | AS28: 0.000761 | AT28: 0.001033 | AU28: 0.005865 | AV28: 0 | AW28: 7.087861 | AX28: 15.772697 | AY28: 18.584574 | AZ28: 13.631066 | BA28: 7.345003 | BB28: 10.798172 | BC28: 13.450724 | BD28: 11.02348 | BE28: 5.586073 | BF28: 10.005435 | BG28: 10.699635 | BH28: 9.865562 | BI28: 5.85138 | BJ28: 9.966408 | BK28: 10.170437 | BL28: 6.141422 | BN28: 0.115715 | BO28: 0.055039 | BP28: 0.029844 | BQ28: 1.837892 | BR28: 0.062849 | BS28: 0.000491 | BT28: 0.008388 | BU28: 0.201352 | BV28: 0.007659 | BW28: 55.076198 | BX28: 42.617379 | BY28: 36.156705 | BZ28: 32.129647
A29: Ingresos por Remesas | B29: Distribución por Municipio | C29: Baja California Sur | D29: Comondú | E29: Ene-Mar 2013 - Oct-Dic 2025 | F29: Trimestral | G29: Flujos | H29: Millones de Dólares | K29: Niveles | L29: SE41205 | M29: 0.792848 | N29: 1.102476 | O29: 1.153501 | P29: 1.500135 | Q29: 0.95441 | R29: 1.215786 | S29: 1.202054 | T29: 1.142737 | U29: 1.075226 | V29: 1.28874 | W29: 1.408993 | X29: 1.269337 | Y29: 0.885575 | Z29: 1.363541 | AA29: 1.357728 | AB29: 1.058204 | AC29: 1.003079 | AD29: 1.111298 | AE29: 1.5297 | AF29: 1.193623 | AG29: 1.126861 | AH29: 1.394714 | AI29: 1.484097 | AJ29: 1.453681 | AK29: 1.173225 | AL29: 1.511207 | AM29: 1.472187 | AN29: 1.478307 | AO29: 1.235875 | AP29: 1.606496 | AQ29: 1.977668 | AR29: 1.974477 | AS29: 1.793983 | AT29: 2.292508 | AU29: 2.148956 | AV29: 2.173293 | AW29: 1.677467 | AX29: 2.149088 | AY29: 1.994936 | AZ29: 1.840246 | BA29: 1.512026 | BB29: 1.769635 | BC29: 1.947871 | BD29: 1.89442 | BE29: 1.537914 | BF29: 1.972401 | BG29: 2.057471 | BH29: 1.682389 | BI29: 1.28407 | BJ29: 1.37844 | BK29: 1.542632 | BL29: 1.58702 | BN29: 4.54896 | BO29: 4.514987 | BP29: 5.042296 | BQ29: 4.665048 | BR29: 4.8377 | BS29: 5.459353 | BT29: 5.634926 | BU29: 6.794516 | BV29: 8.40874 | BW29: 7.661737 | BX29: 7.123952 | BY29: 7.250175 | BZ29: 5.792162
A30: Ingresos por Remesas | B30: Distribución por Municipio | C30: Baja California Sur | D30: La Paz | E30: Ene-Mar 2013 - Oct-Dic 2025 | F30: Trimestral | G30: Flujos | H30: Millones de Dólares | K30: Niveles | L30: SE41206 | M30: 4.013262 | N30: 4.608027 | O30: 4.204589 | P30: 5.599005 | Q30: 4.090163 | R30: 4.700821 | S30: 5.101134 | T30: 4.916042 | U30: 4.45643 | V30: 5.055938 | W30: 5.26055 | X30: 5.138396 | Y30: 5.066822 | Z30: 5.021648 | AA30: 5.648476 | AB30: 4.205437 | AC30: 5.302763 | AD30: 5.97119 | AE30: 5.931697 | AF30: 6.508414 | AG30: 6.040637 | AH30: 7.108566 | AI30: 7.124639 | AJ30: 7.815996 | AK30: 6.913922 | AL30: 7.99101 | AM30: 8.584035 | AN30: 8.631004 | AO30: 8.720822 | AP30: 8.954487 | AQ30: 12.182537 | AR30: 10.849687 | AS30: 10.32722 | AT30: 12.276931 | AU30: 12.651137 | AV30: 12.745855 | AW30: 11.500151 | AX30: 16.935834 | AY30: 44.538521 | AZ30: 42.656258 | BA30: 30.634531 | BB30: 24.290281 | BC30: 14.253122 | BD30: 13.760003 | BE30: 12.021658 | BF30: 14.095298 | BG30: 13.583934 | BH30: 13.669961 | BI30: 12.304401 | BJ30: 11.862204 | BK30: 12.736487 | BL30: 13.56913 | BN30: 18.424883 | BO30: 18.80816 | BP30: 19.911314 | BQ30: 19.942383 | BR30: 23.714064 | BS30: 28.089838 | BT30: 32.119971 | BU30: 40.707533 | BV30: 48.001143 | BW30: 115.630764 | BX30: 82.937937 | BY30: 53.370851 | BZ30: 50.472222
A31: Ingresos por Remesas | B31: Distribución por Municipio | C31: Baja California Sur | D31: Loreto | E31: Ene-Mar 2013 - Oct-Dic 2025 | F31: Trimestral | G31: Flujos | H31: Millones de Dólares | K31: Niveles | L31: SE41207 | M31: 0.394761 | N31: 0.406859 | O31: 0.352665 | P31: 0.416797 | Q31: 0.322854 | R31: 0.359794 | S31: 0.351407 | T31: 0.38225 | U31: 0.373725 | V31: 0.376271 | W31: 0.413199 | X31: 0.434743 | Y31: 0.430899 | Z31: 0.464258 | AA31: 0.487639 | AB31: 0.451816 | AC31: 0.522664 | AD31: 0.584829 | AE31: 0.681808 | AF31: 0.608827 | AG31: 0.624148 | AH31: 0.684338 | AI31: 0.679069 | AJ31: 0.722557 | AK31: 0.68616 | AL31: 0.749545 | AM31: 0.719655 | AN31: 0.75646 | AO31: 0.884677 | AP31: 0.864993 | AQ31: 2.440849 | AR31: 1.102749 | AS31: 1.110674 | AT31: 1.168249 | AU31: 1.239734 | AV31: 1.229203 | AW31: 1.422556 | AX31: 1.300026 | AY31: 1.328084 | AZ31: 1.370799 | BA31: 1.467747 | BB31: 1.623994 | BC31: 1.719528 | BD31: 1.750941 | BE31: 1.773065 | BF31: 1.655486 | BG31: 1.601716 | BH31: 1.557329 | BI31: 1.507648 | BJ31: 1.276304 | BK31: 1.273868 | BL31: 1.505126 | BN31: 1.571082 | BO31: 1.416305 | BP31: 1.597938 | BQ31: 1.834612 | BR31: 2.398128 | BS31: 2.710112 | BT31: 2.91182 | BU31: 5.293268 | BV31: 4.74786 | BW31: 5.421465 | BX31: 6.56221 | BY31: 6.587596 | BZ31: 5.562946
A32: Ingresos por Remesas | B32: Distribución por Municipio | C32: Baja California Sur | D32: Los Cabos | E32: Ene-Mar 2013 - Oct-Dic 2025 | F32: Trimestral | G32: Flujos | H32: Millones de Dólares | K32: Niveles | L32: SE41208 | M32: 4.294556 | N32: 4.667065 | O32: 4.662211 | P32: 6.375448 | Q32: 4.539414 | R32: 4.907604 | S32: 5.23321 | T32: 5.947032 | U32: 5.310963 | V32: 5.764934 | W32: 5.944288 | X32: 6.041866 | Y32: 6.240089 | Z32: 6.934289 | AA32: 6.209832 | AB32: 7.012364 | AC32: 7.446389 | AD32: 7.93109 | AE32: 8.884338 | AF32: 9.057472 | AG32: 8.524569 | AH32: 10.416192 | AI32: 10.19945 | AJ32: 10.624853 | AK32: 10.018997 | AL32: 11.377066 | AM32: 11.567346 | AN32: 11.491772 | AO32: 10.487786 | AP32: 12.715919 | AQ32: 16.677355 | AR32: 14.09908 | AS32: 14.534879 | AT32: 16.241254 | AU32: 15.511378 | AV32: 15.52748 | AW32: 16.148484 | AX32: 18.15145 | AY32: 17.442342 | AZ32: 18.623391 | BA32: 17.714688 | BB32: 18.67536 | BC32: 19.975809 | BD32: 18.956846 | BE32: 17.39894 | BF32: 19.660821 | BG32: 19.58816 | BH32: 19.472059 | BI32: 17.652712 | BJ32: 18.166772 | BK32: 20.583804 | BL32: 20.066254 | BN32: 19.99928 | BO32: 20.62726 | BP32: 23.062051 | BQ32: 26.396574 | BR32: 33.319289 | BS32: 39.765064 | BT32: 44.455181 | BU32: 53.98014 | BV32: 61.814991 | BW32: 70.365667 | BX32: 75.322703 | BY32: 76.11998 | BZ32: 76.469542
A33: Ingresos por Remesas | B33: Distribución por Municipio | C33: Baja California Sur | D33: Mulegé | E33: Ene-Mar 2013 - Oct-Dic 2025 | F33: Trimestral | G33: Flujos | H33: Millones de Dólares | K33: Niveles | L33: SE41209 | M33: 0.634486 | N33: 0.682725 | O33: 0.613117 | P33: 0.857016 | Q33: 0.534824 | R33: 0.654468 | S33: 0.627077 | T33: 0.799405 | U33: 0.626023 | V33: 0.703562 | W33: 0.731098 | X33: 0.674214 | Y33: 0.603632 | Z33: 0.858079 | AA33: 0.869193 | AB33: 0.945783 | AC33: 0.97871 | AD33: 0.985975 | AE33: 0.864074 | AF33: 0.863985 | AG33: 0.807879 | AH33: 1.02428 | AI33: 0.894242 | AJ33: 0.89926 | AK33: 0.763208 | AL33: 1.061325 | AM33: 0.968855 | AN33: 0.864704 | AO33: 0.938646 | AP33: 0.981064 | AQ33: 1.316448 | AR33: 1.099278 | AS33: 1.111739 | AT33: 1.203052 | AU33: 1.269043 | AV33: 1.287965 | AW33: 1.139024 | AX33: 1.298798 | AY33: 1.330322 | AZ33: 1.333702 | BA33: 1.344198 | BB33: 1.435998 | BC33: 1.598494 | BD33: 1.49972 | BE33: 1.322115 | BF33: 1.61485 | BG33: 1.620059 | BH33: 1.521623 | BI33: 1.383035 | BJ33: 1.235586 | BK33: 1.244093 | BL33: 1.438131 | BN33: 2.787344 | BO33: 2.615774 | BP33: 2.734897 | BQ33: 3.276687 | BR33: 3.692744 | BS33: 3.625661 | BT33: 3.658092 | BU33: 4.335436 | BV33: 4.871799 | BW33: 5.101846 | BX33: 5.87841 | BY33: 6.078647 | BZ33: 5.300845
A34: Ingresos por Remesas | B34: Distribución por Municipio | C34: Baja California Sur | D34: No identificado | E34: Ene-Mar 2013 - Oct-Dic 2025 | F34: Trimestral | G34: Flujos | H34: Millones de Dólares | K34: Niveles | L34: SE41210 | M34: 0.040013 | N34: 0.036502 | O34: 0.010753 | P34: 0.012731 | Q34: 0.011262 | R34: 0.011485 | S34: 0.023194 | T34: 0.037075 | U34: 0.011153 | V34: 0.00821 | W34: 0 | X34: 0 | Y34: 0 | Z34: 0 | AA34: 0 | AB34: 0 | AC34: 0 | AD34: 0 | AE34: 0 | AF34: 0 | AG34: 0 | AH34: 0 | AI34: 0 | AJ34: 0 | AK34: 0 | AL34: 0 | AM34: 0 | AN34: 0 | AO34: 0 | AP34: 0 | AQ34: 0 | AR34: 0 | AS34: 0 | AT34: 0 | AU34: 0.129045 | AV34: 0 | AW34: 0 | AX34: 0 | AY34: 0 | AZ34: 0 | BA34: 0.051215 | BB34: 0.080671 | BC34: 0.090435 | BD34: 0.227016 | BE34: 0.152155 | BF34: 0.163559 | BG34: 0.128148 | BH34: 0.098532 | BI34: 0.080101 | BJ34: 0.075091 | BK34: 0.061886 | BL34: 0.060438 | BN34: 0.099999 | BO34: 0.083016 | BP34: 0.019363 | BQ34: 0 | BR34: 0 | BS34: 0 | BT34: 0 | BU34: 0 | BV34: 0.129045 | BW34: 0 | BX34: 0.449337 | BY34: 0.542394 | BZ34: 0.277516
A35: Ingresos por Remesas | B35: Distribución por Municipio | C35: Campeche | D35: Calakmul | E35: Ene-Mar 2013 - Oct-Dic 2025 | F35: Trimestral | G35: Flujos | H35: Millones de Dólares | K35: Niveles | L35: SE41211 | M35: 0.590339 | N35: 0.727842 | O35: 0.709283 | P35: 0.682823 | Q35: 0.614653 | R35: 0.863093 | S35: 0.856161 | T35: 0.792822 | U35: 0.785006 | V35: 0.94318 | W35: 0.973869 | X35: 0.856391 | Y35: 0.828228 | Z35: 0.89715 | AA35: 0.910092 | AB35: 0.913565 | AC35: 1.052552 | AD35: 1.125591 | AE35: 1.103806 | AF35: 1.068995 | AG35: 1.125202 | AH35: 1.337989 | AI35: 1.338891 | AJ35: 1.278913 | AK35: 1.058846 | AL35: 1.358695 | AM35: 1.342568 | AN35: 1.220633 | AO35: 1.118745 | AP35: 1.396946 | AQ35: 1.37525 | AR35: 1.530542 | AS35: 1.479784 | AT35: 1.888676 | AU35: 2.154181 | AV35: 2.039608 | AW35: 2.044512 | AX35: 2.515254 | AY35: 2.817719 | AZ35: 2.816468 | BA35: 2.544364 | BB35: 3.199304 | BC35: 3.216859 | BD35: 2.955966 | BE35: 2.561006 | BF35: 3.264075 | BG35: 3.290616 | BH35: 3.192496 | BI35: 3.103722 | BJ35: 3.505544 | BK35: 3.623332 | BL35: 3.270551 | BN35: 2.710287 | BO35: 3.126729 | BP35: 3.558446 | BQ35: 3.549035 | BR35: 4.350944 | BS35: 5.080995 | BT35: 4.980742 | BU35: 5.421483 | BV35: 7.562249 | BW35: 10.193953 | BX35: 11.916493 | BY35: 12.308193 | BZ35: 13.503149
A36: Ingresos por Remesas | B36: Distribución por Municipio | C36: Campeche | D36: Calkiní | E36: Ene-Mar 2013 - Oct-Dic 2025 | F36: Trimestral | G36: Flujos | H36: Millones de Dólares | K36: Niveles | L36: SE41212 | M36: 0.286494 | N36: 1.254203 | O36: 0.989231 | P36: 0.492429 | Q36: 0.274416 | R36: 0.452421 | S36: 0.591373 | T36: 0.407488 | U36: 0.25074 | V36: 0.446499 | W36: 0.552441 | X36: 0.386041 | Y36: 0.259424 | Z36: 0.57991 | AA36: 0.662655 | AB36: 0.470985 | AC36: 0.396978 | AD36: 0.593502 | AE36: 0.641685 | AF36: 0.4486 | AG36: 0.293189 | AH36: 0.50754 | AI36: 0.552851 | AJ36: 0.382288 | AK36: 0.359236 | AL36: 0.61663 | AM36: 0.672474 | AN36: 0.448913 | AO36: 0.369999 | AP36: 0.535968 | AQ36: 1.269441 | AR36: 0.608811 | AS36: 0.440453 | AT36: 0.941257 | AU36: 0.999877 | AV36: 0.841628 | AW36: 0.736393 | AX36: 1.254566 | AY36: 1.325863 | AZ36: 1.101561 | BA36: 0.786753 | BB36: 1.317768 | BC36: 1.48932 | BD36: 1.170092 | BE36: 0.863987 | BF36: 1.460851 | BG36: 1.522447 | BH36: 1.190119 | BI36: 0.852033 | BJ36: 1.18609 | BK36: 1.361198 | BL36: 1.075917 | BN36: 3.022357 | BO36: 1.725698 | BP36: 1.635721 | BQ36: 1.972974 | BR36: 2.080765 | BS36: 1.735868 | BT36: 2.097253 | BU36: 2.784219 | BV36: 3.223215 | BW36: 4.418383 | BX36: 4.763933 | BY36: 5.037404 | BZ36: 4.475238
A37: Ingresos por Remesas | B37: Distribución por Municipio | C37: Campeche | D37: Campeche | E37: Ene-Mar 2013 - Oct-Dic 2025 | F37: Trimestral | G37: Flujos | H37: Millones de Dólares | K37: Niveles | L37: SE41213 | M37: 3.121231 | N37: 4.299339 | O37: 3.864696 | P37: 4.091019 | Q37: 3.155851 | R37: 3.673263 | S37: 3.731153 | T37: 3.576909 | U37: 3.621417 | V37: 3.933107 | W37: 3.653462 | X37: 3.720185 | Y37: 3.776493 | Z37: 4.197597 | AA37: 4.450151 | AB37: 4.331403 | AC37: 4.358939 | AD37: 4.876173 | AE37: 4.577768 | AF37: 4.803105 | AG37: 4.242546 | AH37: 5.309929 | AI37: 5.094714 | AJ37: 5.133165 | AK37: 4.600817 | AL37: 5.66654 | AM37: 6.075255 | AN37: 5.989376 | AO37: 6.543637 | AP37: 6.388508 | AQ37: 9.011271 | AR37: 8.058893 | AS37: 7.356519 | AT37: 9.096198 | AU37: 10.180968 | AV37: 10.35394 | AW37: 7.652828 | AX37: 8.965434 | AY37: 9.612253 | AZ37: 9.40864 | BA37: 7.782956 | BB37: 9.540777 | BC37: 9.663796 | BD37: 8.919853 | BE37: 7.243793 | BF37: 9.373277 | BG37: 9.818015 | BH37: 9.554644 | BI37: 8.62854 | BJ37: 9.794504 | BK37: 11.0993 | BL37: 9.597215 | BN37: 15.376285 | BO37: 14.137176 | BP37: 14.928171 | BQ37: 16.755644 | BR37: 18.615985 | BS37: 19.780354 | BT37: 22.331988 | BU37: 30.002309 | BV37: 36.987625 | BW37: 35.639155 | BX37: 35.907382 | BY37: 35.989729 | BZ37: 39.119559
A38: Ingresos por Remesas | B38: Distribución por Municipio | C38: Campeche | D38: Candelaria | E38: Ene-Mar 2013 - Oct-Dic 2025 | F38: Trimestral | G38: Flujos | H38: Millones de Dólares | K38: Niveles | L38: SE41214 | M38: 0.685365 | N38: 0.598454 | O38: 0.529522 | P38: 0.372289 | Q38: 0.492879 | R38: 0.733273 | S38: 0.527454 | T38: 0.610211 | U38: 0.492028 | V38: 0.698103 | W38: 0.678111 | X38: 0.673794 | Y38: 0.757085 | Z38: 0.79947 | AA38: 0.784388 | AB38: 0.914738 | AC38: 1.04642 | AD38: 1.113152 | AE38: 1.076947 | AF38: 1.140602 | AG38: 1.047993 | AH38: 1.32625 | AI38: 1.397786 | AJ38: 1.37445 | AK38: 1.353847 | AL38: 1.535102 | AM38: 1.482952 | AN38: 1.300746 | AO38: 1.459374 | AP38: 1.672577 | AQ38: 2.629678 | AR38: 1.830744 | AS38: 1.891998 | AT38: 2.494137 | AU38: 2.364759 | AV38: 2.650787 | AW38: 4.631937 | AX38: 6.688318 | AY38: 7.120646 | AZ38: 6.612659 | BA38: 6.340062 | BB38: 7.757668 | BC38: 7.946802 | BD38: 7.104182 | BE38: 6.543296 | BF38: 8.0079 | BG38: 7.890378 | BH38: 7.746932 | BI38: 7.539808 | BJ38: 8.398349 | BK38: 8.891143 | BL38: 8.449531 | BN38: 2.18563 | BO38: 2.363817 | BP38: 2.542036 | BQ38: 3.255681 | BR38: 4.377121 | BS38: 5.146479 | BT38: 5.672647 | BU38: 7.592373 | BV38: 9.401681 | BW38: 25.05356 | BX38: 29.148714 | BY38: 30.188506 | BZ38: 33.278831
A39: Ingresos por Remesas | B39: Distribución por Municipio | C39: Campeche | D39: Carmen | E39: Ene-Mar 2013 - Oct-Dic 2025 | F39: Trimestral | G39: Flujos | H39: Millones de Dólares | K39: Niveles | L39: SE41215 | M39: 2.90729 | N39: 3.958407 | O39: 4.138703 | P39: 5.241961 | Q39: 4.583335 | R39: 5.720492 | S39: 5.122668 | T39: 3.731296 | U39: 2.841888 | V39: 3.078429 | W39: 2.984295 | X39: 2.83061 | Y39: 2.922533 | Z39: 3.393882 | AA39: 3.41898 | AB39: 3.5693 | AC39: 3.577216 | AD39: 3.915894 | AE39: 4.228207 | AF39: 4.146488 | AG39: 3.826091 | AH39: 4.505125 | AI39: 4.709776 | AJ39: 4.792401 | AK39: 4.487994 | AL39: 5.870895 | AM39: 5.644749 | AN39: 4.783703 | AO39: 6.577797 | AP39: 6.62358 | AQ39: 10.535317 | AR39: 8.656812 | AS39: 8.677127 | AT39: 10.373193 | AU39: 11.04191 | AV39: 10.988404 | AW39: 6.566417 | AX39: 6.192501 | AY39: 5.181178 | AZ39: 5.40862 | BA39: 4.991268 | BB39: 5.837947 | BC39: 6.624873 | BD39: 6.014077 | BE39: 4.965205 | BF39: 5.581473 | BG39: 5.696822 | BH39: 5.624278 | BI39: 4.85223 | BJ39: 4.566968 | BK39: 5.042971 | BL39: 5.034061 | BN39: 16.246361 | BO39: 19.157791 | BP39: 11.735222 | BQ39: 13.304695 | BR39: 15.867805 | BS39: 17.833393 | BT39: 20.787341 | BU39: 32.393506 | BV39: 41.080634 | BW39: 23.348716 | BX39: 23.468165 | BY39: 21.867778 | BZ39: 19.49623
A40: Ingresos por Remesas | B40: Distribución por Municipio | C40: Campeche | D40: Champotón | E40: Ene-Mar 2013 - Oct-Dic 2025 | F40: Trimestral | G40: Flujos | H40: Millones de Dólares | K40: Niveles | L40: SE41216 | M40: 1.514808 | N40: 1.808826 | O40: 1.558202 | P40: 1.864206 | Q40: 1.450644 | R40: 1.672359 | S40: 1.64828 | T40: 1.614129 | U40: 1.597401 | V40: 2.034574 | W40: 1.950539 | X40: 1.789303 | Y40: 1.905896 | Z40: 2.299142 | AA40: 2.177787 | AB40: 2.216508 | AC40: 2.323593 | AD40: 2.473374 | AE40: 2.384836 | AF40: 2.410628 | AG40: 2.261246 | AH40: 2.628187 | AI40: 2.661998 | AJ40: 2.771513 | AK40: 2.628327 | AL40: 3.426475 | AM40: 3.534184 | AN40: 3.317331 | AO40: 3.090536 | AP40: 3.36387 | AQ40: 4.065278 | AR40: 4.016084 | AS40: 3.697602 | AT40: 4.765276 | AU40: 4.868579 | AV40: 4.801151 | AW40: 4.38567 | AX40: 5.782155 | AY40: 5.540003 | AZ40: 5.359536 | BA40: 5.0967 | BB40: 6.363414 | BC40: 6.218726 | BD40: 5.000822 | BE40: 4.341265 | BF40: 5.953007 | BG40: 5.540653 | BH40: 5.286534 | BI40: 4.867532 | BJ40: 5.880554 | BK40: 5.86732 | BL40: 5.56879 | BN40: 6.746042 | BO40: 6.385412 | BP40: 7.371817 | BQ40: 8.599333 | BR40: 9.592431 | BS40: 10.322944 | BT40: 12.906317 | BU40: 14.535768 | BV40: 18.132608 | BW40: 21.067364 | BX40: 22.679662 | BY40: 21.121459 | BZ40: 22.184196
A41: Ingresos por Remesas | B41: Distribución por Municipio | C41: Campeche | D41: Escárcega | E41: Ene-Mar 2013 - Oct-Dic 2025 | F41: Trimestral | G41: Flujos | H41: Millones de Dólares | K41: Niveles | L41: SE41217 | M41: 2.814089 | N41: 1.905459 | O41: 1.906768 | P41: 2.381702 | Q41: 2.019926 | R41: 2.193337 | S41: 2.039296 | T41: 2.936846 | U41: 3.413843 | V41: 3.744609 | W41: 3.906388 | X41: 3.601976 | Y41: 3.898032 | Z41: 4.495488 | AA41: 4.530726 | AB41: 4.523838 | AC41: 4.809888 | AD41: 4.837183 | AE41: 5.054898 | AF41: 5.015021 | AG41: 4.192047 | AH41: 4.88092 | AI41: 4.790943 | AJ41: 4.821019 | AK41: 4.299793 | AL41: 5.039071 | AM41: 5.008131 | AN41: 4.612971 | AO41: 4.862248 | AP41: 5.449297 | AQ41: 6.519143 | AR41: 6.010925 | AS41: 6.069051 | AT41: 7.902137 | AU41: 7.642969 | AV41: 7.954155 | AW41: 7.094673 | AX41: 8.869605 | AY41: 9.382495 | AZ41: 9.299817 | BA41: 8.45976 | BB41: 10.003 | BC41: 10.316605 | BD41: 8.872532 | BE41: 7.793135 | BF41: 9.267387 | BG41: 8.736106 | BH41: 8.277893 | BI41: 8.062284 | BJ41: 8.519647 | BK41: 8.807185 | BL41: 8.921054 | BN41: 9.008018 | BO41: 9.189405 | BP41: 14.666816 | BQ41: 17.448084 | BR41: 19.71699 | BS41: 18.684929 | BT41: 18.959966 | BU41: 22.841613 | BV41: 29.568312 | BW41: 34.64659 | BX41: 37.651897 | BY41: 34.074521 | BZ41: 34.31017
A42: Ingresos por Remesas | B42: Distribución por Municipio | C42: Campeche | D42: Hecelchakán | E42: Ene-Mar 2013 - Oct-Dic 2025 | F42: Trimestral | G42: Flujos | H42: Millones de Dólares | K42: Niveles | L42: SE41218 | M42: 0.052303 | N42: 0.161538 | O42: 0.232113 | P42: 0.116428 | Q42: 0.08361 | R42: 0.196325 | S42: 0.29412 | T42: 0.159075 | U42: 0.105109 | V42: 0.223564 | W42: 0.324596 | X42: 0.189627 | Y42: 0.133586 | Z42: 0.263635 | AA42: 0.40122 | AB42: 0.2687 | AC42: 0.209353 | AD42: 0.360918 | AE42: 0.539162 | AF42: 0.338418 | AG42: 0.211067 | AH42: 0.345527 | AI42: 0.535301 | AJ42: 0.328164 | AK42: 0.212419 | AL42: 0.454075 | AM42: 0.597081 | AN42: 0.341125 | AO42: 0.252095 | AP42: 0.342592 | AQ42: 0.553988 | AR42: 0.464815 | AS42: 0.300152 | AT42: 0.695899 | AU42: 0.853391 | AV42: 0.64523 | AW42: 0.515135 | AX42: 0.971737 | AY42: 1.089547 | AZ42: 0.815209 | BA42: 0.849176 | BB42: 1.295675 | BC42: 1.361993 | BD42: 1.083823 | BE42: 1.025229 | BF42: 1.402579 | BG42: 1.392618 | BH42: 1.248191 | BI42: 1.127305 | BJ42: 1.637951 | BK42: 1.922501 | BL42: 1.503189 | BN42: 0.562382 | BO42: 0.73313 | BP42: 0.842896 | BQ42: 1.067141 | BR42: 1.447851 | BS42: 1.420059 | BT42: 1.6047 | BU42: 1.61349 | BV42: 2.494672 | BW42: 3.391628 | BX42: 4.590667 | BY42: 5.068617 | BZ42: 6.190946
A43: Ingresos por Remesas | B43: Distribución por Municipio | C43: Campeche | D43: Hopelchén | E43: Ene-Mar 2013 - Oct-Dic 2025 | F43: Trimestral | G43: Flujos | H43: Millones de Dólares | K43: Niveles | L43: SE41219 | M43: 0.070515 | N43: 0.145123 | O43: 0.208601 | P43: 0.181494 | Q43: 0.095218 | R43: 0.146348 | S43: 0.238272 | T43: 0.154163 | U43: 0.11705 | V43: 0.149799 | W43: 0.245525 | X43: 0.19234 | Y43: 0.115512 | Z43: 0.207854 | AA43: 0.303995 | AB43: 0.215468 | AC43: 0.193748 | AD43: 0.221653 | AE43: 0.355231 | AF43: 0.279972 | AG43: 0.179809 | AH43: 0.330002 | AI43: 0.407119 | AJ43: 0.380134 | AK43: 0.243483 | AL43: 0.330727 | AM43: 0.504578 | AN43: 0.379184 | AO43: 0.288727 | AP43: 0.328244 | AQ43: 0.515754 | AR43: 0.367008 | AS43: 0.316025 | AT43: 0.498575 | AU43: 0.671508 | AV43: 0.490735 | AW43: 0.46445 | AX43: 0.499088 | AY43: 0.677233 | AZ43: 0.637448 | BA43: 0.563303 | BB43: 0.640307 | BC43: 0.927063 | BD43: 0.765729 | BE43: 0.522177 | BF43: 0.668822 | BG43: 0.847905 | BH43: 0.668648 | BI43: 0.484659 | BJ43: 0.486419 | BK43: 0.598791 | BL43: 0.545152 | BN43: 0.605733 | BO43: 0.634001 | BP43: 0.704714 | BQ43: 0.842829 | BR43: 1.050604 | BS43: 1.297064 | BT43: 1.457972 | BU43: 1.499733 | BV43: 1.976843 | BW43: 2.278219 | BX43: 2.896402 | BY43: 2.707552 | BZ43: 2.115021
A44: Ingresos por Remesas | B44: Distribución por Municipio | C44: Campeche | D44: Palizada | E44: Ene-Mar 2013 - Oct-Dic 2025 | F44: Trimestral | G44: Flujos | H44: Millones de Dólares | K44: Niveles | L44: SE41220 | M44: 0.029974 | N44: 0.163244 | O44: 0.104893 | P44: 0.03763 | Q44: 0.034287 | R44: 0.039303 | S44: 0.040056 | T44: 0.040063 | U44: 0.022877 | V44: 0.030268 | W44: 0.039576 | X44: 0.023477 | Y44: 0.03678 | Z44: 0.031287 | AA44: 0.047869 | AB44: 0.036233 | AC44: 0.03751 | AD44: 0.059366 | AE44: 0.099526 | AF44: 0.051072 | AG44: 0.037086 | AH44: 0.10299 | AI44: 0.117336 | AJ44: 0.097182 | AK44: 0.055102 | AL44: 0.079907 | AM44: 0.106421 | AN44: 0.077331 | AO44: 0.072545 | AP44: 0.07003 | AQ44: 0.088726 | AR44: 0.085116 | AS44: 0.073459 | AT44: 0.10701 | AU44: 0.106868 | AV44: 0.099217 | AW44: 0.086659 | AX44: 0.115409 | AY44: 0.097796 | AZ44: 0.122871 | BA44: 0.132053 | BB44: 0.136711 | BC44: 0.145751 | BD44: 0.134373 | BE44: 0.125489 | BF44: 0.137017 | BG44: 0.146234 | BH44: 0.105704 | BI44: 0.084355 | BJ44: 0.076061 | BK44: 0.060033 | BL44: 0.083929 | BN44: 0.335741 | BO44: 0.153709 | BP44: 0.116198 | BQ44: 0.152169 | BR44: 0.247474 | BS44: 0.354594 | BT44: 0.318761 | BU44: 0.316417 | BV44: 0.386554 | BW44: 0.422735 | BX44: 0.548888 | BY44: 0.514444 | BZ44: 0.304378
A45: Ingresos por Remesas | B45: Distribución por Municipio | C45: Campeche | D45: Tenabo | E45: Ene-Mar 2013 - Oct-Dic 2025 | F45: Trimestral | G45: Flujos | H45: Millones de Dólares | K45: Niveles | L45: SE41221 | M45: 0.007818 | N45: 0.022633 | O45: 0.023213 | P45: 0.021293 | Q45: 0.014412 | R45: 0.014653 | S45: 0.018918 | T45: 0.010281 | U45: 0.011576 | V45: 0.02267 | W45: 0.00903 | X45: 0.01696 | Y45: 0.009731 | Z45: 0.010897 | AA45: 0.021951 | AB45: 0.01821 | AC45: 0.013865 | AD45: 0.028137 | AE45: 0.027886 | AF45: 0.019064 | AG45: 0.015009 | AH45: 0.010095 | AI45: 0.027113 | AJ45: 0.010276 | AK45: 0.012431 | AL45: 0.019386 | AM45: 0.033512 | AN45: 0.016808 | AO45: 0.009923 | AP45: 0.029394 | AQ45: 0.029543 | AR45: 0.024409 | AS45: 0.014647 | AT45: 0.028071 | AU45: 0.031079 | AV45: 0.018014 | AW45: 0.016357 | AX45: 0.017259 | AY45: 0.015513 | AZ45: 0.01341 | BA45: 0.012996 | BB45: 0.017468 | BC45: 0.016089 | BD45: 0.006466 | BE45: 0.00424 | BF45: 0.011017 | BG45: 0.010009 | BH45: 0.008909 | BI45: 0.012796 | BJ45: 0.010625 | BK45: 0.016579 | BL45: 0.004203 | BN45: 0.074957 | BO45: 0.058264 | BP45: 0.060236 | BQ45: 0.060789 | BR45: 0.088952 | BS45: 0.062493 | BT45: =SUMIFS($M45:$BL45,$M$9:$BL$9,BT$10) -> 0.082137 | BU45: 0.093269 | BV45: 0.091811 | BW45: 0.062539 | BX45: 0.053019 | BY45: 0.034175 | BZ45: 0.044203
A46: Ingresos por Remesas | B46: Distribución por Municipio | C46: Campeche | D46: No identificado | E46: Ene-Mar 2013 - Oct-Dic 2025 | F46: Trimestral | G46: Flujos | H46: Millones de Dólares | K46: Niveles | L46: SE41222 | M46: 0.014009 | N46: 0.013362 | O46: 0.004327 | P46: 0.026038 | Q46: 0.004407 | R46: 0.006084 | S46: 0.007771 | T46: 0.006802 | U46: 0.00224 | V46: 0 | W46: 0 | X46: 0 | Y46: 0 | Z46: 0 | AA46: 0 | AB46: 0 | AC46: 0 | AD46: 0 | AE46: 0 | AF46: 0 | AG46: 0 | AH46: 0 | AI46: 0 | AJ46: 0.007388 | AK46: 0.018063 | AL46: 0 | AM46: 0 | AN46: 0 | AO46: 0 | AP46: 0 | AQ46: 0 | AR46: 0 | AS46: 0 | AT46: 0 | AU46: 0.000186 | AV46: 0 | AW46: 0 | AX46: 0 | AY46: 0 | AZ46: 0 | BA46: 0 | BB46: 7e-05 | BC46: 0.016647 | BD46: 0.054258 | BE46: 0.06408 | BF46: 0.113609 | BG46: 0.098525 | BH46: 0.10815 | BI46: 0.053806 | BJ46: 0.05138 | BK46: 0.04245 | BL46: 0.044613 | BN46: =SUMIFS($M46:$BL46,$M$9:$BL$9,BN$10) -> 0.057736 | BO46: 0.025064 | BP46: 0.00224 | BQ46: 0 | BR46: 0 | BS46: 0.007388 | BT46: 0.018063 | BU46: 0 | BV46: 0.000186 | BW46: 0 | BX46: 0.070975 | BY46: 0.384364 | BZ46: 0.192249
A47: Ingresos por Remesas | B47: Distribución por Municipio | C47: Coahuila | D47: Abasolo | E47: Ene-Mar 2013 - Oct-Dic 2025 | F47: Trimestral | G47: Flujos | H47: Millones de Dólares | K47: Niveles | L47: SE41223 | M47: 0 | N47: 0.195649 | O47: 0.370032 | P47: 0.313842 | Q47: 0.401623 | R47: 0.389325 | S47: 0.529102 | T47: 0.483264 | U47: 0.360176 | V47: 0.378579 | W47: 0.432388 | X47: 0.444843 | Y47: 0.38603 | Z47: 0.408302 | AA47: 0.392787 | AB47: 0.346577 | AC47: 0.075286 | AD47: 0.001875 | AE47: 0.012112 | AF47: 0 | AG47: 0.00398 | AH47: 0 | AI47: 0 | AJ47: 0.001379 | AK47: 0.004415 | AL47: 0.008853 | AM47: 0.006877 | AN47: 0.007454 | AO47: 0.014895 | AP47: 0.019421 | AQ47: 0.02232 | AR47: 0.118351 | AS47: 0.023422 | AT47: 0.040301 | AU47: 0.053559 | AV47: 0.037767 | AW47: 0.026844 | AX47: 0.060068 | AY47: 0.000858 | AZ47: 0.001215 | BA47: 0.001671 | BB47: 0.000815 | BC47: 0 | BD47: 0 | BE47: 0 | BF47: 0 | BG47: 0 | BH47: 0.168514 | BI47: 0 | BJ47: 0 | BK47: 1.9e-05 | BL47: 0 | BN47: 0.879523 | BO47: 1.803314 | BP47: 1.615986 | BQ47: 1.533696 | BR47: 0.089273 | BS47: 0.005359 | BT47: 0.027599 | BU47: 0.174987 | BV47: 0.155049 | BW47: 0.088985 | BX47: 0.002486 | BY47: 0.168514 | BZ47: 1.9e-05
A48: Ingresos por Remesas | B48: Distribución por Municipio | C48: Coahuila | D48: Acuña | E48: Ene-Mar 2013 - Oct-Dic 2025 | F48: Trimestral | G48: Flujos | H48: Millones de Dólares | K48: Niveles | L48: SE41224 | M48: 7.80855 | N48: 7.876224 | O48: 7.596171 | P48: 7.729993 | Q48: 7.559352 | R48: 8.320726 | S48: 10.248116 | T48: 8.290427 | U48: 7.961447 | V48: 9.8873 | W48: 7.612872 | X48: 8.118379 | Y48: 7.922987 | Z48: 8.536148 | AA48: 8.581226 | AB48: 8.856131 | AC48: 9.537998 | AD48: 10.461052 | AE48: 10.712394 | AF48: 12.638101 | AG48: 12.152594 | AH48: 13.19388 | AI48: 13.112073 | AJ48: 12.748373 | AK48: 13.098242 | AL48: 14.778652 | AM48: 15.234999 | AN48: 14.848387 | AO48: 15.821466 | AP48: 19.186673 | AQ48: 17.726983 | AR48: 17.602826 | AS48: 19.243749 | AT48: 23.50311 | AU48: 23.235113 | AV48: 24.130653 | AW48: 22.827885 | AX48: 24.938052 | AY48: 25.511652 | AZ48: 26.106864 | BA48: 23.261114 | BB48: 23.15551 | BC48: 23.138912 | BD48: 21.59646 | BE48: 19.235806 | BF48: 21.748793 | BG48: 22.55574 | BH48: 22.135052 | BI48: 20.196452 | BJ48: 21.151616 | BK48: 22.41832 | BL48: 21.477622 | BN48: 31.010938 | BO48: 34.418621 | BP48: 33.579998 | BQ48: 33.896492 | BR48: 43.349545 | BS48: 51.20692 | BT48: 57.96028 | BU48: 70.337948 | BV48: 90.112625 | BW48: 99.384453 | BX48: 91.151996 | BY48: 85.675391 | BZ48: 85.24401
A49: Ingresos por Remesas | B49: Distribución por Municipio | C49: Coahuila | D49: Allende | E49: Ene-Mar 2013 - Oct-Dic 2025 | F49: Trimestral | G49: Flujos | H49: Millones de Dólares | K49: Niveles | L49: SE41225 | M49: 2.210036 | N49: 2.254827 | O49: 2.646222 | P49: 2.410035 | Q49: 2.295447 | R49: 2.631503 | S49: 3.926319 | T49: 2.993997 | U49: 3.055981 | V49: 3.365917 | W49: 3.438968 | X49: 2.928725 | Y49: 3.294226 | Z49: 3.666175 | AA49: 3.892525 | AB49: 4.014568 | AC49: 4.363887 | AD49: 4.935457 | AE49: 5.121587 | AF49: 6.314093 | AG49: 5.327956 | AH49: 5.838533 | AI49: 5.600261 | AJ49: 5.604553 | AK49: 5.434374 | AL49: 6.145594 | AM49: 6.493338 | AN49: 5.784403 | AO49: 6.126538 | AP49: 7.886065 | AQ49: 5.801003 | AR49: 6.523717 | AS49: 6.192616 | AT49: 7.153762 | AU49: 7.37647 | AV49: 7.323424 | AW49: 6.447351 | AX49: 7.54362 | AY49: 8.442391 | AZ49: 8.669933 | BA49: 7.780981 | BB49: 8.084395 | BC49: 8.356033 | BD49: 7.622162 | BE49: 6.465157 | BF49: 8.016991 | BG49: 8.524082 | BH49: 8.355248 | BI49: 6.850983 | BJ49: 7.021374 | BK49: 7.76887 | BL49: 8.254391 | BN49: 9.52112 | BO49: 11.847266 | BP49: 12.789591 | BQ49: 14.867494 | BR49: 20.735024 | BS49: 22.371303 | BT49: 23.857709 | BU49: 26.337323 | BV49: 28.046272 | BW49: 31.103295 | BX49: 31.843571 | BY49: 31.361478 | BZ49: 29.895618
A50: Ingresos por Remesas | B50: Distribución por Municipio | C50: Coahuila | D50: Arteaga | E50: Ene-Mar 2013 - Oct-Dic 2025 | F50: Trimestral | G50: Flujos | H50: Millones de Dólares | K50: Niveles | L50: SE41226 | M50: 0.014937 | N50: 0.020566 | O50: 0.052494 | P50: 0.040421 | Q50: 0.054992 | R50: 0.068564 | S50: 0.085062 | T50: 0.088482 | U50: 0.068813 | V50: 0.084693 | W50: 0.062959 | X50: 0.073511 | Y50: 0.090096 | Z50: 0.082981 | AA50: 0.096347 | AB50: 0.09777 | AC50: 0.106836 | AD50: 0.109309 | AE50: 0.018266 | AF50: 0.012059 | AG50: 0.011842 | AH50: 0.019378 | AI50: 0.010451 | AJ50: 0.013981 | AK50: 0.018618 | AL50: 0.027651 | AM50: 0.026335 | AN50: 0.037957 | AO50: 0.038595 | AP50: 0.025305 | AQ50: 0.041597 | AR50: 0.037935 | AS50: 0.027536 | AT50: 0.058402 | AU50: 0.127465 | AV50: 0.059655 | AW50: 0.038099 | AX50: 0.088448 | AY50: 0.034918 | AZ50: 0.026478 | BA50: 0.024202 | BB50: 0.023262 | BC50: 0.028681 | BD50: 0.018914 | BE50: 0.020607 | BF50: 0.020936 | BG50: 0.019839 | BH50: 0.011276 | BI50: 0.008505 | BJ50: 0.012845 | BK50: 0.025112 | BL50: 0.010138 | BN50: 0.128418 | BO50: 0.2971 | BP50: 0.289976 | BQ50: 0.367194 | BR50: 0.24647 | BS50: 0.055652 | BT50: 0.110561 | BU50: 0.143432 | BV50: 0.273058 | BW50: 0.187943 | BX50: 0.095059 | BY50: 0.072658 | BZ50: 0.0566
A51: Ingresos por Remesas | B51: Distribución por Municipio | C51: Coahuila | D51: Candela | E51: Ene-Mar 2013 - Oct-Dic 2025 | F51: Trimestral | G51: Flujos | H51: Millones de Dólares | K51: Niveles | L51: SE41227 | M51: 0.018457 | N51: 0.025631 | O51: 0.030908 | P51: 0.032091 | Q51: 0.026864 | R51: 0.036667 | S51: 0.043508 | T51: 0.027013 | U51: 0.025979 | V51: 0.036232 | W51: 0.037108 | X51: 0.034654 | Y51: 0.030261 | Z51: 0.031313 | AA51: 0.0341 | AB51: 0.02822 | AC51: 0.027469 | AD51: 0.039465 | AE51: 0.055124 | AF51: 0.044734 | AG51: 0.038838 | AH51: 0.038124 | AI51: 0.04613 | AJ51: 0.037908 | AK51: 0.031846 | AL51: 0.047886 | AM51: 0.090525 | AN51: 0.062982 | AO51: 0.069815 | AP51: 0.072383 | AQ51: 0.049873 | AR51: 0.05735 | AS51: 0.064706 | AT51: 0.063196 | AU51: 0.067616 | AV51: 0.075724 | AW51: 0.072568 | AX51: 0.087287 | AY51: 0.074251 | AZ51: 0.067492 | BA51: 0.061187 | BB51: 0.064533 | BC51: 0.06462 | BD51: 0.060008 | BE51: 0.068794 | BF51: 0.027306 | BG51: 0.052374 | BH51: 0.015461 | BI51: 0 | BJ51: 0 | BK51: 0 | BL51: 8.6e-05 | BN51: 0.107087 | BO51: 0.134052 | BP51: 0.133973 | BQ51: 0.123894 | BR51: 0.166792 | BS51: 0.161 | BT51: 0.233239 | BU51: 0.249421 | BV51: 0.271242 | BW51: 0.301598 | BX51: 0.250348 | BY51: 0.163935 | BZ51: 8.6e-05
A52: Ingresos por Remesas | B52: Distribución por Municipio | C52: Coahuila | D52: Castaños | E52: Ene-Mar 2013 - Oct-Dic 2025 | F52: Trimestral | G52: Flujos | H52: Millones de Dólares | K52: Niveles | L52: SE41228 | M52: 0.562336 | N52: 0.613716 | O52: 0.642699 | P52: 0.631233 | Q52: 0.68796 | R52: 0.834203 | S52: 1.063472 | T52: 0.938798 | U52: 0.84272 | V52: 1.062115 | W52: 1.010435 | X52: 1.128426 | Y52: 1.079839 | Z52: 1.19167 | AA52: 1.203137 | AB52: 1.271303 | AC52: 1.467463 | AD52: 1.674075 | AE52: 1.890074 | AF52: 2.057658 | AG52: 2.043431 | AH52: 2.051064 | AI52: 1.89596 | AJ52: 1.997865 | AK52: 1.974338 | AL52: 2.070771 | AM52: 2.079331 | AN52: 1.980777 | AO52: 2.151764 | AP52: 2.631515 | AQ52: 2.41152 | AR52: 2.787135 | AS52: 2.882455 | AT52: 3.542821 | AU52: 3.594033 | AV52: 3.4228 | AW52: 3.082001 | AX52: 3.501257 | AY52: 3.705702 | AZ52: 3.60413 | BA52: 3.055687 | BB52: 3.326245 | BC52: 3.465669 | BD52: 3.206081 | BE52: 2.560915 | BF52: 3.02783 | BG52: 2.813391 | BH52: 2.594753 | BI52: 2.386665 | BJ52: 2.452216 | BK52: 2.538147 | BL52: 2.40037 | BN52: 2.449984 | BO52: 3.524433 | BP52: 4.043696 | BQ52: 4.745949 | BR52: 7.08927 | BS52: 7.98832 | BT52: 8.105217 | BU52: 9.981934 | BV52: 13.442109 | BW52: 13.89309 | BX52: 13.053682 | BY52: 10.996889 | BZ52: 9.777398
A53: Ingresos por Remesas | B53: Distribución por Municipio | C53: Coahuila | D53: Cuatro Ciénegas | E53: Ene-Mar 2013 - Oct-Dic 2025 | F53: Trimestral | G53: Flujos | H53: Millones de Dólares | K53: Niveles | L53: SE41229 | M53: 0.248415 | N53: 0.331049 | O53: 0.266911 | P53: 0.24291 | Q53: 0.241724 | R53: 0.303685 | S53: 0.434514 | T53: 0.336266 | U53: 0.307491 | V53: 0.38632 | W53: 0.30945 | X53: 0.340205 | Y53: 0.34902 | Z53: 0.372551 | AA53: 0.426254 | AB53: 0.422315 | AC53: 0.394927 | AD53: 0.556337 | AE53: 0.597748 | AF53: 0.673229 | AG53: 0.77394 | AH53: 0.898085 | AI53: 0.77155 | AJ53: 0.738037 | AK53: 0.858779 | AL53: 0.989436 | AM53: 0.918991 | AN53: 0.889741 | AO53: 0.829703 | AP53: 0.850475 | AQ53: 0.932347 | AR53: 0.904055 | AS53: 0.844999 | AT53: 1.096555 | AU53: 1.102552 | AV53: 1.121506 | AW53: 1.02983 | AX53: 1.22201 | AY53: 1.1307 | AZ53: 1.057978 | BA53: 0.977169 | BB53: 0.988357 | BC53: 0.678868 | BD53: 0.667456 | BE53: 0.572168 | BF53: 0.602488 | BG53: 0.621881 | BH53: 0.541628 | BI53: 0.582183 | BJ53: 0.539874 | BK53: 0.517321 | BL53: 0.476439 | BN53: 1.089285 | BO53: 1.316189 | BP53: 1.343466 | BQ53: 1.57014 | BR53: 2.222241 | BS53: 3.181612 | BT53: 3.656947 | BU53: 3.51658 | BV53: 4.165612 | BW53: 4.440518 | BX53: 3.31185 | BY53: 2.338165 | BZ53: 2.115817
A54: Ingresos por Remesas | B54: Distribución por Municipio | C54: Coahuila | D54: Escobedo | E54: Ene-Mar 2013 - Oct-Dic 2025 | F54: Trimestral | G54: Flujos | H54: Millones de Dólares | K54: Niveles | L54: SE41230 | M54: 0 | N54: 0 | O54: 0 | P54: 0 | Q54: 0 | R54: 0 | S54: 0 | T54: 0 | U54: 0 | V54: 0 | W54: 8.4e-05 | X54: 0.000772 | Y54: 0.002374 | Z54: 0 | AA54: 0.000604 | AB54: 0 | AC54: 0.000752 | AD54: 0 | AE54: 0 | AF54: 0 | AG54: 0 | AH54: 0 | AI54: 0.006083 | AJ54: 0.003557 | AK54: 0.005678 | AL54: 0.009191 | AM54: 0.018933 | AN54: 0.026107 | AO54: 0.026322 | AP54: 0.076958 | AQ54: 0.077304 | AR54: 0.053371 | AS54: 0.056015 | AT54: 0.077174 | AU54: 0.09453 | AV54: 0.096877 | AW54: 0.135672 | AX54: 0.528915 | AY54: 0.028949 | AZ54: 0.027635 | BA54: 0.027635 | BB54: 0.040614 | BC54: 0.02906 | BD54: 0.038866 | BE54: 0.033721 | BF54: 0.04881 | BG54: 0.043097 | BH54: 0.036805 | BI54: 0.026713 | BJ54: 0.035046 | BK54: 0.042404 | BL54: 0.034683 | BN54: 0 | BO54: 0 | BP54: 0.000856 | BQ54: 0.002978 | BR54: 0.000752 | BS54: 0.00964 | BT54: 0.059909 | BU54: 0.233955 | BV54: 0.324596 | BW54: 0.721171 | BX54: 0.136175 | BY54: 0.162433 | BZ54: 0.138846
A55: Ingresos por Remesas | B55: Distribución por Municipio | C55: Coahuila | D55: Francisco I. Madero | E55: Ene-Mar 2013 - Oct-Dic 2025 | F55: Trimestral | G55: Flujos | H55: Millones de Dólares | K55: Niveles | L55: SE41231 | M55: 2.159319 | N55: 3.012984 | O55: 3.88478 | P55: 3.522736 | Q55: 3.489803 | R55: 3.64366 | S55: 5.642157 | T55: 4.66719 | U55: 4.082869 | V55: 5.147261 | W55: 4.847357 | X55: 4.594859 | Y55: 3.599536 | Z55: 5.106179 | AA55: 4.982107 | AB55: 5.172534 | AC55: 4.578061 | AD55: 5.693541 | AE55: 5.839791 | AF55: 6.668035 | AG55: 5.64897 | AH55: 6.457422 | AI55: 6.720945 | AJ55: 6.634972 | AK55: 5.913838 | AL55: 7.069505 | AM55: 7.435011 | AN55: 7.140395 | AO55: 6.456024 | AP55: 7.560325 | AQ55: 4.422142 | AR55: 5.518435 | AS55: 5.596851 | AT55: 7.470121 | AU55: 7.531975 | AV55: 7.811592 | AW55: 6.562068 | AX55: 8.42909 | AY55: 8.940259 | AZ55: 9.70239 | BA55: 7.743465 | BB55: 7.912426 | BC55: 8.264564 | BD55: 7.583951 | BE55: 6.420091 | BF55: 7.976532 | BG55: 7.214972 | BH55: 6.900114 | BI55: 5.504623 | BJ55: 6.391605 | BK55: 6.280461 | BL55: 6.120471 | BN55: 12.579819 | BO55: 17.44281 | BP55: 18.672346 | BQ55: 18.860356 | BR55: 22.779428 | BS55: 25.462309 | BT55: 27.558749 | BU55: 23.956926 | BV55: 28.410539 | BW55: 33.633807 | BX55: 31.504406 | BY55: 28.511709 | BZ55: 24.29716
A56: Ingresos por Remesas | B56: Distribución por Municipio | C56: Coahuila | D56: Frontera | E56: Ene-Mar 2013 - Oct-Dic 2025 | F56: Trimestral | G56: Flujos | H56: Millones de Dólares | K56: Niveles | L56: SE41232 | M56: 1.724642 | N56: 1.841178 | O56: 1.784707 | P56: 1.838233 | Q56: 1.889611 | R56: 2.119247 | S56: 2.76982 | T56: 2.296503 | U56: 2.18872 | V56: 2.629549 | W56: 2.260509 | X56: 2.173417 | Y56: 2.151608 | Z56: 2.358515 | AA56: 2.584627 | AB56: 2.660803 | AC56: 2.827008 | AD56: 3.333835 | AE56: 3.387044 | AF56: 4.042235 | AG56: 3.706123 | AH56: 4.176848 | AI56: 3.918157 | AJ56: 3.986531 | AK56: 3.797562 | AL56: 4.242383 | AM56: 4.357346 | AN56: 4.246022 | AO56: 4.703319 | AP56: 5.009281 | AQ56: 4.987785 | AR56: 5.525233 | AS56: 5.493306 | AT56: 7.494243 | AU56: 7.852977 | AV56: 7.817642 | AW56: 6.701116 | AX56: 7.66537 | AY56: 7.596556 | AZ56: 8.185985 | BA56: 6.654235 | BB56: 6.996811 | BC56: 7.932373 | BD56: 6.834971 | BE56: 5.738226 | BF56: 6.286964 | BG56: 5.985673 | BH56: 5.640819 | BI56: 4.351445 | BJ56: 4.366898 | BK56: 4.311616 | BL56: 4.39265 | BN56: 7.18876 | BO56: 9.075181 | BP56: 9.252195 | BQ56: 9.755553 | BR56: 13.590122 | BS56: 15.787659 | BT56: 16.643313 | BU56: 20.225618 | BV56: 28.658168 | BW56: 30.149027 | BX56: 28.41839 | BY56: 23.651682 | BZ56: 17.422609
A57: Ingresos por Remesas | B57: Distribución por Municipio | C57: Coahuila | D57: General Cepeda | E57: Ene-Mar 2013 - Oct-Dic 2025 | F57: Trimestral | G57: Flujos | H57: Millones de Dólares | K57: Niveles | L57: SE41233 | M57: 0.096203 | N57: 0.094374 | O57: 0.09595 | P57: 0.078421 | Q57: 0.072817 | R57: 0.104072 | S57: 0.129912 | T57: 0.108449 | U57: 0.091808 | V57: 0.112027 | W57: 0.117297 | X57: 0.095119 | Y57: 0.092812 | Z57: 0.123047 | AA57: 0.137393 | AB57: 0.118918 | AC57: 0.124095 | AD57: 0.152441 | AE57: 0.18605 | AF57: 0.182212 | AG57: 0.133475 | AH57: 0.183619 | AI57: 0.215831 | AJ57: 0.178944 | AK57: 0.13977 | AL57: 0.183115 | AM57: 0.216762 | AN57: 0.19516 | AO57: 0.189597 | AP57: 0.23642 | AQ57: 0.251595 | AR57: 0.201373 | AS57: 0.226672 | AT57: 0.265664 | AU57: 0.308683 | AV57: 0.305294 | AW57: 0.247479 | AX57: 0.299308 | AY57: 0.258938 | AZ57: 0.264896 | BA57: 0.219601 | BB57: 0.229202 | BC57: 0.269073 | BD57: 0.204474 | BE57: 0.170722 | BF57: 0.218739 | BG57: 0.203147 | BH57: 0.20282 | BI57: 0.165973 | BJ57: 0.19104 | BK57: 0.192295 | BL57: 0.171939 | BN57: 0.364948 | BO57: 0.41525 | BP57: 0.416251 | BQ57: 0.47217 | BR57: 0.644798 | BS57: 0.711869 | BT57: 0.734807 | BU57: 0.878985 | BV57: 1.106313 | BW57: 1.070621 | BX57: 0.92235 | BY57: 0.795428 | BZ57: 0.721247
A58: Ingresos por Remesas | B58: Distribución por Municipio | C58: Coahuila | D58: Guerrero | E58: Ene-Mar 2013 - Oct-Dic 2025 | F58: Trimestral | G58: Flujos | H58: Millones de Dólares | K58: Niveles | L58: SE41234 | M58: 0 | N58: 0 | O58: 0 | P58: 0 | Q58: 0 | R58: 0 | S58: 0 | T58: 0 | U58: 0.000406 | V58: 0.000324 | W58: 0.003499 | X58: 0.003184 | Y58: 0.002552 | Z58: 0.005275 | AA58: 0.006264 | AB58: 0.006443 | AC58: 0.008981 | AD58: 0.009305 | AE58: 0.011512 | AF58: 0.015206 | AG58: 0.007117 | AH58: 0.016674 | AI58: 0.014201 | AJ58: 0.01325 | AK58: 0.01319 | AL58: 0.016143 | AM58: 0.0124 | AN58: 0.012741 | AO58: 0.012675 | AP58: 0.022956 | AQ58: 0.017399 | AR58: 0.105165 | AS58: 0.015642 | AT58: 0.025731 | AU58: 0.038969 | AV58: 0.0217 | AW58: 0.03282 | AX58: 0.024688 | AY58: 0.027289 | AZ58: 0.020458 | BA58: 0.018937 | BB58: 0.014115 | BC58: 0.020825 | BD58: 0.015033 | BE58: 0.010726 | BF58: 0.010162 | BG58: 0.015174 | BH58: 0.007965 | BI58: 0.019935 | BJ58: 0.019496 | BK58: 0.022468 | BL58: 0.0195 | BN58: 0 | BO58: 0 | BP58: 0.007413 | BQ58: 0.020534 | BR58: 0.045004 | BS58: 0.051242 | BT58: 0.054474 | BU58: 0.158195 | BV58: 0.102042 | BW58: 0.105255 | BX58: 0.06891 | BY58: 0.044027 | BZ58: 0.081399
A59: Ingresos por Remesas | B59: Distribución por Municipio | C59: Coahuila | D59: Hidalgo | E59: Ene-Mar 2013 - Oct-Dic 2025 | F59: Trimestral | G59: Flujos | H59: Millones de Dólares | K59: Niveles | L59: SE41235 | M59: 0 | N59: 0 | O59: 0 | P59: 0 | Q59: 0 | R59: 0 | S59: 0 | T59: 0 | U59: 0 | V59: 0 | W59: 0 | X59: 0 | Y59: 0 | Z59: 0 | AA59: 0 | AB59: 0 | AC59: 0 | AD59: 0 | AE59: 0 | AF59: 0 | AG59: 0 | AH59: 0.002423 | AI59: 0.000856 | AJ59: 0 | AK59: 0 | AL59: 0 | AM59: 0.000612 | AN59: 0.011295 | AO59: 0.006673 | AP59: 0.007023 | AQ59: 0.010041 | AR59: 0.016978 | AS59: 0.007825 | AT59: 0.007001 | AU59: 0.00516 | AV59: 0.006786 | AW59: 0.004835 | AX59: 0.012374 | AY59: 0 | AZ59: 0 | BA59: 7.7e-05 | BB59: 0 | BC59: 0 | BD59: 0 | BE59: 0 | BF59: 0 | BG59: 0 | BH59: 0.000294 | BI59: 0 | BJ59: 0 | BK59: 0 | BL59: 0 | BN59: 0 | BO59: 0 | BP59: 0 | BQ59: 0 | BR59: 0 | BS59: 0.003279 | BT59: 0.011907 | BU59: 0.040715 | BV59: 0.026772 | BW59: 0.017209 | BX59: 7.7e-05 | BY59: 0.000294 | BZ59: 0
A60: Ingresos por Remesas | B60: Distribución por Municipio | C60: Coahuila | D60: Jiménez | E60: Ene-Mar 2013 - Oct-Dic 2025 | F60: Trimestral | G60: Flujos | H60: Millones de Dólares | K60: Niveles | L60: SE41236 | M60: 7.6e-05 | N60: 0 | O60: 0 | P60: 0 | Q60: 0 | R60: 0 | S60: 0 | T60: 0 | U60: 0.000125 | V60: 0 | W60: 0 | X60: 0 | Y60: 0 | Z60: 0 | AA60: 0 | AB60: 0 | AC60: 0 | AD60: 0 | AE60: 0 | AF60: 0 | AG60: 0 | AH60: 0 | AI60: 0 | AJ60: 0.001336 | AK60: 0.001385 | AL60: 0.002829 | AM60: 0.006302 | AN60: 0.017701 | AO60: 0.033863 | AP60: 0.040617 | AQ60: 0.049437 | AR60: 0.218142 | AS60: 0.094356 | AT60: 0.122461 | AU60: 0.116086 | AV60: 0.120837 | AW60: 0.126042 | AX60: 0.180393 | AY60: 0 | AZ60: 0.010791 | BA60: 0 | BB60: 0 | BC60: 0 | BD60: 0 | BE60: 0 | BF60: 0 | BG60: 0 | BH60: 0 | BI60: 0 | BJ60: 0 | BK60: 0 | BL60: 0.000197 | BN60: 7.6e-05 | BO60: 0 | BP60: 0.000125 | BQ60: 0 | BR60: 0 | BS60: 0.001336 | BT60: 0.028217 | BU60: 0.342059 | BV60: 0.45374 | BW60: 0.317226 | BX60: 0 | BY60: 0 | BZ60: 0.000197
A61: Ingresos por Remesas | B61: Distribución por Municipio | C61: Coahuila | D61: Juárez | E61: Ene-Mar 2013 - Oct-Dic 2025 | F61: Trimestral | G61: Flujos | H61: Millones de Dólares | K61: Niveles | L61: SE41237 | M61: 0 | N61: 0 | O61: 0 | P61: 0 | Q61: 0 | R61: 0 | S61: 0 | T61: 0 | U61: 0 | V61: 0 | W61: 0 | X61: 0 | Y61: 0 | Z61: 0 | AA61: 0 | AB61: 0 | AC61: 0 | AD61: 0 | AE61: 0 | AF61: 0.000648 | AG61: 0.000694 | AH61: 0.000117 | AI61: 0.001282 | AJ61: 0.001044 | AK61: 0 | AL61: 0.000389 | AM61: 0.00046 | AN61: 0.005599 | AO61: 0.002436 | AP61: 0.022811 | AQ61: 0.027576 | AR61: 0.635632 | AS61: 0.014117 | AT61: 0.01745 | AU61: 0.025361 | AV61: 0.033741 | AW61: 0.041349 | AX61: 0.089023 | AY61: 0.057485 | AZ61: 0.0535 | BA61: 0.00344 | BB61: 0.001195 | BC61: 0.001663 | BD61: 0.000315 | BE61: 0.000116 | BF61: 0.009015 | BG61: 0.001197 | BH61: 0.004297 | BI61: 0.014656 | BJ61: 0.000803 | BK61: 0.000832 | BL61: 0.001908 | BN61: 0 | BO61: 0 | BP61: 0 | BQ61: 0 | BR61: 0.000648 | BS61: 0.003137 | BT61: 0.006448 | BU61: 0.688455 | BV61: 0.090669 | BW61: 0.241357 | BX61: 0.006613 | BY61: 0.014625 | BZ61: 0.018199
A62: Ingresos por Remesas | B62: Distribución por Municipio | C62: Coahuila | D62: Lamadrid | E62: Ene-Mar 2013 - Oct-Dic 2025 | F62: Trimestral | G62: Flujos | H62: Millones de Dólares | K62: Niveles | L62: SE41238 | M62: 0 | N62: 0 | O62: 0 | P62: 0 | Q62: 0 | R62: 0 | S62: 0 | T62: 0 | U62: 0 | V62: 0 | W62: 0 | X62: 0 | Y62: 0 | Z62: 0 | AA62: 0 | AB62: 0 | AC62: 0 | AD62: 0 | AE62: 0 | AF62: 0 | AG62: 0 | AH62: 0 | AI62: 0 | AJ62: 0.000403 | AK62: 0.001045 | AL62: 0.000811 | AM62: 0.001674 | AN62: 0.004154 | AO62: 0.00186 | AP62: 0.003355 | AQ62: 0.004685 | AR62: 0.003398 | AS62: 0.005227 | AT62: 0.01224 | AU62: 0.009529 | AV62: 0.013779 | AW62: 0.013952 | AX62: 0.019525 | AY62: 0.009195 | AZ62: 0.011639 | BA62: 0.008704 | BB62: 0.011566 | BC62: 0.007288 | BD62: 0.00472 | BE62: 0.007436 | BF62: 0.009686 | BG62: 0.008053 | BH62: 0.008696 | BI62: 0.013152 | BJ62: 0.008897 | BK62: 0.011429 | BL62: 0.010319 | BN62: 0 | BO62: 0 | BP62: 0 | BQ62: 0 | BR62: 0 | BS62: 0.000403 | BT62: 0.007684 | BU62: 0.013298 | BV62: 0.040775 | BW62: 0.054311 | BX62: 0.032278 | BY62: 0.033871 | BZ62: 0.043797
A63: Ingresos por Remesas | B63: Distribución por Municipio | C63: Coahuila | D63: Matamoros | E63: Ene-Mar 2013 - Oct-Dic 2025 | F63: Trimestral | G63: Flujos | H63: Millones de Dólares | K63: Niveles | L63: SE41239 | M63: 2.928175 | N63: 3.105993 | O63: 3.187851 | P63: 2.98674 | Q63: 2.655593 | R63: 3.2336 | S63: 4.383486 | T63: 3.604615 | U63: 3.179065 | V63: 4.011412 | W63: 3.831447 | X63: 3.642162 | Y63: 3.500662 | Z63: 4.082956 | AA63: 4.055748 | AB63: 4.213584 | AC63: 4.087171 | AD63: 4.905212 | AE63: 5.168474 | AF63: 5.714337 | AG63: 4.649537 | AH63: 5.192986 | AI63: 5.17118 | AJ63: 5.26788 | AK63: 4.93059 | AL63: 6.008985 | AM63: 6.300314 | AN63: 6.397395 | AO63: 6.073455 | AP63: 6.397356 | AQ63: 6.910085 | AR63: 7.008606 | AS63: 6.763608 | AT63: 8.898459 | AU63: 9.558045 | AV63: 10.297958 | AW63: 9.317884 | AX63: 11.57127 | AY63: 11.9667 | AZ63: 13.376525 | BA63: 11.080727 | BB63: 11.809886 | BC63: 12.189736 | BD63: 11.479734 | BE63: 9.169041 | BF63: 10.761717 | BG63: 9.982542 | BH63: 9.483804 | BI63: 7.277153 | BJ63: 7.804953 | BK63: 6.536063 | BL63: 6.557452 | BN63: 12.208759 | BO63: 13.877294 | BP63: 14.664086 | BQ63: 15.85295 | BR63: 19.875194 | BS63: 20.281583 | BT63: 23.637284 | BU63: 26.389502 | BV63: 35.51807 | BW63: 46.232379 | BX63: 46.560083 | BY63: 39.397104 | BZ63: 28.175621
A64: Ingresos por Remesas | B64: Distribución por Municipio | C64: Coahuila | D64: Monclova | E64: Ene-Mar 2013 - Oct-Dic 2025 | F64: Trimestral | G64: Flujos | H64: Millones de Dólares | K64: Niveles | L64: SE41240 | M64: 5.547795 | N64: 8.651912 | O64: 7.042327 | P64: 5.776144 | Q64: 5.668968 | R64: 6.22357 | S64: 8.330456 | T64: 7.113929 | U64: 6.449249 | V64: 8.17745 | W64: 7.558006 | X64: 7.471115 | Y64: 7.73974 | Z64: 8.373423 | AA64: 8.597624 | AB64: 9.323276 | AC64: 9.679527 | AD64: 10.728481 | AE64: 10.535694 | AF64: 12.614796 | AG64: 11.223601 | AH64: 13.122537 | AI64: 13.375116 | AJ64: 15.253517 | AK64: 11.738763 | AL64: 13.761179 | AM64: 14.27368 | AN64: 14.130714 | AO64: 13.703016 | AP64: 13.985209 | AQ64: 14.994532 | AR64: 15.685797 | AS64: 15.635163 | AT64: 18.315302 | AU64: 19.606178 | AV64: 20.239448 | AW64: 18.144018 | AX64: 21.438079 | AY64: 22.381106 | AZ64: 23.818951 | BA64: 21.348703 | BB64: 22.879583 | BC64: 23.824759 | BD64: 21.166661 | BE64: 18.070062 | BF64: 20.651518 | BG64: 20.281169 | BH64: 20.106353 | BI64: 16.918342 | BJ64: 16.77627 | BK64: 16.766151 | BL64: 18.55437 | BN64: 27.018178 | BO64: 27.336923 | BP64: 29.65582 | BQ64: 34.034063 | BR64: 43.558498 | BS64: 52.974771 | BT64: 53.904336 | BU64: 58.368554 | BV64: 73.796091 | BW64: 85.782154 | BX64: 89.219706 | BY64: 79.109102 | BZ64: 69.015133
A65: Ingresos por Remesas | B65: Distribución por Municipio | C65: Coahuila | D65: Morelos | E65: Ene-Mar 2013 - Oct-Dic 2025 | F65: Trimestral | G65: Flujos | H65: Millones de Dólares | K65: Niveles | L65: SE41241 | M65: 0.108635 | N65: 0.176048 | O65: 0.147093 | P65: 0.143251 | Q65: 0.122049 | R65: 0.16954 | S65: 0.176155 | T65: 0.136829 | U65: 0.158709 | V65: 0.155296 | W65: 0.13016 | X65: 0.126938 | Y65: 0.123654 | Z65: 0.14853 | AA65: 0.133466 | AB65: 0.141046 | AC65: 0.114801 | AD65: 0.098406 | AE65: 0.099571 | AF65: 0.119572 | AG65: 0.079921 | AH65: 0.101449 | AI65: 0.086001 | AJ65: 0.083545 | AK65: 0.079753 | AL65: 0.094519 | AM65: 0.109484 | AN65: 0.115636 | AO65: 0.108063 | AP65: 0.075051 | AQ65: 0.127403 | AR65: 0.138141 | AS65: 0.141882 | AT65: 0.161746 | AU65: 0.226783 | AV65: 0.222573 | AW65: 0.227512 | AX65: 0.221836 | AY65: 0.135984 | AZ65: 0.13796 | BA65: 0.131251 | BB65: 0.125346 | BC65: 0.120347 | BD65: 0.096504 | BE65: 0.086964 | BF65: 0.105564 | BG65: 0.08222 | BH65: 0.085629 | BI65: 0.063939 | BJ65: 0.089528 | BK65: 0.086362 | BL65: 0.077456 | BN65: 0.575027 | BO65: 0.604573 | BP65: 0.571103 | BQ65: 0.546696 | BR65: 0.43235 | BS65: 0.350916 | BT65: 0.399392 | BU65: 0.448658 | BV65: 0.752984 | BW65: 0.723292 | BX65: 0.473448 | BY65: 0.360377 | BZ65: 0.317285
A66: Ingresos por Remesas | B66: Distribución por Municipio | C66: Coahuila | D66: Múzquiz | E66: Ene-Mar 2013 - Oct-Dic 2025 | F66: Trimestral | G66: Flujos | H66: Millones de Dólares | K66: Niveles | L66: SE41242 | M66: 3.590826 | N66: 3.611188 | O66: 3.691644 | P66: 3.440694 | Q66: 3.608449 | R66: 4.219804 | S66: 5.441767 | T66: 4.543546 | U66: 4.663551 | V66: 5.429984 | W66: 4.861104 | X66: 4.675709 | Y66: 5.147892 | Z66: 5.728764 | AA66: 5.777373 | AB66: 5.88618 | AC66: 6.572817 | AD66: 7.41415 | AE66: 7.461721 | AF66: 8.747718 | AG66: 8.099782 | AH66: 8.769861 | AI66: 8.160576 | AJ66: 8.205161 | AK66: 8.349634 | AL66: 9.530107 | AM66: 9.64622 | AN66: 9.020331 | AO66: 9.519005 | AP66: 10.634748 | AQ66: 9.432624 | AR66: 9.767354 | AS66: 9.518835 | AT66: 11.690311 | AU66: 12.387498 | AV66: 12.056143 | AW66: 11.567961 | AX66: 13.87908 | AY66: 13.175336 | AZ66: 13.713627 | BA66: 12.091225 | BB66: 12.715339 | BC66: 13.082143 | BD66: 11.688814 | BE66: 9.735279 | BF66: 11.15244 | BG66: 11.077615 | BH66: 10.706074 | BI66: 8.828199 | BJ66: 9.067042 | BK66: 8.99986 | BL66: 9.587987 | BN66: 14.334352 | BO66: 17.813566 | BP66: 19.630348 | BQ66: 22.540209 | BR66: 30.196406 | BS66: 33.23538 | BT66: 36.546292 | BU66: 39.353731 | BV66: 45.652787 | BW66: =SUMIFS($M66:$BL66,$M$9:$BL$9,BW$10) -> 52.336004 | BX66: 49.577521 | BY66: 42.671408 | BZ66: 36.483088
A67: Ingresos por Remesas | B67: Distribución por Municipio | C67: Coahuila | D67: Nadadores | E67: Ene-Mar 2013 - Oct-Dic 2025 | F67: Trimestral | G67: Flujos | H67: Millones de Dólares | K67: Niveles | L67: SE41243 | M67: 0 | N67: 0 | O67: 0 | P67: 0 | Q67: 0 | R67: 0 | S67: 0 | T67: 0 | U67: 0 | V67: 0 | W67: 0 | X67: 0 | Y67: 0.001601 | Z67: 0.00065 | AA67: 0.004259 | AB67: 0.00554 | AC67: 0.005024 | AD67: 0.001093 | AE67: 0 | AF67: 0 | AG67: 0 | AH67: 0 | AI67: 0.008214 | AJ67: 0.005667 | AK67: 0.003453 | AL67: 0.008945 | AM67: 0.019724 | AN67: 0.013558 | AO67: 0.014583 | AP67: 0.032265 | AQ67: 0.028909 | AR67: 0.032712 | AS67: 0.030775 | AT67: 0.043027 | AU67: 0.050386 | AV67: 0.050948 | AW67: 0.047256 | AX67: 0.059971 | AY67: 0.034522 | AZ67: 0.0316 | BA67: 0.021815 | BB67: 0.022123 | BC67: 0.027384 | BD67: 0.019051 | BE67: 0.016181 | BF67: 0.02822 | BG67: 0.031831 | BH67: 0.029088 | BI67: 0.023444 | BJ67: 0.023022 | BK67: 0.021536 | BL67: 0.025163 | BN67: 0 | BO67: 0 | BP67: 0 | BQ67: 0.01205 | BR67: 0.006117 | BS67: 0.013881 | BT67: 0.04568 | BU67: 0.108469 | BV67: 0.175136 | BW67: 0.173349 | BX67: 0.090373 | BY67: 0.10532 | BZ67: 0.093165
A68: Ingresos por Remesas | B68: Distribución por Municipio | C68: Coahuila | D68: Nava | E68: Ene-Mar 2013 - Oct-Dic 2025 | F68: Trimestral | G68: Flujos | H68: Millones de Dólares | K68: Niveles | L68: SE41244 | M68: 0.786273 | N68: 0.814992 | O68: 0.772548 | P68: 0.68457 | Q68: 0.784008 | R68: 0.826986 | S68: 1.082647 | T68: 0.924292 | U68: 0.899859 | V68: 1.080988 | W68: 1.052178 | X68: 0.997868 | Y68: 1.031012 | Z68: 1.149682 | AA68: 1.23629 | AB68: 1.265282 | AC68: 1.120785 | AD68: 1.363931 | AE68: 1.473088 | AF68: 1.737167 | AG68: 2.03466 | AH68: 2.098775 | AI68: 1.916818 | AJ68: 2.075753 | AK68: 1.964727 | AL68: 2.526167 | AM68: 2.836454 | AN68: 2.621958 | AO68: 3.117515 | AP68: 4.580048 | AQ68: 3.806099 | AR68: 3.038394 | AS68: 3.66821 | AT68: 4.540898 | AU68: 4.652832 | AV68: 4.915235 | AW68: 4.434857 | AX68: 5.439565 | AY68: 6.222475 | AZ68: 6.190148 | BA68: 4.536476 | BB68: 4.56853 | BC68: 4.867401 | BD68: 4.447936 | BE68: 3.655036 | BF68: 4.288321 | BG68: 4.33645 | BH68: 4.407183 | BI68: 3.802616 | BJ68: 3.918659 | BK68: 3.756144 | BL68: 3.4807 | BN68: 3.058383 | BO68: 3.617933 | BP68: 4.030893 | BQ68: 4.682266 | BR68: 5.694971 | BS68: 8.126006 | BT68: 9.949306 | BU68: 14.542056 | BV68: 17.777175 | BW68: 22.287045 | BX68: 18.420343 | BY68: 16.68699 | BZ68: 14.958119
A69: Ingresos por Remesas | B69: Distribución por Municipio | C69: Coahuila | D69: Ocampo | E69: Ene-Mar 2013 - Oct-Dic 2025 | F69: Trimestral | G69: Flujos | H69: Millones de Dólares | K69: Niveles | L69: SE41245 | M69: 0.089271 | N69: 0.101853 | O69: 0.082309 | P69: 0.074609 | Q69: 0.080221 | R69: 0.098241 | S69: 0.147611 | T69: 0.124459 | U69: 0.102237 | V69: 0.121739 | W69: 0.107584 | X69: 0.100974 | Y69: 0.121531 | Z69: 0.111556 | AA69: 0.120482 | AB69: 0.126778 | AC69: 0.12637 | AD69: 0.152651 | AE69: 0.165255 | AF69: 0.186343 | AG69: 0.168517 | AH69: 0.196921 | AI69: 0.155574 | AJ69: 0.155867 | AK69: 0.133663 | AL69: 0.14751 | AM69: 0.156755 | AN69: 0.131111 | AO69: 0.137097 | AP69: 0.162271 | AQ69: 0.173406 | AR69: 0.150192 | AS69: 0.167762 | AT69: 0.186816 | AU69: 0.196694 | AV69: 0.182894 | AW69: 0.176032 | AX69: 0.195768 | AY69: 0.157619 | AZ69: 0.169044 | BA69: 0.193779 | BB69: 0.150777 | BC69: 0.145965 | BD69: 0.09473 | BE69: 0.087882 | BF69: 0.09986 | BG69: 0.100511 | BH69: 0.078536 | BI69: 0.068179 | BJ69: 0.070028 | BK69: 0.089516 | BL69: 0.039712 | BN69: 0.348042 | BO69: 0.450532 | BP69: 0.432534 | BQ69: 0.480347 | BR69: 0.630619 | BS69: 0.676879 | BT69: 0.569039 | BU69: 0.622966 | BV69: 0.734166 | BW69: 0.698463 | BX69: 0.585251 | BY69: 0.366789 | BZ69: 0.267435
A70: Ingresos por Remesas | B70: Distribución por Municipio | C70: Coahuila | D70: Parras | E70: Ene-Mar 2013 - Oct-Dic 2025 | F70: Trimestral | G70: Flujos | H70: Millones de Dólares | K70: Niveles | L70: SE41246 | M70: 0.394087 | N70: 0.533657 | O70: 0.499607 | P70: 0.413714 | Q70: 0.420644 | R70: 0.45171 | S70: 0.550985 | T70: 0.47262 | U70: 0.434536 | V70: 0.479419 | W70: 0.436149 | X70: 0.490958 | Y70: 0.508366 | Z70: 0.500955 | AA70: 0.568281 | AB70: 0.516906 | AC70: 0.497899 | AD70: 0.58792 | AE70: 0.82586 | AF70: 0.631384 | AG70: 0.52032 | AH70: 0.618222 | AI70: 0.687823 | AJ70: 0.615662 | AK70: 0.547949 | AL70: 0.649625 | AM70: 0.678419 | AN70: 0.696733 | AO70: 0.670337 | AP70: 0.710329 | AQ70: 0.779834 | AR70: 0.838085 | AS70: 0.825096 | AT70: 1.009241 | AU70: 1.068799 | AV70: 0.996296 | AW70: 0.806154 | AX70: 1.191096 | AY70: 1.273115 | AZ70: 1.121903 | BA70: 0.887236 | BB70: 1.073415 | BC70: 1.163662 | BD70: 0.906055 | BE70: 0.752242 | BF70: 0.668393 | BG70: 0.787988 | BH70: 0.75322 | BI70: 0.640317 | BJ70: 0.640217 | BK70: 0.640575 | BL70: 0.837663 | BN70: 1.841065 | BO70: 1.895959 | BP70: 1.841062 | BQ70: 2.094508 | BR70: 2.543063 | BS70: 2.442027 | BT70: 2.572726 | BU70: 2.998585 | BV70: 3.899432 | BW70: 4.392268 | BX70: 4.030368 | BY70: 2.961843 | BZ70: 2.758772
A71: Ingresos por Remesas | B71: Distribución por Municipio | C71: Coahuila | D71: Piedras Negras | E71: Ene-Mar 2013 - Oct-Dic 2025 | F71: Trimestral | G71: Flujos | H71: Millones de Dólares | K71: Niveles | L71: SE41247 | M71: 9.112793 | N71: 10.61259 | O71: 10.444396 | P71: 9.028168 | Q71: 11.296311 | R71: 13.418114 | S71: 13.892062 | T71: 10.430034 | U71: 10.184433 | V71: 12.388997 | W71: 10.459031 | X71: 8.928784 | Y71: 8.309632 | Z71: 10.845743 | AA71: 9.822562 | AB71: 9.359837 | AC71: 8.217294 | AD71: 9.004327 | AE71: 9.71131 | AF71: 11.519302 | AG71: 10.993698 | AH71: 11.755837 | AI71: 11.434433 | AJ71: 11.168238 | AK71: 11.479316 | AL71: 13.908144 | AM71: 13.82765 | AN71: 13.137771 | AO71: 13.932049 | AP71: 16.456463 | AQ71: 17.880802 | AR71: 18.555664 | AS71: 21.84749 | AT71: 27.271183 | AU71: 27.187108 | AV71: 23.718186 | AW71: 22.853991 | AX71: 27.20451 | AY71: 27.185174 | AZ71: 29.133735 | BA71: 25.82844 | BB71: 24.834895 | BC71: 22.434194 | BD71: 19.53435 | BE71: 16.857849 | BF71: 18.902564 | BG71: 19.255033 | BH71: 19.090845 | BI71: 16.982534 | BJ71: 17.493925 | BK71: 18.28848 | BL71: 18.310833 | BN71: 39.197947 | BO71: 49.036521 | BP71: 41.961245 | BQ71: 38.337774 | BR71: 38.452233 | BS71: 45.352206 | BT71: 52.352881 | BU71: 66.824978 | BV71: 100.023967 | BW71: 106.37741 | BX71: 92.631879 | BY71: 74.106291 | BZ71: 71.075772
A72: Ingresos por Remesas | B72: Distribución por Municipio | C72: Coahuila | D72: Progreso | E72: Ene-Mar 2013 - Oct-Dic 2025 | F72: Trimestral | G72: Flujos | H72: Millones de Dólares | K72: Niveles | L72: SE41248 | M72: 0 | N72: 0.000491 | O72: 0 | P72: 0 | Q72: 0 | R72: 0 | S72: 0 | T72: 0 | U72: 0 | V72: 0 | W72: 0 | X72: 0 | Y72: 0 | Z72: 0 | AA72: 0 | AB72: 0 | AC72: 0 | AD72: 0 | AE72: 0 | AF72: 0 | AG72: 0 | AH72: 0.000383 | AI72: 0.000949 | AJ72: 0.004471 | AK72: 0.003847 | AL72: 0.013567 | AM72: 0.013605 | AN72: 0.03088 | AO72: 0.022521 | AP72: 0.021886 | AQ72: 0.026185 | AR72: 0.03702 | AS72: 0.022789 | AT72: 0.031448 | AU72: 0.033584 | AV72: 0.043805 | AW72: 0.055455 | AX72: 0.067243 | AY72: 0 | AZ72: 0 | BA72: 0 | BB72: 0.001384 | BC72: 0 | BD72: 0 | BE72: 0 | BF72: 0.00807 | BG72: 0.00171 | BH72: 0.001922 | BI72: 0.015602 | BJ72: 0.023874 | BK72: 0.020548 | BL72: 0.015635 | BN72: 0.000491 | BO72: 0 | BP72: 0 | BQ72: 0 | BR72: 0 | BS72: 0.005803 | BT72: 0.061899 | BU72: 0.107612 | BV72: 0.131626 | BW72: 0.122698 | BX72: 0.001384 | BY72: 0.011702 | BZ72: 0.075659
A73: Ingresos por Remesas | B73: Distribución por Municipio | C73: Coahuila | D73: Ramos Arizpe | E73: Ene-Mar 2013 - Oct-Dic 2025 | F73: Trimestral | G73: Flujos | H73: Millones de Dólares | K73: Niveles | L73: SE41249 | M73: 0.671078 | N73: 0.742502 | O73: 0.794578 | P73: 0.74797 | Q73: 0.812608 | R73: 0.932418 | S73: 1.227903 | T73: 1.002903 | U73: 0.977019 | V73: 1.091662 | W73: 1.0391 | X73: 1.118048 | Y73: 1.03119 | Z73: 1.060261 | AA73: 1.076618 | AB73: 1.058848 | AC73: 1.1411 | AD73: 1.194663 | AE73: 1.591915 | AF73: 1.487245 | AG73: 1.460189 | AH73: 1.574482 | AI73: 1.550243 | AJ73: 1.647937 | AK73: 1.584493 | AL73: 1.901952 | AM73: 1.991818 | AN73: 1.899183 | AO73: 1.786844 | AP73: 1.835291 | AQ73: 2.634928 | AR73: 2.105979 | AS73: 2.054194 | AT73: 2.510684 | AU73: 2.593483 | AV73: 2.698873 | AW73: 2.359854 | AX73: 2.789944 | AY73: 2.88137 | AZ73: 3.340332 | BA73: 2.783515 | BB73: 2.959533 | BC73: 3.214747 | BD73: 3.158442 | BE73: 2.88638 | BF73: 3.181118 | BG73: 3.35708 | BH73: 3.434624 | BI73: 2.954004 | BJ73: 3.174235 | BK73: 3.772628 | BL73: 3.700759 | BN73: 2.956128 | BO73: 3.975832 | BP73: 4.225829 | BQ73: 4.226917 | BR73: 5.414923 | BS73: 6.232851 | BT73: 7.377446 | BU73: 8.363042 | BV73: 9.857234 | BW73: 11.3715 | BX73: 12.116237 | BY73: 12.859202 | BZ73: 13.601626
A74: Ingresos por Remesas | B74: Distribución por Municipio | C74: Coahuila | D74: Sabinas | E74: Ene-Mar 2013 - Oct-Dic 2025 | F74: Trimestral | G74: Flujos | H74: Millones de Dólares | K74: Niveles | L74: SE41250 | M74: 3.365878 | N74: 3.750526 | O74: 3.611654 | P74: 3.63965 | Q74: 3.469288 | R74: 3.960433 | S74: 5.095668 | T74: 4.358041 | U74: 3.92894 | V74: 5.116688 | W74: 4.606388 | X74: 4.64004 | Y74: 4.583224 | Z74: 5.268228 | AA74: 5.596947 | AB74: 5.972084 | AC74: 6.480641 | AD74: 6.995336 | AE74: 7.200592 | AF74: 8.0061 | AG74: 7.0333 | AH74: 7.178273 | AI74: 6.903336 | AJ74: 6.673188 | AK74: 6.452539 | AL74: 7.561563 | AM74: 7.680104 | AN74: 7.234134 | AO74: 7.387153 | AP74: 8.655392 | AQ74: 6.523545 | AR74: 7.660445 | AS74: 7.295125 | AT74: 9.536368 | AU74: 9.640204 | AV74: 9.887658 | AW74: 8.826714 | AX74: 10.179835 | AY74: 10.717556 | AZ74: 10.766639 | BA74: 9.943266 | BB74: 10.719422 | BC74: 11.096286 | BD74: 10.366985 | BE74: 8.732239 | BF74: 9.912077 | BG74: 9.803364 | BH74: 9.130306 | BI74: 7.937889 | BJ74: 8.453717 | BK74: 9.02523 | BL74: 8.992526 | BN74: 14.367708 | BO74: 16.88343 | BP74: 18.292056 | BQ74: 21.420483 | BR74: 28.682669 | BS74: 27.788097 | BT74: 28.92834 | BU74: 30.226535 | BV74: 36.359355 | BW74: 40.490744 | BX74: 42.125959 | BY74: 37.577986 | BZ74: 34.409362
A75: Ingresos por Remesas | B75: Distribución por Municipio | C75: Coahuila | D75: Sacramento | E75: Ene-Mar 2013 - Oct-Dic 2025 | F75: Trimestral | G75: Flujos | H75: Millones de Dólares | K75: Niveles | L75: SE41251 | M75: 0.016853 | N75: 0.027474 | O75: 0.020619 | P75: 0.018744 | Q75: 0.022793 | R75: 0.015691 | S75: 0.022391 | T75: 0.018967 | U75: 0.013892 | V75: 0.020097 | W75: 0.015987 | X75: 0.024388 | Y75: 0.022756 | Z75: 0.022428 | AA75: 0.016529 | AB75: 0.017287 | AC75: 0.024915 | AD75: 0.024481 | AE75: 0.033838 | AF75: 0.022806 | AG75: 0.023224 | AH75: 0.028827 | AI75: 0.032111 | AJ75: 0.143631 | AK75: 0.023867 | AL75: 0.035623 | AM75: 0.02754 | AN75: 0.026915 | AO75: 0.018789 | AP75: 0.02239 | AQ75: 0.032337 | AR75: 0.030496 | AS75: 0.016341 | AT75: 0.039657 | AU75: 0.040364 | AV75: 0.019028 | AW75: 0.023311 | AX75: 0.02948 | AY75: 0.028394 | AZ75: 0.012292 | BA75: 0.015707 | BB75: 0.013585 | BC75: 0.016307 | BD75: 0.012399 | BE75: 0.012438 | BF75: 0.012101 | BG75: 0.011743 | BH75: 0.008345 | BI75: 0.008143 | BJ75: 0.00998 | BK75: 0.008982 | BL75: 0.016074 | BN75: 0.08369 | BO75: 0.079842 | BP75: 0.074364 | BQ75: 0.079 | BR75: 0.10604 | BS75: 0.227793 | BT75: 0.113945 | BU75: 0.104012 | BV75: 0.11539 | BW75: 0.093477 | BX75: 0.057998 | BY75: 0.044627 | BZ75: 0.043179
A76: Ingresos por Remesas | B76: Distribución por Municipio | C76: Coahuila | D76: Saltillo | E76: Ene-Mar 2013 - Oct-Dic 2025 | F76: Trimestral | G76: Flujos | H76: Millones de Dólares | K76: Niveles | L76: SE41252 | M76: 7.854813 | N76: 9.472297 | O76: 9.372252 | P76: 8.584732 | Q76: 8.59111 | R76: 9.845217 | S76: 13.869125 | T76: 11.472424 | U76: 10.457249 | V76: 12.2326 | W76: 11.316115 | X76: 10.779545 | Y76: 10.408819 | Z76: 11.549396 | AA76: 12.105904 | AB76: 12.067189 | AC76: 12.075907 | AD76: 13.976112 | AE76: 15.030232 | AF76: 17.594709 | AG76: 15.253196 | AH76: 17.244449 | AI76: 17.774688 | AJ76: 17.1299 | AK76: 15.374647 | AL76: 19.009915 | AM76: 20.934951 | AN76: 19.019519 | AO76: 18.099464 | AP76: 20.059482 | AQ76: 23.799125 | AR76: 21.544461 | AS76: 20.600655 | AT76: 24.687105 | AU76: 27.110997 | AV76: 26.624705 | AW76: 22.663027 | AX76: 28.25767 | AY76: 32.117958 | AZ76: 33.296411 | BA76: 27.69616 | BB76: 28.8575 | BC76: 31.63897 | BD76: 28.155519 | BE76: 24.716136 | BF76: 29.442252 | BG76: 30.017034 | BH76: 28.953547 | BI76: 25.51676 | BJ76: 27.231359 | BK76: 29.631173 | BL76: 29.826113 | BN76: 35.284094 | BO76: 43.777876 | BP76: 44.785509 | BQ76: 46.131308 | BR76: 58.67696 | BS76: 67.402233 | BT76: 74.339032 | BU76: 83.502532 | BV76: 99.023462 | BW76: 116.335066 | BX76: 116.348149 | BY76: 113.128969 | BZ76: 112.205405
A77: Ingresos por Remesas | B77: Distribución por Municipio | C77: Coahuila | D77: San Buenaventura | E77: Ene-Mar 2013 - Oct-Dic 2025 | F77: Trimestral | G77: Flujos | H77: Millones de Dólares | K77: Niveles | L77: SE41253 | M77: 0.894631 | N77: 0.925311 | O77: 0.900215 | P77: 0.803324 | Q77: 0.886423 | R77: 1.136729 | S77: 1.611589 | T77: 1.327857 | U77: 1.302391 | V77: 1.643833 | W77: 1.400027 | X77: 1.408185 | Y77: 1.520544 | Z77: 1.8057 | AA77: 2.013084 | AB77: 2.061618 | AC77: 2.133554 | AD77: 2.358105 | AE77: 2.785304 | AF77: 2.844247 | AG77: 2.628535 | AH77: 2.955049 | AI77: 2.893172 | AJ77: 2.762515 | AK77: 2.84472 | AL77: 3.18575 | AM77: 3.440223 | AN77: 3.341334 | AO77: 3.416933 | AP77: 3.97337 | AQ77: 3.933507 | AR77: 3.90078 | AS77: 3.791417 | AT77: 4.652016 | AU77: 4.805565 | AV77: 4.89075 | AW77: 4.257687 | AX77: 5.153674 | AY77: 5.423342 | AZ77: 5.682207 | BA77: 5.170774 | BB77: 5.512393 | BC77: 5.826732 | BD77: 5.21216 | BE77: 4.426724 | BF77: 5.176201 | BG77: 5.111603 | BH77: 4.391106 | BI77: 3.905969 | BJ77: 4.133245 | BK77: 4.030215 | BL77: 4.287822 | BN77: 3.523481 | BO77: 4.962598 | BP77: 5.754436 | BQ77: 7.400946 | BR77: 10.12121 | BS77: 11.239271 | BT77: 12.812027 | BU77: 15.22459 | BV77: 18.139748 | BW77: 20.51691 | BX77: 21.722059 | BY77: 19.105634 | BZ77: 16.357251
A78: Ingresos por Remesas | B78: Distribución por Municipio | C78: Coahuila | D78: San Juan de Sabinas | E78: Ene-Mar 2013 - Oct-Dic 2025 | F78: Trimestral | G78: Flujos | H78: Millones de Dólares | K78: Niveles | L78: SE41254 | M78: 1.518248 | N78: 1.730735 | O78: 2.046385 | P78: 2.003624 | Q78: 2.064215 | R78: 2.225514 | S78: 3.04037 | T78: 2.490395 | U78: 2.108246 | V78: 3.108572 | W78: 2.739167 | X78: 2.784714 | Y78: 2.716441 | Z78: 2.898762 | AA78: 2.549862 | AB78: 2.542367 | AC78: 2.513685 | AD78: 2.64014 | AE78: 2.809921 | AF78: 3.489491 | AG78: 3.293327 | AH78: 4.053727 | AI78: 4.003272 | AJ78: 3.891973 | AK78: 3.716694 | AL78: 4.15474 | AM78: 4.299724 | AN78: 4.201118 | AO78: 4.157013 | AP78: 5.094319 | AQ78: 6.04252 | AR78: 5.166189 | AS78: 5.320117 | AT78: 6.782717 | AU78: 6.480206 | AV78: 6.129865 | AW78: 5.457062 | AX78: 6.365415 | AY78: 6.570915 | AZ78: 6.722647 | BA78: 5.443564 | BB78: 5.971365 | BC78: 6.497909 | BD78: 6.714026 | BE78: 4.881836 | BF78: 5.721646 | BG78: 5.104021 | BH78: 4.924455 | BI78: 4.054971 | BJ78: 4.72465 | BK78: 4.920944 | BL78: 4.654623 | BN78: 7.298992 | BO78: 9.820494 | BP78: 10.740699 | BQ78: 10.707432 | BR78: 11.453237 | BS78: 15.242299 | BT78: 16.372276 | BU78: 20.460041 | BV78: 24.712905 | BW78: 25.116039 | BX78: 24.626864 | BY78: 20.631958 | BZ78: 18.355188
A79: Ingresos por Remesas | B79: Distribución por Municipio | C79: Coahuila | D79: San Pedro | E79: Ene-Mar 2013 - Oct-Dic 2025 | F79: Trimestral | G79: Flujos | H79: Millones de Dólares | K79: Niveles | L79: SE41255 | M79: 2.747338 | N79: 3.706508 | O79: 4.341714 | P79: 3.65546 | Q79: 3.501159 | R79: 4.06972 | S79: 6.055756 | T79: 4.658788 | U79: 3.773574 | V79: 5.531711 | W79: 5.282554 | X79: 4.521445 | Y79: 4.356668 | Z79: 5.145632 | AA79: 5.513929 | AB79: 5.145645 | AC79: 4.680653 | AD79: 5.877691 | AE79: 6.169648 | AF79: 6.733121 | AG79: 5.852994 | AH79: 7.239654 | AI79: 7.119462 | AJ79: 6.737346 | AK79: 5.983112 | AL79: 8.310132 | AM79: 8.319502 | AN79: 7.566851 | AO79: 6.44543 | AP79: 8.071953 | AQ79: 7.630524 | AR79: 7.142152 | AS79: 7.19143 | AT79: 10.032564 | AU79: 10.694779 | AV79: 11.005498 | AW79: 8.961094 | AX79: 12.135967 | AY79: 12.67703 | AZ79: 13.43778 | BA79: 9.545122 | BB79: 11.408588 | BC79: 11.590446 | BD79: 10.205423 | BE79: 8.4735 | BF79: 11.259064 | BG79: 10.582718 | BH79: 9.490473 | BI79: 7.188003 | BJ79: 8.720011 | BK79: 8.497346 | BL79: 8.14902 | BN79: 14.45102 | BO79: 18.285423 | BP79: 19.109284 | BQ79: 20.161874 | BR79: 23.461113 | BS79: 26.949456 | BT79: 30.179597 | BU79: 29.290059 | BV79: 38.924271 | BW79: 47.211871 | BX79: 42.749579 | BY79: 39.805755 | BZ79: 32.55438
A80: Ingresos por Remesas | B80: Distribución por Municipio | C80: Coahuila | D80: Sierra Mojada | E80: Ene-Mar 2013 - Oct-Dic 2025 | F80: Trimestral | G80: Flujos | H80: Millones de Dólares | K80: Niveles | L80: SE41256 | M80: 0.076821 | N80: 0.116323 | O80: 0.131096 | P80: 0.099436 | Q80: 0.092518 | R80: 0.105252 | S80: 0.161695 | T80: 0.147102 | U80: 0.115936 | V80: 0.154623 | W80: 0.148023 | X80: 0.137271 | Y80: 0.097059 | Z80: 0.135135 | AA80: 0.136873 | AB80: 0.176146 | AC80: 0.151266 | AD80: 0.164557 | AE80: 0.161492 | AF80: 0.174568 | AG80: 0.150513 | AH80: 0.186956 | AI80: 0.14535 | AJ80: 0.198367 | AK80: 0.176342 | AL80: 0.222076 | AM80: 0.256801 | AN80: 0.216335 | AO80: 0.224892 | AP80: 0.228757 | AQ80: 0.20125 | AR80: 0.166194 | AS80: 0.17772 | AT80: 0.188461 | AU80: 0.183382 | AV80: 0.158846 | AW80: 0.124316 | AX80: 0.195552 | AY80: 0.159484 | AZ80: 0.145207 | BA80: 0.134281 | BB80: 0.152277 | BC80: 0.120177 | BD80: 0.092294 | BE80: 0.060455 | BF80: 0.080666 | BG80: 0.0673 | BH80: 0.061441 | BI80: 0.041491 | BJ80: 0.053974 | BK80: 0.059374 | BL80: 0.054473 | BN80: 0.423676 | BO80: 0.506567 | BP80: 0.555853 | BQ80: 0.545213 | BR80: 0.651883 | BS80: 0.681186 | BT80: 0.871554 | BU80: 0.821093 | BV80: 0.708409 | BW80: 0.624559 | BX80: 0.499029 | BY80: 0.269862 | BZ80: 0.209312
A81: Ingresos por Remesas | B81: Distribución por Municipio | C81: Coahuila | D81: Torreón | E81: Ene-Mar 2013 - Oct-Dic 2025 | F81: Trimestral | G81: Flujos | H81: Millones de Dólares | K81: Niveles | L81: SE41257 | M81: 22.844065 | N81: 24.973734 | O81: 22.194385 | P81: 22.035719 | Q81: 21.084417 | R81: 25.168543 | S81: 32.97951 | T81: 28.616995 | U81: 26.055852 | V81: 31.054182 | W81: 27.622771 | X81: 25.944669 | Y81: 24.872089 | Z81: 27.95446 | AA81: 28.773517 | AB81: 30.98895 | AC81: 29.320168 | AD81: 34.480236 | AE81: 35.488639 | AF81: 42.732704 | AG81: 35.477733 | AH81: 40.512948 | AI81: 39.56128 | AJ81: 40.919667 | AK81: 35.277343 | AL81: 42.34339 | AM81: 43.63566 | AN81: 42.837604 | AO81: 39.11089 | AP81: 43.011032 | AQ81: 46.175389 | AR81: 44.315522 | AS81: 42.868113 | AT81: 54.052744 | AU81: 58.089992 | AV81: 61.716232 | AW81: 52.973363 | AX81: 62.931038 | AY81: 67.340011 | AZ81: 74.678906 | BA81: 64.36782 | BB81: 70.051892 | BC81: 73.977608 | BD81: 69.377842 | BE81: 56.669425 | BF81: 68.21922 | BG81: 66.119978 | BH81: 65.412835 | BI81: 52.661568 | BJ81: 53.604881 | BK81: 57.088091 | BL81: 60.455018 | BN81: 92.047903 | BO81: 107.849465 | BP81: 110.677474 | BQ81: 112.589016 | BR81: 142.021747 | BS81: 156.471628 | BT81: 164.093997 | BU81: 172.612833 | BV81: 216.727081 | BW81: 257.923318 | BX81: 277.775162 | BY81: 256.421458 | BZ81: 223.809558
A82: Ingresos por Remesas | B82: Distribución por Municipio | C82: Coahuila | D82: Viesca | E82: Ene-Mar 2013 - Oct-Dic 2025 | F82: Trimestral | G82: Flujos | H82: Millones de Dólares | K82: Niveles | L82: SE41258 | M82: 0.201937 | N82: 0.315007 | O82: 0.222709 | P82: 0.188695 | Q82: 0.200822 | R82: 0.298236 | S82: 0.36917 | T82: 0.263711 | U82: 0.284505 | V82: 0.387448 | W82: 0.280718 | X82: 0.238434 | Y82: 0.268315 | Z82: 0.39861 | AA82: 0.288133 | AB82: 0.20715 | AC82: 0.243914 | AD82: 0.41141 | AE82: 0.263113 | AF82: 0.211668 | AG82: 0.30768 | AH82: 0.388351 | AI82: 0.321075 | AJ82: 0.324439 | AK82: 0.222502 | AL82: 0.354955 | AM82: 0.309613 | AN82: 0.381398 | AO82: 0.384087 | AP82: 0.696903 | AQ82: 0.377451 | AR82: 0.354651 | AS82: 0.422289 | AT82: 0.734587 | AU82: 0.242717 | AV82: 0.476742 | AW82: 0.529685 | AX82: 0.836692 | AY82: 0.365901 | AZ82: 0.440396 | BA82: 0.34573 | BB82: 0.455038 | BC82: 0.341987 | BD82: 0.32624 | BE82: 0.244994 | BF82: 0.474411 | BG82: 0.298941 | BH82: 0.283119 | BI82: 0.16966 | BJ82: 0.288135 | BK82: 0.243678 | BL82: 0.15477 | BN82: 0.928348 | BO82: 1.131939 | BP82: 1.191105 | BQ82: 1.162208 | BR82: 1.130105 | BS82: 1.341545 | BT82: 1.268468 | BU82: 1.813092 | BV82: 1.876335 | BW82: 2.172674 | BX82: 1.468995 | BY82: 1.301465 | BZ82: 0.856243
A83: Ingresos por Remesas | B83: Distribución por Municipio | C83: Coahuila | D83: Villa Unión | E83: Ene-Mar 2013 - Oct-Dic 2025 | F83: Trimestral | G83: Flujos | H83: Millones de Dólares | K83: Niveles | L83: SE41259 | M83: 0.000156 | N83: 0.002613 | O83: 0 | P83: 1e-05 | Q83: 1.3e-05 | R83: 5.6e-05 | S83: 0.001389 | T83: 0.003007 | U83: 0.003152 | V83: 0.003591 | W83: 0.000668 | X83: 4.9e-05 | Y83: 0.000947 | Z83: 0.00066 | AA83: 0.001117 | AB83: 0.001087 | AC83: 0.002034 | AD83: 0 | AE83: 0.000108 | AF83: 0.000587 | AG83: 0.000849 | AH83: 0.00059 | AI83: 0.004042 | AJ83: 0.003978 | AK83: 0.004469 | AL83: 0.011 | AM83: 0.010726 | AN83: 0.030547 | AO83: 0.026618 | AP83: 0.043656 | AQ83: 0.053516 | AR83: 0.11471 | AS83: 0.077019 | AT83: 0.146553 | AU83: 0.171225 | AV83: 0.202344 | AW83: 0.182787 | AX83: 0.227861 | AY83: 0.103809 | AZ83: 0.070873 | BA83: 0.082835 | BB83: 0.079896 | BC83: 0.05876 | BD83: 0.056758 | BE83: 0.06846 | BF83: 0.100543 | BG83: 0.083258 | BH83: 0.070271 | BI83: 0.066059 | BJ83: 0.070985 | BK83: 0.056132 | BL83: 0.06028 | BN83: 0.002779 | BO83: 0.004465 | BP83: 0.00746 | BQ83: 0.003811 | BR83: 0.002729 | BS83: 0.009459 | BT83: 0.056742 | BU83: 0.2385 | BV83: 0.597141 | BW83: 0.58533 | BX83: 0.278249 | BY83: 0.322532 | BZ83: 0.253456
A84: Ingresos por Remesas | B84: Distribución por Municipio | C84: Coahuila | D84: Zaragoza | E84: Ene-Mar 2013 - Oct-Dic 2025 | F84: Trimestral | G84: Flujos | H84: Millones de Dólares | K84: Niveles | L84: SE41260 | M84: 0.709361 | N84: 0.772604 | O84: 0.741609 | P84: 0.563373 | Q84: 0.497263 | R84: 0.460476 | S84: 0.537149 | T84: 0.415705 | U84: 0.409677 | V84: 0.369155 | W84: 0.380111 | X84: 0.328241 | Y84: 0.398334 | Z84: 0.444271 | AA84: 0.46584 | AB84: 0.393633 | AC84: 0.29775 | AD84: 0.330484 | AE84: 0.335743 | AF84: 0.3978 | AG84: 0.35883 | AH84: 0.466851 | AI84: 0.405244 | AJ84: 0.390842 | AK84: 0.416912 | AL84: 0.511295 | AM84: 0.5287 | AN84: 0.503872 | AO84: 0.585506 | AP84: 0.499692 | AQ84: 0.510935 | AR84: 0.398651 | AS84: 0.608593 | AT84: 0.822388 | AU84: 0.961463 | AV84: 1.015492 | AW84: 0.902874 | AX84: 1.037559 | AY84: 0.76784 | AZ84: 0.696029 | BA84: 0.490516 | BB84: 0.490504 | BC84: 0.515526 | BD84: 0.434107 | BE84: 0.386713 | BF84: 0.440598 | BG84: 0.476384 | BH84: 0.478989 | BI84: 0.787402 | BJ84: 0.836842 | BK84: 0.910154 | BL84: 0.774264 | BN84: 2.786947 | BO84: 1.910593 | BP84: 1.487184 | BQ84: 1.702078 | BR84: 1.361777 | BS84: 1.621767 | BT84: 1.960779 | BU84: 1.994784 | BV84: 3.407936 | BW84: 3.404302 | BX84: 1.930653 | BY84: 1.782684 | BZ84: 3.308662
A85: Ingresos por Remesas | B85: Distribución por Municipio | C85: Coahuila | D85: No identificado | E85: Ene-Mar 2013 - Oct-Dic 2025 | F85: Trimestral | G85: Flujos | H85: Millones de Dólares | K85: Niveles | L85: SE41261 | M85: 0.33496 | N85: 0.285806 | O85: 0.101802 | P85: 0.100672 | Q85: 0.132281 | R85: 0.187248 | S85: 0.278598 | T85: 0.236981 | U85: 0.072894 | V85: 0.016665 | W85: 0 | X85: 0 | Y85: 0 | Z85: 0 | AA85: 0 | AB85: 0 | AC85: 0 | AD85: 0 | AE85: 0 | AF85: 0 | AG85: 0 | AH85: 0 | AI85: 0 | AJ85: 0 | AK85: 0 | AL85: 0 | AM85: 0 | AN85: 0 | AO85: 0 | AP85: 0 | AQ85: 0.000567 | AR85: 2.837785 | AS85: 0 | AT85: 0 | AU85: 0.014313 | AV85: 0 | AW85: 0 | AX85: 0 | AY85: 0.165495 | AZ85: 0.348474 | BA85: 1.412999 | BB85: 2.036505 | BC85: 2.16439 | BD85: 2.134739 | BE85: 2.000537 | BF85: 2.188338 | BG85: 1.889445 | BH85: 2.07531 | BI85: 1.291572 | BJ85: 0.937242 | BK85: 0.811007 | BL85: 1.407828 | BN85: 0.82324 | BO85: 0.835108 | BP85: 0.089559 | BQ85: 0 | BR85: 0 | BS85: 0 | BT85: 0 | BU85: 2.838352 | BV85: 0.014313 | BW85: 0.513969 | BX85: 7.748633 | BY85: 8.15363 | BZ85: 4.447649
A86: Ingresos por Remesas | B86: Distribución por Municipio | C86: Colima | D86: Armería | E86: Ene-Mar 2013 - Oct-Dic 2025 | F86: Trimestral | G86: Flujos | H86: Millones de Dólares | K86: Niveles | L86: SE41262 | M86: 1.336965 | N86: 1.367 | O86: 1.205173 | P86: 1.181606 | Q86: 1.394855 | R86: 1.454733 | S86: 2.349711 | T86: 1.837639 | U86: 1.934465 | V86: 2.182458 | W86: 1.699863 | X86: 1.9405 | Y86: 1.985919 | Z86: 2.118178 | AA86: 1.941688 | AB86: 2.419001 | AC86: 2.272276 | AD86: 2.906368 | AE86: 3.464186 | AF86: 3.276583 | AG86: 3.229612 | AH86: 3.456457 | AI86: 3.056013 | AJ86: 3.352653 | AK86: 2.925421 | AL86: 3.314742 | AM86: 3.439536 | AN86: 3.51296 | AO86: 3.938543 | AP86: 4.961554 | AQ86: 5.214815 | AR86: 5.037887 | AS86: 5.318209 | AT86: 6.343697 | AU86: 6.428242 | AV86: 7.207556 | AW86: 6.247775 | AX86: 6.258825 | AY86: 6.823752 | AZ86: 7.247908 | BA86: 5.856186 | BB86: 6.329503 | BC86: 6.43068 | BD86: 5.922709 | BE86: 5.225207 | BF86: 6.538056 | BG86: 6.095474 | BH86: 6.183311 | BI86: 5.125185 | BJ86: 5.535981 | BK86: 5.336612 | BL86: 5.479905 | BN86: 5.090744 | BO86: 7.036938 | BP86: 7.757286 | BQ86: 8.464786 | BR86: 11.919413 | BS86: 13.094735 | BT86: 13.192659 | BU86: 19.152799 | BV86: 25.297704 | BW86: 26.57826 | BX86: 24.539078 | BY86: 24.042048 | BZ86: 21.477683
A87: Ingresos por Remesas | B87: Distribución por Municipio | C87: Colima | D87: Colima | E87: Ene-Mar 2013 - Oct-Dic 2025 | F87: Trimestral | G87: Flujos | H87: Millones de Dólares | K87: Niveles | L87: SE41263 | M87: 17.474228 | N87: 20.999111 | O87: 18.640399 | P87: 17.919761 | Q87: 17.397071 | R87: 17.757299 | S87: 25.729467 | T87: 21.671224 | U87: 21.643307 | V87: 22.868942 | W87: 20.665673 | X87: 19.79678 | Y87: 19.753861 | Z87: 20.927833 | AA87: 22.566219 | AB87: 25.663759 | AC87: 21.619447 | AD87: 25.171238 | AE87: 25.193161 | AF87: 29.420734 | AG87: 27.176322 | AH87: 29.511292 | AI87: 28.247247 | AJ87: 32.491712 | AK87: 24.854839 | AL87: 28.795841 | AM87: 29.760857 | AN87: 30.525988 | AO87: 32.063802 | AP87: 32.584188 | AQ87: 31.602068 | AR87: 34.465489 | AS87: 37.016878 | AT87: 41.87758 | AU87: 41.358525 | AV87: 44.209719 | AW87: 36.850216 | AX87: 37.031231 | AY87: 40.693318 | AZ87: 46.287317 | BA87: 40.592726 | BB87: 43.580624 | BC87: 45.831424 | BD87: 41.559383 | BE87: 37.772208 | BF87: 43.235521 | BG87: 40.198564 | BH87: 39.554167 | BI87: 34.282353 | BJ87: 33.984992 | BK87: 35.234386 | BL87: 39.026786 | BN87: 75.033499 | BO87: 82.555061 | BP87: 84.974702 | BQ87: 88.911672 | BR87: 101.40458 | BS87: 117.426573 | BT87: 113.937525 | BU87: 130.715547 | BV87: 164.462702 | BW87: 160.862082 | BX87: 171.564157 | BY87: 160.76046 | BZ87: =SUMIFS($M87:$BL87,$M$9:$BL$9,BZ$10) -> 142.528517
A88: Ingresos por Remesas | B88: Distribución por Municipio | C88: Colima | D88: Comala | E88: Ene-Mar 2013 - Oct-Dic 2025 | F88: Trimestral | G88: Flujos | H88: Millones de Dólares | K88: Niveles | L88: SE41264 | M88: 0.45112 | N88: 0.589241 | O88: 0.516004 | P88: 0.546515 | Q88: 0.557031 | R88: 0.637226 | S88: 0.913736 | T88: 0.742966 | U88: 0.636564 | V88: 0.709595 | W88: 0.73076 | X88: 0.588338 | Y88: 0.461991 | Z88: 0.659362 | AA88: 0.605235 | AB88: 0.709972 | AC88: 0.544437 | AD88: 0.703604 | AE88: 0.627234 | AF88: 0.764769 | AG88: 0.649731 | AH88: 0.712741 | AI88: 0.627745 | AJ88: 0.661414 | AK88: 0.544418 | AL88: 0.771748 | AM88: 0.892349 | AN88: 0.880437 | AO88: 0.865921 | AP88: 1.055894 | AQ88: 1.343865 | AR88: 1.303539 | AS88: 1.207006 | AT88: 1.562118 | AU88: 1.571797 | AV88: 1.639927 | AW88: 1.253589 | AX88: 1.571667 | AY88: 1.497328 | AZ88: 1.475828 | BA88: 0.67441 | BB88: 0.761623 | BC88: 0.531673 | BD88: 0.430448 | BE88: 0.28321 | BF88: 0.457659 | BG88: 0.428442 | BH88: 0.36615 | BI88: 0.278172 | BJ88: 0.358935 | BK88: 0.277015 | BL88: 0.272552 | BN88: 2.10288 | BO88: 2.850959 | BP88: 2.665257 | BQ88: 2.43656 | BR88: 2.640044 | BS88: 2.651631 | BT88: 3.088952 | BU88: 4.569219 | BV88: 5.980848 | BW88: 5.798412 | BX88: 2.398154 | BY88: 1.535461 | BZ88: 1.186674
A89: Ingresos por Remesas | B89: Distribución por Municipio | C89: Colima | D89: Coquimatlán | E89: Ene-Mar 2013 - Oct-Dic 2025 | F89: Trimestral | G89: Flujos | H89: Millones de Dólares | K89: Niveles | L89: SE41265 | M89: 0.629245 | N89: 0.616333 | O89: 0.539001 | P89: 0.735452 | Q89: 0.569075 | R89: 0.61871 | S89: 0.863923 | T89: 0.670704 | U89: 0.661816 | V89: 0.674718 | W89: 0.571767 | X89: 0.593944 | Y89: 0.57273 | Z89: 0.601179 | AA89: 0.546871 | AB89: 0.671714 | AC89: 0.576843 | AD89: 0.717494 | AE89: 0.598838 | AF89: 0.666059 | AG89: 0.689247 | AH89: 0.7236 | AI89: 0.627777 | AJ89: 0.707125 | AK89: 0.588545 | AL89: 0.650675 | AM89: 0.668193 | AN89: 0.745397 | AO89: 0.867658 | AP89: 0.894998 | AQ89: 0.991931 | AR89: 0.979192 | AS89: 1.026923 | AT89: 1.12455 | AU89: 1.225463 | AV89: 1.26436 | AW89: 1.029077 | AX89: 1.148998 | AY89: 0.90641 | AZ89: 1.05593 | BA89: 0.69734 | BB89: 0.637273 | BC89: 0.62818 | BD89: 0.63399 | BE89: 0.491338 | BF89: 0.420414 | BG89: 0.358374 | BH89: 0.355812 | BI89: 0.316073 | BJ89: 0.381151 | BK89: 0.305103 | BL89: 0.255448 | BN89: 2.520031 | BO89: 2.722412 | BP89: 2.502245 | BQ89: 2.392494 | BR89: 2.559234 | BS89: 2.747749 | BT89: 2.65281 | BU89: 3.733779 | BV89: 4.641296 | BW89: 4.140415 | BX89: 2.596783 | BY89: 1.625938 | BZ89: 1.257775
A90: Ingresos por Remesas | B90: Distribución por Municipio | C90: Colima | D90: Cuauhtémoc | E90: Ene-Mar 2013 - Oct-Dic 2025 | F90: Trimestral | G90: Flujos | H90: Millones de Dólares | K90: Niveles | L90: SE41266 | M90: 1.489488 | N90: 1.188127 | O90: 1.291089 | P90: 1.40602 | Q90: 1.482516 | R90: 1.762016 | S90: 2.539665 | T90: 1.823774 | U90: 1.830564 | V90: 2.145865 | W90: 1.712731 | X90: 1.661273 | Y90: 1.687201 | Z90: 1.928187 | AA90: 1.798966 | AB90: 2.04782 | AC90: 1.858816 | AD90: 2.351605 | AE90: 2.671002 | AF90: 2.405369 | AG90: 2.412419 | AH90: 2.832697 | AI90: 2.392252 | AJ90: 2.606664 | AK90: 2.343329 | AL90: 2.74185 | AM90: 2.704211 | AN90: 2.631267 | AO90: 2.915662 | AP90: 2.921025 | AQ90: 2.851867 | AR90: 5.833868 | AS90: 3.869877 | AT90: 4.752097 | AU90: 4.298413 | AV90: 4.554305 | AW90: 4.685131 | AX90: 4.663102 | AY90: 5.076658 | AZ90: 5.663649 | BA90: 4.420752 | BB90: 4.490444 | BC90: 4.608067 | BD90: 3.8812 | BE90: 3.727141 | BF90: 4.311817 | BG90: 4.006363 | BH90: 4.223522 | BI90: 3.896894 | BJ90: 4.589253 | BK90: 4.098266 | BL90: 3.961333 | BN90: 5.374724 | BO90: 7.607971 | BP90: 7.350433 | BQ90: 7.462174 | BR90: 9.286792 | BS90: 10.244032 | BT90: 10.420657 | BU90: 14.522422 | BV90: 17.474692 | BW90: 20.08854 | BX90: 17.400463 | BY90: 16.268843 | BZ90: 16.545746
A91: Ingresos por Remesas | B91: Distribución por Municipio | C91: Colima | D91: Ixtlahuacán | E91: Ene-Mar 2013 - Oct-Dic 2025 | F91: Trimestral | G91: Flujos | H91: Millones de Dólares | K91: Niveles | L91: SE41267 | M91: 0.257783 | N91: 0.350582 | O91: 0.346106 | P91: 0.334117 | Q91: 0.281441 | R91: 0.320013 | S91: 0.542909 | T91: 0.361951 | U91: 0.346921 | V91: 0.391688 | W91: 0.374676 | X91: 0.334248 | Y91: 0.320707 | Z91: 0.349482 | AA91: 0.41271 | AB91: 0.446537 | AC91: 0.347669 | AD91: 0.50416 | AE91: 0.567038 | AF91: 0.532353 | AG91: 0.454204 | AH91: 0.624533 | AI91: 0.496802 | AJ91: 0.49751 | AK91: 0.4552 | AL91: 0.55484 | AM91: 0.622535 | AN91: 0.530416 | AO91: 0.386768 | AP91: 0.466884 | AQ91: 0.329308 | AR91: 0.486396 | AS91: 0.583677 | AT91: 0.699264 | AU91: 0.904764 | AV91: 0.808508 | AW91: 0.72747 | AX91: 0.780562 | AY91: 0.681293 | AZ91: 0.721935 | BA91: 0.478183 | BB91: 0.41709 | BC91: 0.408044 | BD91: 0.356215 | BE91: 0.250687 | BF91: 0.344087 | BG91: 0.278343 | BH91: 0.270107 | BI91: 0.242059 | BJ91: 0.232431 | BK91: 0.211617 | BL91: 0.195381 | BN91: 1.288588 | BO91: 1.506314 | BP91: 1.447533 | BQ91: 1.529436 | BR91: 1.95122 | BS91: 2.073049 | BT91: 2.162991 | BU91: 1.669356 | BV91: 2.996213 | BW91: 2.91126 | BX91: 1.659532 | BY91: 1.143224 | BZ91: 0.881488
A92: Ingresos por Remesas | B92: Distribución por Municipio | C92: Colima | D92: Manzanillo | E92: Ene-Mar 2013 - Oct-Dic 2025 | F92: Trimestral | G92: Flujos | H92: Millones de Dólares | K92: Niveles | L92: SE41268 | M92: 6.629304 | N92: 11.137716 | O92: 8.702117 | P92: 7.361302 | Q92: 7.321659 | R92: 7.708694 | S92: 10.943124 | T92: 9.463693 | U92: 9.330694 | V92: 10.393408 | W92: 8.679969 | X92: 9.257479 | Y92: 10.869027 | Z92: 12.774593 | AA92: 10.950308 | AB92: 12.085925 | AC92: 14.058425 | AD92: 15.077056 | AE92: 14.756682 | AF92: 16.307919 | AG92: 19.764753 | AH92: 14.624056 | AI92: 10.004892 | AJ92: 10.917004 | AK92: 9.955451 | AL92: 10.658283 | AM92: 10.984802 | AN92: 11.053151 | AO92: 11.733997 | AP92: 11.814622 | AQ92: 15.215064 | AR92: 13.275106 | AS92: 14.084437 | AT92: 15.990143 | AU92: 16.027356 | AV92: 16.084893 | AW92: 15.736972 | AX92: 15.96386 | AY92: 16.576563 | AZ92: 17.760499 | BA92: 16.293151 | BB92: 16.821315 | BC92: 17.151465 | BD92: 15.635218 | BE92: 14.781258 | BF92: 17.429897 | BG92: 15.548827 | BH92: 15.176713 | BI92: 13.780446 | BJ92: 14.207431 | BK92: 14.555929 | BL92: 14.875326 | BN92: 33.830439 | BO92: 35.43717 | BP92: 37.66155 | BQ92: 46.679853 | BR92: 60.200082 | BS92: 55.310705 | BT92: 42.651687 | BU92: 52.038789 | BV92: 62.186829 | BW92: 66.037894 | BX92: 65.901149 | BY92: 62.936695 | BZ92: 57.419132
A93: Ingresos por Remesas | B93: Distribución por Municipio | C93: Colima | D93: Minatitlán | E93: Ene-Mar 2013 - Oct-Dic 2025 | F93: Trimestral | G93: Flujos | H93: Millones de Dólares | K93: Niveles | L93: SE41269 | M93: 0.583408 | N93: 0.571477 | O93: 0.510379 | P93: 0.654598 | Q93: 0.610672 | R93: 0.573091 | S93: 0.859933 | T93: 0.648997 | U93: 0.717102 | V93: 0.704862 | W93: 0.621409 | X93: 0.706941 | Y93: 0.741821 | Z93: 0.814767 | AA93: 0.739272 | AB93: 0.919747 | AC93: 0.789899 | AD93: 0.896696 | AE93: 0.927951 | AF93: 1.088595 | AG93: 0.919251 | AH93: 1.052435 | AI93: 0.840821 | AJ93: 0.960375 | AK93: 0.768926 | AL93: 1.030835 | AM93: 1.01448 | AN93: 1.044558 | AO93: 1.182421 | AP93: 1.359348 | AQ93: 1.516563 | AR93: 1.302912 | AS93: 1.465566 | AT93: 1.602254 | AU93: 1.51956 | AV93: 1.608322 | AW93: 1.495931 | AX93: 1.53063 | AY93: 1.399186 | AZ93: 1.60466 | BA93: 1.071674 | BB93: 0.99116 | BC93: 1.035898 | BD93: 1.009645 | BE93: 0.979492 | BF93: 1.125289 | BG93: 1.07859 | BH93: 1.005494 | BI93: 0.881146 | BJ93: 0.78274 | BK93: 0.935406 | BL93: 0.847691 | BN93: 2.319862 | BO93: 2.692693 | BP93: 2.750314 | BQ93: 3.215607 | BR93: 3.703141 | BS93: 3.772882 | BT93: 3.858799 | BU93: 5.361244 | BV93: 6.195702 | BW93: 6.030407 | BX93: 4.108377 | BY93: 4.188865 | BZ93: 3.446983
A94: Ingresos por Remesas | B94: Distribución por Municipio | C94: Colima | D94: Tecomán | E94: Ene-Mar 2013 - Oct-Dic 2025 | F94: Trimestral | G94: Flujos | H94: Millones de Dólares | K94: Niveles | L94: SE41270 | M94: 9.623459 | N94: 9.822987 | O94: 10.099316 | P94: 10.809143 | Q94: 10.331362 | R94: 10.257078 | S94: 15.803879 | T94: 13.00419 | U94: 13.306273 | V94: 14.052423 | W94: 13.692162 | X94: 12.431714 | Y94: 12.332987 | Z94: 13.812502 | AA94: 16.026638 | AB94: 16.071075 | AC94: 13.495338 | AD94: 16.928747 | AE94: 18.168323 | AF94: 19.138414 | AG94: 16.141517 | AH94: 17.657005 | AI94: 16.12781 | AJ94: 16.477045 | AK94: 13.335524 | AL94: 15.827868 | AM94: 17.017059 | AN94: 15.989971 | AO94: 15.416659 | AP94: 16.477713 | AQ94: 14.908463 | AR94: 16.310497 | AS94: 16.816531 | AT94: 19.884922 | AU94: 19.484435 | AV94: 20.309379 | AW94: 17.963259 | AX94: 18.896812 | AY94: 21.039711 | AZ94: 23.238189 | BA94: 19.984537 | BB94: 22.110518 | BC94: 23.224295 | BD94: 19.500873 | BE94: 17.613401 | BF94: 21.24576 | BG94: 19.793534 | BH94: 19.535055 | BI94: 17.262296 | BJ94: 19.208331 | BK94: 20.441797 | BL94: 20.972358 | BN94: 40.354905 | BO94: 49.396509 | BP94: 53.482572 | BQ94: 58.243202 | BR94: 67.730822 | BS94: 66.403377 | BT94: 62.170422 | BU94: 63.113332 | BV94: 76.495267 | BW94: 81.137971 | BX94: 84.820223 | BY94: 78.18775 | BZ94: 77.884782
A95: Ingresos por Remesas | B95: Distribución por Municipio | C95: Colima | D95: Villa de Álvarez | E95: Ene-Mar 2013 - Oct-Dic 2025 | F95: Trimestral | G95: Flujos | H95: Millones de Dólares | K95: Niveles | L95: SE41271 | M95: 4.566576 | N95: 4.993346 | O95: 6.016036 | P95: 6.582064 | Q95: 7.173361 | R95: 6.537325 | S95: 10.170411 | T95: 8.183128 | U95: 8.55938 | V95: 8.898772 | W95: 8.473807 | X95: 8.253079 | Y95: 8.736573 | Z95: 9.2038 | AA95: 9.651347 | AB95: 11.02845 | AC95: 10.671355 | AD95: 12.511901 | AE95: 12.631724 | AF95: 14.24217 | AG95: 14.204247 | AH95: 14.749169 | AI95: 13.645418 | AJ95: 14.718593 | AK95: 13.07474 | AL95: 14.444406 | AM95: 14.758414 | AN95: 15.521877 | AO95: 16.272206 | AP95: 16.596719 | AQ95: 14.764676 | AR95: 16.877726 | AS95: 17.598282 | AT95: 19.741311 | AU95: 19.944766 | AV95: 21.451993 | AW95: 21.589211 | AX95: 21.69339 | AY95: 24.118555 | AZ95: 26.837761 | BA95: 24.629909 | BB95: 26.297257 | BC95: 27.43665 | BD95: 25.012765 | BE95: 24.422441 | BF95: 27.95536 | BG95: 25.746241 | BH95: 25.026897 | BI95: 22.167056 | BJ95: 22.379798 | BK95: 24.065012 | BL95: 24.13126 | BN95: 22.158022 | BO95: 32.064225 | BP95: 34.185038 | BQ95: 38.62017 | BR95: 50.05715 | BS95: 57.317427 | BT95: 57.799437 | BU95: 64.511327 | BV95: 78.736352 | BW95: 94.238917 | BX95: 103.376581 | BY95: 103.150939 | BZ95: 92.743126
A96: Ingresos por Remesas | B96: Distribución por Municipio | C96: Colima | D96: No identificado | E96: Ene-Mar 2013 - Oct-Dic 2025 | F96: Trimestral | G96: Flujos | H96: Millones de Dólares | K96: Niveles | L96: SE41272 | M96: 0.033194 | N96: 0.001003 | O96: 0.000103 | P96: 0.000155 | Q96: 0.000479 | R96: 0.000576 | S96: 0.001016 | T96: 0.000198 | U96: 0 | V96: 0 | W96: 0 | X96: 0 | Y96: 0 | Z96: 0 | AA96: 0 | AB96: 0 | AC96: 0 | AD96: 0 | AE96: 0 | AF96: 0.071019 | AG96: 0 | AH96: 0 | AI96: 0 | AJ96: 0 | AK96: 0 | AL96: 0 | AM96: 0 | AN96: 0 | AO96: 0 | AP96: 0 | AQ96: 0 | AR96: 0 | AS96: 0 | AT96: 0 | AU96: 0 | AV96: 0.000459 | AW96: 0 | AX96: 0 | AY96: 0 | AZ96: 0.006712 | BA96: 0.163725 | BB96: 0.294551 | BC96: 0.334629 | BD96: 0.318878 | BE96: 0.310856 | BF96: 0.344018 | BG96: 0.327869 | BH96: 0.290561 | BI96: 0.238722 | BJ96: 0.237327 | BK96: 0.273435 | BL96: 0.116054 | BN96: 0.034455 | BO96: 0.002269 | BP96: 0 | BQ96: 0 | BR96: 0.071019 | BS96: 0 | BT96: 0 | BU96: 0 | BV96: 0.000459 | BW96: 0.006712 | BX96: 1.111783 | BY96: 1.273304 | BZ96: 0.865538
A97: Ingresos por Remesas | B97: Distribución por Municipio | C97: Chiapas | D97: Acacoyagua | E97: Ene-Mar 2013 - Oct-Dic 2025 | F97: Trimestral | G97: Flujos | H97: Millones de Dólares | K97: Niveles | L97: SE41273 | M97: 0 | N97: 0 | O97: 0 | P97: 2.1e-05 | Q97: 1.9e-05 | R97: 0 | S97: 0 | T97: 1.9e-05 | U97: 0 | V97: 0 | W97: 0 | X97: 0 | Y97: 0 | Z97: 0.000465 | AA97: 0 | AB97: 0 | AC97: 0 | AD97: 0 | AE97: 0.000882 | AF97: 0 | AG97: 0.009571 | AH97: 0.009878 | AI97: 0.007714 | AJ97: 0.02125 | AK97: 0.026555 | AL97: 0.044344 | AM97: 0.044976 | AN97: 0.048181 | AO97: 0.112243 | AP97: 0.196978 | AQ97: 0.227709 | AR97: 0.174128 | AS97: 0.239699 | AT97: 0.30181 | AU97: 0.313742 | AV97: 0.434558 | AW97: 0.497365 | AX97: 0.77702 | AY97: 0.156498 | AZ97: 0.113081 | BA97: 0.029197 | BB97: 0.031387 | BC97: 0.036073 | BD97: 0.034641 | BE97: 0.022462 | BF97: 0.029211 | BG97: 0.024431 | BH97: 0.02361 | BI97: 0.015925 | BJ97: 0.022856 | BK97: 0.017171 | BL97: 0.020609 | BN97: 2.1e-05 | BO97: 3.8e-05 | BP97: 0 | BQ97: 0.000465 | BR97: 0.000882 | BS97: 0.048413 | BT97: 0.164056 | BU97: 0.711058 | BV97: 1.289809 | BW97: 1.543964 | BX97: 0.131298 | BY97: 0.099714 | BZ97: 0.076561
A98: Ingresos por Remesas | B98: Distribución por Municipio | C98: Chiapas | D98: Acala | E98: Ene-Mar 2013 - Oct-Dic 2025 | F98: Trimestral | G98: Flujos | H98: Millones de Dólares | K98: Niveles | L98: SE41274 | M98: 0.276876 | N98: 0.349234 | O98: 0.291315 | P98: 0.177885 | Q98: 0.243663 | R98: 0.367097 | S98: 0.266246 | T98: 0.329307 | U98: 0.32063 | V98: 0.337085 | W98: 0.327938 | X98: 0.353907 | Y98: 0.329874 | Z98: 0.315986 | AA98: 0.322219 | AB98: 0.311348 | AC98: 0.349762 | AD98: 0.398947 | AE98: 0.538471 | AF98: 0.424255 | AG98: 0.425224 | AH98: 0.453506 | AI98: 0.415403 | AJ98: 0.492941 | AK98: 0.501064 | AL98: 0.548198 | AM98: 0.453648 | AN98: 0.6448 | AO98: 0.4464 | AP98: 0.614181 | AQ98: 1.197418 | AR98: 0.7233 | AS98: 0.703278 | AT98: 0.940924 | AU98: 1.009688 | AV98: 1.303659 | AW98: 1.130241 | AX98: 1.450349 | AY98: 1.596142 | AZ98: 2.231207 | BA98: 2.044906 | BB98: 2.237973 | BC98: 2.420205 | BD98: 2.286594 | BE98: 2.262121 | BF98: 2.479127 | BG98: 2.554828 | BH98: 2.363658 | BI98: 2.061269 | BJ98: 2.341725 | BK98: 2.517333 | BL98: 2.417986 | BN98: 1.09531 | BO98: 1.206313 | BP98: 1.33956 | BQ98: 1.279427 | BR98: 1.711435 | BS98: 1.787074 | BT98: 2.14771 | BU98: 2.981299 | BV98: 3.957549 | BW98: 6.407939 | BX98: 8.989678 | BY98: 9.659734 | BZ98: 9.338313
A99: Ingresos por Remesas | B99: Distribución por Municipio | C99: Chiapas | D99: Acapetahua | E99: Ene-Mar 2013 - Oct-Dic 2025 | F99: Trimestral | G99: Flujos | H99: Millones de Dólares | K99: Niveles | L99: SE41275 | M99: 1.530508 | N99: 1.974011 | O99: 1.724613 | P99: 1.605114 | Q99: 1.62759 | R99: 1.921474 | S99: 1.435897 | T99: 1.703547 | U99: 1.821133 | V99: 1.850921 | W99: 2.216299 | X99: 2.154923 | Y99: 2.554823 | Z99: 2.674832 | AA99: 2.545543 | AB99: 2.664348 | AC99: 2.824858 | AD99: 2.883108 | AE99: 2.795225 | AF99: 2.825201 | AG99: 2.542939 | AH99: 3.142039 | AI99: 3.176897 | AJ99: 3.163201 | AK99: 2.709049 | AL99: 3.107589 | AM99: 3.103572 | AN99: 2.866664 | AO99: 2.745138 | AP99: 2.912888 | AQ99: 3.042488 | AR99: 3.089483 | AS99: 2.938589 | AT99: 3.605266 | AU99: 3.630421 | AV99: 3.60794 | AW99: 3.432473 | AX99: 4.442741 | AY99: 3.602818 | AZ99: 3.441239 | BA99: 4.002256 | BB99: 4.507148 | BC99: 4.972164 | BD99: 4.827269 | BE99: 4.402025 | BF99: 5.44702 | BG99: 6.335079 | BH99: 6.768645 | BI99: 6.817662 | BJ99: 8.447161 | BK99: 9.797004 | BL99: 8.125631 | BN99: 6.834246 | BO99: 6.688508 | BP99: 8.043276 | BQ99: 10.439546 | BR99: 11.328392 | BS99: 12.025076 | BT99: 11.786874 | BU99: 11.789997 | BV99: 13.782216 | BW99: 14.919271 | BX99: 18.308837 | BY99: 22.952769 | BZ99: 33.187458
A100: Ingresos por Remesas | B100: Distribución por Municipio | C100: Chiapas | D100: Aldama | E100: Ene-Mar 2013 - Oct-Dic 2025 | F100: Trimestral | G100: Flujos | H100: Millones de Dólares | K100: Niveles | L100: SE41276 | M100: 0 | N100: 0 | O100: 0 | P100: 0 | Q100: 0 | R100: 0 | S100: 0 | T100: 0 | U100: 0 | V100: 0 | W100: 0 | X100: 0 | Y100: 0 | Z100: 0 | AA100: 0 | AB100: 0 | AC100: 0 | AD100: 0 | AE100: 0 | AF100: 0 | AG100: 0 | AH100: 0 | AI100: 0 | AJ100: 0.000973 | AK100: 0 | AL100: 0.004921 | AM100: 0.145087 | AN100: 0.011225 | AO100: 0.048056 | AP100: 0.025732 | AQ100: 0.058482 | AR100: 0.063787 | AS100: 0.09953 | AT100: 0.142062 | AU100: 0.249418 | AV100: 0.295244 | AW100: 0.446621 | AX100: 0.658459 | AY100: 0 | AZ100: 0 | BA100: 0.010672 | BB100: 0.01238 | BC100: 0.00242 | BD100: 0.00699 | BE100: 0 | BF100: 0 | BG100: 0 | BH100: 0 | BI100: 0.007348 | BJ100: 0.020014 | BK100: 0.01493 | BL100: 0 | BN100: 0 | BO100: 0 | BP100: 0 | BQ100: 0 | BR100: 0 | BS100: 0.000973 | BT100: 0.161233 | BU100: 0.196057 | BV100: 0.786254 | BW100: 1.10508 | BX100: 0.032462 | BY100: 0 | BZ100: 0.042292
A101: Ingresos por Remesas | B101: Distribución por Municipio | C101: Chiapas | D101: Altamirano | E101: Ene-Mar 2013 - Oct-Dic 2025 | F101: Trimestral | G101: Flujos | H101: Millones de Dólares | K101: Niveles | L101: SE41277 | M101: 0.102119 | N101: 0.127617 | O101: 0.106183 | P101: 0.06058 | Q101: 0.107048 | R101: 0.123649 | S101: 0.080302 | T101: 0.100611 | U101: 0.100976 | V101: 0.116425 | W101: 0.140215 | X101: 0.053726 | Y101: 0.070689 | Z101: 0.15065 | AA101: 0.152209 | AB101: 0.144325 | AC101: 0.150148 | AD101: 0.170882 | AE101: 0.195285 | AF101: 0.156721 | AG101: 0.202897 | AH101: 0.375765 | AI101: 0.235766 | AJ101: 0.333917 | AK101: 0.370926 | AL101: 0.448263 | AM101: 0.874969 | AN101: 0.695548 | AO101: 0.916488 | AP101: 0.70725 | AQ101: 0.256876 | AR101: 0.109256 | AS101: 0.17485 | AT101: 0.284231 | AU101: 0.279302 | AV101: 0.274072 | AW101: 0.365978 | AX101: 0.617413 | AY101: 0.008615 | AZ101: 0.001153 | BA101: 0 | BB101: 0 | BC101: 0 | BD101: 0 | BE101: 0 | BF101: 0 | BG101: 0 | BH101: 0 | BI101: 0 | BJ101: 0 | BK101: 0 | BL101: 0 | BN101: 0.396499 | BO101: 0.41161 | BP101: 0.411342 | BQ101: 0.517873 | BR101: 0.673036 | BS101: 1.148345 | BT101: 2.389706 | BU101: 1.98987 | BV101: 1.012455 | BW101: 0.993159 | BX101: 0 | BY101: 0 | BZ101: 0
A102: Ingresos por Remesas | B102: Distribución por Municipio | C102: Chiapas | D102: Amatán | E102: Ene-Mar 2013 - Oct-Dic 2025 | F102: Trimestral | G102: Flujos | H102: Millones de Dólares | K102: Niveles | L102: SE41278 | M102: 0.06773 | N102: 0.101345 | O102: 0.08145 | P102: 0.081963 | Q102: 0.070321 | R102: 0.065637 | S102: 0.057373 | T102: 0.058272 | U102: 0.058321 | V102: 0.062451 | W102: 0.076537 | X102: 0.069709 | Y102: 0.095835 | Z102: 0.271993 | AA102: 0.432885 | AB102: 0.533236 | AC102: 0.67342 | AD102: 0.615679 | AE102: 0.508031 | AF102: 0.442468 | AG102: 0.498132 | AH102: 0.534365 | AI102: 0.119662 | AJ102: 0.036375 | AK102: 0.063341 | AL102: 0.391113 | AM102: 0.51575 | AN102: 0.516254 | AO102: 0.623375 | AP102: 0.877493 | AQ102: 1.16313 | AR102: 1.011399 | AS102: 1.52387 | AT102: 1.260885 | AU102: 1.735525 | AV102: 1.430936 | AW102: 1.905879 | AX102: 2.666305 | AY102: 1.679526 | AZ102: 1.529381 | BA102: 1.854783 | BB102: 2.038294 | BC102: 2.001621 | BD102: 1.875539 | BE102: 1.576201 | BF102: 1.390098 | BG102: 1.022468 | BH102: 0.986098 | BI102: 1.148847 | BJ102: 1.241052 | BK102: 1.259202 | BL102: 0.837662 | BN102: 0.332488 | BO102: 0.251603 | BP102: 0.267018 | BQ102: 1.333949 | BR102: 2.239598 | BS102: 1.188534 | BT102: 1.486458 | BU102: 3.675397 | BV102: 5.951216 | BW102: 7.781091 | BX102: 7.770237 | BY102: 4.974865 | BZ102: 4.486763
A103: Ingresos por Remesas | B103: Distribución por Municipio | C103: Chiapas | D103: Amatenango de la Frontera | E103: Ene-Mar 2013 - Oct-Dic 2025 | F103: Trimestral | G103: Flujos | H103: Millones de Dólares | K103: Niveles | L103: SE41279 | M103: 0 | N103: 0 | O103: 0 | P103: 0 | Q103: 0 | R103: 0 | S103: 0 | T103: 0 | U103: 0 | V103: 0 | W103: 0 | X103: 0 | Y103: 0 | Z103: 0 | AA103: 0 | AB103: 0.000695 | AC103: 0 | AD103: 0 | AE103: 0 | AF103: 0 | AG103: 0.011399 | AH103: 0.022128 | AI103: 0.020674 | AJ103: 0.04549 | AK103: 0.090748 | AL103: 0.145332 | AM103: 0.425095 | AN103: 0.168658 | AO103: 0.341149 | AP103: 0.429637 | AQ103: 0.482667 | AR103: 0.396458 | AS103: 0.504779 | AT103: 0.779013 | AU103: 1.01454 | AV103: 1.392802 | AW103: 1.466844 | AX103: 1.989529 | AY103: 0.018275 | AZ103: 0.016137 | BA103: 0.016155 | BB103: 0.033672 | BC103: 0.034396 | BD103: 0.017146 | BE103: 0.000317 | BF103: 0.000494 | BG103: 6.6e-05 | BH103: 0 | BI103: 0.001408 | BJ103: 0.00671 | BK103: 0.001626 | BL103: 0.00062 | BN103: 0 | BO103: 0 | BP103: 0 | BQ103: 0.000695 | BR103: 0 | BS103: 0.099691 | BT103: 0.829833 | BU103: 1.649911 | BV103: 3.691134 | BW103: 3.490785 | BX103: 0.101369 | BY103: 0.000877 | BZ103: 0.010364
A104: Ingresos por Remesas | B104: Distribución por Municipio | C104: Chiapas | D104: Amatenango del Valle | E104: Ene-Mar 2013 - Oct-Dic 2025 | F104: Trimestral | G104: Flujos | H104: Millones de Dólares | K104: Niveles | L104: SE41280 | M104: 0 | N104: 0 | O104: 0 | P104: 0 | Q104: 0 | R104: 0 | S104: 0 | T104: 0 | U104: 0 | V104: 0 | W104: 0 | X104: 0 | Y104: 0 | Z104: 0 | AA104: 0 | AB104: 0 | AC104: 0 | AD104: 0 | AE104: 0 | AF104: 0 | AG104: 0 | AH104: 0 | AI104: 0 | AJ104: 0 | AK104: 0 | AL104: 0.002669 | AM104: 0.002369 | AN104: 0.143633 | AO104: 0.003391 | AP104: 0.007528 | AQ104: 0.013317 | AR104: 0.017746 | AS104: 0.01169 | AT104: 0.023574 | AU104: 0.033456 | AV104: 0.060486 | AW104: 0.063829 | AX104: 0.169552 | AY104: 0.000102 | AZ104: 0.000536 | BA104: 0.000466 | BB104: 1e-05 | BC104: 0.000513 | BD104: 0.000148 | BE104: 0.000511 | BF104: 0.000887 | BG104: 8.7e-05 | BH104: 4.1e-05 | BI104: 1.6e-05 | BJ104: 0.000741 | BK104: 0.000529 | BL104: 0.000349 | BN104: 0 | BO104: 0 | BP104: 0 | BQ104: 0 | BR104: 0 | BS104: 0 | BT104: 0.148671 | BU104: 0.041982 | BV104: 0.129206 | BW104: 0.234019 | BX104: 0.001137 | BY104: 0.001526 | BZ104: 0.001635
A105: Ingresos por Remesas | B105: Distribución por Municipio | C105: Chiapas | D105: Angel Albino Corzo | E105: Ene-Mar 2013 - Oct-Dic 2025 | F105: Trimestral | G105: Flujos | H105: Millones de Dólares | K105: Niveles | L105: SE41281 | M105: 1.551738 | N105: 2.118555 | O105: 1.879102 | P105: 1.715293 | Q105: 1.802414 | R105: 2.37641 | S105: 1.888742 | T105: 2.209588 | U105: 2.001089 | V105: 2.373251 | W105: 2.889885 | X105: 2.763493 | Y105: 2.604387 | Z105: 3.059493 | AA105: 2.945947 | AB105: 2.996159 | AC105: 3.010579 | AD105: 3.362728 | AE105: 3.539291 | AF105: 3.195012 | AG105: 3.04923 | AH105: 4.165709 | AI105: 4.677386 | AJ105: 4.757018 | AK105: 4.214331 | AL105: 5.169431 | AM105: 5.010051 | AN105: 4.539768 | AO105: 4.085116 | AP105: 5.126231 | AQ105: 6.683986 | AR105: 6.778604 | AS105: 6.619082 | AT105: 8.910223 | AU105: 10.04185 | AV105: 10.948219 | AW105: 8.962446 | AX105: 12.064791 | AY105: 16.298031 | AZ105: 17.60371 | BA105: 17.613494 | BB105: 21.364529 | BC105: 23.927429 | BD105: 21.776086 | BE105: 16.35533 | BF105: 22.415736 | BG105: 21.534985 | BH105: 22.577752 | BI105: 20.766836 | BJ105: 26.064783 | BK105: 28.67805 | BL105: 24.842261 | BN105: 7.264688 | BO105: 8.277154 | BP105: 10.027718 | BQ105: 11.605986 | BR105: 13.10761 | BS105: 16.649343 | BT105: 18.933581 | BU105: 22.673937 | BV105: 36.519374 | BW105: 54.928978 | BX105: 84.681538 | BY105: 82.883803 | BZ105: 100.35193
A106: Ingresos por Remesas | B106: Distribución por Municipio | C106: Chiapas | D106: Arriaga | E106: Ene-Mar 2013 - Oct-Dic 2025 | F106: Trimestral | G106: Flujos | H106: Millones de Dólares | K106: Niveles | L106: SE41282 | M106: 1.699217 | N106: 1.72785 | O106: 2.235459 | P106: 2.161274 | Q106: 2.509282 | R106: 3.196483 | S106: 2.298151 | T106: 2.121844 | U106: 1.889312 | V106: 2.142636 | W106: 2.515534 | X106: 2.282371 | Y106: 2.063165 | Z106: 2.265284 | AA106: 2.519478 | AB106: 2.150981 | AC106: 2.254854 | AD106: 2.526244 | AE106: 2.620588 | AF106: 2.102084 | AG106: 2.08423 | AH106: 2.703769 | AI106: 2.718867 | AJ106: 2.293869 | AK106: 2.200938 | AL106: 2.941547 | AM106: 2.698331 | AN106: 2.219838 | AO106: 1.97651 | AP106: 1.985227 | AQ106: 2.249354 | AR106: 2.658963 | AS106: 2.081856 | AT106: 2.669644 | AU106: 2.824101 | AV106: 2.513543 | AW106: 2.661948 | AX106: 3.611077 | AY106: 5.267305 | AZ106: 6.555665 | BA106: 4.463885 | BB106: 5.127122 | BC106: 7.568803 | BD106: 7.633838 | BE106: 5.743258 | BF106: 4.841986 | BG106: 3.395503 | BH106: 2.940049 | BI106: 2.736916 | BJ106: 2.431119 | BK106: 2.3773 | BL106: 2.655992 | BN106: 7.8238 | BO106: 10.12576 | BP106: 8.829853 | BQ106: 8.998908 | BR106: 9.50377 | BS106: 9.800735 | BT106: 10.060654 | BU106: 8.870054 | BV106: 10.089144 | BW106: 18.095995 | BX106: 24.793648 | BY106: 16.920796 | BZ106: 10.201327
A107: Ingresos por Remesas | B107: Distribución por Municipio | C107: Chiapas | D107: Bejucal de Ocampo | E107: Ene-Mar 2013 - Oct-Dic 2025 | F107: Trimestral | G107: Flujos | H107: Millones de Dólares | K107: Niveles | L107: SE41283 | M107: 0 | N107: 0 | O107: 0 | P107: 0 | Q107: 0 | R107: 0 | S107: 0 | T107: 0 | U107: 0 | V107: 0 | W107: 0 | X107: 0 | Y107: 0 | Z107: 0 | AA107: 0 | AB107: 0 | AC107: 0 | AD107: 0 | AE107: 0 | AF107: 0 | AG107: 0.005483 | AH107: 0.006533 | AI107: 0.013922 | AJ107: 0.012606 | AK107: 0.012125 | AL107: 0.010178 | AM107: 0.052174 | AN107: 0.013946 | AO107: 0.057085 | AP107: 0.077166 | AQ107: 0.079429 | AR107: 0.076803 | AS107: 0.139379 | AT107: 0.164754 | AU107: 0.26973 | AV107: 0.351106 | AW107: 0.421502 | AX107: 0.558066 | AY107: 0 | AZ107: 0 | BA107: 0 | BB107: 0 | BC107: 0 | BD107: 0 | BE107: 0 | BF107: 0 | BG107: 0 | BH107: 0 | BI107: 0 | BJ107: 0.012922 | BK107: 0.012421 | BL107: 0 | BN107: 0 | BO107: 0 | BP107: 0 | BQ107: 0 | BR107: 0 | BS107: 0.038544 | BT107: 0.088423 | BU107: 0.290483 | BV107: 0.924969 | BW107: 0.979568 | BX107: 0 | BY107: 0 | BZ107: 0.025343
A108: Ingresos por Remesas | B108: Distribución por Municipio | C108: Chiapas | D108: Bella Vista | E108: Ene-Mar 2013 - Oct-Dic 2025 | F108: Trimestral | G108: Flujos | H108: Millones de Dólares | K108: Niveles | L108: SE41284 | M108: 0 | N108: 0 | O108: 0 | P108: 0 | Q108: 0.030031 | R108: 0.025873 | S108: 0.011307 | T108: 0.018527 | U108: 0.012567 | V108: 0 | W108: 0 | X108: 0 | Y108: 0 | Z108: 0 | AA108: 0 | AB108: 0 | AC108: 0 | AD108: 0 | AE108: 0 | AF108: 0 | AG108: 0.010512 | AH108: 0.013897 | AI108: 0.01409 | AJ108: 0.012955 | AK108: 0.007507 | AL108: 0.028614 | AM108: 0.045139 | AN108: 0.038696 | AO108: 0.083505 | AP108: 0.118642 | AQ108: 0.177752 | AR108: 0.158211 | AS108: 0.166043 | AT108: 0.240338 | AU108: 0.304418 | AV108: 0.392631 | AW108: 0.44663 | AX108: 0.753737 | AY108: 0.028849 | AZ108: 0.062188 | BA108: 0.07912 | BB108: 0.13573 | BC108: 0.192355 | BD108: 0.266422 | BE108: 0.224809 | BF108: 0.536898 | BG108: 0.515925 | BH108: 0.51027 | BI108: 0.357495 | BJ108: 0.458821 | BK108: 0.400731 | BL108: 0.435986 | BN108: 0 | BO108: 0.085738 | BP108: 0.012567 | BQ108: 0 | BR108: 0 | BS108: 0.051454 | BT108: 0.119956 | BU108: 0.53811 | BV108: 1.10343 | BW108: 1.291404 | BX108: 0.673627 | BY108: 1.787902 | BZ108: 1.653033
A109: Ingresos por Remesas | B109: Distribución por Municipio | C109: Chiapas | D109: Benemérito de las Américas | E109: Ene-Mar 2013 - Oct-Dic 2025 | F109: Trimestral | G109: Flujos | H109: Millones de Dólares | K109: Niveles | L109: SE41285 | M109: 1.188225 | N109: 1.51187 | O109: 1.436189 | P109: 1.274871 | Q109: 1.540961 | R109: 1.823877 | S109: 1.2445 | T109: 1.383482 | U109: 1.543076 | V109: 1.551354 | W109: 2.090376 | X109: 1.937099 | Y109: 1.639399 | Z109: 1.369318 | AA109: 1.353288 | AB109: 1.482228 | AC109: 1.599717 | AD109: 1.463349 | AE109: 1.528213 | AF109: 1.648095 | AG109: 1.923501 | AH109: 2.343739 | AI109: 2.241382 | AJ109: 2.281575 | AK109: 2.568084 | AL109: 3.341026 | AM109: 2.296284 | AN109: 1.697638 | AO109: 2.147429 | AP109: 2.108995 | AQ109: 2.155834 | AR109: 2.180461 | AS109: 2.818565 | AT109: 3.407987 | AU109: 3.842018 | AV109: 3.604239 | AW109: 3.929171 | AX109: 4.687282 | AY109: 6.31579 | AZ109: 7.037084 | BA109: 7.798132 | BB109: 9.075203 | BC109: 10.068242 | BD109: 8.291627 | BE109: 7.090484 | BF109: 8.560056 | BG109: 8.465043 | BH109: 8.388636 | BI109: 8.071695 | BJ109: 9.316625 | BK109: 9.210477 | BL109: 8.307988 | BN109: 5.411155 | BO109: 5.99282 | BP109: 7.121905 | BQ109: =SUMIFS($M109:$BL109,$M$9:$BL$9,BQ$10) -> 5.844233 | BR109: 6.239374 | BS109: 8.790197 | BT109: 9.903032 | BU109: 8.592719 | BV109: 13.672809 | BW109: 21.969327 | BX109: 35.233204 | BY109: 32.504219 | BZ109: 34.906785
A110: Ingresos por Remesas | B110: Distribución por Municipio | C110: Chiapas | D110: Berriozábal | E110: Ene-Mar 2013 - Oct-Dic 2025 | F110: Trimestral | G110: Flujos | H110: Millones de Dólares | K110: Niveles | L110: SE41286 | M110: 0.018779 | N110: 0.015476 | O110: 0.018444 | P110: 0.011187 | Q110: 0.011691 | R110: 0.021426 | S110: 0.021157 | T110: 0.023201 | U110: 0.02707 | V110: 0.041543 | W110: 0.015753 | X110: 0.035418 | Y110: 0.041202 | Z110: 0.065469 | AA110: 0.049746 | AB110: 0.066038 | AC110: 0.067191 | AD110: 0.085389 | AE110: 0.182788 | AF110: 0.08117 | AG110: 0.056257 | AH110: 0.084779 | AI110: 0.075422 | AJ110: 0.076514 | AK110: 0.093284 | AL110: 0.093945 | AM110: 0.100026 | AN110: 0.235478 | AO110: 0.426276 | AP110: 0.392491 | AQ110: 0.150219 | AR110: 0.171816 | AS110: 0.229038 | AT110: 0.243273 | AU110: 0.244385 | AV110: 0.302551 | AW110: 0.33739 | AX110: 0.409521 | AY110: 0.206737 | AZ110: 0.213375 | BA110: 0.214536 | BB110: 0.247855 | BC110: 0.282286 | BD110: 0.297689 | BE110: 0.243822 | BF110: 0.241419 | BG110: 0.254542 | BH110: 0.235827 | BI110: 0.179152 | BJ110: 0.222497 | BK110: 0.212283 | BL110: 0.202299 | BN110: =SUMIFS($M110:$BL110,$M$9:$BL$9,BN$10) -> 0.063886 | BO110: 0.077475 | BP110: 0.119784 | BQ110: 0.222455 | BR110: 0.416538 | BS110: 0.292972 | BT110: 0.522733 | BU110: 1.140802 | BV110: 1.019247 | BW110: 1.167023 | BX110: 1.042366 | BY110: 0.97561 | BZ110: 0.816231
A111: Ingresos por Remesas | B111: Distribución por Municipio | C111: Chiapas | D111: Bochil | E111: Ene-Mar 2013 - Oct-Dic 2025 | F111: Trimestral | G111: Flujos | H111: Millones de Dólares | K111: Niveles | L111: SE41287 | M111: 0.827886 | N111: 1.142479 | O111: 1.218832 | P111: 0.880532 | Q111: 1.26512 | R111: 1.462151 | S111: 1.27273 | T111: 1.298042 | U111: 2.190737 | V111: 1.923429 | W111: 2.833333 | X111: 2.980289 | Y111: 4.265003 | Z111: 3.422672 | AA111: 3.745867 | AB111: 3.965015 | AC111: 5.28715 | AD111: 4.314475 | AE111: 4.506355 | AF111: 5.47942 | AG111: 8.301438 | AH111: 6.654551 | AI111: 7.985173 | AJ111: 7.954745 | AK111: 10.047256 | AL111: 10.006499 | AM111: 9.840723 | AN111: 8.274753 | AO111: 12.171132 | AP111: 8.409285 | AQ111: 10.023579 | AR111: 10.901146 | AS111: 13.600509 | AT111: 18.476256 | AU111: 20.889044 | AV111: 22.475212 | AW111: 25.165217 | AX111: 30.669656 | AY111: 31.194408 | AZ111: 29.395237 | BA111: 36.336766 | BB111: 40.206274 | BC111: 43.112415 | BD111: 39.928425 | BE111: 35.482715 | BF111: 42.340061 | BG111: 43.144293 | BH111: 44.246359 | BI111: 44.612045 | BJ111: 51.476742 | BK111: 54.577534 | BL111: 45.006259 | BN111: 4.069729 | BO111: 5.298043 | BP111: 9.927788 | BQ111: 15.398557 | BR111: 19.5874 | BS111: 30.895907 | BT111: 38.169231 | BU111: 41.505142 | BV111: 75.441021 | BW111: 116.424518 | BX111: 159.58388 | BY111: 165.213428 | BZ111: 195.67258
A112: Ingresos por Remesas | B112: Distribución por Municipio | C112: Chiapas | D112: Cacahoatán | E112: Ene-Mar 2013 - Oct-Dic 2025 | F112: Trimestral | G112: Flujos | H112: Millones de Dólares | K112: Niveles | L112: SE41288 | M112: 1.642985 | N112: 2.040537 | O112: 1.840597 | P112: 1.57168 | Q112: 1.625559 | R112: 2.208985 | S112: 1.709788 | T112: 1.971357 | U112: 1.960774 | V112: 2.191636 | W112: 2.706883 | X112: 2.779333 | Y112: 2.554636 | Z112: 2.634188 | AA112: 2.39796 | AB112: 2.353066 | AC112: 2.624197 | AD112: 3.118771 | AE112: 3.011568 | AF112: 2.81822 | AG112: 2.479038 | AH112: 3.498003 | AI112: 3.615444 | AJ112: 3.626283 | AK112: 3.192286 | AL112: 4.116298 | AM112: 4.291097 | AN112: 3.865237 | AO112: 1.941148 | AP112: 2.17879 | AQ112: 2.58732 | AR112: 2.558891 | AS112: 2.559346 | AT112: 3.2801 | AU112: 3.102307 | AV112: 3.154695 | AW112: 6.147339 | AX112: 9.046798 | AY112: 9.587899 | AZ112: 10.640582 | BA112: 9.538984 | BB112: 11.792998 | BC112: 12.059102 | BD112: 11.399 | BE112: 9.031438 | BF112: 11.563851 | BG112: 11.509079 | BH112: 11.302762 | BI112: 9.163198 | BJ112: 11.471726 | BK112: 12.469721 | BL112: 11.191493 | BN112: 7.095799 | BO112: 7.515689 | BP112: 9.638626 | BQ112: 9.93985 | BR112: 11.572756 | BS112: 13.218768 | BT112: 15.464918 | BU112: 9.266149 | BV112: 12.096448 | BW112: 35.422618 | BX112: 44.790084 | BY112: 43.40713 | BZ112: 44.296138
A113: Ingresos por Remesas | B113: Distribución por Municipio | C113: Chiapas | D113: Catazajá | E113: Ene-Mar 2013 - Oct-Dic 2025 | F113: Trimestral | G113: Flujos | H113: Millones de Dólares | K113: Niveles | L113: SE41289 | M113: 0.009887 | N113: 0.010382 | O113: 0.008213 | P113: 0.00629 | Q113: 0.013637 | R113: 0.01208 | S113: 0.011986 | T113: 0.005854 | U113: 0.005122 | V113: 0.005752 | W113: 0.009651 | X113: 0.010609 | Y113: 0.009262 | Z113: 0.012959 | AA113: 0.009811 | AB113: 0.01306 | AC113: 0.012239 | AD113: 0.008337 | AE113: 0.009878 | AF113: 0.010538 | AG113: 0.009137 | AH113: 0.014207 | AI113: 0.010964 | AJ113: 0.010009 | AK113: 0.005828 | AL113: 0.013062 | AM113: 0.080381 | AN113: 0.019956 | AO113: 0.010142 | AP113: 0.009808 | AQ113: 0.00985 | AR113: 0.017033 | AS113: 0.017951 | AT113: 0.026291 | AU113: 0.043154 | AV113: 0.047749 | AW113: 0.046575 | AX113: 0.062803 | AY113: 0.001945 | AZ113: 0.001425 | BA113: 0.001392 | BB113: 0.001463 | BC113: 0.000581 | BD113: 0.000722 | BE113: 0.000911 | BF113: 0.000951 | BG113: 0.000321 | BH113: 0.000968 | BI113: 0.000204 | BJ113: 0.00012 | BK113: 0.000144 | BL113: 0.000211 | BN113: 0.034772 | BO113: 0.043557 | BP113: 0.031134 | BQ113: 0.045092 | BR113: 0.040992 | BS113: 0.044317 | BT113: 0.119227 | BU113: 0.046833 | BV113: 0.135145 | BW113: 0.112748 | BX113: 0.004158 | BY113: 0.003151 | BZ113: 0.000679
A114: Ingresos por Remesas | B114: Distribución por Municipio | C114: Chiapas | D114: Chalchihuitán | E114: Ene-Mar 2013 - Oct-Dic 2025 | F114: Trimestral | G114: Flujos | H114: Millones de Dólares | K114: Niveles | L114: SE41290 | M114: 0 | N114: 0 | O114: 0 | P114: 0 | Q114: 0 | R114: 0 | S114: 0 | T114: 0 | U114: 0 | V114: 0 | W114: 0 | X114: 0 | Y114: 0 | Z114: 0 | AA114: 0 | AB114: 0 | AC114: 0 | AD114: 0 | AE114: 0 | AF114: 0 | AG114: 0 | AH114: 0 | AI114: 0 | AJ114: 0 | AK114: 0.000709 | AL114: 0.000401 | AM114: 0.014303 | AN114: 0.011545 | AO114: 0.008924 | AP114: 0.017239 | AQ114: 0.030663 | AR114: 0.031754 | AS114: 0.045959 | AT114: 0.07699 | AU114: 0.087906 | AV114: 0.125965 | AW114: 0.185742 | AX114: 0.30137 | AY114: 0 | AZ114: 0 | BA114: 0 | BB114: 0 | BC114: 0.018598 | BD114: 0.034972 | BE114: 0.002263 | BF114: 0.004292 | BG114: 0.01383 | BH114: 0.004054 | BI114: 0.025492 | BJ114: 0.022909 | BK114: 0.013532 | BL114: 0.028819 | BN114: 0 | BO114: 0 | BP114: 0 | BQ114: 0 | BR114: 0 | BS114: 0 | BT114: 0.026958 | BU114: 0.08858 | BV114: 0.33682 | BW114: 0.487112 | BX114: 0.05357 | BY114: 0.024439 | BZ114: 0.090752
A115: Ingresos por Remesas | B115: Distribución por Municipio | C115: Chiapas | D115: Chamula | E115: Ene-Mar 2013 - Oct-Dic 2025 | F115: Trimestral | G115: Flujos | H115: Millones de Dólares | K115: Niveles | L115: SE41291 | M115: 0.452156 | N115: 0.571352 | O115: 0.296948 | P115: 0.026347 | Q115: 0.01728 | R115: 0.001339 | S115: 0.000839 | T115: 0.000391 | U115: 0.000731 | V115: 0 | W115: 0 | X115: 0 | Y115: 0 | Z115: 0 | AA115: 0 | AB115: 0 | AC115: 0 | AD115: 0 | AE115: 0 | AF115: 0 | AG115: 0.012207 | AH115: 0.036514 | AI115: 0.034089 | AJ115: 0.066818 | AK115: 0.085836 | AL115: 0.419261 | AM115: 0.77217 | AN115: 0.688919 | AO115: 2.242026 | AP115: 2.490846 | AQ115: 3.974257 | AR115: 3.009969 | AS115: 4.835142 | AT115: 6.643657 | AU115: 7.464751 | AV115: 8.456585 | AW115: 9.233519 | AX115: 13.352776 | AY115: 0.028791 | AZ115: 0.043946 | BA115: 0.348961 | BB115: 0.179581 | BC115: 0.201492 | BD115: 0.13035 | BE115: 0.004833 | BF115: 0.03571 | BG115: 0.068083 | BH115: 0.040733 | BI115: 0.154722 | BJ115: 0.194762 | BK115: 0.129794 | BL115: 0.176464 | BN115: 1.346803 | BO115: 0.019849 | BP115: 0.000731 | BQ115: 0 | BR115: 0 | BS115: 0.149628 | BT115: 1.966186 | BU115: 11.717098 | BV115: 27.400135 | BW115: 22.659032 | BX115: 0.860384 | BY115: 0.149359 | BZ115: 0.655742
A116: Ingresos por Remesas | B116: Distribución por Municipio | C116: Chiapas | D116: Chanal | E116: Ene-Mar 2013 - Oct-Dic 2025 | F116: Trimestral | G116: Flujos | H116: Millones de Dólares | K116: Niveles | L116: SE41292 | M116: 0 | N116: 0 | O116: 0 | P116: 0 | Q116: 0 | R116: 0 | S116: 0 | T116: 0 | U116: 0 | V116: 0 | W116: 0 | X116: 0 | Y116: 0 | Z116: 0 | AA116: 0 | AB116: 0 | AC116: 0 | AD116: 0 | AE116: 0 | AF116: 0 | AG116: 0.000998 | AH116: 0.002795 | AI116: 0.002175 | AJ116: 0.001526 | AK116: 0.001264 | AL116: 0.013641 | AM116: 0.038377 | AN116: 0.018061 | AO116: 0.081294 | AP116: 0.116507 | AQ116: 0.175536 | AR116: 0.130962 | AS116: 0.238071 | AT116: 0.321527 | AU116: 0.344018 | AV116: 0.389343 | AW116: 0.567676 | AX116: 0.87017 | AY116: 0 | AZ116: 0 | BA116: 0 | BB116: 0 | BC116: 0 | BD116: 0 | BE116: 0 | BF116: 0 | BG116: 0 | BH116: 0 | BI116: 0 | BJ116: 0 | BK116: 0 | BL116: 0 | BN116: 0 | BO116: 0 | BP116: 0 | BQ116: 0 | BR116: 0 | BS116: 0.007494 | BT116: 0.071343 | BU116: 0.504299 | BV116: 1.292959 | BW116: 1.437846 | BX116: 0 | BY116: 0 | BZ116: 0
A117: Ingresos por Remesas | B117: Distribución por Municipio | C117: Chiapas | D117: Chapultenango | E117: Ene-Mar 2013 - Oct-Dic 2025 | F117: Trimestral | G117: Flujos | H117: Millones de Dólares | K117: Niveles | L117: SE41293 | M117: 0 | N117: 0 | O117: 0 | P117: 0 | Q117: 0 | R117: 0 | S117: 0 | T117: 0 | U117: 0 | V117: 0 | W117: 0 | X117: 0 | Y117: 0 | Z117: 0 | AA117: 0 | AB117: 0 | AC117: 0 | AD117: 0 | AE117: 0 | AF117: 0 | AG117: 0 | AH117: 6.5e-05 | AI117: 0.007031 | AJ117: 0.003903 | AK117: 0.004081 | AL117: 0.01019 | AM117: 0.064049 | AN117: 0.00573 | AO117: 0.020071 | AP117: 0.019959 | AQ117: 0.025181 | AR117: 0.017986 | AS117: 0.029141 | AT117: 0.038237 | AU117: 0.048485 | AV117: 0.080303 | AW117: 0.101527 | AX117: 0.176901 | AY117: 0 | AZ117: 0 | BA117: 0 | BB117: 0 | BC117: 0 | BD117: 0 | BE117: 0 | BF117: 0 | BG117: 0 | BH117: 0 | BI117: 0 | BJ117: 0 | BK117: 0 | BL117: 0 | BN117: 0 | BO117: 0 | BP117: 0 | BQ117: 0 | BR117: 0 | BS117: 0.010999 | BT117: 0.08405 | BU117: 0.083197 | BV117: 0.196166 | BW117: 0.278428 | BX117: 0 | BY117: 0 | BZ117: 0
A118: Ingresos por Remesas | B118: Distribución por Municipio | C118: Chiapas | D118: Chenalhó | E118: Ene-Mar 2013 - Oct-Dic 2025 | F118: Trimestral | G118: Flujos | H118: Millones de Dólares | K118: Niveles | L118: SE41294 | M118: 0 | N118: 0 | O118: 0 | P118: 0 | Q118: 0 | R118: 0 | S118: 1.5e-05 | T118: 0 | U118: 0 | V118: 0 | W118: 8.4e-05 | X118: 0.000114 | Y118: 0 | Z118: 0 | AA118: 4.5e-05 | AB118: 8.9e-05 | AC118: 3.3e-05 | AD118: 1.7e-05 | AE118: 0.005665 | AF118: 0.01946 | AG118: 0.051644 | AH118: 0.040411 | AI118: 0.004249 | AJ118: 0.005147 | AK118: 0.016086 | AL118: 0.052429 | AM118: 0.075098 | AN118: 0.049284 | AO118: 0.152119 | AP118: 0.181277 | AQ118: 0.304352 | AR118: 0.268076 | AS118: 0.51309 | AT118: 0.78808 | AU118: 0.997664 | AV118: 1.294235 | AW118: 1.871285 | AX118: 2.902758 | AY118: 0.0791 | AZ118: 0.253275 | BA118: 0.157028 | BB118: 0.009916 | BC118: 0.005161 | BD118: 0.013854 | BE118: 0.037128 | BF118: 0.048575 | BG118: 0.033271 | BH118: 0.024399 | BI118: 0.072706 | BJ118: 0.073919 | BK118: 0.124494 | BL118: 0.106758 | BN118: 0 | BO118: 1.5e-05 | BP118: 0.000198 | BQ118: 0.000134 | BR118: 0.025175 | BS118: 0.101451 | BT118: 0.192897 | BU118: 0.905824 | BV118: 3.593069 | BW118: 5.106418 | BX118: 0.185959 | BY118: 0.143373 | BZ118: 0.377877
A119: Ingresos por Remesas | B119: Distribución por Municipio | C119: Chiapas | D119: Chiapa de Corzo | E119: Ene-Mar 2013 - Oct-Dic 2025 | F119: Trimestral | G119: Flujos | H119: Millones de Dólares | K119: Niveles | L119: SE41295 | M119: 0.393003 | N119: 0.475579 | O119: 0.402986 | P119: 0.357883 | Q119: 0.5028 | R119: 0.551427 | S119: 0.338031 | T119: 0.385011 | U119: 0.388787 | V119: 0.397064 | W119: 0.566964 | X119: 0.496649 | Y119: 0.383437 | Z119: 0.231718 | AA119: 0.232633 | AB119: 0.232997 | AC119: 0.235069 | AD119: 0.238419 | AE119: 0.334408 | AF119: 0.322678 | AG119: 0.301952 | AH119: 0.542111 | AI119: 0.396454 | AJ119: 0.46086 | AK119: 0.478196 | AL119: 0.608239 | AM119: 0.609917 | AN119: 0.532912 | AO119: 0.677224 | AP119: 0.832521 | AQ119: 1.032736 | AR119: 0.962821 | AS119: 1.294623 | AT119: 1.862894 | AU119: 2.183156 | AV119: 2.617096 | AW119: 2.991221 | AX119: 4.230856 | AY119: 5.794609 | AZ119: 5.469594 | BA119: 4.313827 | BB119: 4.604165 | BC119: 4.907717 | BD119: 4.362736 | BE119: 3.445146 | BF119: 4.57147 | BG119: 4.354054 | BH119: 4.130218 | BI119: 3.750751 | BJ119: 4.142464 | BK119: 3.991913 | BL119: 3.981695 | BN119: 1.629451 | BO119: 1.777269 | BP119: 1.849464 | BQ119: 1.080785 | BR119: 1.130574 | BS119: 1.701377 | BT119: 2.229264 | BU119: 3.505302 | BV119: 7.957769 | BW119: 18.48628 | BX119: 18.188445 | BY119: 16.500888 | BZ119: 15.866823
A120: Ingresos por Remesas | B120: Distribución por Municipio | C120: Chiapas | D120: Chiapilla | E120: Ene-Mar 2013 - Oct-Dic 2025 | F120: Trimestral | G120: Flujos | H120: Millones de Dólares | K120: Niveles | L120: SE41296 | M120: 0 | N120: 0 | O120: 0 | P120: 0 | Q120: 0 | R120: 0 | S120: 0 | T120: 0 | U120: 0 | V120: 0 | W120: 0 | X120: 0 | Y120: 0 | Z120: 0 | AA120: 0 | AB120: 0 | AC120: 0 | AD120: 0 | AE120: 0 | AF120: 0 | AG120: 0 | AH120: 0 | AI120: 0 | AJ120: 0 | AK120: 0 | AL120: 0.004557 | AM120: 0.102909 | AN120: 0.015726 | AO120: 0.014628 | AP120: 0.014506 | AQ120: 0.032048 | AR120: 0.022147 | AS120: 0.0241 | AT120: 0.02924 | AU120: 0.026907 | AV120: 0.026641 | AW120: 0.041356 | AX120: 0.05572 | AY120: 0 | AZ120: 0 | BA120: 0 | BB120: 0 | BC120: 0 | BD120: 0 | BE120: 0 | BF120: 0 | BG120: 0 | BH120: 0 | BI120: 0 | BJ120: 0 | BK120: 0 | BL120: 0 | BN120: 0 | BO120: 0 | BP120: 0 | BQ120: 0 | BR120: 0 | BS120: 0 | BT120: 0.123192 | BU120: 0.083329 | BV120: 0.106888 | BW120: 0.097076 | BX120: 0 | BY120: 0 | BZ120: 0
A121: Ingresos por Remesas | B121: Distribución por Municipio | C121: Chiapas | D121: Chicoasén | E121: Ene-Mar 2013 - Oct-Dic 2025 | F121: Trimestral | G121: Flujos | H121: Millones de Dólares | K121: Niveles | L121: SE41297 | M121: 0 | N121: 0 | O121: 0 | P121: 0 | Q121: 0 | R121: 0 | S121: 0 | T121: 0 | U121: 0.001527 | V121: 0 | W121: 0 | X121: 0 | Y121: 0 | Z121: 0 | AA121: 0 | AB121: 0 | AC121: 0 | AD121: 0 | AE121: 0 | AF121: 0 | AG121: 0 | AH121: 0 | AI121: 0 | AJ121: 5.9e-05 | AK121: 0 | AL121: 0 | AM121: 0 | AN121: 0.000882 | AO121: 0.003786 | AP121: 0.002669 | AQ121: 0.012018 | AR121: 0.006022 | AS121: 0.007233 | AT121: 0.00744 | AU121: 0.015375 | AV121: 0.020142 | AW121: 0.03539 | AX121: 0.060001 | AY121: 0 | AZ121: 0.000199 | BA121: 0 | BB121: 0 | BC121: 0 | BD121: 0 | BE121: 0 | BF121: 0 | BG121: 0.006177 | BH121: 0.002052 | BI121: 0 | BJ121: 0 | BK121: 0 | BL121: 0 | BN121: 0 | BO121: 0 | BP121: 0.001527 | BQ121: 0 | BR121: 0 | BS121: 5.9e-05 | BT121: 0.000882 | BU121: 0.024495 | BV121: 0.05019 | BW121: 0.09559 | BX121: 0 | BY121: 0.008229 | BZ121: 0
A122: Ingresos por Remesas | B122: Distribución por Municipio | C122: Chiapas | D122: Chicomuselo | E122: Ene-Mar 2013 - Oct-Dic 2025 | F122: Trimestral | G122: Flujos | H122: Millones de Dólares | K122: Niveles | L122: SE41298 | M122: 0.21653 | N122: 0.317068 | O122: 0.248836 | P122: 0.219632 | Q122: 0.161307 | R122: 0.150057 | S122: 0.132997 | T122: 0.173128 | U122: 0.167567 | V122: 0.207107 | W122: 0.256979 | X122: 0.154168 | Y122: 0.224478 | Z122: 0.275165 | AA122: 0.310065 | AB122: 0.283094 | AC122: 0.351872 | AD122: 0.413308 | AE122: 0.420672 | AF122: 0.402611 | AG122: 0.404413 | AH122: 0.437052 | AI122: 0.363577 | AJ122: 0.465057 | AK122: 0.385449 | AL122: 0.600435 | AM122: 0.553671 | AN122: 0.655697 | AO122: 0.829906 | AP122: 0.957566 | AQ122: 1.118888 | AR122: 0.846225 | AS122: 1.019782 | AT122: 1.483721 | AU122: 1.748393 | AV122: 2.27071 | AW122: 2.359152 | AX122: 3.049736 | AY122: 0.454563 | AZ122: 0.386228 | BA122: 0.502358 | BB122: 0.483415 | BC122: 0.487313 | BD122: 0.365262 | BE122: 0.129017 | BF122: 0.157833 | BG122: 0.039774 | BH122: 0.239112 | BI122: 0.308484 | BJ122: 0.331469 | BK122: 0.212844 | BL122: 0.163358 | BN122: 1.002066 | BO122: 0.617489 | BP122: 0.785821 | BQ122: 1.092802 | BR122: 1.588463 | BS122: 1.670099 | BT122: 2.195252 | BU122: 3.752585 | BV122: 6.522606 | BW122: 6.249679 | BX122: 1.838348 | BY122: 0.565736 | BZ122: 1.016155
A123: Ingresos por Remesas | B123: Distribución por Municipio | C123: Chiapas | D123: Chilón | E123: Ene-Mar 2013 - Oct-Dic 2025 | F123: Trimestral | G123: Flujos | H123: Millones de Dólares | K123: Niveles | L123: SE41299 | M123: 0.011148 | N123: 0.017032 | O123: 0.022736 | P123: 0.016361 | Q123: 0.018332 | R123: 0.019801 | S123: 0.013241 | T123: 0.01087 | U123: 0.015466 | V123: 0.012697 | W123: 0.015201 | X123: 0.010906 | Y123: 0.01305 | Z123: 0.020779 | AA123: 0.018661 | AB123: 0.015825 | AC123: 0.014078 | AD123: 0.010375 | AE123: 0.040951 | AF123: 0.035697 | AG123: 0.03636 | AH123: 0.03265 | AI123: 0.048173 | AJ123: 0.024493 | AK123: 0.025611 | AL123: 0.032106 | AM123: 0.140653 | AN123: 0.033634 | AO123: 0.062621 | AP123: 0.078563 | AQ123: 0.150475 | AR123: 0.108194 | AS123: 0.096344 | AT123: 0.107153 | AU123: 0.18836 | AV123: 0.228287 | AW123: 0.281618 | AX123: 0.66464 | AY123: 0.15381 | AZ123: 0.144186 | BA123: 0.157228 | BB123: 0.130892 | BC123: 0.138989 | BD123: 0.100336 | BE123: 0.098516 | BF123: 0.11357 | BG123: 0.129457 | BH123: 0.106719 | BI123: 0.105879 | BJ123: 0.124908 | BK123: 0.122556 | BL123: 0.053183 | BN123: 0.067277 | BO123: 0.062244 | BP123: 0.05427 | BQ123: 0.068315 | BR123: 0.101101 | BS123: 0.141676 | BT123: 0.232004 | BU123: 0.399853 | BV123: 0.620144 | BW123: 1.244254 | BX123: 0.527445 | BY123: 0.448262 | BZ123: 0.406526
A124: Ingresos por Remesas | B124: Distribución por Municipio | C124: Chiapas | D124: Cintalapa | E124: Ene-Mar 2013 - Oct-Dic 2025 | F124: Trimestral | G124: Flujos | H124: Millones de Dólares | K124: Niveles | L124: SE41300 | M124: 1.619293 | N124: 1.751788 | O124: 1.797425 | P124: 1.779351 | Q124: 1.773679 | R124: 2.027044 | S124: 1.616721 | T124: 1.651912 | U124: 1.785234 | V124: 1.940454 | W124: 2.255566 | X124: 2.113093 | Y124: 2.148787 | Z124: 2.621256 | AA124: 2.786148 | AB124: 2.232961 | AC124: 2.342602 | AD124: 2.470892 | AE124: 2.820941 | AF124: 2.43916 | AG124: 2.534611 | AH124: 2.839779 | AI124: 2.979185 | AJ124: 2.797921 | AK124: 2.710372 | AL124: 3.368059 | AM124: 3.686559 | AN124: 3.173242 | AO124: 3.436127 | AP124: 3.197497 | AQ124: 2.960393 | AR124: 3.014516 | AS124: 3.178158 | AT124: 3.764451 | AU124: 4.678811 | AV124: 5.034601 | AW124: 5.220511 | AX124: 6.705692 | AY124: 7.236824 | AZ124: 8.296398 | BA124: 7.94125 | BB124: 9.397956 | BC124: 9.944014 | BD124: 9.448225 | BE124: 8.569927 | BF124: 11.709354 | BG124: 10.473864 | BH124: 8.751009 | BI124: 8.261462 | BJ124: 8.79283 | BK124: 9.192929 | BL124: 8.600793 | BN124: 6.947857 | BO124: 7.069356 | BP124: 8.094347 | BQ124: 9.789152 | BR124: 10.073595 | BS124: 11.151496 | BT124: 12.938232 | BU124: 12.608533 | BV124: 16.656021 | BW124: 27.459425 | BX124: 36.731445 | BY124: 39.504154 | BZ124: 34.848014
A125: Ingresos por Remesas | B125: Distribución por Municipio | C125: Chiapas | D125: Coapilla | E125: Ene-Mar 2013 - Oct-Dic 2025 | F125: Trimestral | G125: Flujos | H125: Millones de Dólares | K125: Niveles | L125: SE41301 | M125: 0 | N125: 0 | O125: 0 | P125: 0 | Q125: 0 | R125: 0 | S125: 0 | T125: 0 | U125: 0 | V125: 0 | W125: 0.0006 | X125: 0.007452 | Y125: 0.001214 | Z125: 0 | AA125: 0 | AB125: 0 | AC125: 0 | AD125: 0 | AE125: 0 | AF125: 0 | AG125: 0.002484 | AH125: 0.002332 | AI125: 0.002998 | AJ125: 0.014297 | AK125: 0.013712 | AL125: 0.027486 | AM125: 0.015778 | AN125: 0.036025 | AO125: 0.060102 | AP125: 0.076059 | AQ125: 0.11412 | AR125: 0.088492 | AS125: 0.153038 | AT125: 0.240642 | AU125: 0.284116 | AV125: 0.36269 | AW125: 0.470484 | AX125: 0.818651 | AY125: 6.2e-05 | AZ125: 0.000659 | BA125: 0.050195 | BB125: 0.023089 | BC125: 0.026992 | BD125: 0.029073 | BE125: 0.008599 | BF125: 0.020015 | BG125: 0.013418 | BH125: 0.010587 | BI125: 0.012037 | BJ125: 0.044261 | BK125: 0.054515 | BL125: 0.053558 | BN125: 0 | BO125: 0 | BP125: 0.008052 | BQ125: 0.001214 | BR125: 0 | BS125: 0.022111 | BT125: 0.093001 | BU125: 0.338773 | BV125: 1.040486 | BW125: 1.289856 | BX125: 0.129349 | BY125: 0.052619 | BZ125: 0.164371
A126: Ingresos por Remesas | B126: Distribución por Municipio | C126: Chiapas | D126: Comitán de Domínguez | E126: Ene-Mar 2013 - Oct-Dic 2025 | F126: Trimestral | G126: Flujos | H126: Millones de Dólares | K126: Niveles | L126: SE41302 | M126: 15.415815 | N126: 17.099064 | O126: 16.732501 | P126: 15.075727 | Q126: 16.695916 | R126: 19.33058 | S126: 14.001799 | T126: 14.912935 | U126: 15.653596 | V126: 15.512297 | W126: 18.69912 | X126: 16.580628 | Y126: 17.352546 | Z126: 17.066845 | AA126: 16.392042 | AB126: 15.348519 | AC126: 17.906935 | AD126: 20.125471 | AE126: 20.881093 | AF126: 20.412325 | AG126: 20.38859 | AH126: 24.929054 | AI126: 26.951578 | AJ126: 27.444225 | AK126: 25.677041 | AL126: 31.253924 | AM126: 30.707827 | AN126: 25.245881 | AO126: 22.989566 | AP126: 23.91568 | AQ126: 28.424339 | AR126: 29.566665 | AS126: 30.801981 | AT126: 38.934183 | AU126: 47.086737 | AV126: 48.378496 | AW126: 55.713783 | AX126: 75.192919 | AY126: 98.182075 | AZ126: 105.589547 | BA126: 109.909463 | BB126: 133.241473 | BC126: 142.377648 | BD126: 129.507591 | BE126: 109.285717 | BF126: 133.271557 | BG126: 137.788978 | BH126: 129.991389 | BI126: 121.326831 | BJ126: 134.871915 | BK126: 143.939363 | BL126: 129.599807 | BN126: 64.323107 | BO126: 64.94123 | BP126: 66.445641 | BQ126: 66.159952 | BR126: 79.325824 | BS126: 99.713447 | BT126: 112.884673 | BU126: 104.89625 | BV126: 165.201397 | BW126: 334.678324 | BX126: 515.036175 | BY126: 510.337641 | BZ126: 529.737916
A127: Ingresos por Remesas | B127: Distribución por Municipio | C127: Chiapas | D127: Copainalá | E127: Ene-Mar 2013 - Oct-Dic 2025 | F127: Trimestral | G127: Flujos | H127: Millones de Dólares | K127: Niveles | L127: SE41303 | M127: 0.927431 | N127: 1.301749 | O127: 1.109983 | P127: 1.038537 | Q127: 1.105761 | R127: 1.389843 | S127: 1.024888 | T127: 1.223631 | U127: 1.412307 | V127: 1.494686 | W127: 1.960253 | X127: 1.745704 | Y127: 1.968355 | Z127: 2.909829 | AA127: 2.945557 | AB127: 2.802962 | AC127: 2.770685 | AD127: 2.915804 | AE127: 2.883992 | AF127: 2.895533 | AG127: 2.885672 | AH127: 3.861276 | AI127: 4.013163 | AJ127: 4.032179 | AK127: 3.744812 | AL127: 4.843423 | AM127: 5.113589 | AN127: 4.758704 | AO127: 4.913228 | AP127: 5.21236 | AQ127: 6.106188 | AR127: 6.358389 | AS127: 6.926237 | AT127: 9.866898 | AU127: 11.036587 | AV127: 12.117152 | AW127: 12.850684 | AX127: 17.851721 | AY127: 21.029939 | AZ127: 20.497496 | BA127: 23.12799 | BB127: 26.450433 | BC127: 27.446213 | BD127: 24.524699 | BE127: 21.094828 | BF127: 26.174217 | BG127: 25.835968 | BH127: 23.861866 | BI127: 23.681861 | BJ127: 28.181476 | BK127: 28.856363 | BL127: 24.277343 | BN127: 4.3777 | BO127: 4.744123 | BP127: 6.61295 | BQ127: 10.626703 | BR127: 11.466014 | BS127: 14.79229 | BT127: 18.460528 | BU127: 22.590165 | BV127: 39.946874 | BW127: 72.22984 | BX127: 101.549335 | BY127: 96.966879 | BZ127: 104.997043
A128: Ingresos por Remesas | B128: Distribución por Municipio | C128: Chiapas | D128: El Bosque | E128: Ene-Mar 2013 - Oct-Dic 2025 | F128: Trimestral | G128: Flujos | H128: Millones de Dólares | K128: Niveles | L128: SE41304 | M128: 0 | N128: 0 | O128: 0 | P128: 0 | Q128: 0 | R128: 0 | S128: 0 | T128: 0 | U128: 0 | V128: 0 | W128: 0 | X128: 0 | Y128: 0 | Z128: 0 | AA128: 0 | AB128: 0 | AC128: 0 | AD128: 0 | AE128: 0 | AF128: 0.000346 | AG128: 0.07495 | AH128: 0.098177 | AI128: 0.098523 | AJ128: 0.106472 | AK128: 0.391042 | AL128: 0.304453 | AM128: 0.260468 | AN128: 0.308641 | AO128: 1.614149 | AP128: 0.926833 | AQ128: 0.849728 | AR128: 0.696077 | AS128: 2.158218 | AT128: 2.038068 | AU128: 1.735019 | AV128: 2.142594 | AW128: 2.962863 | AX128: 2.740394 | AY128: 0.000222 | AZ128: 0.003357 | BA128: 0.001497 | BB128: 0.026554 | BC128: 0.028724 | BD128: 0.006218 | BE128: 0.004426 | BF128: 0.017403 | BG128: 0.022321 | BH128: 0.01638 | BI128: 0.01416 | BJ128: 0.026954 | BK128: 0.018817 | BL128: 0.02814 | BN128: 0 | BO128: 0 | BP128: 0 | BQ128: 0 | BR128: 0.000346 | BS128: 0.378122 | BT128: 1.264604 | BU128: 4.086787 | BV128: 8.073899 | BW128: 5.706836 | BX128: 0.062993 | BY128: 0.06053 | BZ128: 0.088071
A129: Ingresos por Remesas | B129: Distribución por Municipio | C129: Chiapas | D129: El Porvenir | E129: Ene-Mar 2013 - Oct-Dic 2025 | F129: Trimestral | G129: Flujos | H129: Millones de Dólares | K129: Niveles | L129: SE41305 | M129: 0.000801 | N129: 0.000552 | O129: 0.001741 | P129: 0.001144 | Q129: 0.000186 | R129: 0.000395 | S129: 0.001331 | T129: 0.001101 | U129: 0 | V129: 0 | W129: 0 | X129: 0 | Y129: 0 | Z129: 0 | AA129: 0 | AB129: 0 | AC129: 0 | AD129: 0.000281 | AE129: 2.3e-05 | AF129: 9.9e-05 | AG129: 0.009633 | AH129: 0.020272 | AI129: 0.014017 | AJ129: 0.022313 | AK129: 0.024677 | AL129: 0.046345 | AM129: 0.09178 | AN129: 0.089237 | AO129: 0.114564 | AP129: 0.189361 | AQ129: 0.20118 | AR129: 0.158314 | AS129: 0.251729 | AT129: 0.334883 | AU129: 0.35733 | AV129: 0.437929 | AW129: 0.517537 | AX129: 0.774632 | AY129: 0.079754 | AZ129: 0.099904 | BA129: 0.129533 | BB129: 0.155739 | BC129: 0.162454 | BD129: 0.112154 | BE129: 0.034249 | BF129: 0.000151 | BG129: 0.00017 | BH129: 0.011149 | BI129: 0.035616 | BJ129: 0.003084 | BK129: 0.006945 | BL129: 0.005745 | BN129: 0.004238 | BO129: 0.003013 | BP129: 0 | BQ129: 0 | BR129: 0.000403 | BS129: 0.066235 | BT129: 0.252039 | BU129: 0.663419 | BV129: 1.381871 | BW129: 1.471827 | BX129: 0.55988 | BY129: 0.045719 | BZ129: 0.05139
A130: Ingresos por Remesas | B130: Distribución por Municipio | C130: Chiapas | D130: Escuintla | E130: Ene-Mar 2013 - Oct-Dic 2025 | F130: Trimestral | G130: Flujos | H130: Millones de Dólares | K130: Niveles | L130: SE41306 | M130: 1.264041 | N130: 1.536093 | O130: 1.298254 | P130: 1.013193 | Q130: 1.369268 | R130: 1.72675 | S130: 1.373271 | T130: 1.587296 | U130: 1.62457 | V130: 1.963624 | W130: 1.983809 | X130: 2.286793 | Y130: 1.92389 | Z130: 2.140169 | AA130: 2.048003 | AB130: 2.065766 | AC130: 2.131603 | AD130: 2.551895 | AE130: 3.220141 | AF130: 2.795212 | AG130: 2.685664 | AH130: 4.218095 | AI130: 3.692695 | AJ130: 3.666012 | AK130: 3.344849 | AL130: 3.98946 | AM130: 3.848217 | AN130: 3.204579 | AO130: 1.391261 | AP130: 1.99354 | AQ130: 2.305762 | AR130: 2.069965 | AS130: 2.105121 | AT130: 2.663553 | AU130: 2.996661 | AV130: 3.197963 | AW130: 4.975128 | AX130: 7.320858 | AY130: 9.462298 | AZ130: 10.566399 | BA130: 10.028389 | BB130: 12.175811 | BC130: 12.749705 | BD130: 12.507828 | BE130: 10.475095 | BF130: 13.018045 | BG130: 12.733394 | BH130: 12.046606 | BI130: 10.681503 | BJ130: 12.258001 | BK130: 12.554798 | BL130: 11.561763 | BN130: 5.111581 | BO130: 6.056585 | BP130: 7.858796 | BQ130: 8.177828 | BR130: 10.698851 | BS130: 14.262466 | BT130: =SUMIFS($M130:$BL130,$M$9:$BL$9,BT$10) -> 14.387105 | BU130: 7.760528 | BV130: 10.963298 | BW130: 32.324683 | BX130: 47.461733 | BY130: 48.27314 | BZ130: 47.056065
A131: Ingresos por Remesas | B131: Distribución por Municipio | C131: Chiapas | D131: Francisco León | E131: Ene-Mar 2013 - Oct-Dic 2025 | F131: Trimestral | G131: Flujos | H131: Millones de Dólares | K131: Niveles | L131: SE41307 | M131: 0 | N131: 0 | O131: 0 | P131: 0 | Q131: 0 | R131: 0 | S131: 0 | T131: 0 | U131: 0 | V131: 0 | W131: 0 | X131: 0 | Y131: 0 | Z131: 0 | AA131: 0 | AB131: 0 | AC131: 0 | AD131: 0 | AE131: 0 | AF131: 0 | AG131: 0.001479 | AH131: 0.000338 | AI131: 0.005123 | AJ131: 0.01471 | AK131: 0.01773 | AL131: 0.043791 | AM131: 0.034489 | AN131: 0.02528 | AO131: 0.06912 | AP131: 0.091557 | AQ131: 0.109562 | AR131: 0.079336 | AS131: 0.139006 | AT131: 0.164325 | AU131: 0.190711 | AV131: 0.232482 | AW131: 0.357845 | AX131: 0.544964 | AY131: 0 | AZ131: 0 | BA131: 0 | BB131: 0.004009 | BC131: 0 | BD131: 0 | BE131: 0 | BF131: 0 | BG131: 0 | BH131: 0.007991 | BI131: 0.005437 | BJ131: 0.007499 | BK131: 0 | BL131: 0 | BN131: 0 | BO131: 0 | BP131: 0 | BQ131: 0 | BR131: 0 | BS131: 0.02165 | BT131: 0.12129 | BU131: 0.349575 | BV131: 0.726524 | BW131: 0.902809 | BX131: 0.004009 | BY131: 0.007991 | BZ131: 0.012936
A132: Ingresos por Remesas | B132: Distribución por Municipio | C132: Chiapas | D132: Frontera Comalapa | E132: Ene-Mar 2013 - Oct-Dic 2025 | F132: Trimestral | G132: Flujos | H132: Millones de Dólares | K132: Niveles | L132: SE41308 | M132: 9.547968 | N132: 8.968067 | O132: 9.332651 | P132: 9.644461 | Q132: 9.463003 | R132: 10.745811 | S132: 8.067196 | T132: 8.90165 | U132: 9.642675 | V132: 10.387917 | W132: 12.57195 | X132: 11.840028 | Y132: 10.6733 | Z132: 8.857625 | AA132: 9.445736 | AB132: 9.809967 | AC132: 11.806802 | AD132: 12.798419 | AE132: 12.884206 | AF132: 12.579145 | AG132: 11.310319 | AH132: 14.802325 | AI132: 14.863408 | AJ132: 15.595613 | AK132: 15.635658 | AL132: 19.694863 | AM132: 18.031594 | AN132: 15.548836 | AO132: 15.935714 | AP132: 18.101307 | AQ132: 18.760718 | AR132: 20.690236 | AS132: 20.44666 | AT132: 25.452743 | AU132: 28.864348 | AV132: 31.566584 | AW132: 24.210366 | AX132: 29.241318 | AY132: 40.994303 | AZ132: 42.581415 | BA132: 41.596079 | BB132: 45.42622 | BC132: 43.539777 | BD132: 36.151423 | BE132: 26.717906 | BF132: 34.173366 | BG132: 29.651035 | BH132: 28.471333 | BI132: 28.2636 | BJ132: 30.475982 | BK132: 31.641137 | BL132: 32.622425 | BN132: 37.493147 | BO132: 37.17766 | BP132: 44.44257 | BQ132: 38.786628 | BR132: 50.068572 | BS132: 56.571665 | BT132: 68.910951 | BU132: 73.487975 | BV132: 106.330335 | BW132: 137.027402 | BX132: 166.713499 | BY132: 119.01364 | BZ132: 123.003144
A133: Ingresos por Remesas | B133: Distribución por Municipio | C133: Chiapas | D133: Frontera Hidalgo | E133: Ene-Mar 2013 - Oct-Dic 2025 | F133: Trimestral | G133: Flujos | H133: Millones de Dólares | K133: Niveles | L133: SE41309 | M133: 0.104446 | N133: 0.091973 | O133: 0.089532 | P133: 0.071725 | Q133: 0.077084 | R133: 0.100023 | S133: 0.061975 | T133: 0.074572 | U133: 0.12322 | V133: 0.088209 | W133: 0.094024 | X133: 0.094057 | Y133: 0.09078 | Z133: 0.012021 | AA133: 0.036161 | AB133: 0.034195 | AC133: 0.037162 | AD133: 0.024895 | AE133: 0.03503 | AF133: 0.040061 | AG133: 0.039076 | AH133: 0.017894 | AI133: 0.008244 | AJ133: 0.011802 | AK133: 0.023532 | AL133: 0.02803 | AM133: 0.06712 | AN133: 0.092568 | AO133: 0.060748 | AP133: 0.123233 | AQ133: 0.173101 | AR133: 0.091202 | AS133: 0.136392 | AT133: 0.195218 | AU133: 0.239394 | AV133: 0.238446 | AW133: 0.34688 | AX133: 0.518405 | AY133: 0.001656 | AZ133: 0.004225 | BA133: 0.003392 | BB133: 0.012465 | BC133: 0.060139 | BD133: 0.067769 | BE133: 7e-06 | BF133: 1.1e-05 | BG133: 0 | BH133: 9.1e-05 | BI133: 0.000397 | BJ133: 0.00045 | BK133: 0.000279 | BL133: 0.000193 | BN133: 0.357676 | BO133: 0.313654 | BP133: 0.39951 | BQ133: 0.173157 | BR133: 0.137148 | BS133: 0.077016 | BT133: 0.21125 | BU133: 0.448284 | BV133: 0.80945 | BW133: 0.871166 | BX133: 0.143765 | BY133: 0.000109 | BZ133: 0.001319
A134: Ingresos por Remesas | B134: Distribución por Municipio | C134: Chiapas | D134: Huehuetán | E134: Ene-Mar 2013 - Oct-Dic 2025 | F134: Trimestral | G134: Flujos | H134: Millones de Dólares | K134: Niveles | L134: SE41310 | M134: 1.096062 | N134: 0.559983 | O134: 0.47918 | P134: 0.501724 | Q134: 0.636398 | R134: 0.727544 | S134: 0.614621 | T134: 0.722754 | U134: 0.720151 | V134: 0.861363 | W134: 0.919906 | X134: 1.106411 | Y134: 0.836556 | Z134: 0.725491 | AA134: 0.76076 | AB134: 0.852714 | AC134: 0.946768 | AD134: 0.998957 | AE134: 1.032706 | AF134: 1.14936 | AG134: 1.055364 | AH134: 1.295823 | AI134: 1.415479 | AJ134: 1.464771 | AK134: 1.291153 | AL134: 1.638904 | AM134: 1.678108 | AN134: 1.574705 | AO134: 1.566985 | AP134: 1.856977 | AQ134: 2.470297 | AR134: 2.180229 | AS134: 2.193577 | AT134: 2.726032 | AU134: 3.061831 | AV134: 3.232401 | AW134: 3.533973 | AX134: 4.542396 | AY134: 4.001082 | AZ134: 4.723098 | BA134: 3.584879 | BB134: 3.912525 | BC134: 4.325943 | BD134: 4.669335 | BE134: 3.749264 | BF134: 4.505721 | BG134: 4.249635 | BH134: 3.96987 | BI134: 3.482902 | BJ134: 3.822971 | BK134: 3.973704 | BL134: 4.042327 | BN134: 2.636949 | BO134: 2.701317 | BP134: 3.607831 | BQ134: 3.175521 | BR134: 4.127791 | BS134: 5.231437 | BT134: 6.18287 | BU134: 8.074488 | BV134: 11.213841 | BW134: 16.800549 | BX134: 16.492682 | BY134: 16.47449 | BZ134: 15.321904
A135: Ingresos por Remesas | B135: Distribución por Municipio | C135: Chiapas | D135: Huitiupán | E135: Ene-Mar 2013 - Oct-Dic 2025 | F135: Trimestral | G135: Flujos | H135: Millones de Dólares | K135: Niveles | L135: SE41311 | M135: 0 | N135: 0 | O135: 0 | P135: 0 | Q135: 0 | R135: 0 | S135: 0 | T135: 0 | U135: 0 | V135: 0 | W135: 0 | X135: 0 | Y135: 0 | Z135: 0 | AA135: 0 | AB135: 0 | AC135: 0 | AD135: 0 | AE135: 0 | AF135: 0 | AG135: 0.012489 | AH135: 0.025269 | AI135: 0.018663 | AJ135: 0.016847 | AK135: 0.024186 | AL135: 0.038757 | AM135: 0.050212 | AN135: 0.076867 | AO135: 0.232345 | AP135: 0.254168 | AQ135: 0.271343 | AR135: 0.180419 | AS135: 0.281103 | AT135: 0.378334 | AU135: 0.447417 | AV135: 0.47373 | AW135: 0.591602 | AX135: 0.878971 | AY135: 0.000112 | AZ135: 0.001596 | BA135: 0 | BB135: 0 | BC135: 0.027049 | BD135: 0.216506 | BE135: 0.284099 | BF135: 0.394475 | BG135: 0.526099 | BH135: 0.129877 | BI135: 0 | BJ135: 0.009581 | BK135: 0.006796 | BL135: 0.00657 | BN135: 0 | BO135: 0 | BP135: 0 | BQ135: 0 | BR135: 0 | BS135: 0.073268 | BT135: 0.190022 | BU135: 0.938275 | BV135: 1.580584 | BW135: 1.472281 | BX135: 0.243555 | BY135: 1.33455 | BZ135: 0.022947
A136: Ingresos por Remesas | B136: Distribución por Municipio | C136: Chiapas | D136: Huixtán | E136: Ene-Mar 2013 - Oct-Dic 2025 | F136: Trimestral | G136: Flujos | H136: Millones de Dólares | K136: Niveles | L136: SE41312 | M136: 0 | N136: 0 | O136: 0 | P136: 0 | Q136: 0 | R136: 0 | S136: 0 | T136: 0 | U136: 0 | V136: 0 | W136: 0 | X136: 0 | Y136: 0 | Z136: 0 | AA136: 0 | AB136: 0 | AC136: 0 | AD136: 0 | AE136: 0 | AF136: 0 | AG136: 0.000369 | AH136: 0.001166 | AI136: 0 | AJ136: 0.000811 | AK136: 0.00385 | AL136: 0.024012 | AM136: 0.037302 | AN136: 0.055422 | AO136: 0.092472 | AP136: 0.091051 | AQ136: 0.091919 | AR136: 0.068237 | AS136: 0.144571 | AT136: 0.209672 | AU136: 0.265694 | AV136: 0.263288 | AW136: 0.395361 | AX136: 0.561292 | AY136: 0 | AZ136: 0.013945 | BA136: 0 | BB136: 0.131052 | BC136: 0 | BD136: 0 | BE136: 0 | BF136: 0 | BG136: 0 | BH136: 0 | BI136: 0 | BJ136: 0.006856 | BK136: 0.012576 | BL136: 0.008475 | BN136: 0 | BO136: 0 | BP136: 0 | BQ136: 0 | BR136: 0 | BS136: 0.002346 | BT136: 0.120586 | BU136: 0.343679 | BV136: 0.883225 | BW136: 0.970598 | BX136: 0.131052 | BY136: 0 | BZ136: 0.027907
A137: Ingresos por Remesas | B137: Distribución por Municipio | C137: Chiapas | D137: Huixtla | E137: Ene-Mar 2013 - Oct-Dic 2025 | F137: Trimestral | G137: Flujos | H137: Millones de Dólares | K137: Niveles | L137: SE41313 | M137: 6.283846 | N137: 6.703391 | O137: 6.53245 | P137: 7.245486 | Q137: 6.402759 | R137: 7.257137 | S137: 5.19361 | T137: 6.292814 | U137: 6.073312 | V137: 6.699937 | W137: 7.635001 | X137: 7.67629 | Y137: 6.952315 | Z137: 6.444295 | AA137: 5.802857 | AB137: 5.831157 | AC137: 6.477494 | AD137: 6.45793 | AE137: 6.59439 | AF137: 6.217145 | AG137: 5.577597 | AH137: 7.244739 | AI137: 7.032964 | AJ137: 7.346895 | AK137: 6.177611 | AL137: 7.674158 | AM137: 7.342674 | AN137: 6.855305 | AO137: 6.460385 | AP137: 7.676474 | AQ137: 8.630393 | AR137: 8.808085 | AS137: 8.711558 | AT137: 10.806491 | AU137: 12.376067 | AV137: 13.540728 | AW137: 15.496834 | AX137: 16.347411 | AY137: 19.13764 | AZ137: 23.847606 | BA137: 17.081862 | BB137: 18.962297 | BC137: 22.113744 | BD137: 25.133943 | BE137: 18.482209 | BF137: 21.68867 | BG137: 20.070959 | BH137: 20.47836 | BI137: 17.946215 | BJ137: 20.472876 | BK137: 22.089064 | BL137: 21.670152 | BN137: 26.765173 | BO137: 25.14632 | BP137: 28.08454 | BQ137: 25.030624 | BR137: 25.746959 | BS137: 27.202195 | BT137: 28.049748 | BU137: 31.575337 | BV137: 45.434844 | BW137: 74.829491 | BX137: 83.291846 | BY137: 80.720198 | BZ137: 82.178307
A138: Ingresos por Remesas | B138: Distribución por Municipio | C138: Chiapas | D138: Ixhuatán | E138: Ene-Mar 2013 - Oct-Dic 2025 | F138: Trimestral | G138: Flujos | H138: Millones de Dólares | K138: Niveles | L138: SE41314 | M138: 0 | N138: 0 | O138: 0 | P138: 0 | Q138: 0 | R138: 0 | S138: 0 | T138: 0 | U138: 0 | V138: 0 | W138: 0 | X138: 0 | Y138: 0 | Z138: 0 | AA138: 0 | AB138: 0 | AC138: 0 | AD138: 0 | AE138: 0 | AF138: 0 | AG138: 0.00851 | AH138: 0.003622 | AI138: 0.004192 | AJ138: 0.008938 | AK138: 0.013946 | AL138: 0.024187 | AM138: 0.040047 | AN138: 0.056703 | AO138: 0.054149 | AP138: 0.045602 | AQ138: 0.085792 | AR138: 0.068849 | AS138: 0.121041 | AT138: 0.176709 | AU138: 0.212385 | AV138: 0.269847 | AW138: 0.326576 | AX138: 0.521668 | AY138: 0 | AZ138: 0 | BA138: 0 | BB138: 0 | BC138: 0 | BD138: 0 | BE138: 0 | BF138: 0 | BG138: 0 | BH138: 0 | BI138: 0 | BJ138: 0 | BK138: 0 | BL138: 0 | BN138: 0 | BO138: 0 | BP138: 0 | BQ138: 0 | BR138: 0 | BS138: 0.025262 | BT138: 0.134883 | BU138: 0.254392 | BV138: 0.779982 | BW138: 0.848244 | BX138: 0 | BY138: 0 | BZ138: 0
A139: Ingresos por Remesas | B139: Distribución por Municipio | C139: Chiapas | D139: Ixtacomitán | E139: Ene-Mar 2013 - Oct-Dic 2025 | F139: Trimestral | G139: Flujos | H139: Millones de Dólares | K139: Niveles | L139: SE41315 | M139: 0 | N139: 0 | O139: 0 | P139: 0 | Q139: 0 | R139: 0 | S139: 0 | T139: 0 | U139: 0 | V139: 0 | W139: 0 | X139: 0 | Y139: 0 | Z139: 0 | AA139: 0 | AB139: 0 | AC139: 0 | AD139: 0 | AE139: 0 | AF139: 0 | AG139: 0.000193 | AH139: 0.000523 | AI139: 0.010548 | AJ139: 0.000666 | AK139: 0.000498 | AL139: 0.000516 | AM139: 0.005205 | AN139: 0.018123 | AO139: 0.016417 | AP139: 0.005891 | AQ139: 0.009088 | AR139: 0.015052 | AS139: 0.015 | AT139: 0.025489 | AU139: 0.020049 | AV139: 0.021855 | AW139: 0.024946 | AX139: 0.021384 | AY139: 0 | AZ139: 0 | BA139: 0 | BB139: 0 | BC139: 0 | BD139: 0 | BE139: 0 | BF139: 0 | BG139: 0 | BH139: 0 | BI139: 0 | BJ139: 0 | BK139: 0 | BL139: 0 | BN139: 0 | BO139: 0 | BP139: 0 | BQ139: 0 | BR139: 0 | BS139: 0.01193 | BT139: 0.024342 | BU139: 0.046448 | BV139: 0.082393 | BW139: 0.04633 | BX139: 0 | BY139: 0 | BZ139: 0
A140: Ingresos por Remesas | B140: Distribución por Municipio | C140: Chiapas | D140: Ixtapa | E140: Ene-Mar 2013 - Oct-Dic 2025 | F140: Trimestral | G140: Flujos | H140: Millones de Dólares | K140: Niveles | L140: SE41316 | M140: 0.463044 | N140: 1.104258 | O140: 0.647229 | P140: 0.274621 | Q140: 0.271485 | R140: 0.283987 | S140: 0.203641 | T140: 0.239847 | U140: 0.237137 | V140: 0.220167 | W140: 0.236591 | X140: 0.26486 | Y140: 0.251535 | Z140: 0.283144 | AA140: 0.262211 | AB140: 0.275099 | AC140: 0.307279 | AD140: 0.294091 | AE140: 0.281274 | AF140: 0.312213 | AG140: 0.270945 | AH140: 0.330008 | AI140: 0.305686 | AJ140: 0.3397 | AK140: 0.339006 | AL140: 0.393017 | AM140: 0.438182 | AN140: 0.403909 | AO140: 0.422739 | AP140: 0.429447 | AQ140: 0.485472 | AR140: 0.51412 | AS140: 0.534775 | AT140: 0.601911 | AU140: 0.551068 | AV140: 0.675757 | AW140: 0.679747 | AX140: 0.856909 | AY140: 0.633851 | AZ140: 0.829232 | BA140: 0.842805 | BB140: 0.896677 | BC140: 0.856954 | BD140: 0.867376 | BE140: 0.81352 | BF140: 0.950718 | BG140: 0.883159 | BH140: 0.894657 | BI140: 0.802774 | BJ140: 0.494264 | BK140: 0.490249 | BL140: 0.972945 | BN140: 2.489152 | BO140: 0.99896 | BP140: 0.958755 | BQ140: 1.071989 | BR140: 1.194857 | BS140: 1.246339 | BT140: 1.574114 | BU140: 1.851778 | BV140: 2.363511 | BW140: 2.999739 | BX140: 3.463812 | BY140: 3.542054 | BZ140: 2.760232
A141: Ingresos por Remesas | B141: Distribución por Municipio | C141: Chiapas | D141: Ixtapangajoya | E141: Ene-Mar 2013 - Oct-Dic 2025 | F141: Trimestral | G141: Flujos | H141: Millones de Dólares | K141: Niveles | L141: SE41317 | M141: 0 | N141: 0 | O141: 0 | P141: 0 | Q141: 0 | R141: 0 | S141: 0 | T141: 0 | U141: 0 | V141: 0 | W141: 0 | X141: 0 | Y141: 0 | Z141: 0 | AA141: 0 | AB141: 0 | AC141: 0 | AD141: 0 | AE141: 0 | AF141: 0 | AG141: 0 | AH141: 0 | AI141: 0 | AJ141: 0 | AK141: 0.002729 | AL141: 0.001838 | AM141: 0.00426 | AN141: 0.206256 | AO141: 0.028695 | AP141: 0.02783 | AQ141: 0.025792 | AR141: 0.020789 | AS141: 0.029387 | AT141: 0.054641 | AU141: 0.055005 | AV141: 0.058102 | AW141: 0.107016 | AX141: 0.206704 | AY141: 0 | AZ141: 0 | BA141: 0 | BB141: 0 | BC141: 0 | BD141: 0 | BE141: 0 | BF141: 0 | BG141: 0 | BH141: 0 | BI141: 0 | BJ141: 0 | BK141: 0 | BL141: 0 | BN141: 0 | BO141: 0 | BP141: 0 | BQ141: 0 | BR141: 0 | BS141: 0 | BT141: 0.215083 | BU141: 0.103106 | BV141: 0.197135 | BW141: 0.31372 | BX141: 0 | BY141: 0 | BZ141: 0
A142: Ingresos por Remesas | B142: Distribución por Municipio | C142: Chiapas | D142: Jiquipilas | E142: Ene-Mar 2013 - Oct-Dic 2025 | F142: Trimestral | G142: Flujos | H142: Millones de Dólares | K142: Niveles | L142: SE41318 | M142: 0.118558 | N142: 0.166825 | O142: 0.175297 | P142: 0.089852 | Q142: 0.120554 | R142: 0.167137 | S142: 0.152584 | T142: 0.170051 | U142: 0.148086 | V142: 0.079571 | W142: 0.17649 | X142: 0.160744 | Y142: 0.153851 | Z142: 0.256783 | AA142: 0.335468 | AB142: 0.362055 | AC142: 0.426303 | AD142: 0.434675 | AE142: 0.554624 | AF142: 0.557081 | AG142: 0.42924 | AH142: 0.576805 | AI142: 0.598035 | AJ142: 0.54135 | AK142: 0.548669 | AL142: 0.69623 | AM142: 0.807244 | AN142: 0.681624 | AO142: 0.546924 | AP142: 0.252468 | AQ142: 0.719803 | AR142: 0.547019 | AS142: 0.589232 | AT142: 0.767986 | AU142: 0.984874 | AV142: 0.983134 | AW142: 1.205821 | AX142: 1.566912 | AY142: 1.752428 | AZ142: 1.654315 | BA142: 2.017666 | BB142: 2.16561 | BC142: 2.05767 | BD142: 1.674509 | BE142: 1.633447 | BF142: 2.226838 | BG142: 2.008853 | BH142: 1.808966 | BI142: 1.566098 | BJ142: 1.84244 | BK142: 1.832609 | BL142: 1.569338 | BN142: 0.550532 | BO142: 0.610326 | BP142: 0.564891 | BQ142: 1.108157 | BR142: 1.972683 | BS142: 2.14543 | BT142: 2.733767 | BU142: 2.066214 | BV142: 3.325226 | BW142: 6.179476 | BX142: 7.915455 | BY142: 7.678104 | BZ142: 6.810485
A143: Ingresos por Remesas | B143: Distribución por Municipio | C143: Chiapas | D143: Jitotol | E143: Ene-Mar 2013 - Oct-Dic 2025 | F143: Trimestral | G143: Flujos | H143: Millones de Dólares | K143: Niveles | L143: SE41319 | M143: 0 | N143: 0 | O143: 0 | P143: 0 | Q143: 0 | R143: 0 | S143: 0 | T143: 0 | U143: 0 | V143: 0 | W143: 0 | X143: 0 | Y143: 0 | Z143: 0 | AA143: 0 | AB143: 0 | AC143: 0 | AD143: 0 | AE143: 0 | AF143: 0 | AG143: 0.010035 | AH143: 0.007743 | AI143: 0.02521 | AJ143: 0.0361 | AK143: 0.061268 | AL143: 0.107196 | AM143: 0.162737 | AN143: 0.112158 | AO143: 0.466864 | AP143: 0.388127 | AQ143: 0.434339 | AR143: 0.34405 | AS143: 0.656045 | AT143: 0.709836 | AU143: 0.721014 | AV143: 0.982433 | AW143: 1.224328 | AX143: 1.648104 | AY143: 0 | AZ143: 0.001057 | BA143: 0.00201 | BB143: 0.045696 | BC143: 0.041234 | BD143: 0.042567 | BE143: 0.003871 | BF143: 0.017426 | BG143: 0.017598 | BH143: 0.053329 | BI143: 0.022201 | BJ143: 0.094386 | BK143: 0.047457 | BL143: 0.057619 | BN143: 0 | BO143: 0 | BP143: 0 | BQ143: 0 | BR143: 0 | BS143: 0.079088 | BT143: 0.443359 | BU143: 1.63338 | BV143: 3.069328 | BW143: 2.873489 | BX143: 0.131507 | BY143: 0.092224 | BZ143: 0.221663
A144: Ingresos por Remesas | B144: Distribución por Municipio | C144: Chiapas | D144: Juárez | E144: Ene-Mar 2013 - Oct-Dic 2025 | F144: Trimestral | G144: Flujos | H144: Millones de Dólares | K144: Niveles | L144: SE41320 | M144: 0.144455 | N144: 0.177782 | O144: 0.177501 | P144: 0.162947 | Q144: 0.161389 | R144: 0.171642 | S144: 0.159941 | T144: 0.151361 | U144: 0.196508 | V144: 0.185454 | W144: 0.251292 | X144: 0.303045 | Y144: 0.276221 | Z144: 0.434779 | AA144: 0.443257 | AB144: 0.430198 | AC144: 0.513891 | AD144: 0.510743 | AE144: 0.491641 | AF144: 0.480506 | AG144: 0.549198 | AH144: 0.591254 | AI144: 0.540226 | AJ144: 0.593094 | AK144: 0.47197 | AL144: 0.596568 | AM144: 0.5214 | AN144: 0.63758 | AO144: 0.58544 | AP144: 0.580318 | AQ144: 0.650199 | AR144: 0.730425 | AS144: 0.668344 | AT144: 0.687967 | AU144: 0.693309 | AV144: 0.763292 | AW144: 0.627414 | AX144: 0.852906 | AY144: 0.764418 | AZ144: 0.818679 | BA144: 0.810296 | BB144: 1.090333 | BC144: 1.240873 | BD144: 1.172213 | BE144: 1.00441 | BF144: 1.297567 | BG144: 1.408893 | BH144: 1.495783 | BI144: 1.325087 | BJ144: 1.585099 | BK144: 1.654988 | BL144: 1.287556 | BN144: 0.662685 | BO144: 0.644333 | BP144: 0.936299 | BQ144: 1.584455 | BR144: 1.996781 | BS144: 2.273772 | BT144: 2.227518 | BU144: 2.546382 | BV144: 2.812912 | BW144: 3.063417 | BX144: 4.313715 | BY144: 5.206653 | BZ144: 5.85273
A145: Ingresos por Remesas | B145: Distribución por Municipio | C145: Chiapas | D145: La Concordia | E145: Ene-Mar 2013 - Oct-Dic 2025 | F145: Trimestral | G145: Flujos | H145: Millones de Dólares | K145: Niveles | L145: SE41321 | M145: 0.848604 | N145: 0.950205 | O145: 0.823237 | P145: 0.636556 | Q145: 0.851828 | R145: 1.084226 | S145: 0.802722 | T145: 0.858309 | U145: 0.992891 | V145: 1.156516 | W145: 1.193326 | X145: 1.176571 | Y145: 1.106915 | Z145: 1.033474 | AA145: 0.904621 | AB145: 0.920843 | AC145: 1.003748 | AD145: 1.118579 | AE145: 1.205627 | AF145: 1.175053 | AG145: 1.092734 | AH145: 1.427653 | AI145: 1.398427 | AJ145: 1.467052 | AK145: 1.464147 | AL145: 2.058287 | AM145: 1.740969 | AN145: 1.625568 | AO145: 1.700091 | AP145: 2.122383 | AQ145: 2.076558 | AR145: 2.003198 | AS145: 0.865428 | AT145: 1.134759 | AU145: 1.389448 | AV145: 1.60614 | AW145: 3.30182 | AX145: 5.625812 | AY145: 5.882055 | AZ145: 6.753495 | BA145: 7.078727 | BB145: 8.474614 | BC145: 8.695223 | BD145: 8.561083 | BE145: 6.489142 | BF145: 7.452754 | BG145: 5.731479 | BH145: 6.542908 | BI145: 6.131421 | BJ145: 6.955469 | BK145: 7.037117 | BL145: 6.613033 | BN145: 3.258602 | BO145: 3.597085 | BP145: 4.519304 | BQ145: 3.965853 | BR145: 4.503007 | BS145: 5.385866 | BT145: 6.888971 | BU145: 7.90223 | BV145: 4.995775 | BW145: 21.563182 | BX145: 32.809647 | BY145: 26.216283 | BZ145: 26.73704
A146: Ingresos por Remesas | B146: Distribución por Municipio | C146: Chiapas | D146: La Grandeza | E146: Ene-Mar 2013 - Oct-Dic 2025 | F146: Trimestral | G146: Flujos | H146: Millones de Dólares | K146: Niveles | L146: SE41322 | M146: 0 | N146: 0 | O146: 0 | P146: 0 | Q146: 0 | R146: 0 | S146: 0 | T146: 0 | U146: 0 | V146: 0 | W146: 0 | X146: 0 | Y146: 0 | Z146: 0 | AA146: 0 | AB146: 0 | AC146: 0 | AD146: 0 | AE146: 0 | AF146: 0 | AG146: 0.009663 | AH146: 0.009774 | AI146: 0.016011 | AJ146: 0.007509 | AK146: 0.016365 | AL146: 0.042934 | AM146: 0.044163 | AN146: 0.029644 | AO146: 0.093174 | AP146: 0.112206 | AQ146: 0.145988 | AR146: 0.108566 | AS146: 0.177438 | AT146: 0.212684 | AU146: 0.254763 | AV146: 0.341393 | AW146: 0.399233 | AX146: 0.476451 | AY146: 0 | AZ146: 0 | BA146: 0 | BB146: 0 | BC146: 0 | BD146: 0 | BE146: 0 | BF146: 0 | BG146: 0 | BH146: 0 | BI146: 0 | BJ146: 0 | BK146: 0 | BL146: 0.011105 | BN146: 0 | BO146: 0 | BP146: 0 | BQ146: 0 | BR146: 0 | BS146: 0.042957 | BT146: 0.133106 | BU146: 0.459934 | BV146: 0.986278 | BW146: 0.875684 | BX146: 0 | BY146: 0 | BZ146: 0.011105
A147: Ingresos por Remesas | B147: Distribución por Municipio | C147: Chiapas | D147: La Independencia | E147: Ene-Mar 2013 - Oct-Dic 2025 | F147: Trimestral | G147: Flujos | H147: Millones de Dólares | K147: Niveles | L147: SE41323 | M147: 0.098418 | N147: 0.117231 | O147: 0.042937 | P147: 0.003346 | Q147: 0.002194 | R147: 0.000111 | S147: 0.000183 | T147: 0.000785 | U147: 0 | V147: 0 | W147: 0 | X147: 0 | Y147: 0 | Z147: 0 | AA147: 0 | AB147: 9.1e-05 | AC147: 0 | AD147: 0 | AE147: 0 | AF147: 0 | AG147: 0 | AH147: 0.00014 | AI147: 0 | AJ147: 0.003906 | AK147: 0.011488 | AL147: 0.032324 | AM147: 0.07198 | AN147: 0.040794 | AO147: 0.127958 | AP147: 0.191879 | AQ147: 0.256414 | AR147: 0.235858 | AS147: 0.339882 | AT147: 0.463342 | AU147: 0.496366 | AV147: 0.583233 | AW147: 0.836047 | AX147: 1.510065 | AY147: 0.00236 | AZ147: 0.004842 | BA147: 0.10438 | BB147: 0.067704 | BC147: 0.052418 | BD147: 0.030568 | BE147: 0.023125 | BF147: 0.030982 | BG147: 0.040046 | BH147: 0.018998 | BI147: 0.030498 | BJ147: 0.03824 | BK147: 0.033101 | BL147: 0.038895 | BN147: 0.261932 | BO147: 0.003273 | BP147: 0 | BQ147: 9.1e-05 | BR147: 0 | BS147: 0.004046 | BT147: 0.156586 | BU147: 0.812109 | BV147: 1.882823 | BW147: 2.353314 | BX147: 0.25507 | BY147: 0.113151 | BZ147: 0.140734
A148: Ingresos por Remesas | B148: Distribución por Municipio | C148: Chiapas | D148: La Libertad | E148: Ene-Mar 2013 - Oct-Dic 2025 | F148: Trimestral | G148: Flujos | H148: Millones de Dólares | K148: Niveles | L148: SE41324 | M148: 0 | N148: 0 | O148: 0 | P148: 0 | Q148: 0 | R148: 0 | S148: 0 | T148: 0 | U148: 0 | V148: 0 | W148: 0 | X148: 0 | Y148: 0 | Z148: 0 | AA148: 0 | AB148: 0 | AC148: 0 | AD148: 0 | AE148: 0 | AF148: 0 | AG148: 0 | AH148: 0 | AI148: 0 | AJ148: 0 | AK148: 0 | AL148: 0 | AM148: 0 | AN148: 0 | AO148: 0.000565 | AP148: 0.000331 | AQ148: 0.000494 | AR148: 0.00053 | AS148: 0.000181 | AT148: 0.000145 | AU148: 0.000188 | AV148: 0.00068 | AW148: 3e-05 | AX148: 0.001356 | AY148: 0 | AZ148: 0.001383 | BA148: 0 | BB148: 0 | BC148: 0 | BD148: 0.000108 | BE148: 0 | BF148: 0 | BG148: 0 | BH148: 0 | BI148: 0 | BJ148: 0 | BK148: 0 | BL148: 0 | BN148: 0 | BO148: 0 | BP148: 0 | BQ148: 0 | BR148: 0 | BS148: 0 | BT148: 0 | BU148: 0.00192 | BV148: 0.001194 | BW148: 0.002769 | BX148: 0.000108 | BY148: 0 | BZ148: 0
A149: Ingresos por Remesas | B149: Distribución por Municipio | C149: Chiapas | D149: La Trinitaria | E149: Ene-Mar 2013 - Oct-Dic 2025 | F149: Trimestral | G149: Flujos | H149: Millones de Dólares | K149: Niveles | L149: SE41325 | M149: 0.017552 | N149: 0.025724 | O149: 0.019215 | P149: 0.023404 | Q149: 0.023996 | R149: 0.030153 | S149: 0.018317 | T149: 0.019724 | U149: 0.034842 | V149: 0.024125 | W149: 0.022599 | X149: 0.023069 | Y149: 0.028239 | Z149: 0.03346 | AA149: 0.064063 | AB149: 0.089551 | AC149: 0.097414 | AD149: 0.071759 | AE149: 0.064794 | AF149: 0.055188 | AG149: 0.055519 | AH149: 0.073804 | AI149: 0.074524 | AJ149: 0.083152 | AK149: 0.104837 | AL149: 0.252997 | AM149: 0.275689 | AN149: 0.259237 | AO149: 0.692975 | AP149: 0.969912 | AQ149: 1.33002 | AR149: 0.954271 | AS149: 1.447232 | AT149: 1.914179 | AU149: 2.283984 | AV149: 2.485113 | AW149: 2.923429 | AX149: 4.071249 | AY149: 0.15841 | AZ149: 0.142156 | BA149: 0.41025 | BB149: 0.277756 | BC149: 0.39872 | BD149: 0.508524 | BE149: 1.094807 | BF149: 1.174694 | BG149: 0.928866 | BH149: 0.761216 | BI149: 0.729237 | BJ149: 0.830043 | BK149: 0.881736 | BL149: 0.693409 | BN149: 0.085895 | BO149: 0.09219 | BP149: 0.104635 | BQ149: 0.215313 | BR149: 0.289155 | BS149: 0.286999 | BT149: 0.89276 | BU149: 3.947178 | BV149: 8.130508 | BW149: 7.295244 | BX149: 1.59525 | BY149: 3.959583 | BZ149: 3.134425
A150: Ingresos por Remesas | B150: Distribución por Municipio | C150: Chiapas | D150: Larráinzar | E150: Ene-Mar 2013 - Oct-Dic 2025 | F150: Trimestral | G150: Flujos | H150: Millones de Dólares | K150: Niveles | L150: SE41326 | M150: 0 | N150: 0 | O150: 0 | P150: 0 | Q150: 0 | R150: 0 | S150: 0 | T150: 0 | U150: 0 | V150: 0 | W150: 0 | X150: 0 | Y150: 0 | Z150: 0 | AA150: 0 | AB150: 0 | AC150: 0 | AD150: 0 | AE150: 0 | AF150: 0 | AG150: 0.005997 | AH150: 0.006196 | AI150: 0.010574 | AJ150: 0.030018 | AK150: 0.087392 | AL150: 0.101455 | AM150: 0.328192 | AN150: 0.175191 | AO150: 0.812579 | AP150: 0.514061 | AQ150: 0.497314 | AR150: 0.444468 | AS150: 1.061714 | AT150: 1.03031 | AU150: 1.027023 | AV150: 1.236813 | AW150: 1.942791 | AX150: 2.12104 | AY150: 0.008073 | AZ150: 0.009403 | BA150: 0.044641 | BB150: 0.003422 | BC150: 0.012307 | BD150: 0.003418 | BE150: 0.0032 | BF150: 0.044521 | BG150: 0.010563 | BH150: 0.056975 | BI150: 0.045816 | BJ150: 0.037039 | BK150: 0.044089 | BL150: 0.024216 | BN150: 0 | BO150: 0 | BP150: 0 | BQ150: 0 | BR150: 0 | BS150: 0.052785 | BT150: 0.69223 | BU150: 2.268422 | BV150: 4.35586 | BW150: 4.081307 | BX150: 0.063788 | BY150: 0.115259 | BZ150: 0.15116
A151: Ingresos por Remesas | B151: Distribución por Municipio | C151: Chiapas | D151: Las Margaritas | E151: Ene-Mar 2013 - Oct-Dic 2025 | F151: Trimestral | G151: Flujos | H151: Millones de Dólares | K151: Niveles | L151: SE41327 | M151: 1.926902 | N151: 2.496864 | O151: 2.000757 | P151: 1.866241 | Q151: 2.109875 | R151: 2.507647 | S151: 1.968982 | T151: 2.225731 | U151: 2.476122 | V151: 2.457635 | W151: 2.791228 | X151: 2.588913 | Y151: 2.756646 | Z151: 2.604393 | AA151: 2.733308 | AB151: 2.645074 | AC151: 3.070681 | AD151: 3.595715 | AE151: 4.112571 | AF151: 4.116284 | AG151: 4.580145 | AH151: 5.5869 | AI151: 5.984685 | AJ151: 6.167884 | AK151: 6.560417 | AL151: 7.4418 | AM151: 7.926213 | AN151: 7.02068 | AO151: 7.735486 | AP151: 6.855731 | AQ151: 8.157709 | AR151: 9.47172 | AS151: 10.915662 | AT151: 14.21087 | AU151: 17.151632 | AV151: 19.794533 | AW151: 22.340517 | AX151: 30.727912 | AY151: 30.712975 | AZ151: 34.397352 | BA151: 38.62023 | BB151: 40.505554 | BC151: 42.998551 | BD151: 40.54872 | BE151: 36.077949 | BF151: 41.390751 | BG151: 42.525983 | BH151: 40.339205 | BI151: 37.224052 | BJ151: 39.298639 | BK151: 40.302714 | BL151: 36.191877 | BN151: 8.290764 | BO151: 8.812235 | BP151: 10.313898 | BQ151: 10.739421 | BR151: 14.895251 | BS151: 22.319614 | BT151: 28.94911 | BU151: 32.220646 | BV151: 62.072697 | BW151: =SUMIFS($M151:$BL151,$M$9:$BL$9,BW$10) -> 118.178756 | BX151: 162.673055 | BY151: 160.333888 | BZ151: 153.017282
A152: Ingresos por Remesas | B152: Distribución por Municipio | C152: Chiapas | D152: Las Rosas | E152: Ene-Mar 2013 - Oct-Dic 2025 | F152: Trimestral | G152: Flujos | H152: Millones de Dólares | K152: Niveles | L152: SE41328 | M152: 0.201756 | N152: 0.322207 | O152: 0.280899 | P152: 0.234612 | Q152: 0.286653 | R152: 0.382274 | S152: 0.358951 | T152: 0.38319 | U152: 0.370817 | V152: 0.370261 | W152: 0.492524 | X152: 0.480248 | Y152: 0.443931 | Z152: 0.330012 | AA152: 0.530629 | AB152: 0.572923 | AC152: 0.429045 | AD152: 0.53102 | AE152: 0.70139 | AF152: 0.612285 | AG152: 0.693947 | AH152: 0.756363 | AI152: 0.995803 | AJ152: 0.905029 | AK152: 0.991514 | AL152: 1.065928 | AM152: 1.188248 | AN152: 1.002713 | AO152: 1.443506 | AP152: 0.988552 | AQ152: 1.611187 | AR152: 1.397758 | AS152: 1.93514 | AT152: 2.40009 | AU152: 2.465106 | AV152: 2.934266 | AW152: 3.759781 | AX152: 3.410577 | AY152: 3.967743 | AZ152: 4.49339 | BA152: 6.12169 | BB152: 5.061391 | BC152: 5.476357 | BD152: 5.304873 | BE152: 5.584327 | BF152: 5.215203 | BG152: 5.240823 | BH152: 5.673088 | BI152: 6.327374 | BJ152: 5.404727 | BK152: 4.953136 | BL152: 5.534494 | BN152: 1.039474 | BO152: 1.411068 | BP152: 1.71385 | BQ152: 1.877495 | BR152: 2.27374 | BS152: 3.351142 | BT152: 4.248403 | BU152: 5.441003 | BV152: 9.734602 | BW152: 15.631491 | BX152: 21.964311 | BY152: 21.713441 | BZ152: 22.219731
A153: Ingresos por Remesas | B153: Distribución por Municipio | C153: Chiapas | D153: Mapastepec | E153: Ene-Mar 2013 - Oct-Dic 2025 | F153: Trimestral | G153: Flujos | H153: Millones de Dólares | K153: Niveles | L153: SE41329 | M153: 3.465422 | N153: 4.3201 | O153: 4.093739 | P153: 4.172666 | Q153: 3.91683 | R153: 4.606923 | S153: 3.41715 | T153: 3.996689 | U153: 4.104132 | V153: 4.70035 | W153: 5.041521 | X153: 5.263654 | Y153: 5.196376 | Z153: 5.419254 | AA153: 5.23579 | AB153: 5.819128 | AC153: 6.272414 | AD153: 6.460297 | AE153: 6.380745 | AF153: 6.757519 | AG153: 6.627134 | AH153: 7.826554 | AI153: 8.0104 | AJ153: 7.856328 | AK153: 7.07483 | AL153: 8.294971 | AM153: 7.57997 | AN153: 6.865642 | AO153: 6.700951 | AP153: 7.042559 | AQ153: 11.534028 | AR153: 7.92645 | AS153: 8.219956 | AT153: 9.207949 | AU153: 9.723505 | AV153: 9.784604 | AW153: 8.664305 | AX153: 10.410353 | AY153: 11.304851 | AZ153: 12.980893 | BA153: 12.322993 | BB153: 13.9873 | BC153: 14.252505 | BD153: 14.019839 | BE153: 11.154268 | BF153: 14.637847 | BG153: 14.208526 | BH153: 13.929255 | BI153: 13.140284 | BJ153: 16.472231 | BK153: 17.501628 | BL153: 15.865356 | BN153: 16.051927 | BO153: 15.937592 | BP153: 19.109657 | BQ153: 21.670548 | BR153: 25.870975 | BS153: 30.320416 | BT153: 29.815413 | BU153: 33.203988 | BV153: 36.936014 | BW153: 43.360402 | BX153: 54.582637 | BY153: 53.929896 | BZ153: 62.979499
A154: Ingresos por Remesas | B154: Distribución por Municipio | C154: Chiapas | D154: Maravilla Tenejapa | E154: Ene-Mar 2013 - Oct-Dic 2025 | F154: Trimestral | G154: Flujos | H154: Millones de Dólares | K154: Niveles | L154: SE41330 | M154: 0 | N154: 0 | O154: 0 | P154: 0 | Q154: 0 | R154: 0 | S154: 0 | T154: 0 | U154: 0.000181 | V154: 0 | W154: 1.6e-05 | X154: 0 | Y154: 0 | Z154: 0 | AA154: 0 | AB154: 0 | AC154: 0 | AD154: 0.000232 | AE154: 0.002072 | AF154: 0.002223 | AG154: 0.012377 | AH154: 0.038656 | AI154: 0.02768 | AJ154: 0.059276 | AK154: 0.109115 | AL154: 0.283004 | AM154: 0.540897 | AN154: 0.206358 | AO154: 0.656359 | AP154: 0.846694 | AQ154: 1.228061 | AR154: 0.882681 | AS154: 1.312622 | AT154: 1.48283 | AU154: 1.569324 | AV154: 1.581222 | AW154: 1.781561 | AX154: 2.394722 | AY154: 0.004598 | AZ154: 0.009929 | BA154: 0.011549 | BB154: 0.031358 | BC154: 0.008073 | BD154: 0.001057 | BE154: 0.000806 | BF154: 0.008318 | BG154: 0.0197 | BH154: 0.011312 | BI154: 0.029627 | BJ154: 0.018089 | BK154: 0.006416 | BL154: 0.011703 | BN154: 0 | BO154: 0 | BP154: 0.000197 | BQ154: 0 | BR154: 0.004527 | BS154: 0.137989 | BT154: 1.139374 | BU154: 3.613795 | BV154: 5.945998 | BW154: 4.19081 | BX154: 0.052037 | BY154: 0.040136 | BZ154: 0.065835
A155: Ingresos por Remesas | B155: Distribución por Municipio | C155: Chiapas | D155: Marqués de Comillas | E155: Ene-Mar 2013 - Oct-Dic 2025 | F155: Trimestral | G155: Flujos | H155: Millones de Dólares | K155: Niveles | L155: SE41331 | M155: 0.086546 | N155: 0.078544 | O155: 0.102419 | P155: 0.105333 | Q155: 0.083929 | R155: 0.07906 | S155: 0.076273 | T155: 0.085487 | U155: 0.053533 | V155: 0.063105 | W155: 0.06242 | X155: 0.054667 | Y155: 0.075314 | Z155: 0.127816 | AA155: 0.131172 | AB155: 0.18295 | AC155: 0.218107 | AD155: 0.271962 | AE155: 0.214841 | AF155: 0.21344 | AG155: 0.249131 | AH155: 0.310412 | AI155: 0.285096 | AJ155: 0.338185 | AK155: 0.273448 | AL155: 0.256697 | AM155: 0.487923 | AN155: 0.337994 | AO155: 0.416773 | AP155: 0.516904 | AQ155: 0.56779 | AR155: 0.532183 | AS155: 0.637428 | AT155: 0.816545 | AU155: 0.943378 | AV155: 1.317793 | AW155: 1.5227 | AX155: 1.982889 | AY155: 0.864399 | AZ155: 0.803425 | BA155: 0.817604 | BB155: 0.713615 | BC155: 0.753406 | BD155: 0.5665 | BE155: 0.517533 | BF155: 0.667718 | BG155: 0.597785 | BH155: 0.361694 | BI155: 0.378514 | BJ155: 0.402159 | BK155: 0.28842 | BL155: 0.133254 | BN155: 0.372842 | BO155: 0.324749 | BP155: 0.233725 | BQ155: 0.517252 | BR155: 0.91835 | BS155: 1.182824 | BT155: 1.356062 | BU155: 2.03365 | BV155: 3.715144 | BW155: 5.173413 | BX155: 2.851125 | BY155: 2.14473 | BZ155: 1.202347
A156: Ingresos por Remesas | B156: Distribución por Municipio | C156: Chiapas | D156: Mazapa de Madero | E156: Ene-Mar 2013 - Oct-Dic 2025 | F156: Trimestral | G156: Flujos | H156: Millones de Dólares | K156: Niveles | L156: SE41332 | M156: 0 | N156: 0 | O156: 0 | P156: 0 | Q156: 0 | R156: 0 | S156: 0 | T156: 0 | U156: 0 | V156: 0 | W156: 0 | X156: 0 | Y156: 0 | Z156: 0 | AA156: 0 | AB156: 0 | AC156: 0 | AD156: 0 | AE156: 0 | AF156: 0 | AG156: 0.00498 | AH156: 0.011004 | AI156: 0.013283 | AJ156: 0.031908 | AK156: 0.04375 | AL156: 0.069446 | AM156: 0.04838 | AN156: 0.046502 | AO156: 0.118192 | AP156: 0.18264 | AQ156: 0.211842 | AR156: 0.172212 | AS156: 0.235773 | AT156: 0.336616 | AU156: 0.364254 | AV156: 0.56496 | AW156: 0.597699 | AX156: 0.903682 | AY156: 0 | AZ156: 0 | BA156: 0 | BB156: 0 | BC156: 0 | BD156: 0 | BE156: 0 | BF156: 0 | BG156: 0 | BH156: 0 | BI156: 0 | BJ156: 0 | BK156: 0 | BL156: 0 | BN156: 0 | BO156: 0 | BP156: 0 | BQ156: 0 | BR156: 0 | BS156: 0.061175 | BT156: 0.208078 | BU156: 0.684886 | BV156: 1.501603 | BW156: 1.501381 | BX156: 0 | BY156: 0 | BZ156: 0
A157: Ingresos por Remesas | B157: Distribución por Municipio | C157: Chiapas | D157: Mazatán | E157: Ene-Mar 2013 - Oct-Dic 2025 | F157: Trimestral | G157: Flujos | H157: Millones de Dólares | K157: Niveles | L157: SE41333 | M157: 0.260075 | N157: 0.271545 | O157: 0.255455 | P157: 0.202844 | Q157: 0.211705 | R157: 0.219262 | S157: 0.15353 | T157: 0.162803 | U157: 0.175566 | V157: 0.190902 | W157: 0.154865 | X157: 0.20888 | Y157: 0.184117 | Z157: 0.282001 | AA157: 0.273723 | AB157: 0.523442 | AC157: 0.267879 | AD157: 0.228772 | AE157: 0.27608 | AF157: 0.24872 | AG157: 0.244811 | AH157: 0.279225 | AI157: 0.263304 | AJ157: 0.275875 | AK157: 0.233336 | AL157: 0.293712 | AM157: 0.364365 | AN157: 0.374497 | AO157: 0.441468 | AP157: 0.570104 | AQ157: 0.671108 | AR157: 0.488276 | AS157: 0.575464 | AT157: 0.700254 | AU157: 0.813631 | AV157: 0.842965 | AW157: 0.792847 | AX157: 1.062232 | AY157: 0.561093 | AZ157: 0.565018 | BA157: 0.591435 | BB157: 0.58765 | BC157: 0.652381 | BD157: 0.75464 | BE157: 0.669729 | BF157: 0.936064 | BG157: 0.945059 | BH157: 0.843154 | BI157: 0.595474 | BJ157: 0.406115 | BK157: 0.325252 | BL157: 0.320672 | BN157: 0.989919 | BO157: 0.7473 | BP157: 0.730213 | BQ157: 1.263283 | BR157: 1.021451 | BS157: 1.063215 | BT157: 1.26591 | BU157: 2.170956 | BV157: 2.932314 | BW157: 2.98119 | BX157: 2.586106 | BY157: 3.394006 | BZ157: 1.647513
A158: Ingresos por Remesas | B158: Distribución por Municipio | C158: Chiapas | D158: Metapa | E158: Ene-Mar 2013 - Oct-Dic 2025 | F158: Trimestral | G158: Flujos | H158: Millones de Dólares | K158: Niveles | L158: SE41334 | M158: 0 | N158: 0 | O158: 0 | P158: 0 | Q158: 0 | R158: 0 | S158: 0 | T158: 0 | U158: 0 | V158: 0 | W158: 0 | X158: 0 | Y158: 0 | Z158: 0 | AA158: 0 | AB158: 0 | AC158: 0 | AD158: 0 | AE158: 0 | AF158: 0 | AG158: 0 | AH158: 0 | AI158: 0.000593 | AJ158: 0.002503 | AK158: 0.001706 | AL158: 0.000837 | AM158: 0.01269 | AN158: 0.036902 | AO158: 0.032081 | AP158: 0.026807 | AQ158: 0.037028 | AR158: 0.043353 | AS158: 0.040477 | AT158: 0.072253 | AU158: 0.044843 | AV158: 0.118672 | AW158: 0.108925 | AX158: 0.192975 | AY158: 0.023647 | AZ158: 0.030616 | BA158: 0.025628 | BB158: 0.026685 | BC158: 0.027094 | BD158: 0.02474 | BE158: 0.023155 | BF158: 0.033958 | BG158: 0.036263 | BH158: 0.021139 | BI158: 0.013746 | BJ158: 0.016904 | BK158: 0.015162 | BL158: 0.017003 | BN158: 0 | BO158: 0 | BP158: 0 | BQ158: 0 | BR158: 0 | BS158: 0.003096 | BT158: 0.052135 | BU158: 0.139269 | BV158: 0.276245 | BW158: 0.356163 | BX158: 0.104147 | BY158: 0.114515 | BZ158: 0.062815
A159: Ingresos por Remesas | B159: Distribución por Municipio | C159: Chiapas | D159: Mitontic | E159: Ene-Mar 2013 - Oct-Dic 2025 | F159: Trimestral | G159: Flujos | H159: Millones de Dólares | K159: Niveles | L159: SE41335 | M159: 0 | N159: 0 | O159: 0 | P159: 0 | Q159: 0 | R159: 0 | S159: 0 | T159: 0 | U159: 0 | V159: 0 | W159: 0 | X159: 0 | Y159: 0 | Z159: 0 | AA159: 0 | AB159: 0 | AC159: 0 | AD159: 0 | AE159: 0 | AF159: 0 | AG159: 0 | AH159: 0 | AI159: 0 | AJ159: 0 | AK159: 0 | AL159: 0.001219 | AM159: 0.000799 | AN159: 0.011322 | AO159: 0.023201 | AP159: 0.025796 | AQ159: 0.051162 | AR159: 0.033248 | AS159: 0.084514 | AT159: 0.119517 | AU159: 0.128636 | AV159: 0.190987 | AW159: 0.292482 | AX159: 0.504314 | AY159: 0 | AZ159: 0 | BA159: 0 | BB159: 0 | BC159: 0 | BD159: 0 | BE159: 0 | BF159: 0 | BG159: 0 | BH159: 0 | BI159: 0 | BJ159: 0.02525 | BK159: 0.016038 | BL159: 0.019536 | BN159: 0 | BO159: 0 | BP159: 0 | BQ159: 0 | BR159: 0 | BS159: 0 | BT159: 0.01334 | BU159: 0.133407 | BV159: 0.523654 | BW159: 0.796796 | BX159: 0 | BY159: 0 | BZ159: 0.060824
A160: Ingresos por Remesas | B160: Distribución por Municipio | C160: Chiapas | D160: Montecristo de Guerrero | E160: Ene-Mar 2013 - Oct-Dic 2025 | F160: Trimestral | G160: Flujos | H160: Millones de Dólares | K160: Niveles | L160: SE41336 | M160: 0 | N160: 0 | O160: 0 | P160: 0 | Q160: 0 | R160: 0 | S160: 0 | T160: 0 | U160: 0 | V160: 0 | W160: 0 | X160: 0 | Y160: 0 | Z160: 0 | AA160: 0 | AB160: 0 | AC160: 0 | AD160: 0 | AE160: 0 | AF160: 0 | AG160: 0.002052 | AH160: 0.007948 | AI160: 0.011757 | AJ160: 0.010827 | AK160: 0.029249 | AL160: 0.0394 | AM160: 0.06749 | AN160: 0.03083 | AO160: 0.065377 | AP160: 0.085469 | AQ160: 0.128774 | AR160: 0.097597 | AS160: 0.119412 | AT160: 0.219634 | AU160: 0.271297 | AV160: 0.326172 | AW160: 0.32013 | AX160: 0.513352 | AY160: 0.006807 | AZ160: 0 | BA160: 0 | BB160: 0 | BC160: 0 | BD160: 0 | BE160: 0 | BF160: 0 | BG160: 0.013743 | BH160: 0 | BI160: 0 | BJ160: 0 | BK160: 0 | BL160: 0 | BN160: 0 | BO160: 0 | BP160: 0 | BQ160: 0 | BR160: 0 | BS160: 0.032584 | BT160: 0.166969 | BU160: 0.377217 | BV160: 0.936515 | BW160: 0.840289 | BX160: 0 | BY160: 0.013743 | BZ160: 0
A161: Ingresos por Remesas | B161: Distribución por Municipio | C161: Chiapas | D161: Motozintla | E161: Ene-Mar 2013 - Oct-Dic 2025 | F161: Trimestral | G161: Flujos | H161: Millones de Dólares | K161: Niveles | L161: SE41337 | M161: 4.570964 | N161: 5.597242 | O161: 5.156064 | P161: 4.745294 | Q161: 5.035933 | R161: 6.360444 | S161: 4.91566 | T161: 5.965339 | U161: 6.1882 | V161: 6.529357 | W161: 8.129344 | X161: 7.892961 | Y161: 8.179157 | Z161: 8.984583 | AA161: 9.223846 | AB161: 9.478022 | AC161: 10.461006 | AD161: 10.31102 | AE161: 9.942994 | AF161: 10.113609 | AG161: 9.541601 | AH161: 12.525371 | AI161: 12.505589 | AJ161: 12.798033 | AK161: 11.707219 | AL161: 14.312801 | AM161: 14.244447 | AN161: 12.552393 | AO161: 13.478466 | AP161: 15.396628 | AQ161: 15.443022 | AR161: 17.140716 | AS161: 17.285289 | AT161: 21.58043 | AU161: 24.538201 | AV161: 26.68067 | AW161: 24.521946 | AX161: 32.590909 | AY161: 40.202677 | AZ161: 48.057352 | BA161: 48.085645 | BB161: 56.646848 | BC161: 53.886429 | BD161: 47.516297 | BE161: 41.155712 | BF161: 53.329049 | BG161: 50.940255 | BH161: 54.033506 | BI161: 50.68515 | BJ161: 58.447009 | BK161: 60.848507 | BL161: 54.220501 | BN161: 20.069564 | BO161: 22.277376 | BP161: 28.739862 | BQ161: 35.865608 | BR161: 40.828629 | BS161: 47.370594 | BT161: 52.81686 | BU161: 61.458832 | BV161: 90.08459 | BW161: 145.372884 | BX161: 206.135219 | BY161: 199.458522 | BZ161: 224.201167
A162: Ingresos por Remesas | B162: Distribución por Municipio | C162: Chiapas | D162: Nicolás Ruiz | E162: Ene-Mar 2013 - Oct-Dic 2025 | F162: Trimestral | G162: Flujos | H162: Millones de Dólares | K162: Niveles | L162: SE41338 | M162: 0 | N162: 0 | O162: 0 | P162: 0 | Q162: 0 | R162: 0 | S162: 0 | T162: 0 | U162: 0 | V162: 0 | W162: 0 | X162: 0 | Y162: 0 | Z162: 0 | AA162: 0 | AB162: 0 | AC162: 0 | AD162: 0 | AE162: 0 | AF162: 0 | AG162: 0 | AH162: 0 | AI162: 0 | AJ162: 0 | AK162: 0 | AL162: 0.000204 | AM162: 0 | AN162: 0.000696 | AO162: 0.00061 | AP162: 0.000816 | AQ162: 0.001673 | AR162: 0.000949 | AS162: 0.000617 | AT162: 0.010272 | AU162: 0.036297 | AV162: 0.011392 | AW162: 0.022137 | AX162: 0.021643 | AY162: 0 | AZ162: 0 | BA162: 0 | BB162: 0 | BC162: 0 | BD162: 0 | BE162: 0 | BF162: 0 | BG162: 0 | BH162: 0 | BI162: 0 | BJ162: 0 | BK162: 0 | BL162: 0 | BN162: 0 | BO162: 0 | BP162: 0 | BQ162: 0 | BR162: 0 | BS162: 0 | BT162: 0.0009 | BU162: 0.004048 | BV162: 0.058578 | BW162: 0.04378 | BX162: 0 | BY162: 0 | BZ162: 0
A163: Ingresos por Remesas | B163: Distribución por Municipio | C163: Chiapas | D163: Ocosingo | E163: Ene-Mar 2013 - Oct-Dic 2025 | F163: Trimestral | G163: Flujos | H163: Millones de Dólares | K163: Niveles | L163: SE41339 | M163: 1.156893 | N163: 1.376367 | O163: 1.396688 | P163: 1.259346 | Q163: 1.22249 | R163: 1.367561 | S163: 1.139939 | T163: 1.390813 | U163: 1.351336 | V163: 1.628522 | W163: 1.805944 | X163: 1.923456 | Y163: 1.456431 | Z163: 1.794618 | AA163: 1.913717 | AB163: 1.817376 | AC163: 1.383457 | AD163: 2.023697 | AE163: 2.36201 | AF163: 2.252169 | AG163: 2.101966 | AH163: 3.232443 | AI163: 2.896617 | AJ163: 3.240074 | AK163: 3.4525 | AL163: 5.035345 | AM163: 4.127912 | AN163: 3.754237 | AO163: 4.003893 | AP163: 4.958349 | AQ163: 6.109503 | AR163: 5.821703 | AS163: 6.843514 | AT163: 10.073895 | AU163: 14.362104 | AV163: 18.206149 | AW163: 24.524503 | AX163: 33.487199 | AY163: 37.005001 | AZ163: 41.140832 | BA163: 46.737212 | BB163: 55.478897 | BC163: 58.430446 | BD163: 52.855396 | BE163: 46.831559 | BF163: 56.382759 | BG163: 56.632482 | BH163: 52.852503 | BI163: 48.946983 | BJ163: 53.977619 | BK163: 54.918717 | BL163: 51.976638 | BN163: 5.189294 | BO163: 5.120803 | BP163: 6.709258 | BQ163: 6.982142 | BR163: 8.021333 | BS163: 11.4711 | BT163: 16.369994 | BU163: 20.893448 | BV163: 49.485662 | BW163: 136.157535 | BX163: 213.501951 | BY163: 212.699303 | BZ163: 209.819957
A164: Ingresos por Remesas | B164: Distribución por Municipio | C164: Chiapas | D164: Ocotepec | E164: Ene-Mar 2013 - Oct-Dic 2025 | F164: Trimestral | G164: Flujos | H164: Millones de Dólares | K164: Niveles | L164: SE41340 | M164: 0 | N164: 0 | O164: 0 | P164: 0 | Q164: 0 | R164: 0 | S164: 0 | T164: 0 | U164: 0 | V164: 0 | W164: 0 | X164: 0 | Y164: 0 | Z164: 0 | AA164: 0 | AB164: 0 | AC164: 0 | AD164: 0 | AE164: 0 | AF164: 0 | AG164: 0 | AH164: 0.006021 | AI164: 0.011449 | AJ164: 0.00952 | AK164: 0.010978 | AL164: 0.018587 | AM164: 0.016997 | AN164: 0.079876 | AO164: 0.064201 | AP164: 0.087135 | AQ164: 0.194178 | AR164: 0.13722 | AS164: 0.267722 | AT164: 0.396389 | AU164: 0.508064 | AV164: 0.611584 | AW164: 0.867641 | AX164: 1.409282 | AY164: 0 | AZ164: 0 | BA164: 0.024292 | BB164: 0.014333 | BC164: 0.027798 | BD164: 0.057335 | BE164: 0.016822 | BF164: 0.02703 | BG164: 0.041565 | BH164: 0.008568 | BI164: 0.062656 | BJ164: 0.044553 | BK164: 0.059399 | BL164: 0.037574 | BN164: 0 | BO164: 0 | BP164: 0 | BQ164: 0 | BR164: 0 | BS164: 0.02699 | BT164: 0.126438 | BU164: 0.482734 | BV164: 1.783759 | BW164: 2.276923 | BX164: 0.123758 | BY164: 0.093985 | BZ164: 0.204182
A165: Ingresos por Remesas | B165: Distribución por Municipio | C165: Chiapas | D165: Ocozocoautla de Espinosa | E165: Ene-Mar 2013 - Oct-Dic 2025 | F165: Trimestral | G165: Flujos | H165: Millones de Dólares | K165: Niveles | L165: SE41341 | M165: 0.596066 | N165: 0.726261 | O165: 0.70349 | P165: 0.623412 | Q165: 0.587687 | R165: 0.808543 | S165: 0.640704 | T165: 0.702592 | U165: 0.727667 | V165: 0.868415 | W165: 1.009483 | X165: 1.074595 | Y165: 0.822429 | Z165: 0.579241 | AA165: 0.687757 | AB165: 0.786252 | AC165: 0.937017 | AD165: 1.053357 | AE165: 1.207366 | AF165: 1.317532 | AG165: 1.489006 | AH165: 1.925778 | AI165: 1.955817 | AJ165: 2.066611 | AK165: 2.170858 | AL165: 2.674154 | AM165: 2.424417 | AN165: 2.212035 | AO165: 2.571538 | AP165: 2.448563 | AQ165: 2.921921 | AR165: 3.515666 | AS165: 4.36307 | AT165: 5.994802 | AU165: 7.212883 | AV165: 7.954488 | AW165: 10.02019 | AX165: 11.783304 | AY165: 13.480517 | AZ165: 15.159922 | BA165: 14.652651 | BB165: 17.599558 | BC165: 18.176816 | BD165: 17.565072 | BE165: 15.336573 | BF165: 18.437619 | BG165: 16.868667 | BH165: 14.976821 | BI165: 13.395138 | BJ165: 13.895813 | BK165: 13.554308 | BL165: 12.658689 | BN165: 2.649229 | BO165: 2.739526 | BP165: 3.68016 | BQ165: 2.875679 | BR165: 4.515272 | BS165: 7.437212 | BT165: 9.481464 | BU165: 11.457688 | BV165: 25.525243 | BW165: 50.443933 | BX165: 67.994097 | BY165: 65.61968 | BZ165: 53.503948
A166: Ingresos por Remesas | B166: Distribución por Municipio | C166: Chiapas | D166: Ostuacán | E166: Ene-Mar 2013 - Oct-Dic 2025 | F166: Trimestral | G166: Flujos | H166: Millones de Dólares | K166: Niveles | L166: SE41342 | M166: 0.07729 | N166: 0.118755 | O166: 0.091409 | P166: 0.083667 | Q166: 0.065944 | R166: 0.086458 | S166: 0.063881 | T166: 0.073116 | U166: 0.071764 | V166: 0.075392 | W166: 0.071873 | X166: 0.07339 | Y166: 0.080104 | Z166: 0.118283 | AA166: 0.117131 | AB166: 0.119649 | AC166: 0.123554 | AD166: 0.161752 | AE166: 0.152766 | AF166: 0.165204 | AG166: 0.12033 | AH166: 0.170225 | AI166: 0.160048 | AJ166: 0.159585 | AK166: 0.167213 | AL166: 0.208871 | AM166: 0.266679 | AN166: 0.276876 | AO166: 0.1649 | AP166: 0.196864 | AQ166: 0.240398 | AR166: 0.264092 | AS166: 0.220397 | AT166: 0.31619 | AU166: 0.400205 | AV166: 0.456616 | AW166: 0.383587 | AX166: 0.568748 | AY166: 0.428695 | AZ166: 0.439586 | BA166: 0.431743 | BB166: 0.485866 | BC166: 0.48528 | BD166: 0.437131 | BE166: 0.345598 | BF166: 0.437448 | BG166: 0.380336 | BH166: 0.324142 | BI166: 0.253953 | BJ166: 0.293799 | BK166: 0.244733 | BL166: 0.169773 | BN166: 0.371121 | BO166: 0.289399 | BP166: 0.292419 | BQ166: 0.435167 | BR166: 0.603276 | BS166: 0.610188 | BT166: 0.919639 | BU166: 0.866254 | BV166: 1.393408 | BW166: 1.820616 | BX166: 1.84002 | BY166: 1.487524 | BZ166: 0.962258
A167: Ingresos por Remesas | B167: Distribución por Municipio | C167: Chiapas | D167: Osumacinta | E167: Ene-Mar 2013 - Oct-Dic 2025 | F167: Trimestral | G167: Flujos | H167: Millones de Dólares | K167: Niveles | L167: SE41343 | M167: 0 | N167: 0 | O167: 0 | P167: 0 | Q167: 0 | R167: 0 | S167: 0 | T167: 0 | U167: 0 | V167: 0 | W167: 0 | X167: 0 | Y167: 0 | Z167: 0 | AA167: 0 | AB167: 0 | AC167: 0 | AD167: 0 | AE167: 0 | AF167: 0 | AG167: 0 | AH167: 0 | AI167: 0 | AJ167: 0 | AK167: 0 | AL167: 0.007033 | AM167: 0.007546 | AN167: 0.013037 | AO167: 0.007168 | AP167: 0.004174 | AQ167: 0.006066 | AR167: 0.006566 | AS167: 0.013599 | AT167: 0.016277 | AU167: 0.010937 | AV167: 0.020888 | AW167: 0.022524 | AX167: 0.020111 | AY167: 0 | AZ167: 0 | BA167: 0 | BB167: 0 | BC167: 0 | BD167: 0 | BE167: 0 | BF167: 0 | BG167: 0 | BH167: 0 | BI167: 0.005326 | BJ167: 0.066889 | BK167: 0.031184 | BL167: 0.035249 | BN167: 0 | BO167: 0 | BP167: 0 | BQ167: 0 | BR167: 0 | BS167: 0 | BT167: 0.027616 | BU167: 0.023974 | BV167: 0.061701 | BW167: 0.042635 | BX167: 0 | BY167: 0 | BZ167: 0.138648
A168: Ingresos por Remesas | B168: Distribución por Municipio | C168: Chiapas | D168: Oxchuc | E168: Ene-Mar 2013 - Oct-Dic 2025 | F168: Trimestral | G168: Flujos | H168: Millones de Dólares | K168: Niveles | L168: SE41344 | M168: 0 | N168: 0 | O168: 0 | P168: 0 | Q168: 2e-06 | R168: 0 | S168: 0 | T168: 0 | U168: 9.3e-05 | V168: 0.000639 | W168: 0.000367 | X168: 0.000891 | Y168: 0 | Z168: 0 | AA168: 0 | AB168: 0.00029 | AC168: 0.003457 | AD168: 0.003285 | AE168: 0.004927 | AF168: 0.004756 | AG168: 0.00091 | AH168: 0.002306 | AI168: 0.006795 | AJ168: 0.00232 | AK168: 0.001633 | AL168: 0.014706 | AM168: 0.02437 | AN168: 0.10194 | AO168: 0.018548 | AP168: 0.052357 | AQ168: 0.067398 | AR168: 0.046766 | AS168: 0.038797 | AT168: 0.090776 | AU168: 0.125084 | AV168: 0.122544 | AW168: 0.101411 | AX168: 0.237718 | AY168: 0 | AZ168: 0 | BA168: 0 | BB168: 0 | BC168: 0 | BD168: 0 | BE168: 0 | BF168: 0 | BG168: 0 | BH168: 0 | BI168: 0 | BJ168: 0 | BK168: 0 | BL168: 0.001572 | BN168: 0 | BO168: 2e-06 | BP168: 0.00199 | BQ168: 0.00029 | BR168: 0.016425 | BS168: 0.012331 | BT168: 0.142649 | BU168: 0.185069 | BV168: 0.377201 | BW168: 0.339129 | BX168: 0 | BY168: 0 | BZ168: 0.001572
A169: Ingresos por Remesas | B169: Distribución por Municipio | C169: Chiapas | D169: Palenque | E169: Ene-Mar 2013 - Oct-Dic 2025 | F169: Trimestral | G169: Flujos | H169: Millones de Dólares | K169: Niveles | L169: SE41345 | M169: 4.444353 | N169: 5.419713 | O169: 4.994394 | P169: 4.263565 | Q169: 5.340878 | R169: 6.865172 | S169: 3.732482 | T169: 4.395132 | U169: 3.986305 | V169: 3.88456 | W169: 4.474155 | X169: 4.143715 | Y169: 3.081766 | Z169: 2.56212 | AA169: 2.797671 | AB169: 2.655412 | AC169: 2.524187 | AD169: 2.683103 | AE169: 2.993015 | AF169: 3.049734 | AG169: 3.167738 | AH169: 4.09146 | AI169: 4.038469 | AJ169: 4.186124 | AK169: 4.725043 | AL169: 7.246562 | AM169: 5.209535 | AN169: 3.649936 | AO169: 3.140368 | AP169: 3.000627 | AQ169: 4.900439 | AR169: 6.210432 | AS169: 8.403779 | AT169: 10.025742 | AU169: 12.50521 | AV169: 10.664137 | AW169: 12.148971 | AX169: 15.468835 | AY169: 18.444209 | AZ169: 20.660243 | BA169: 21.125193 | BB169: 22.065938 | BC169: 25.737468 | BD169: 21.96608 | BE169: 17.515934 | BF169: 20.039715 | BG169: 19.829484 | BH169: 18.425007 | BI169: 16.6747 | BJ169: 17.552145 | BK169: 18.703799 | BL169: 19.483938 | BN169: 19.122025 | BO169: 20.333664 | BP169: 16.488735 | BQ169: 11.096969 | BR169: 11.250039 | BS169: 15.483791 | BT169: 20.831076 | BU169: 17.251866 | BV169: 41.598868 | BW169: 66.722258 | BX169: 90.894679 | BY169: 75.81014 | BZ169: 72.414582
A170: Ingresos por Remesas | B170: Distribución por Municipio | C170: Chiapas | D170: Pantelhó | E170: Ene-Mar 2013 - Oct-Dic 2025 | F170: Trimestral | G170: Flujos | H170: Millones de Dólares | K170: Niveles | L170: SE41346 | M170: 0 | N170: 0 | O170: 0 | P170: 0 | Q170: 0 | R170: 0 | S170: 0 | T170: 0 | U170: 0 | V170: 0 | W170: 0 | X170: 0 | Y170: 0 | Z170: 0 | AA170: 0 | AB170: 0 | AC170: 0 | AD170: 0 | AE170: 0 | AF170: 0 | AG170: 0 | AH170: 0 | AI170: 9.8e-05 | AJ170: 0.001921 | AK170: 0.001303 | AL170: 0.030616 | AM170: 0.053424 | AN170: 0.056033 | AO170: 0.151 | AP170: 0.2095 | AQ170: 0.28698 | AR170: 0.267549 | AS170: 0.480947 | AT170: 0.768137 | AU170: 0.886348 | AV170: 1.259728 | AW170: 1.541111 | AX170: 2.451432 | AY170: 0 | AZ170: 0 | BA170: 0 | BB170: 0 | BC170: 0.029299 | BD170: 0.018178 | BE170: 0.006498 | BF170: 0.017194 | BG170: 0.01695 | BH170: 0 | BI170: 0 | BJ170: 0 | BK170: 0 | BL170: 0 | BN170: 0 | BO170: 0 | BP170: 0 | BQ170: 0 | BR170: 0 | BS170: 0.002019 | BT170: 0.141376 | BU170: 0.915029 | BV170: 3.39516 | BW170: 3.992543 | BX170: 0.047477 | BY170: 0.040642 | BZ170: 0
A171: Ingresos por Remesas | B171: Distribución por Municipio | C171: Chiapas | D171: Pantepec | E171: Ene-Mar 2013 - Oct-Dic 2025 | F171: Trimestral | G171: Flujos | H171: Millones de Dólares | K171: Niveles | L171: SE41347 | M171: 0 | N171: 0 | O171: 0 | P171: 0 | Q171: 0 | R171: 0 | S171: 0 | T171: 0 | U171: 0 | V171: 0 | W171: 0 | X171: 0 | Y171: 0 | Z171: 0 | AA171: 0 | AB171: 0 | AC171: 0 | AD171: 0 | AE171: 0 | AF171: 0 | AG171: 0.003065 | AH171: 0.0075 | AI171: 0.007892 | AJ171: 0.008869 | AK171: 0.011186 | AL171: 0.021109 | AM171: 0.019207 | AN171: 0.018948 | AO171: 0.025683 | AP171: 0.052966 | AQ171: 0.060076 | AR171: 0.069629 | AS171: 0.076332 | AT171: 0.103435 | AU171: 0.126537 | AV171: 0.189684 | AW171: 0.280845 | AX171: 0.570012 | AY171: 0 | AZ171: 0 | BA171: 0.035944 | BB171: 0 | BC171: 0.002984 | BD171: 0 | BE171: 0 | BF171: 0 | BG171: 0 | BH171: 0 | BI171: 0 | BJ171: 0 | BK171: 0 | BL171: 0 | BN171: 0 | BO171: 0 | BP171: 0 | BQ171: 0 | BR171: 0 | BS171: 0.027326 | BT171: 0.07045 | BU171: 0.208354 | BV171: 0.495988 | BW171: 0.850857 | BX171: 0.038928 | BY171: 0 | BZ171: 0
A172: Ingresos por Remesas | B172: Distribución por Municipio | C172: Chiapas | D172: Pichucalco | E172: Ene-Mar 2013 - Oct-Dic 2025 | F172: Trimestral | G172: Flujos | H172: Millones de Dólares | K172: Niveles | L172: SE41348 | M172: 0.530004 | N172: 0.683976 | O172: 0.682012 | P172: 0.505458 | Q172: 0.488635 | R172: 0.542212 | S172: 0.423455 | T172: 0.49487 | U172: 0.502332 | V172: 0.533875 | W172: 0.662317 | X172: 0.59172 | Y172: 0.553434 | Z172: 0.597145 | AA172: 0.66487 | AB172: 0.758886 | AC172: 0.813131 | AD172: 0.86043 | AE172: 0.884137 | AF172: 0.857794 | AG172: 0.858151 | AH172: 1.116235 | AI172: 1.023925 | AJ172: 1.059885 | AK172: 0.871775 | AL172: 1.101581 | AM172: 1.119019 | AN172: 1.04206 | AO172: 1.458459 | AP172: 1.641549 | AQ172: 2.778813 | AR172: 2.294448 | AS172: 2.28121 | AT172: 3.199746 | AU172: 3.573728 | AV172: 3.960269 | AW172: 3.507647 | AX172: 4.111969 | AY172: 4.451437 | AZ172: 4.556498 | BA172: 4.817575 | BB172: 5.834511 | BC172: 5.722584 | BD172: 4.770679 | BE172: 4.382342 | BF172: 5.246519 | BG172: 5.372788 | BH172: 5.160898 | BI172: 4.614992 | BJ172: 5.225186 | BK172: 5.292554 | BL172: 4.653656 | BN172: 2.40145 | BO172: 1.949172 | BP172: 2.290244 | BQ172: 2.574335 | BR172: 3.415492 | BS172: 4.058196 | BT172: 4.134435 | BU172: 8.173269 | BV172: 13.014953 | BW172: 16.627551 | BX172: 21.145349 | BY172: 20.162547 | BZ172: =SUMIFS($M172:$BL172,$M$9:$BL$9,BZ$10) -> 19.786388
A173: Ingresos por Remesas | B173: Distribución por Municipio | C173: Chiapas | D173: Pijijiapan | E173: Ene-Mar 2013 - Oct-Dic 2025 | F173: Trimestral | G173: Flujos | H173: Millones de Dólares | K173: Niveles | L173: SE41349 | M173: 3.03297 | N173: 3.817592 | O173: 3.13894 | P173: 2.831378 | Q173: 3.132023 | R173: 3.224332 | S173: 2.34392 | T173: 2.670147 | U173: 2.849495 | V173: 2.910936 | W173: 2.974914 | X173: 3.139215 | Y173: 3.224653 | Z173: 3.27582 | AA173: 2.978951 | AB173: 2.997094 | AC173: 3.100996 | AD173: 3.160531 | AE173: 2.95751 | AF173: 3.098654 | AG173: 2.746582 | AH173: 3.588517 | AI173: 3.33633 | AJ173: 3.41818 | AK173: 3.072839 | AL173: 3.577293 | AM173: 3.391201 | AN173: 2.997536 | AO173: 2.896295 | AP173: 3.024131 | AQ173: 3.003533 | AR173: 3.44337 | AS173: 3.443704 | AT173: 4.671046 | AU173: 4.775008 | AV173: 5.380829 | AW173: 5.416068 | AX173: 6.513217 | AY173: 6.582031 | AZ173: 8.450355 | BA173: 6.232156 | BB173: 7.000566 | BC173: 8.112219 | BD173: 7.615126 | BE173: 6.136338 | BF173: 7.132468 | BG173: 5.938724 | BH173: 5.519036 | BI173: 4.926079 | BJ173: 4.718614 | BK173: 4.61557 | BL173: 5.255384 | BN173: 12.82088 | BO173: 11.370422 | BP173: 11.87456 | BQ173: 12.476518 | BR173: 12.317691 | BS173: 13.089609 | BT173: 13.038869 | BU173: 12.367329 | BV173: 18.270587 | BW173: 26.961671 | BX173: 28.960067 | BY173: 24.726566 | BZ173: 19.515647
A174: Ingresos por Remesas | B174: Distribución por Municipio | C174: Chiapas | D174: Pueblo Nuevo Solistahuacán | E174: Ene-Mar 2013 - Oct-Dic 2025 | F174: Trimestral | G174: Flujos | H174: Millones de Dólares | K174: Niveles | L174: SE41350 | M174: 0.628621 | N174: 0.537461 | O174: 0.551178 | P174: 0.445485 | Q174: 0.560556 | R174: 0.650727 | S174: 0.555902 | T174: 0.604849 | U174: 0.716065 | V174: 0.849964 | W174: 1.046623 | X174: 0.86083 | Y174: 0.968197 | Z174: 0.926497 | AA174: 0.794855 | AB174: 0.84086 | AC174: 0.838949 | AD174: 0.990585 | AE174: 1.115196 | AF174: 1.374795 | AG174: 1.814029 | AH174: 2.20626 | AI174: 2.407769 | AJ174: 1.577299 | AK174: 1.735349 | AL174: 2.553333 | AM174: 2.361818 | AN174: 2.176855 | AO174: 2.744046 | AP174: 2.598949 | AQ174: 3.097711 | AR174: 3.282197 | AS174: 3.918205 | AT174: 5.236306 | AU174: 5.875555 | AV174: 6.184355 | AW174: 6.218449 | AX174: 8.286145 | AY174: 9.45779 | AZ174: 9.961833 | BA174: 11.356856 | BB174: 13.940402 | BC174: 14.820327 | BD174: 12.829416 | BE174: 11.201968 | BF174: 14.144641 | BG174: 13.493532 | BH174: 12.916006 | BI174: 11.822939 | BJ174: 13.408674 | BK174: 12.975442 | BL174: 11.387255 | BN174: =SUMIFS($M174:$BL174,$M$9:$BL$9,BN$10) -> 2.162745 | BO174: 2.372034 | BP174: 3.473482 | BQ174: 3.530409 | BR174: 4.319525 | BS174: 8.005357 | BT174: 8.827355 | BU174: 11.722903 | BV174: 21.214421 | BW174: 33.924217 | BX174: 52.947001 | BY174: 51.756147 | BZ174: 49.59431
A175: Ingresos por Remesas | B175: Distribución por Municipio | C175: Chiapas | D175: Rayón | E175: Ene-Mar 2013 - Oct-Dic 2025 | F175: Trimestral | G175: Flujos | H175: Millones de Dólares | K175: Niveles | L175: SE41351 | M175: 0 | N175: 0 | O175: 0 | P175: 0 | Q175: 0 | R175: 0 | S175: 0 | T175: 0 | U175: 0 | V175: 0 | W175: 0 | X175: 0 | Y175: 0 | Z175: 0 | AA175: 0 | AB175: 0 | AC175: 0 | AD175: 0 | AE175: 0 | AF175: 0 | AG175: 0 | AH175: 0.005833 | AI175: 0.013789 | AJ175: 0.017206 | AK175: 0.012127 | AL175: 0.018969 | AM175: 0.009409 | AN175: 0.011294 | AO175: 0.014787 | AP175: 0.01637 | AQ175: 0.024482 | AR175: 0.017916 | AS175: 0.032115 | AT175: 0.078003 | AU175: 0.11217 | AV175: 0.108349 | AW175: 0.160647 | AX175: 0.266568 | AY175: 0.046684 | AZ175: 0.089879 | BA175: 0.07795 | BB175: 0.020931 | BC175: 0.114794 | BD175: 0.093082 | BE175: 0.131705 | BF175: 0.144693 | BG175: 0.142266 | BH175: 0.131101 | BI175: 0.165132 | BJ175: 0.154251 | BK175: 0.126293 | BL175: 0.083747 | BN175: 0 | BO175: 0 | BP175: 0 | BQ175: 0 | BR175: 0 | BS175: 0.036828 | BT175: 0.051799 | BU175: 0.073555 | BV175: 0.330637 | BW175: 0.563778 | BX175: 0.306757 | BY175: 0.549765 | BZ175: 0.529423
A176: Ingresos por Remesas | B176: Distribución por Municipio | C176: Chiapas | D176: Reforma | E176: Ene-Mar 2013 - Oct-Dic 2025 | F176: Trimestral | G176: Flujos | H176: Millones de Dólares | K176: Niveles | L176: SE41352 | M176: 0.343662 | N176: 0.44044 | O176: 0.433762 | P176: 0.441504 | Q176: 0.363206 | R176: 0.459179 | S176: 0.382001 | T176: 0.435898 | U176: 0.418179 | V176: 0.472933 | W176: 0.493081 | X176: 0.584862 | Y176: 0.423787 | Z176: 0.41953 | AA176: 0.436675 | AB176: 0.460537 | AC176: 0.347562 | AD176: 0.485897 | AE176: 0.599459 | AF176: 0.523555 | AG176: 0.488144 | AH176: 0.718736 | AI176: 0.568958 | AJ176: 0.607387 | AK176: 0.518967 | AL176: 0.686758 | AM176: 0.700885 | AN176: 0.9173 | AO176: 0.516811 | AP176: 0.688901 | AQ176: 1.00542 | AR176: 0.934741 | AS176: 1.000087 | AT176: 1.094348 | AU176: 1.30153 | AV176: 1.020315 | AW176: 1.006047 | AX176: 1.096321 | AY176: 1.034654 | AZ176: 1.070704 | BA176: 1.479284 | BB176: 1.9011 | BC176: 1.897141 | BD176: 1.78311 | BE176: 1.329229 | BF176: 1.645107 | BG176: 1.650516 | BH176: 1.596276 | BI176: 1.120844 | BJ176: 1.151729 | BK176: 1.260744 | BL176: 1.461058 | BN176: 1.659368 | BO176: 1.640284 | BP176: 1.969055 | BQ176: 1.740529 | BR176: 1.956473 | BS176: 2.383225 | BT176: 2.82391 | BU176: 3.145873 | BV176: 4.41628 | BW176: 4.207726 | BX176: 7.060635 | BY176: 6.221128 | BZ176: 4.994375
A177: Ingresos por Remesas | B177: Distribución por Municipio | C177: Chiapas | D177: Sabanilla | E177: Ene-Mar 2013 - Oct-Dic 2025 | F177: Trimestral | G177: Flujos | H177: Millones de Dólares | K177: Niveles | L177: SE41353 | M177: 0 | N177: 0 | O177: 0 | P177: 0 | Q177: 0 | R177: 0 | S177: 0 | T177: 0 | U177: 0 | V177: 0 | W177: 0 | X177: 0 | Y177: 0 | Z177: 0 | AA177: 0 | AB177: 0 | AC177: 0 | AD177: 0 | AE177: 0 | AF177: 0 | AG177: 0.00355 | AH177: 0.001272 | AI177: 0.000179 | AJ177: 0.004682 | AK177: 0.01162 | AL177: 0.006782 | AM177: 0.287711 | AN177: 0.0222 | AO177: 0.057999 | AP177: 0.098827 | AQ177: 0.070314 | AR177: 0.039912 | AS177: 0.0514 | AT177: 0.068804 | AU177: 0.082628 | AV177: 0.081116 | AW177: 0.10348 | AX177: 0.202654 | AY177: 0 | AZ177: 0 | BA177: 0 | BB177: 0 | BC177: 0 | BD177: 0 | BE177: 0 | BF177: 0 | BG177: 0 | BH177: 0 | BI177: 0 | BJ177: 0 | BK177: 0 | BL177: 0 | BN177: 0 | BO177: 0 | BP177: 0 | BQ177: 0 | BR177: 0 | BS177: 0.009683 | BT177: 0.328313 | BU177: 0.267052 | BV177: 0.283948 | BW177: 0.306134 | BX177: 0 | BY177: 0 | BZ177: 0
A178: Ingresos por Remesas | B178: Distribución por Municipio | C178: Chiapas | D178: Salto de Agua | E178: Ene-Mar 2013 - Oct-Dic 2025 | F178: Trimestral | G178: Flujos | H178: Millones de Dólares | K178: Niveles | L178: SE41354 | M178: 0.028781 | N178: 0.041146 | O178: 0.03385 | P178: 0.030743 | Q178: 0.023171 | R178: 0.030816 | S178: 0.022571 | T178: 0.005872 | U178: 0.018297 | V178: 0.021373 | W178: 0.011851 | X178: 0.007937 | Y178: 0.014553 | Z178: 0.024417 | AA178: 0.038501 | AB178: 0.028931 | AC178: 0.031509 | AD178: 0.036317 | AE178: 0.035005 | AF178: 0.038556 | AG178: 0.035146 | AH178: 0.045486 | AI178: 0.048559 | AJ178: 0.054798 | AK178: 0.042463 | AL178: 0.058066 | AM178: 0.161791 | AN178: 0.077407 | AO178: 0.074144 | AP178: 0.049317 | AQ178: 0.093683 | AR178: 0.101419 | AS178: 0.151173 | AT178: 0.145619 | AU178: 0.212389 | AV178: 0.194757 | AW178: 0.302474 | AX178: 0.4689 | AY178: 0.108051 | AZ178: 0.133234 | BA178: 0.175595 | BB178: 0.176324 | BC178: 0.200914 | BD178: 0.19447 | BE178: 0.190385 | BF178: 0.233042 | BG178: 0.231271 | BH178: 0.214657 | BI178: 0.213101 | BJ178: 0.194515 | BK178: 0.180912 | BL178: 0.166556 | BN178: 0.13452 | BO178: 0.08243 | BP178: 0.059458 | BQ178: 0.106402 | BR178: 0.141387 | BS178: 0.183989 | BT178: 0.339727 | BU178: 0.318563 | BV178: 0.703938 | BW178: 1.012659 | BX178: 0.747303 | BY178: 0.869355 | BZ178: 0.755084
A179: Ingresos por Remesas | B179: Distribución por Municipio | C179: Chiapas | D179: San Andrés Duraznal | E179: Ene-Mar 2013 - Oct-Dic 2025 | F179: Trimestral | G179: Flujos | H179: Millones de Dólares | K179: Niveles | L179: SE41355 | M179: 0 | N179: 0 | O179: 0 | P179: 0 | Q179: 0 | R179: 0 | S179: 0 | T179: 0 | U179: 0 | V179: 0 | W179: 0 | X179: 0 | Y179: 0 | Z179: 0 | AA179: 0 | AB179: 0 | AC179: 0 | AD179: 0 | AE179: 0 | AF179: 0 | AG179: 0.001252 | AH179: 0.002939 | AI179: 0.002349 | AJ179: 0.00155 | AK179: 0.010013 | AL179: 0.042294 | AM179: 0.214819 | AN179: 0.093391 | AO179: 0.175873 | AP179: 0.214071 | AQ179: 0.237067 | AR179: 0.205665 | AS179: 0.302337 | AT179: 0.48345 | AU179: 0.563387 | AV179: 0.544745 | AW179: 0.664741 | AX179: 0.888816 | AY179: 0 | AZ179: 0 | BA179: 0 | BB179: 0 | BC179: 0 | BD179: 0.022953 | BE179: 0.000902 | BF179: 0.00215 | BG179: 0.00319 | BH179: 0 | BI179: 0 | BJ179: 0 | BK179: 0 | BL179: 0 | BN179: 0 | BO179: 0 | BP179: 0 | BQ179: 0 | BR179: 0 | BS179: 0.00809 | BT179: 0.360517 | BU179: 0.832676 | BV179: 1.893919 | BW179: 1.553557 | BX179: 0.022953 | BY179: 0.006242 | BZ179: 0
A180: Ingresos por Remesas | B180: Distribución por Municipio | C180: Chiapas | D180: San Cristóbal de las Casas | E180: Ene-Mar 2013 - Oct-Dic 2025 | F180: Trimestral | G180: Flujos | H180: Millones de Dólares | K180: Niveles | L180: SE41356 | M180: 11.660816 | N180: 14.197286 | O180: 14.741 | P180: 13.219617 | Q180: 14.500257 | R180: 16.340878 | S180: 13.090973 | T180: 14.251353 | U180: 14.649921 | V180: 14.345557 | W180: 18.079989 | X180: 16.254888 | Y180: 16.093512 | Z180: 16.496601 | AA180: 15.494364 | AB180: 14.976886 | AC180: 16.160834 | AD180: 15.941454 | AE180: 16.783575 | AF180: 18.572953 | AG180: 19.901067 | AH180: 25.002848 | AI180: 27.816793 | AJ180: 29.574679 | AK180: 29.224597 | AL180: 36.099449 | AM180: 36.910098 | AN180: 33.278535 | AO180: 34.312416 | AP180: 33.683821 | AQ180: 44.122057 | AR180: 50.852544 | AS180: 53.517599 | AT180: 68.803699 | AU180: 77.846716 | AV180: 80.400613 | AW180: 90.325383 | AX180: 118.565011 | AY180: 165.29147 | AZ180: 172.261056 | BA180: 194.457321 | BB180: 228.218039 | BC180: 244.574232 | BD180: 219.790645 | BE180: 197.479506 | BF180: 235.365029 | BG180: 242.557289 | BH180: 233.274917 | BI180: 216.603761 | BJ180: 241.189981 | BK180: 248.864114 | BL180: 221.399358 | BN180: 53.818719 | BO180: 58.183461 | BP180: 63.330355 | BQ180: 63.061363 | BR180: 67.458816 | BS180: 102.295387 | BT180: 135.512679 | BU180: 162.970838 | BV180: 280.568627 | BW180: 546.44292 | BX180: 887.040237 | BY180: 908.676741 | BZ180: 928.057214
A181: Ingresos por Remesas | B181: Distribución por Municipio | C181: Chiapas | D181: San Fernando | E181: Ene-Mar 2013 - Oct-Dic 2025 | F181: Trimestral | G181: Flujos | H181: Millones de Dólares | K181: Niveles | L181: SE41357 | M181: 0.080939 | N181: 0.064517 | O181: 0.056081 | P181: 0.058635 | Q181: 0.080952 | R181: 0.069353 | S181: 0.050501 | T181: 0.049681 | U181: 0.063275 | V181: 0.045428 | W181: 0.087465 | X181: 0.065384 | Y181: 0.059891 | Z181: 0.089257 | AA181: 0.094811 | AB181: 0.084862 | AC181: 0.092353 | AD181: 0.083603 | AE181: 0.104724 | AF181: 0.101983 | AG181: 0.084842 | AH181: 0.09318 | AI181: 0.064221 | AJ181: 0.067128 | AK181: 0.065238 | AL181: 0.071747 | AM181: 0.074916 | AN181: 0.098191 | AO181: 0.080792 | AP181: 0.079038 | AQ181: 0.123443 | AR181: 0.230368 | AS181: 0.114779 | AT181: 0.188193 | AU181: 0.195733 | AV181: 0.181932 | AW181: 0.195463 | AX181: 0.281703 | AY181: 0.197312 | AZ181: 0.211126 | BA181: 0.105732 | BB181: 0.127505 | BC181: 0.176515 | BD181: 0.205407 | BE181: 0.17958 | BF181: 0.197713 | BG181: 0.171857 | BH181: 0.168012 | BI181: 0.124159 | BJ181: 0.118117 | BK181: 0.138756 | BL181: 0.180803 | BN181: 0.260172 | BO181: 0.250487 | BP181: 0.261552 | BQ181: 0.328821 | BR181: 0.382663 | BS181: 0.309371 | BT181: 0.310092 | BU181: 0.513641 | BV181: 0.680637 | BW181: 0.885604 | BX181: 0.615159 | BY181: 0.717162 | BZ181: 0.561835
A182: Ingresos por Remesas | B182: Distribución por Municipio | C182: Chiapas | D182: San Juan Cancuc | E182: Ene-Mar 2013 - Oct-Dic 2025 | F182: Trimestral | G182: Flujos | H182: Millones de Dólares | K182: Niveles | L182: SE41358 | M182: 0 | N182: 0 | O182: 0 | P182: 0 | Q182: 0 | R182: 0 | S182: 0 | T182: 0 | U182: 0 | V182: 0 | W182: 0 | X182: 0 | Y182: 0 | Z182: 0 | AA182: 0 | AB182: 0 | AC182: 0 | AD182: 0 | AE182: 0 | AF182: 0 | AG182: 0 | AH182: 0 | AI182: 0 | AJ182: 0 | AK182: 0 | AL182: 0 | AM182: 0.00565 | AN182: 0.016073 | AO182: 0.007973 | AP182: 0.016477 | AQ182: 0.040542 | AR182: 0.020409 | AS182: 0.037748 | AT182: 0.070316 | AU182: 0.051226 | AV182: 0.106311 | AW182: 0.094165 | AX182: 0.233461 | AY182: 0 | AZ182: 0.000767 | BA182: 0.033835 | BB182: 0.015415 | BC182: 0.002143 | BD182: 0 | BE182: 0 | BF182: 0 | BG182: 0 | BH182: 0.010714 | BI182: 0 | BJ182: 0 | BK182: 0 | BL182: 0 | BN182: 0 | BO182: 0 | BP182: 0 | BQ182: 0 | BR182: 0 | BS182: 0 | BT182: 0.021723 | BU182: 0.085401 | BV182: 0.265601 | BW182: 0.328393 | BX182: 0.051393 | BY182: 0.010714 | BZ182: 0
A183: Ingresos por Remesas | B183: Distribución por Municipio | C183: Chiapas | D183: San Lucas | E183: Ene-Mar 2013 - Oct-Dic 2025 | F183: Trimestral | G183: Flujos | H183: Millones de Dólares | K183: Niveles | L183: SE41359 | M183: 0 | N183: 0 | O183: 0 | P183: 0 | Q183: 0 | R183: 0 | S183: 0 | T183: 0 | U183: 0 | V183: 0 | W183: 0 | X183: 0 | Y183: 0 | Z183: 0 | AA183: 0 | AB183: 0.000228 | AC183: 0 | AD183: 0.000795 | AE183: 0.000214 | AF183: 0.000755 | AG183: 0.003563 | AH183: 0.00128 | AI183: 0.003275 | AJ183: 0.003071 | AK183: 0.001827 | AL183: 0.016353 | AM183: 0.598264 | AN183: 0.168405 | AO183: 0.003887 | AP183: 0.00693 | AQ183: 0.008631 | AR183: 0.004636 | AS183: 0.007374 | AT183: 0.014624 | AU183: 0.022758 | AV183: 0.017612 | AW183: 0.028285 | AX183: 0.025195 | AY183: 0 | AZ183: 0 | BA183: 0 | BB183: 0 | BC183: 0 | BD183: 0 | BE183: 0 | BF183: 0 | BG183: 0 | BH183: 0 | BI183: 0 | BJ183: 0 | BK183: 0 | BL183: 0 | BN183: 0 | BO183: 0 | BP183: 0 | BQ183: 0.000228 | BR183: 0.001764 | BS183: 0.011189 | BT183: 0.784849 | BU183: 0.024084 | BV183: 0.062368 | BW183: 0.05348 | BX183: 0 | BY183: 0 | BZ183: 0
A184: Ingresos por Remesas | B184: Distribución por Municipio | C184: Chiapas | D184: Santiago el Pinar | E184: Ene-Mar 2013 - Oct-Dic 2025 | F184: Trimestral | G184: Flujos | H184: Millones de Dólares | K184: Niveles | L184: SE41360 | M184: 0 | N184: 0 | O184: 0 | P184: 0 | Q184: 0 | R184: 0 | S184: 0 | T184: 0 | U184: 0 | V184: 0 | W184: 0 | X184: 0 | Y184: 0 | Z184: 0 | AA184: 0 | AB184: 0 | AC184: 0 | AD184: 0 | AE184: 0 | AF184: 0 | AG184: 0 | AH184: 0.000683 | AI184: 0.000731 | AJ184: 0.001744 | AK184: 0.000229 | AL184: 0.003641 | AM184: 0.038627 | AN184: 0.008944 | AO184: 0.023566 | AP184: 0.017759 | AQ184: 0.025128 | AR184: 0.021554 | AS184: 0.036426 | AT184: 0.038356 | AU184: 0.02646 | AV184: 0.06671 | AW184: 0.166174 | AX184: 0.252247 | AY184: 0 | AZ184: 0 | BA184: 0 | BB184: 0 | BC184: 0 | BD184: 0 | BE184: 0 | BF184: 0 | BG184: 0 | BH184: 0 | BI184: 0 | BJ184: 0 | BK184: 0 | BL184: 0 | BN184: 0 | BO184: 0 | BP184: 0 | BQ184: 0 | BR184: 0 | BS184: 0.003158 | BT184: 0.051441 | BU184: 0.088007 | BV184: 0.167952 | BW184: 0.418421 | BX184: 0 | BY184: 0 | BZ184: 0
A185: Ingresos por Remesas | B185: Distribución por Municipio | C185: Chiapas | D185: Siltepec | E185: Ene-Mar 2013 - Oct-Dic 2025 | F185: Trimestral | G185: Flujos | H185: Millones de Dólares | K185: Niveles | L185: SE41361 | M185: 0.615221 | N185: 0.826504 | O185: 0.774668 | P185: 0.337999 | Q185: 0.538017 | R185: 0.749172 | S185: 0.60462 | T185: 0.541308 | U185: 0.627034 | V185: 0.664634 | W185: 0.631404 | X185: 0.538036 | Y185: 0.630771 | Z185: 0.843679 | AA185: 0.946393 | AB185: 0.944747 | AC185: 1.093443 | AD185: 1.068442 | AE185: 1.0616 | AF185: 1.032932 | AG185: 0.888969 | AH185: 1.277939 | AI185: 1.082564 | AJ185: 1.033729 | AK185: 0.911801 | AL185: 1.25834 | AM185: 1.329959 | AN185: 1.191045 | AO185: 1.321724 | AP185: 1.784939 | AQ185: 1.764121 | AR185: 1.708231 | AS185: 1.839711 | AT185: 2.307138 | AU185: 2.736252 | AV185: 2.953456 | AW185: 3.455591 | AX185: 4.726519 | AY185: 2.613086 | AZ185: 2.241173 | BA185: 2.172985 | BB185: 2.183889 | BC185: 1.874129 | BD185: 1.365619 | BE185: 1.557051 | BF185: 2.196812 | BG185: 1.613029 | BH185: 1.527071 | BI185: 1.450394 | BJ185: 1.648305 | BK185: 1.372832 | BL185: 0.934054 | BN185: 2.554392 | BO185: 2.433117 | BP185: 2.461108 | BQ185: 3.36559 | BR185: 4.256417 | BS185: 4.283201 | BT185: 4.691145 | BU185: 6.579015 | BV185: 9.836557 | BW185: 13.036369 | BX185: 7.596622 | BY185: 6.893963 | BZ185: 5.405585
A186: Ingresos por Remesas | B186: Distribución por Municipio | C186: Chiapas | D186: Simojovel | E186: Ene-Mar 2013 - Oct-Dic 2025 | F186: Trimestral | G186: Flujos | H186: Millones de Dólares | K186: Niveles | L186: SE41362 | M186: 0.77086 | N186: 0.864245 | O186: 0.750318 | P186: 0.651312 | Q186: 0.771272 | R186: 0.882615 | S186: 0.710691 | T186: 0.713424 | U186: 0.815488 | V186: 1.028433 | W186: 1.407387 | X186: 1.260304 | Y186: 1.296151 | Z186: 1.039289 | AA186: 1.106738 | AB186: 1.129211 | AC186: 1.088417 | AD186: 1.433047 | AE186: 1.601306 | AF186: 1.658423 | AG186: 2.116159 | AH186: 2.884702 | AI186: 3.202927 | AJ186: 2.814634 | AK186: 3.149756 | AL186: 3.917053 | AM186: 4.219816 | AN186: 3.042465 | AO186: 3.259523 | AP186: 3.555337 | AQ186: 3.541994 | AR186: 3.244602 | AS186: 4.568031 | AT186: 6.229253 | AU186: 7.949381 | AV186: 11.364008 | AW186: 14.964576 | AX186: 21.521315 | AY186: 25.049932 | AZ186: 26.419123 | BA186: 30.090355 | BB186: 36.709522 | BC186: 39.650237 | BD186: 36.695669 | BE186: 31.879537 | BF186: 38.285369 | BG186: 39.413394 | BH186: 37.534361 | BI186: 34.370242 | BJ186: 37.999933 | BK186: 38.056935 | BL186: 35.172868 | BN186: 3.036735 | BO186: 3.078002 | BP186: 4.511612 | BQ186: 4.571389 | BR186: 5.781193 | BS186: 11.018422 | BT186: 14.32909 | BU186: 13.601456 | BV186: 30.110673 | BW186: 87.954946 | BX186: 143.145783 | BY186: 147.112661 | BZ186: 145.599978
A187: Ingresos por Remesas | B187: Distribución por Municipio | C187: Chiapas | D187: Sitalá | E187: Ene-Mar 2013 - Oct-Dic 2025 | F187: Trimestral | G187: Flujos | H187: Millones de Dólares | K187: Niveles | L187: SE41363 | M187: 0 | N187: 0 | O187: 0 | P187: 0 | Q187: 0 | R187: 0 | S187: 0 | T187: 0 | U187: 0 | V187: 0 | W187: 0 | X187: 0 | Y187: 0 | Z187: 0 | AA187: 0 | AB187: 0 | AC187: 0 | AD187: 0 | AE187: 0 | AF187: 0 | AG187: 0 | AH187: 0 | AI187: 0 | AJ187: 0 | AK187: 0 | AL187: 0.001007 | AM187: 0.012776 | AN187: 0.029858 | AO187: 0.008903 | AP187: 0.009257 | AQ187: 0.015626 | AR187: 0.009499 | AS187: 0.00318 | AT187: 0.005431 | AU187: 0.030097 | AV187: 0.02445 | AW187: 0.032422 | AX187: 0.052376 | AY187: 0 | AZ187: 0 | BA187: 0 | BB187: 0 | BC187: 0 | BD187: 0 | BE187: 0 | BF187: 0 | BG187: 0 | BH187: 0 | BI187: 0 | BJ187: 0 | BK187: 0 | BL187: 0 | BN187: 0 | BO187: 0 | BP187: 0 | BQ187: 0 | BR187: 0 | BS187: 0 | BT187: 0.043641 | BU187: 0.043285 | BV187: 0.063158 | BW187: 0.084798 | BX187: 0 | BY187: 0 | BZ187: 0
A188: Ingresos por Remesas | B188: Distribución por Municipio | C188: Chiapas | D188: Socoltenango | E188: Ene-Mar 2013 - Oct-Dic 2025 | F188: Trimestral | G188: Flujos | H188: Millones de Dólares | K188: Niveles | L188: SE41364 | M188: 0.107669 | N188: 0.155249 | O188: 0.167746 | P188: 0.176264 | Q188: 0.13691 | R188: 0.14431 | S188: 0.132438 | T188: 0.121536 | U188: 0.110386 | V188: 0.111994 | W188: 0.117213 | X188: 0.0891 | Y188: 0.094446 | Z188: 0.122378 | AA188: 0.113098 | AB188: 0.11759 | AC188: 0.137484 | AD188: 0.149051 | AE188: 0.135116 | AF188: 0.14263 | AG188: 0.152742 | AH188: 0.177986 | AI188: 0.165492 | AJ188: 0.164794 | AK188: 0.1492 | AL188: 0.180018 | AM188: 0.245821 | AN188: 0.246644 | AO188: 0.191626 | AP188: 0.171819 | AQ188: 0.24496 | AR188: 0.247154 | AS188: 0.303059 | AT188: 0.333418 | AU188: 0.39688 | AV188: 0.330716 | AW188: 0.290658 | AX188: 0.387049 | AY188: 0.004964 | AZ188: 0.002256 | BA188: 0.120501 | BB188: 0.065632 | BC188: 0.07637 | BD188: 0.032957 | BE188: 0.011957 | BF188: 0.027445 | BG188: 0.030347 | BH188: 0.02389 | BI188: 0.040868 | BJ188: 0.057399 | BK188: 0.056716 | BL188: 0.095962 | BN188: 0.606928 | BO188: 0.535194 | BP188: 0.428693 | BQ188: 0.447512 | BR188: 0.564281 | BS188: 0.661014 | BT188: 0.821683 | BU188: 0.855559 | BV188: 1.364073 | BW188: 0.684927 | BX188: 0.29546 | BY188: 0.093639 | BZ188: 0.250945
A189: Ingresos por Remesas | B189: Distribución por Municipio | C189: Chiapas | D189: Solosuchiapa | E189: Ene-Mar 2013 - Oct-Dic 2025 | F189: Trimestral | G189: Flujos | H189: Millones de Dólares | K189: Niveles | L189: SE41365 | M189: 0 | N189: 0 | O189: 0 | P189: 0 | Q189: 0 | R189: 0 | S189: 0 | T189: 0 | U189: 0 | V189: 0 | W189: 0 | X189: 0 | Y189: 0 | Z189: 0 | AA189: 0 | AB189: 0 | AC189: 0 | AD189: 0 | AE189: 0 | AF189: 0 | AG189: 0 | AH189: 7.8e-05 | AI189: 0 | AJ189: 9.1e-05 | AK189: 0.00014 | AL189: 0.000907 | AM189: 0.007569 | AN189: 0.011629 | AO189: 0.001483 | AP189: 0.003423 | AQ189: 0.013433 | AR189: 0.02463 | AS189: 0.030911 | AT189: 0.043894 | AU189: 0.041792 | AV189: 0.062035 | AW189: 0.099482 | AX189: 0.154922 | AY189: 0 | AZ189: 0 | BA189: 0 | BB189: 0 | BC189: 0 | BD189: 0 | BE189: 0 | BF189: 0 | BG189: 0 | BH189: 0 | BI189: 0 | BJ189: 0 | BK189: 0 | BL189: 0 | BN189: 0 | BO189: 0 | BP189: 0 | BQ189: 0 | BR189: 0 | BS189: 0.000169 | BT189: 0.020245 | BU189: 0.042969 | BV189: 0.178632 | BW189: 0.254404 | BX189: 0 | BY189: 0 | BZ189: 0
A190: Ingresos por Remesas | B190: Distribución por Municipio | C190: Chiapas | D190: Soyaló | E190: Ene-Mar 2013 - Oct-Dic 2025 | F190: Trimestral | G190: Flujos | H190: Millones de Dólares | K190: Niveles | L190: SE41366 | M190: 0 | N190: 0 | O190: 0 | P190: 0 | Q190: 0 | R190: 0 | S190: 0 | T190: 0 | U190: 0 | V190: 0 | W190: 0 | X190: 0 | Y190: 0 | Z190: 0 | AA190: 0 | AB190: 0 | AC190: 0 | AD190: 0 | AE190: 0 | AF190: 0 | AG190: 0 | AH190: 0 | AI190: 0 | AJ190: 0 | AK190: 0 | AL190: 0 | AM190: 0.007539 | AN190: 0.009728 | AO190: 0.012945 | AP190: 0.011042 | AQ190: 0.017467 | AR190: 0.033038 | AS190: 0.029434 | AT190: 0.042042 | AU190: 0.037216 | AV190: 0.046398 | AW190: 0.042838 | AX190: 0.107554 | AY190: 0.1106 | AZ190: 0.207847 | BA190: 0.023866 | BB190: 0 | BC190: 0 | BD190: 0.00604 | BE190: 0.001904 | BF190: 0 | BG190: 0.001421 | BH190: 0.005354 | BI190: 0.020281 | BJ190: 0.001688 | BK190: 0.003705 | BL190: 0.002776 | BN190: 0 | BO190: 0 | BP190: 0 | BQ190: 0 | BR190: 0 | BS190: 0 | BT190: 0.017267 | BU190: 0.074492 | BV190: 0.15509 | BW190: 0.468839 | BX190: 0.029906 | BY190: 0.008679 | BZ190: 0.02845
A191: Ingresos por Remesas | B191: Distribución por Municipio | C191: Chiapas | D191: Suchiapa | E191: Ene-Mar 2013 - Oct-Dic 2025 | F191: Trimestral | G191: Flujos | H191: Millones de Dólares | K191: Niveles | L191: SE41367 | M191: 0.019648 | N191: 0.017461 | O191: 0.016015 | P191: 0.035287 | Q191: 0.013772 | R191: 0.013322 | S191: 0.010116 | T191: 0.011516 | U191: 0.013312 | V191: 0.011654 | W191: 0.014335 | X191: 0.014723 | Y191: 0.011223 | Z191: 0.033135 | AA191: 0.030136 | AB191: 0.028939 | AC191: 0.022316 | AD191: 0.03944 | AE191: 0.086883 | AF191: 0.028053 | AG191: 0.024527 | AH191: 0.047975 | AI191: 0.039274 | AJ191: 0.039625 | AK191: 0.056622 | AL191: 0.061123 | AM191: 0.026124 | AN191: 0.125005 | AO191: 0.235442 | AP191: 0.387314 | AQ191: 0.314735 | AR191: 0.233365 | AS191: 0.310682 | AT191: 0.480454 | AU191: 0.400575 | AV191: 0.417466 | AW191: 0.411489 | AX191: 0.403588 | AY191: 0.332046 | AZ191: 0.204773 | BA191: 0.038977 | BB191: 0.042963 | BC191: 0.038249 | BD191: 0.044581 | BE191: 0.040249 | BF191: 0.063557 | BG191: 0.061459 | BH191: 0.057697 | BI191: 0.041035 | BJ191: 0.045531 | BK191: 0.063003 | BL191: 0.067426 | BN191: 0.088411 | BO191: 0.048726 | BP191: 0.054024 | BQ191: 0.103433 | BR191: 0.176692 | BS191: 0.151401 | BT191: 0.268874 | BU191: 1.170856 | BV191: 1.609177 | BW191: 1.351896 | BX191: 0.16477 | BY191: 0.222962 | BZ191: 0.216995
A192: Ingresos por Remesas | B192: Distribución por Municipio | C192: Chiapas | D192: Suchiate | E192: Ene-Mar 2013 - Oct-Dic 2025 | F192: Trimestral | G192: Flujos | H192: Millones de Dólares | K192: Niveles | L192: SE41368 | M192: 2.245003 | N192: 2.746313 | O192: 2.594353 | P192: 2.701526 | Q192: 2.769125 | R192: 3.329325 | S192: 1.977067 | T192: 2.423792 | U192: 2.314934 | V192: 2.573774 | W192: 3.171494 | X192: 3.330741 | Y192: 2.632577 | Z192: 2.230469 | AA192: 2.40395 | AB192: 2.135012 | AC192: 2.614974 | AD192: 2.741968 | AE192: 2.842468 | AF192: 2.945991 | AG192: 2.848394 | AH192: 3.665866 | AI192: 3.551346 | AJ192: 3.808214 | AK192: 4.11531 | AL192: 5.144332 | AM192: 4.301749 | AN192: 3.680034 | AO192: 3.626557 | AP192: 4.008673 | AQ192: 4.830109 | AR192: 4.744328 | AS192: 4.573738 | AT192: 6.85213 | AU192: 8.301148 | AV192: 9.797705 | AW192: 12.779099 | AX192: 10.265292 | AY192: 11.377418 | AZ192: 15.582358 | BA192: 12.093408 | BB192: 11.655609 | BC192: 14.534452 | BD192: 14.227892 | BE192: 9.991674 | BF192: 12.693235 | BG192: 10.049178 | BH192: 8.71939 | BI192: 6.116289 | BJ192: 6.68953 | BK192: 7.254217 | BL192: 6.954646 | BN192: 10.287195 | BO192: 10.499309 | BP192: 11.390943 | BQ192: 9.402008 | BR192: 11.145401 | BS192: 13.87382 | BT192: 17.241425 | BU192: 17.209667 | BV192: 29.524721 | BW192: 50.004167 | BX192: 52.511361 | BY192: 41.453477 | BZ192: 27.014682
A193: Ingresos por Remesas | B193: Distribución por Municipio | C193: Chiapas | D193: Sunuapa | E193: Ene-Mar 2013 - Oct-Dic 2025 | F193: Trimestral | G193: Flujos | H193: Millones de Dólares | K193: Niveles | L193: SE41369 | M193: 0 | N193: 0 | O193: 0 | P193: 0 | Q193: 0 | R193: 0 | S193: 0 | T193: 0 | U193: 0 | V193: 0 | W193: 0 | X193: 0 | Y193: 0 | Z193: 0 | AA193: 0 | AB193: 0 | AC193: 0 | AD193: 0 | AE193: 0 | AF193: 0 | AG193: 0 | AH193: 0 | AI193: 0 | AJ193: 0.000359 | AK193: 0.000528 | AL193: 0.001554 | AM193: 0.027102 | AN193: 0.134702 | AO193: 0.001925 | AP193: 0.000288 | AQ193: 0.000369 | AR193: 0.005516 | AS193: 0.002421 | AT193: 0.003273 | AU193: 0.016017 | AV193: 0.011191 | AW193: 0.006895 | AX193: 0.006213 | AY193: 0 | AZ193: 0 | BA193: 0 | BB193: 0 | BC193: 0 | BD193: 0 | BE193: 0 | BF193: 0 | BG193: 0 | BH193: 0 | BI193: 0 | BJ193: 0 | BK193: 0 | BL193: 0 | BN193: 0 | BO193: 0 | BP193: 0 | BQ193: 0 | BR193: 0 | BS193: 0.000359 | BT193: 0.163886 | BU193: 0.008098 | BV193: 0.032902 | BW193: 0.013108 | BX193: 0 | BY193: 0 | BZ193: 0
A194: Ingresos por Remesas | B194: Distribución por Municipio | C194: Chiapas | D194: Tapachula | E194: Ene-Mar 2013 - Oct-Dic 2025 | F194: Trimestral | G194: Flujos | H194: Millones de Dólares | K194: Niveles | L194: SE41370 | M194: 13.579958 | N194: 16.580033 | O194: 15.679177 | P194: 15.830906 | Q194: 14.606596 | R194: 16.746055 | S194: 12.373649 | T194: 14.623788 | U194: 15.175875 | V194: 16.429594 | W194: 19.565499 | X194: 19.587478 | Y194: 16.830146 | Z194: 15.866762 | AA194: 15.393749 | AB194: 15.285717 | AC194: 13.657368 | AD194: 13.628838 | AE194: 13.657423 | AF194: 14.690551 | AG194: 13.783601 | AH194: 17.001731 | AI194: 17.249781 | AJ194: 19.724667 | AK194: 19.779764 | AL194: 26.97455 | AM194: 23.091842 | AN194: 19.876076 | AO194: 15.759384 | AP194: 14.765517 | AQ194: 24.344499 | AR194: 19.171035 | AS194: 21.216227 | AT194: 27.715989 | AU194: 40.501488 | AV194: 38.965188 | AW194: 40.698417 | AX194: 49.777554 | AY194: 64.201162 | AZ194: 82.992264 | BA194: 63.903895 | BB194: 65.09595 | BC194: 88.209668 | BD194: 96.539979 | BE194: 55.877107 | BF194: 58.478714 | BG194: 53.367308 | BH194: 72.3913 | BI194: 54.396544 | BJ194: 45.913102 | BK194: 46.59599 | BL194: 51.189222 | BN194: 61.670074 | BO194: 58.350088 | BP194: 70.758446 | BQ194: =SUMIFS($M194:$BL194,$M$9:$BL$9,BQ$10) -> 63.376374 | BR194: 55.63418 | BS194: 67.75978 | BT194: 89.722232 | BU194: 74.040435 | BV194: 128.398892 | BW194: 237.669397 | BX194: 313.749492 | BY194: 240.114429 | BZ194: 198.094858
A195: Ingresos por Remesas | B195: Distribución por Municipio | C195: Chiapas | D195: Tapalapa | E195: Ene-Mar 2013 - Oct-Dic 2025 | F195: Trimestral | G195: Flujos | H195: Millones de Dólares | K195: Niveles | L195: SE41371 | M195: 0 | N195: 0 | O195: 0 | P195: 0 | Q195: 0 | R195: 0 | S195: 0 | T195: 0 | U195: 0 | V195: 0 | W195: 0 | X195: 0 | Y195: 0 | Z195: 0 | AA195: 0 | AB195: 0 | AC195: 0 | AD195: 0 | AE195: 0 | AF195: 0 | AG195: 0.000971 | AH195: 0.002063 | AI195: 0.001033 | AJ195: 0 | AK195: 0.001106 | AL195: 0.009344 | AM195: 0.019633 | AN195: 0.019213 | AO195: 0.027889 | AP195: 0.032456 | AQ195: 0.058436 | AR195: 0.038773 | AS195: 0.053347 | AT195: 0.097664 | AU195: 0.140022 | AV195: 0.236532 | AW195: 0.310595 | AX195: 0.48291 | AY195: 0 | AZ195: 0 | BA195: 0 | BB195: 0.007632 | BC195: 0 | BD195: 0 | BE195: 0 | BF195: 0 | BG195: 0 | BH195: 0 | BI195: 0 | BJ195: 0 | BK195: 0 | BL195: 0 | BN195: 0 | BO195: 0 | BP195: 0 | BQ195: 0 | BR195: 0 | BS195: 0.004067 | BT195: 0.049296 | BU195: 0.157554 | BV195: 0.527565 | BW195: 0.793505 | BX195: 0.007632 | BY195: 0 | BZ195: 0
A196: Ingresos por Remesas | B196: Distribución por Municipio | C196: Chiapas | D196: Tapilula | E196: Ene-Mar 2013 - Oct-Dic 2025 | F196: Trimestral | G196: Flujos | H196: Millones de Dólares | K196: Niveles | L196: SE41372 | M196: 0.273457 | N196: 0.340758 | O196: 0.321386 | P196: 0.275635 | Q196: 0.321839 | R196: 0.3567 | S196: 0.298657 | T196: 0.384596 | U196: 0.462254 | V196: 0.543603 | W196: 0.628059 | X196: 0.618304 | Y196: 0.458777 | Z196: 0.422389 | AA196: 0.722219 | AB196: 0.733355 | AC196: 0.984079 | AD196: 1.088243 | AE196: 0.996678 | AF196: 1.031371 | AG196: 1.151199 | AH196: 1.509129 | AI196: 1.487189 | AJ196: 1.5613 | AK196: 1.651161 | AL196: 1.949923 | AM196: 1.958894 | AN196: 1.709094 | AO196: 1.513265 | AP196: 1.772413 | AQ196: 1.91327 | AR196: 2.270776 | AS196: 2.44066 | AT196: 3.108296 | AU196: 3.336964 | AV196: 3.721224 | AW196: 4.130943 | AX196: 5.94067 | AY196: 9.491357 | AZ196: 10.574189 | BA196: 12.295517 | BB196: 14.244174 | BC196: 14.564277 | BD196: 12.677167 | BE196: 10.409415 | BF196: 12.802484 | BG196: 12.528223 | BH196: 10.882142 | BI196: 9.323982 | BJ196: 10.016741 | BK196: 9.328897 | BL196: 8.5257 | BN196: 1.211236 | BO196: 1.361792 | BP196: 2.25222 | BQ196: 2.33674 | BR196: 4.100371 | BS196: 5.708817 | BT196: 7.269072 | BU196: 7.469724 | BV196: 12.607144 | BW196: 30.137159 | BX196: 53.781135 | BY196: 46.622264 | BZ196: 37.19532
A197: Ingresos por Remesas | B197: Distribución por Municipio | C197: Chiapas | D197: Tecpatán | E197: Ene-Mar 2013 - Oct-Dic 2025 | F197: Trimestral | G197: Flujos | H197: Millones de Dólares | K197: Niveles | L197: SE41373 | M197: 1.699727 | N197: 1.964391 | O197: 1.567003 | P197: 1.281724 | Q197: 1.260633 | R197: 1.497601 | S197: 0.992663 | T197: 1.233846 | U197: 1.346274 | V197: 1.386896 | W197: 1.506562 | X197: 1.546435 | Y197: 1.281739 | Z197: 1.154969 | AA197: 1.136002 | AB197: 1.153223 | AC197: 1.819221 | AD197: 1.931887 | AE197: 1.903362 | AF197: 2.085527 | AG197: 2.017298 | AH197: 2.396615 | AI197: 2.49 | AJ197: 2.575858 | AK197: 2.915506 | AL197: 3.394308 | AM197: 3.372215 | AN197: 3.360095 | AO197: 3.406893 | AP197: 3.269732 | AQ197: 3.154261 | AR197: 3.546493 | AS197: 3.812612 | AT197: 5.406301 | AU197: 6.564515 | AV197: 7.746809 | AW197: 8.167896 | AX197: 10.554604 | AY197: 11.583087 | AZ197: 12.123336 | BA197: 12.045695 | BB197: 12.098205 | BC197: 12.057954 | BD197: 10.852548 | BE197: 9.320052 | BF197: 11.189485 | BG197: 10.360906 | BH197: 9.777886 | BI197: 8.635789 | BJ197: 9.171042 | BK197: 9.26299 | BL197: 8.865226 | BN197: 6.512845 | BO197: 4.984743 | BP197: 5.786167 | BQ197: 4.725933 | BR197: 7.739997 | BS197: 9.479771 | BT197: 13.042124 | BU197: 13.377379 | BV197: 23.530237 | BW197: 42.428923 | BX197: 47.054402 | BY197: 40.648329 | BZ197: 35.935047
A198: Ingresos por Remesas | B198: Distribución por Municipio | C198: Chiapas | D198: Tenejapa | E198: Ene-Mar 2013 - Oct-Dic 2025 | F198: Trimestral | G198: Flujos | H198: Millones de Dólares | K198: Niveles | L198: SE41374 | M198: 0.000317 | N198: 0 | O198: 0 | P198: 0 | Q198: 0 | R198: 0 | S198: 0 | T198: 0 | U198: 1.5e-05 | V198: 0 | W198: 0 | X198: 5.5e-05 | Y198: 4e-06 | Z198: 4e-06 | AA198: 0 | AB198: 0 | AC198: 0 | AD198: 0 | AE198: 0.003369 | AF198: 0.00223 | AG198: 0.001038 | AH198: 0.008732 | AI198: 0.016354 | AJ198: 0.014833 | AK198: 0.015175 | AL198: 0.029772 | AM198: 0.032764 | AN198: 0.047185 | AO198: 0.171311 | AP198: 0.125991 | AQ198: 0.200116 | AR198: 0.139321 | AS198: 0.259713 | AT198: 0.404134 | AU198: 0.513911 | AV198: 0.671561 | AW198: 0.983155 | AX198: 1.6458 | AY198: 0.001295 | AZ198: 0.003077 | BA198: 0.064737 | BB198: 0.010003 | BC198: 0.013749 | BD198: 0.027057 | BE198: 0.020387 | BF198: 0.022968 | BG198: 0.015863 | BH198: 0.021086 | BI198: 0.020421 | BJ198: 0.055443 | BK198: 0.037421 | BL198: 0.014753 | BN198: 0.000317 | BO198: 0 | BP198: 7e-05 | BQ198: 8e-06 | BR198: 0.005599 | BS198: 0.040957 | BT198: 0.124896 | BU198: 0.636739 | BV198: 1.849319 | BW198: 2.633327 | BX198: 0.115546 | BY198: 0.080304 | BZ198: 0.128038
A199: Ingresos por Remesas | B199: Distribución por Municipio | C199: Chiapas | D199: Teopisca | E199: Ene-Mar 2013 - Oct-Dic 2025 | F199: Trimestral | G199: Flujos | H199: Millones de Dólares | K199: Niveles | L199: SE41375 | M199: 0.2735 | N199: 0.382664 | O199: 0.348626 | P199: 0.242367 | Q199: 0.28769 | R199: 0.425079 | S199: 0.397167 | T199: 0.347963 | U199: 0.391829 | V199: 0.458939 | W199: 0.63737 | X199: 0.56056 | Y199: 0.538011 | Z199: 0.798196 | AA199: 0.964483 | AB199: 0.959935 | AC199: 0.861414 | AD199: 1.194794 | AE199: 1.766286 | AF199: 1.330924 | AG199: 1.159195 | AH199: 1.623083 | AI199: 1.869561 | AJ199: 1.720136 | AK199: 1.576829 | AL199: 2.53654 | AM199: 2.831396 | AN199: 2.163973 | AO199: 2.043396 | AP199: 2.462632 | AQ199: 3.786768 | AR199: 3.426718 | AS199: 3.926281 | AT199: 6.07184 | AU199: 7.470599 | AV199: 7.426495 | AW199: 7.064242 | AX199: 9.870611 | AY199: 8.185266 | AZ199: 9.392748 | BA199: 9.089904 | BB199: 11.291393 | BC199: 12.379803 | BD199: 11.26312 | BE199: 9.789544 | BF199: 12.486422 | BG199: 12.799708 | BH199: 11.837862 | BI199: 10.722974 | BJ199: 12.490777 | BK199: 12.651833 | BL199: 11.350066 | BN199: 1.247157 | BO199: 1.457899 | BP199: 2.048698 | BQ199: 3.260625 | BR199: 5.153418 | BS199: 6.371975 | BT199: 9.108738 | BU199: 11.719514 | BV199: 24.895215 | BW199: 34.512867 | BX199: 44.02422 | BY199: 46.913536 | BZ199: 47.21565
A200: Ingresos por Remesas | B200: Distribución por Municipio | C200: Chiapas | D200: Tila | E200: Ene-Mar 2013 - Oct-Dic 2025 | F200: Trimestral | G200: Flujos | H200: Millones de Dólares | K200: Niveles | L200: SE41376 | M200: 0.006417 | N200: 0.011704 | O200: 0.009678 | P200: 0.011045 | Q200: 0.009929 | R200: 0.013016 | S200: 0.009121 | T200: 0.013807 | U200: 0.011409 | V200: 0.011803 | W200: 0.012291 | X200: 0.006574 | Y200: 0 | Z200: 0 | AA200: 0 | AB200: 0 | AC200: 0 | AD200: 0 | AE200: 0 | AF200: 0 | AG200: 0 | AH200: 0 | AI200: 0.003115 | AJ200: 0.000271 | AK200: 0.010289 | AL200: 0.025355 | AM200: 0.120986 | AN200: 0.153319 | AO200: 0.11376 | AP200: 0.158453 | AQ200: 0.10479 | AR200: 0.093859 | AS200: 0.093482 | AT200: 0.144703 | AU200: 0.120617 | AV200: 0.15693 | AW200: 0.18869 | AX200: 0.280268 | AY200: 0 | AZ200: 0 | BA200: 0 | BB200: 0 | BC200: 0 | BD200: 0 | BE200: 0 | BF200: 0 | BG200: 0 | BH200: 0 | BI200: 0 | BJ200: 0 | BK200: 0 | BL200: 0 | BN200: 0.038844 | BO200: 0.045873 | BP200: 0.042077 | BQ200: 0 | BR200: 0 | BS200: 0.003386 | BT200: 0.309949 | BU200: 0.470862 | BV200: 0.515732 | BW200: 0.468958 | BX200: 0 | BY200: 0 | BZ200: 0
A201: Ingresos por Remesas | B201: Distribución por Municipio | C201: Chiapas | D201: Tonalá | E201: Ene-Mar 2013 - Oct-Dic 2025 | F201: Trimestral | G201: Flujos | H201: Millones de Dólares | K201: Niveles | L201: SE41377 | M201: 2.728688 | N201: 4.087887 | O201: 3.004758 | P201: 2.57387 | Q201: 2.980605 | R201: 3.177863 | S201: 1.872369 | T201: 2.400456 | U201: 2.511786 | V201: 2.614114 | W201: 2.574799 | X201: 2.735416 | Y201: 2.429694 | Z201: 2.038589 | AA201: 2.067184 | AB201: 2.038578 | AC201: 2.311015 | AD201: 2.368675 | AE201: 2.437208 | AF201: 2.427824 | AG201: 2.325074 | AH201: 2.872188 | AI201: 2.629427 | AJ201: 2.667469 | AK201: 2.715746 | AL201: 3.376439 | AM201: 2.801918 | AN201: 2.727528 | AO201: 2.46709 | AP201: 2.058094 | AQ201: 5.427599 | AR201: 3.096399 | AS201: 2.923918 | AT201: 3.953582 | AU201: 5.334318 | AV201: 5.559426 | AW201: 9.386606 | AX201: 6.257226 | AY201: 4.457053 | AZ201: 6.920186 | BA201: 4.618312 | BB201: 4.8359 | BC201: 6.893856 | BD201: 9.107074 | BE201: 6.852492 | BF201: 6.563174 | BG201: 4.925909 | BH201: 3.901595 | BI201: 3.425685 | BJ201: 3.006937 | BK201: 3.174689 | BL201: 3.874862 | BN201: 12.395203 | BO201: 10.431293 | BP201: 10.436115 | BQ201: 8.574045 | BR201: 9.544722 | BS201: 10.494158 | BT201: 11.621631 | BU201: 13.049182 | BV201: 17.771244 | BW201: 27.021071 | BX201: 25.455142 | BY201: 22.24317 | BZ201: 13.482173
A202: Ingresos por Remesas | B202: Distribución por Municipio | C202: Chiapas | D202: Totolapa | E202: Ene-Mar 2013 - Oct-Dic 2025 | F202: Trimestral | G202: Flujos | H202: Millones de Dólares | K202: Niveles | L202: SE41378 | M202: 0 | N202: 0 | O202: 0 | P202: 0 | Q202: 0 | R202: 0 | S202: 0 | T202: 0 | U202: 0 | V202: 0 | W202: 0 | X202: 0 | Y202: 0 | Z202: 0 | AA202: 0 | AB202: 0 | AC202: 0 | AD202: 0 | AE202: 0 | AF202: 0 | AG202: 0 | AH202: 0 | AI202: 0 | AJ202: 0 | AK202: 0.0002 | AL202: 0.007797 | AM202: 0.011756 | AN202: 0.006056 | AO202: 0.002052 | AP202: 0.00056 | AQ202: 0.007851 | AR202: 0.00445 | AS202: 0.010104 | AT202: 0.007238 | AU202: 0.010666 | AV202: 0.015928 | AW202: 0.010697 | AX202: 0.021546 | AY202: 0 | AZ202: 0 | BA202: 0.000625 | BB202: 0 | BC202: 0 | BD202: 0 | BE202: 0 | BF202: 0 | BG202: 0 | BH202: 0 | BI202: 0 | BJ202: 0 | BK202: 0 | BL202: 0 | BN202: 0 | BO202: 0 | BP202: 0 | BQ202: 0 | BR202: 0 | BS202: 0 | BT202: 0.025809 | BU202: 0.014913 | BV202: 0.043936 | BW202: 0.032243 | BX202: 0.000625 | BY202: 0 | BZ202: 0
A203: Ingresos por Remesas | B203: Distribución por Municipio | C203: Chiapas | D203: Tumbalá | E203: Ene-Mar 2013 - Oct-Dic 2025 | F203: Trimestral | G203: Flujos | H203: Millones de Dólares | K203: Niveles | L203: SE41379 | M203: 0 | N203: 0.001058 | O203: 0 | P203: 0 | Q203: 0 | R203: 0 | S203: 0 | T203: 0 | U203: 0 | V203: 0 | W203: 0 | X203: 0 | Y203: 0 | Z203: 0 | AA203: 0 | AB203: 0 | AC203: 0 | AD203: 0 | AE203: 0 | AF203: 0 | AG203: 0.001793 | AH203: 0.002985 | AI203: 0.012908 | AJ203: 0.002441 | AK203: 0.000235 | AL203: 0.00045 | AM203: 0.049219 | AN203: 0.005969 | AO203: 0.01346 | AP203: 0.019459 | AQ203: 0.035852 | AR203: 0.019941 | AS203: 0.023855 | AT203: 0.019347 | AU203: 0.040333 | AV203: 0.022822 | AW203: 0.053383 | AX203: 0.085486 | AY203: 0.020938 | AZ203: 0.063301 | BA203: 0.065442 | BB203: 0.092484 | BC203: 0.109844 | BD203: 0.091626 | BE203: 0.085406 | BF203: 0.103347 | BG203: 0.103288 | BH203: 0.069719 | BI203: 0.089828 | BJ203: 0.093197 | BK203: 0.09064 | BL203: 0.087189 | BN203: 0.001058 | BO203: 0 | BP203: 0 | BQ203: 0 | BR203: 0 | BS203: 0.020127 | BT203: 0.055873 | BU203: 0.088712 | BV203: 0.106357 | BW203: 0.223108 | BX203: 0.359396 | BY203: 0.36176 | BZ203: 0.360854
A204: Ingresos por Remesas | B204: Distribución por Municipio | C204: Chiapas | D204: Tuxtla Chico | E204: Ene-Mar 2013 - Oct-Dic 2025 | F204: Trimestral | G204: Flujos | H204: Millones de Dólares | K204: Niveles | L204: SE41380 | M204: 0.341802 | N204: 0.458597 | O204: 0.399303 | P204: 0.431787 | Q204: 0.4959 | R204: 0.656966 | S204: 0.50784 | T204: 0.647762 | U204: 0.557271 | V204: 0.601681 | W204: 0.706087 | X204: 0.697939 | Y204: 0.65238 | Z204: 0.382451 | AA204: 0.423505 | AB204: 0.565713 | AC204: 0.780826 | AD204: 0.761979 | AE204: 0.9275 | AF204: 0.865142 | AG204: 0.86493 | AH204: 1.368329 | AI204: 1.189286 | AJ204: 0.952539 | AK204: 0.894785 | AL204: 1.443984 | AM204: 1.111228 | AN204: 0.824203 | AO204: 0.81463 | AP204: 1.057542 | AQ204: 1.329631 | AR204: 1.231483 | AS204: 1.496934 | AT204: 2.049465 | AU204: 3.163976 | AV204: 3.274727 | AW204: 3.300357 | AX204: 2.546681 | AY204: 2.42624 | AZ204: 4.135142 | BA204: 2.324527 | BB204: 2.344654 | BC204: 2.471691 | BD204: 2.568735 | BE204: 2.065997 | BF204: 2.00953 | BG204: 1.673473 | BH204: 1.788682 | BI204: 1.582253 | BJ204: 1.632471 | BK204: 1.469961 | BL204: 1.405908 | BN204: 1.631489 | BO204: 2.308468 | BP204: 2.562978 | BQ204: 2.024049 | BR204: 3.335447 | BS204: 4.375084 | BT204: 4.2742 | BU204: 4.433286 | BV204: 9.985102 | BW204: 12.40842 | BX204: 9.709607 | BY204: 7.537682 | BZ204: 6.090593
... 921 more rows

Sheet catalogos (hidden)
B4: Aguascalientes | C4: Baja_California | D4: Baja_California_Sur | E4: Campeche | F4: Chiapas | G4: Chihuahua | H4: Ciudad_de_México | I4: Coahuila | J4: Colima | K4: Durango | L4: Guanajuato | M4: Guerrero | N4: Hidalgo | O4: Jalisco | P4: México | Q4: Michoacán | R4: Morelos | S4: Nayarit | T4: Nuevo_León | U4: Oaxaca | V4: Puebla | W4: Querétaro | X4: Quintana_Roo | Y4: San_Luis_Potosí | Z4: Sinaloa | AA4: Sonora | AB4: Tabasco | AC4: Tamaulipas | AD4: Tlaxcala | AE4: Veracruz | AF4: Yucatán | AG4: Zacatecas
B5: Aguascalientes | C5: Ensenada | D5: Comondú | E5: Calakmul | F5: Acacoyagua | G5: Ahumada | H5: Álvaro Obregón | I5: Abasolo | J5: Armería | K5: Canatlán | L5: Abasolo | M5: Acapulco de Juárez | N5: Acatlán | O5: Acatic | P5: Acambay | Q5: Acuitzio | R5: Amacuzac | S5: Acaponeta | T5: Abasolo | U5: Abejones | V5: Acajete | W5: Amealco de Bonfil | X5: Benito Juárez | Y5: Ahualulco | Z5: Ahome | AA5: Aconchi | AB5: Balancán | AC5: Abasolo | AD5: Acuamanala de Miguel Hidalgo | AE5: Acajete | AF5: Abalá | AG5: Apozol
B6: Asientos | C6: Mexicali | D6: La Paz | E6: Calkiní | F6: Acala | G6: Aldama | H6: Azcapotzalco | I6: Acuña | J6: Colima | K6: Canelas | L6: Acámbaro | M6: Acatepec | N6: Acaxochitlán | O6: Acatlán de Juárez | P6: Acolman | Q6: Aguililla | R6: Atlatlahucan | S6: Ahuacatlán | T6: Agualeguas | U6: Acatlán de Pérez Figueroa | V6: Acateno | W6: Arroyo Seco | X6: Cozumel | Y6: Alaquines | Z6: Angostura | AA6: Agua Prieta | AB6: Cárdenas | AC6: Aldama | AD6: Atltzayanca | AE6: Acatlán | AF6: Acanceh | AG6: Apulco
B7: Calvillo | C7: Playas de Rosarito | D7: Loreto | E7: Campeche | F7: Acapetahua | G7: Allende | H7: Benito Juárez | I7: Allende | J7: Comala | K7: Coneto de Comonfort | L7: Apaseo el Alto | M7: Ahuacuotzingo | N7: Actopan | O7: Ahualulco de Mercado | P7: Aculco | Q7: Álvaro Obregón | R7: Axochiapan | S7: Amatlán de Cañas | T7: Allende | U7: Ánimas Trujano | V7: Acatlán | W7: Cadereyta de Montes | X7: Felipe Carrillo Puerto | Y7: Aquismón | Z7: Badiraguato | AA7: Alamos | AB7: Centla | AC7: Altamira | AD7: Amaxac de Guerrero | AE7: Acayucan | AF7: Akil | AG7: Atolinga
B8: Cosío | C8: Tecate | D8: Los Cabos | E8: Candelaria | F8: Aldama | G8: Aquiles Serdán | H8: Coyoacán | I8: Arteaga | J8: Coquimatlán | K8: Cuencamé | L8: Apaseo el Grande | M8: Ajuchitlán del Progreso | N8: Agua Blanca de Iturbide | O8: Amacueca | P8: Almoloya de Alquisiras | Q8: Angamacutiro | R8: Ayala | S8: Bahía de Banderas | T8: Anáhuac | U8: Asunción Cacalotepec | V8: Acatzingo | W8: Colón | X8: Isla Mujeres | Y8: Armadillo de los Infante | Z8: Choix | AA8: Altar | AB8: Centro | AC8: Antiguo Morelos | AD8: Apetatitlán de Antonio Carvajal | AE8: Actopan | AF8: Baca | AG8: Benito Juárez
B9: El Llano | C9: Tijuana | D9: Mulegé | E9: Carmen | F9: Altamirano | G9: Ascensión | H9: Cuajimalpa de Morelos | I9: Candela | J9: Cuauhtémoc | K9: Durango | L9: Atarjea | M9: Alcozauca de Guerrero | N9: Ajacuba | O9: Amatitán | P9: Almoloya de Juárez | Q9: Angangueo | R9: Coatlán del Río | S9: Compostela | T9: Apodaca | U9: Asunción Cuyotepeji | V9: Acteopan | W9: Corregidora | X9: José María Morelos | Y9: Axtla de Terrazas | Z9: Concordia | AA9: Arivechi | AB9: Comalcalco | AC9: Burgos | AD9: Apizaco | AE9: Acula | AF9: Bokobá | AG9: Calera
B10: Jesús María | E10: Champotón | F10: Amatán | G10: Bachíniva | H10: Cuauhtémoc | I10: Castaños | J10: Ixtlahuacán | K10: El Oro | L10: Celaya | M10: Alpoyeca | N10: Alfajayucan | O10: Ameca | P10: Almoloya del Río | Q10: Apatzingán | R10: Cuautla | S10: Del Nayar | T10: Aramberri | U10: Asunción Ixtaltepec | V10: Ahuacatlán | W10: El Marqués | X10: Lázaro Cárdenas | Y10: Cárdenas | Z10: Cosalá | AA10: Arizpe | AB10: Cunduacán | AC10: Bustamante | AD10: Atlangatepec | AE10: Acultzingo | AF10: Buctzotz | AG10: Cañitas de Felipe Pescador
B11: Pabellón de Arteaga | E11: Escárcega | F11: Amatenango de la Frontera | G11: Balleza | H11: Gustavo A. Madero | I11: Cuatro Ciénegas | J11: Manzanillo | K11: General Simón Bolívar | L11: Comonfort | M11: Apaxtla | N11: Almoloya | O11: Arandas | P11: Amanalco | Q11: Aporo | R11: Cuernavaca | S11: Huajicori | T11: Bustamante | U11: Asunción Nochixtlán | V11: Ahuatlán | W11: Ezequiel Montes | X11: Othón P. Blanco | Y11: Catorce | Z11: Culiacán | AA11: Atil | AB11: Emiliano Zapata | AC11: Camargo | AD11: Benito Juárez | AE11: Agua Dulce | AF11: Cacalchén | AG11: Chalchihuites
B12: Rincón de Romos | E12: Hecelchakán | F12: Amatenango del Valle | G12: Batopilas | H12: Iztacalco | I12: Escobedo | J12: Minatitlán | K12: Gómez Palacio | L12: Coroneo | M12: Arcelia | N12: Apan | O12: Atemajac de Brizuela | P12: Amatepec | Q12: Aquila | R12: Emiliano Zapata | S12: Ixtlán del Río | T12: Cadereyta Jiménez | U12: Asunción Ocotlán | V12: Ahuazotepec | W12: Huimilpan | X12: Solidaridad | Y12: Cedral | Z12: El Fuerte | AA12: Bacadéhuachi | AB12: Huimanguillo | AC12: Casas | AD12: Calpulalpan | AE12: Alpatláhuac | AF12: Calotmul | AG12: Concepción del Oro
B13: San Francisco de los Romo | E13: Hopelchén | F13: Angel Albino Corzo | G13: Bocoyna | H13: Iztapalapa | I13: Francisco I. Madero | J13: Tecomán | K13: Guadalupe Victoria | L13: Cortazar | M13: Atenango del Río | N13: Atitalaquia | O13: Atengo | P13: Amecameca | Q13: Ario | R13: Huitzilac | S13: Jala | T13: Carmen | U13: Asunción Tlacolulita | V13: Ahuehuetitla | W13: Jalpan de Serra | X13: Tulum | Y13: Cerritos | Z13: Elota | AA13: Bacanora | AB13: Jalapa | AC13: Ciudad Madero | AD13: Chiautempan | AE13: Alto Lucero de Gutiérrez Barrios | AF13: Cansahcab | AG13: Cuauhtémoc
B14: San José de Gracia | E14: Palizada | F14: Arriaga | G14: Buenaventura | H14: La Magdalena Contreras | I14: Frontera | J14: Villa de Álvarez | K14: Guanaceví | L14: Cuerámaro | M14: Atlamajalcingo del Monte | N14: Atlapexco | O14: Atenguillo | P14: Apaxco | Q14: Arteaga | R14: Jantetelco | S14: La Yesca | T14: Cerralvo | U14: Ayoquezco de Aldama | V14: Ajalpan | W14: Landa de Matamoros | Y14: Cerro de San Pedro | Z14: Escuinapa | AA14: Bacerac | AB14: Jalpa de Méndez | AC14: Cruillas | AD14: Contla de Juan Cuamatzi | AE14: Altotonga | AF14: Cantamayec | AG14: El Plateado de Joaquín Amaro
B15: Tepezalá | E15: Tenabo | F15: Bejucal de Ocampo | G15: Camargo | H15: Miguel Hidalgo | I15: General Cepeda | K15: Hidalgo | L15: Doctor Mora | M15: Atlixtac | N15: Atotonilco de Tula | O15: Atotonilco el Alto | P15: Atenco | Q15: Briseñas | R15: Jiutepec | S15: Rosamorada | T15: China | U15: Ayotzintepec | V15: Albino Zertuche | W15: Pedro Escobedo | Y15: Charcas | Z15: Guasave | AA15: Bacoachi | AB15: Jonuta | AC15: El Mante | AD15: Cuapiaxtla | AE15: Alvarado | AF15: Celestún | AG15: El Salvador
F16: Bella Vista | G16: Carichí | H16: Milpa Alta | I16: Guerrero | K16: Indé | L16: Dolores Hidalgo Cuna de la Independencia Nal. | M16: Atoyac de Álvarez | N16: Atotonilco el Grande | O16: Atoyac | P16: Atizapán | Q16: Buenavista | R16: Jojutla | S16: Ruíz | T16: Ciénega de Flores | U16: Calihualá | V16: Aljojuca | W16: Peñamiller | Y16: Ciudad del Maíz | Z16: Mazatlán | AA16: Bácum | AB16: Macuspana | AC16: Gómez Farías | AD16: Cuaxomulco | AE16: Amatitlán | AF16: Cenotillo | AG16: Fresnillo
F17: Benemérito de las Américas | G17: Casas Grandes | H17: Tláhuac | I17: Hidalgo | K17: Lerdo | L17: Guanajuato | M17: Ayutla de los Libres | N17: Calnali | O17: Autlán de Navarro | P17: Atizapán de Zaragoza | Q17: Carácuaro | R17: Jonacatepec | S17: San Blas | T17: Dr. Arroyo | U17: Candelaria Loxicha | V17: Altepexi | W17: Pinal de Amoles | Y17: Ciudad Fernández | Z17: Mocorito | AA17: Banámichi | AB17: Nacajuca | AC17: González | AD17: El Carmen Tequexquitla | AE17: Amatlán de los Reyes | AF17: Chacsinkín | AG17: Genaro Codina
F18: Berriozábal | G18: Chihuahua | H18: Tlalpan | I18: Jiménez | K18: Mapimí | L18: Huanímaro | M18: Azoyú | N18: Cardonal | O18: Ayotlán | P18: Atlacomulco | Q18: Charapan | R18: Mazatepec | S18: San Pedro Lagunillas | T18: Dr. Coss | U18: Capulálpam de Méndez | V18: Amixtlán | W18: Querétaro | Y18: Ciudad Valles | Z18: Navolato | AA18: Baviácora | AB18: Paraíso | AC18: Güémez | AD18: Emiliano Zapata | AE18: Angel R. Cabada | AF18: Chankom | AG18: General Enrique Estrada
F19: Bochil | G19: Chínipas | H19: Venustiano Carranza | I19: Juárez | K19: Mezquital | L19: Irapuato | M19: Benito Juárez | N19: Chapantongo | O19: Ayutla | P19: Atlautla | Q19: Charo | R19: Miacatlán | S19: Santa María del Oro | T19: Dr. González | U19: Chahuites | V19: Amozoc | W19: San Joaquín | Y19: Coxcatlán | Z19: Rosario | AA19: Bavispe | AB19: Tacotalpa | AC19: Guerrero | AD19: Españita | AE19: Apazapan | AF19: Chapab | AG19: General Francisco R. Murguía
F20: Cacahoatán | G20: Coronado | H20: Xochimilco | I20: Lamadrid | K20: Nazas | L20: Jaral del Progreso | M20: Buenavista de Cuéllar | N20: Chapulhuacán | O20: Bolaños | P20: Axapusco | Q20: Chavinda | R20: Ocuituco | S20: Santiago Ixcuintla | T20: Galeana | U20: Chalcatongo de Hidalgo | V20: Aquixtla | W20: San Juan del Río | Y20: Ebano | Z20: Salvador Alvarado | AA20: Benito Juárez | AB20: Teapa | AC20: Gustavo Díaz Ordaz | AD20: Huamantla | AE20: Aquila | AF20: Chemax | AG20: General Pánfilo Natera
F21: Catazajá | G21: Coyame del Sotol | I21: Matamoros | K21: Nombre de Dios | L21: Jerécuaro | M21: Chilapa de Álvarez | N21: Chilcuautla | O21: Cabo Corrientes | P21: Ayapango | Q21: Cherán | R21: Puente de Ixtla | S21: Tecuala | T21: García | U21: Chiquihuitlán de Benito Juárez | V21: Atempan | W21: Tequisquiapan | Y21: El Naranjo | Z21: San Ignacio | AA21: Benjamín Hill | AB21: Tenosique | AC21: Hidalgo | AD21: Hueyotlipan | AE21: Astacinga | AF21: Chichimilá | AG21: Guadalupe
F22: Chalchihuitán | G22: Cuauhtémoc | I22: Monclova | K22: Nuevo Ideal | L22: León | M22: Chilpancingo de los Bravo | N22: Cuautepec de Hinojosa | O22: Cañadas de Obregón | P22: Calimaya | Q22: Chilchota | R22: Temixco | S22: Tepic | T22: Gral. Bravo | U22: Ciénega de Zimatlán | V22: Atexcal | W22: Tolimán | Y22: Guadalcázar | Z22: Sinaloa | AA22: Caborca | AC22: Jaumave | AD22: Ixtacuixtla de Mariano Matamoros | AE22: Atlahuilco | AF22: Chicxulub Pueblo | AG22: Huanusco
F23: Chamula | G23: Cusihuiriachi | I23: Morelos | K23: Ocampo | L23: Manuel Doblado | M23: Coahuayutla de José María Izazaga | N23: El Arenal | O23: Casimiro Castillo | P23: Capulhuac | Q23: Chinicuila | R23: Temoac | S23: Tuxpan | T23: Gral. Escobedo | U23: Ciudad Ixtepec | V23: Atlequizayan | Y23: Huehuetlán | AA23: Cajeme | AC23: Jiménez | AD23: Ixtenco | AE23: Atoyac | AF23: Chikindzonot | AG23: Jalpa
F24: Chanal | G24: Delicias | I24: Múzquiz | K24: Otáez | L24: Moroleón | M24: Cochoapa el Grande | N24: Eloxochitlán | O24: Chapala | P24: Chalco | Q24: Chucándiro | R24: Tepalcingo | S24: Xalisco | T24: Gral. Terán | U24: Coatecas Altas | V24: Atlixco | Y24: Lagunillas | AA24: Cananea | AC24: Llera | AD24: La Magdalena Tlaltelulco | AE24: Atzacan | AF24: Chocholá | AG24: Jerez
F25: Chapultenango | G25: Dr. Belisario Domínguez | I25: Nadadores | K25: Pánuco de Coronado | L25: Ocampo | M25: Cocula | N25: Emiliano Zapata | O25: Chimaltitán | P25: Chapa de Mota | Q25: Churintzio | R25: Tepoztlán | T25: Gral. Treviño | U25: Coicoyán de las Flores | V25: Atoyatempan | Y25: Matehuala | AA25: Carbó | AC25: Mainero | AD25: Lázaro Cárdenas | AE25: Atzalan | AF25: Chumayel | AG25: Jiménez del Teul
F26: Chenalhó | G26: El Tule | I26: Nava | K26: Peñón Blanco | L26: Pénjamo | M26: Copala | N26: Epazoyucan | O26: Chiquilistlán | P26: Chapultepec | Q26: Churumuco | R26: Tetecala | T26: Gral. Zaragoza | U26: Concepción Buenavista | V26: Atzala | Y26: Matlapa | AA26: Cucurpe | AC26: Matamoros | AD26: Mazatecochco de José María Morelos | AE26: Ayahualulco | AF26: Conkal | AG26: Juan Aldama
F27: Chiapa de Corzo | G27: Galeana | I27: Ocampo | K27: Poanas | L27: Pueblo Nuevo | M27: Copalillo | N27: Francisco I. Madero | O27: Cihuatlán | P27: Chiautla | Q27: Coahuayana | R27: Tetela del Volcán | T27: Gral. Zuazua | U27: Concepción Pápalo | V27: Atzitzihuacán | Y27: Mexquitic de Carmona | AA27: Cumpas | AC27: Méndez | AD27: Muñoz de Domingo Arenas | AE27: Banderilla | AF27: Cuncunul | AG27: Juchipila
F28: Chiapilla | G28: Gómez Farías | I28: Parras | K28: Pueblo Nuevo | L28: Purísima del Rincón | M28: Copanatoyac | N28: Huasca de Ocampo | O28: Cocula | P28: Chicoloapan | Q28: Coalcomán de Vázquez Pallares | R28: Tlalnepantla | T28: Guadalupe | U28: Constancia del Rosario | V28: Atzitzintla | Y28: Moctezuma | AA28: Divisaderos | AC28: Mier | AD28: Nanacamilpa de Mariano Arista | AE28: Benito Juárez | AF28: Cuzamá | AG28: Loreto
F29: Chicoasén | G29: Gran Morelos | I29: Piedras Negras | K29: Rodeo | L29: Romita | M29: Coyuca de Benítez | N29: Huautla | O29: Colotlán | P29: Chiconcuac | Q29: Coeneo | R29: Tlaltizapán | T29: Hidalgo | U29: Cosolapa | V29: Axutla | Y29: Rayón | AA29: Empalme | AC29: Miguel Alemán | AD29: Natívitas | AE29: Boca del Río | AF29: Dzán | AG29: Luis Moya
F30: Chicomuselo | G30: Guachochi | I30: Progreso | K30: San Bernardo | L30: Salamanca | M30: Coyuca de Catalán | N30: Huazalingo | O30: Concepción de Buenos Aires | P30: Chimalhuacán | Q30: Cojumatlán de Régules | R30: Tlaquiltenango | T30: Higueras | U30: Cosoltepec | V30: Ayotoxco de Guerrero | Y30: Rioverde | AA30: Etchojoa | AC30: Miquihuana | AD30: Panotla | AE30: Calcahualco | AF30: Dzemul | AG30: Mazapil
F31: Chilón | G31: Guadalupe | I31: Ramos Arizpe | K31: San Dimas | L31: Salvatierra | M31: Cuajinicuilapa | N31: Huehuetla | O31: Cuautitlán de García Barragán | P31: Coacalco de Berriozábal | Q31: Contepec | R31: Tlayacapan | T31: Hualahuises | U31: Cuilápam de Guerrero | V31: Calpan | Y31: Salinas | AA31: Fronteras | AC31: Nuevo Laredo | AD31: Papalotla de Xicohténcatl | AE31: Camarón de Tejeda | AF31: Dzidzantún | AG31: Melchor Ocampo
F32: Cintalapa | G32: Guadalupe y Calvo | I32: Sabinas | K32: San Juan de Guadalupe | L32: San Diego de la Unión | M32: Cualác | N32: Huejutla de Reyes | O32: Cuautla | P32: Coatepec Harinas | Q32: Copándaro | R32: Totolapan | T32: Iturbide | U32: Cuyamecalco Villa de Zaragoza | V32: Caltepec | Y32: San Antonio | AA32: General Plutarco Elías Calles | AC32: Nuevo Morelos | AD32: San Damián Texóloc | AE32: Camerino Z. Mendoza | AF32: Dzilam de Bravo | AG32: Mezquital del Oro
F33: Coapilla | G33: Guazapares | I33: Sacramento | K33: San Juan del Río | L33: San Felipe | M33: Cuautepec | N33: Huichapan | O33: Cuquío | P33: Cocotitlán | Q33: Cotija | R33: Xochitepec | T33: Juárez | U33: El Barrio de la Soledad | V33: Camocuautla | Y33: San Ciro de Acosta | AA33: Granados | AC33: Ocampo | AD33: San Francisco Tetlanohcan | AE33: Carlos A. Carrillo | AF33: Dzilam González | AG33: Miguel Auza
F34: Comitán de Domínguez | G34: Guerrero | I34: Saltillo | K34: San Luis del Cordero | L34: San Francisco del Rincón | M34: Cuetzala del Progreso | N34: Ixmiquilpan | O34: Degollado | P34: Coyotepec | Q34: Cuitzeo | R34: Yautepec | T34: Lampazos de Naranjo | U34: El Espinal | V34: Cañada Morelos | Y34: San Luis Potosí | AA34: Guaymas | AC34: Padilla | AD34: San Jerónimo Zacualpan | AE34: Carrillo Puerto | AF34: Dzitás | AG34: Momax
F35: Copainalá | G35: Hidalgo del Parral | I35: San Buenaventura | K35: San Pedro del Gallo | L35: San José Iturbide | M35: Cutzamala de Pinzón | N35: Jacala de Ledezma | O35: Ejutla | P35: Cuautitlán | Q35: Ecuandureo | R35: Yecapixtla | T35: Linares | U35: Eloxochitlán de Flores Magón | V35: Caxhuacan | Y35: San Martín Chalchicuautla | AA35: Hermosillo | AC35: Palmillas | AD35: San José Teacalco | AE35: Castillo de Teayo | AF35: Dzoncauich | AG35: Monte Escobedo
F36: El Bosque | G36: Huejotitán | I36: San Juan de Sabinas | K36: Santa Clara | L36: San Luis de la Paz | M36: Eduardo Neri | N36: Jaltocán | O36: El Arenal | P36: Cuautitlán Izcalli | Q36: Epitacio Huerta | R36: Zacatepec | T36: Los Aldamas | U36: Fresnillo de Trujano | V36: Chalchicomula de Sesma | Y36: San Nicolás Tolentino | AA36: Huachinera | AC36: Reynosa | AD36: San Juan Huactzinco | AE36: Catemaco | AF36: Espita | AG36: Morelos
F37: El Porvenir | G37: Ignacio Zaragoza | I37: San Pedro | K37: Santiago Papasquiaro | L37: San Miguel de Allende | M37: Florencio Villarreal | N37: Juárez Hidalgo | O37: El Grullo | P37: Donato Guerra | Q37: Erongarícuaro | R37: Zacualpan | T37: Los Herreras | U37: Guadalupe de Ramírez | V37: Chapulco | Y37: San Vicente Tancuayalab | AA37: Huásabas | AC37: Río Bravo | AD37: San Lorenzo Axocomanitla | AE37: Cazones de Herrera | AF37: Halachó | AG37: Moyahua de Estrada
F38: Escuintla | G38: Janos | I38: Sierra Mojada | K38: Súchil | L38: Santa Catarina | M38: General Canuto A. Neri | N38: La Misión | O38: El Limón | P38: Ecatepec de Morelos | Q38: Gabriel Zamora | T38: Los Ramones | U38: Guadalupe Etla | V38: Chiautla | Y38: Santa Catarina | AA38: Huatabampo | AC38: San Carlos | AD38: San Lucas Tecopilco | AE38: Cerro Azul | AF38: Hocabá | AG38: Nochistlán de Mejía
F39: Francisco León | G39: Jiménez | I39: Torreón | K39: Tamazula | L39: Santa Cruz de Juventino Rosas | M39: General Heliodoro Castillo | N39: Lolotla | O39: El Salto | P39: Ecatzingo | Q39: Hidalgo | T39: Marín | U39: Guelatao de Juárez | V39: Chiautzingo | Y39: Santa María del Río | AA39: Huépac | AC39: San Fernando | AD39: San Pablo del Monte | AE39: Chacaltianguis | AF39: Hoctún | AG39: Noria de Ángeles
F40: Frontera Comalapa | G40: Juárez | I40: Viesca | K40: Tepehuanes | L40: Santiago Maravatío | M40: Huamuxtitlán | N40: Metepec | O40: Encarnación de Díaz | P40: El Oro | Q40: Huandacareo | T40: Melchor Ocampo | U40: Guevea de Humboldt | V40: Chichiquila | Y40: Santo Domingo | AA40: Imuris | AC40: San Nicolás | AD40: Sanctórum de Lázaro Cárdenas | AE40: Chalma | AF40: Homún | AG40: Ojocaliente
F41: Frontera Hidalgo | G41: Julimes | I41: Villa Unión | K41: Tlahualilo | L41: Silao | M41: Huitzuco de los Figueroa | N41: Metztitlán | O41: Etzatlán | P41: Huehuetoca | Q41: Huaniqueo | T41: Mier y Noriega | U41: Heroica Ciudad de Ejutla de Crespo | V41: Chiconcuautla | Y41: Soledad de Graciano Sánchez | AA41: La Colorada | AC41: Soto la Marina | AD41: Santa Ana Nopalucan | AE41: Chiconamel | AF41: Huhí | AG41: Pánuco
F42: Huehuetán | G42: La Cruz | I42: Zaragoza | K42: Topia | L42: Tarandacuao | M42: Iguala de la Independencia | N42: Mineral de la Reforma | O42: Gómez Farías | P42: Hueypoxtla | Q42: Huetamo | T42: Mina | U42: Heroica Ciudad de Huajuapan de León | V42: Chigmecatitlán | Y42: Tamasopo | AA42: Magdalena | AC42: Tampico | AD42: Santa Apolonia Teacalco | AE42: Chiconquiaco | AF42: Hunucmá | AG42: Pinos
F43: Huitiupán | G43: López | K43: Vicente Guerrero | L43: Tarimoro | M43: Igualapa | N43: Mineral del Chico | O43: Guachinango | P43: Huixquilucan | Q43: Huiramba | T43: Montemorelos | U43: Heroica Ciudad de Tlaxiaco | V43: Chignahuapan | Y43: Tamazunchale | AA43: Mazatán | AC43: Tula | AD43: Santa Catarina Ayometla | AE43: Chicontepec | AF43: Ixil | AG43: Río Grande
F44: Huixtán | G44: Madera | L44: Tierra Blanca | M44: Iliatenco | N44: Mineral del Monte | O44: Guadalajara | P44: Isidro Fabela | Q44: Indaparapeo | T44: Monterrey | U44: Huautepec | V44: Chignautla | Y44: Tampacán | AA44: Moctezuma | AC44: Valle Hermoso | AD44: Santa Cruz Quilehtla | AE44: Chinameca | AF44: Izamal | AG44: Sain Alto
F45: Huixtla | G45: Maguarichi | L45: Uriangato | M45: Ixcateopan de Cuauhtémoc | N45: Mixquiahuala de Juárez | O45: Hostotipaquillo | P45: Ixtapaluca | Q45: Irimbo | T45: Parás | U45: Huautla de Jiménez | V45: Chila | Y45: Tampamolón Corona | AA45: Naco | AC45: Victoria | AD45: Santa Cruz Tlaxcala | AE45: Chinampa de Gorostiza | AF45: Kanasín | AG45: Santa María de la Paz
F46: Ixhuatán | G46: Manuel Benavides | L46: Valle de Santiago | M46: Zihuatanejo de Azueta | N46: Molango de Escamilla | O46: Huejúcar | P46: Ixtapan de la Sal | Q46: Ixtlán | T46: Pesquería | U46: Ixpantepec Nieves | V46: Chila de la Sal | Y46: Tamuín | AA46: Nácori Chico | AC46: Villagrán | AD46: Santa Isabel Xiloxoxtla | AE46: Chocamán | AF46: Kantunil | AG46: Sombrerete
F47: Ixtacomitán | G47: Matachí | L47: Victoria | M47: José Joaquín de Herrera | N47: Nicolás Flores | O47: Huejuquilla el Alto | P47: Ixtapan del Oro | Q47: Jacona | T47: Rayones | U47: Ixtlán de Juárez | V47: Chilchotla | Y47: Tancanhuitz | AA47: Nacozari de García | AC47: Xicoténcatl | AD47: Tenancingo | AE47: Chontla | AF47: Kaua | AG47: Susticacán
F48: Ixtapa | G48: Matamoros | L48: Villagrán | M48: Juan R. Escudero | N48: Nopala de Villagrán | O48: Ixtlahuacán de los Membrillos | P48: Ixtlahuaca | Q48: Jiménez | T48: Sabinas Hidalgo | U48: Heroica Ciudad de Juchitán de Zaragoza | V48: Chinantla | Y48: Tanlajás | AA48: Navojoa | AD48: Teolocholco | AE48: Chumatlán | AF48: Kinchil | AG48: Tabasco
F49: Ixtapangajoya | G49: Meoqui | L49: Xichú | M49: Juchitán | N49: Omitlán de Juárez | O49: Ixtlahuacán del Río | P49: Jaltenco | Q49: Jiquilpan | T49: Salinas Victoria | U49: La Compañía | V49: Chietla | Y49: Tanquián de Escobedo | AA49: Nogales | AD49: Tepetitla de Lardizábal | AE49: Citlaltépetl | AF49: Kopomá | AG49: Tepechitlán
F50: Jiquipilas | G50: Morelos | L50: Yuriria | M50: La Unión de Isidoro Montes de Oca | N50: Pachuca de Soto | O50: Jalostotitlán | P50: Jilotepec | Q50: José Sixto Verduzco | T50: San Nicolás de los Garza | U50: La Pe | V50: Coatepec | Y50: Tierra Nueva | AA50: Onavas | AD50: Tepeyanco | AE50: Coacoatzintla | AF50: Mama | AG50: Tepetongo
F51: Jitotol | G51: Moris | M51: Leonardo Bravo | N51: Pacula | O51: Jamay | P51: Jilotzingo | Q51: Juárez | T51: San Pedro Garza García | U51: La Reforma | V51: Coatzingo | Y51: Vanegas | AA51: Opodepe | AD51: Terrenate | AE51: Coahuitlán | AF51: Maní | AG51: Teúl de González Ortega
F52: Juárez | G52: Namiquipa | M52: Malinaltepec | N52: Pisaflores | O52: Jesús María | P52: Jiquipilco | Q52: Jungapeo | T52: Santa Catarina | U52: La Trinidad Vista Hermosa | V52: Cohetzala | Y52: Venado | AA52: Oquitoa | AD52: Tetla de la Solidaridad | AE52: Coatepec | AF52: Maxcanú | AG52: Tlaltenango de Sánchez Román
F53: La Concordia | G53: Nonoava | M53: Marquelia | N53: Progreso de Obregón | O53: Jilotlán de los Dolores | P53: Jocotitlán | Q53: La Huacana | T53: Santiago | U53: Loma Bonita | V53: Cohuecan | Y53: Villa de Arista | AA53: Pitiquito | AD53: Tetlatlahuca | AE53: Coatzacoalcos | AF53: Mayapán | AG53: Trancoso
F54: La Grandeza | G54: Nuevo Casas Grandes | M54: Mártir de Cuilapan | N54: San Agustín Metzquititlán | O54: Jocotepec | P54: Joquicingo | Q54: La Piedad | T54: Vallecillo | U54: Magdalena Apasco | V54: Coronango | Y54: Villa de Arriaga | AA54: Puerto Peñasco | AD54: Tlaxcala | AE54: Coatzintla | AF54: Mérida | AG54: Trinidad García de la Cadena
F55: La Independencia | G55: Ocampo | M55: Metlatónoc | N55: San Agustín Tlaxiaca | O55: Juanacatlán | P55: Juchitepec | Q55: Lagunillas | T55: Villaldama | U55: Magdalena Jaltepec | V55: Coxcatlán | Y55: Villa de Guadalupe | AA55: Quiriego | AD55: Tlaxco | AE55: Coetzala | AF55: Mocochá | AG55: Valparaíso
F56: La Libertad | G56: Ojinaga | M56: Mochitlán | N56: San Bartolo Tutotepec | O56: Juchitlán | P56: La Paz | Q56: Lázaro Cárdenas | U56: Magdalena Mixtepec | V56: Coyomeapan | Y56: Villa de la Paz | AA56: Rayón | AD56: Tocatlán | AE56: Colipa | AF56: Motul | AG56: Vetagrande
F57: La Trinitaria | G57: Praxedis G. Guerrero | M57: Olinalá | N57: San Felipe Orizatlán | O57: La Barca | P57: Lerma | Q57: Los Reyes | U57: Magdalena Ocotlán | V57: Coyotepec | Y57: Villa de Ramos | AA57: Rosario | AD57: Totolac | AE57: Comapa | AF57: Muna | AG57: Villa de Cos
F58: Larráinzar | G58: Riva Palacio | M58: Ometepec | N58: San Salvador | O58: La Huerta | P58: Luvianos | Q58: Madero | U58: Magdalena Peñasco | V58: Cuapiaxtla de Madero | Y58: Villa de Reyes | AA58: Sahuaripa | AD58: Tzompantepec | AE58: Córdoba | AF58: Muxupip | AG58: Villa García
F59: Las Margaritas | G59: Rosales | M59: Pedro Ascencio Alquisiras | N59: Santiago de Anaya | O59: La Manzanilla de la Paz | P59: Malinalco | Q59: Maravatío | U59: Magdalena Teitipac | V59: Cuautempan | Y59: Villa Hidalgo | AA59: San Felipe de Jesús | AD59: Xaloztoc | AE59: Cosamaloapan de Carpio | AF59: Opichén | AG59: Villa González Ortega
F60: Las Rosas | G60: Rosario | M60: Petatlán | N60: Santiago Tulantepec de Lugo Guerrero | O60: Lagos de Moreno | P60: Melchor Ocampo | Q60: Marcos Castellanos | U60: Magdalena Tequisistlán | V60: Cuautinchán | Y60: Villa Juárez | AA60: San Ignacio Río Muerto | AD60: Xaltocan | AE60: Cosautlán de Carvajal | AF60: Oxkutzcab | AG60: Villa Hidalgo
F61: Mapastepec | G61: San Francisco de Borja | M61: Pilcaya | N61: Singuilucan | O61: Magdalena | P61: Metepec | Q61: Morelia | U61: Magdalena Tlacotepec | V61: Cuautlancingo | Y61: Xilitla | AA61: San Javier | AD61: Xicohtzinco | AE61: Coscomatepec | AF61: Panabá | AG61: Villanueva
F62: Maravilla Tenejapa | G62: San Francisco de Conchos | M62: Pungarabato | N62: Tasquillo | O62: Mascota | P62: Mexicaltzingo | Q62: Morelos | U62: Magdalena Yodocono de Porfirio Díaz | V62: Cuayuca de Andrade | Y62: Zaragoza | AA62: San Luis Río Colorado | AD62: Yauhquemehcan | AE62: Cosoleacaque | AF62: Peto | AG62: Zacatecas
F63: Marqués de Comillas | G63: San Francisco del Oro | M63: Quechultenango | N63: Tecozautla | O63: Mazamitla | P63: Morelos | Q63: Múgica | U63: Magdalena Zahuatlán | V63: Cuetzalan del Progreso | AA63: San Miguel de Horcasitas | AD63: Zacatelco | AE63: Cotaxtla | AF63: Progreso
F64: Mazapa de Madero | G64: Santa Bárbara | M64: San Luis Acatlán | N64: Tenango de Doria | O64: Mexticacán | P64: Naucalpan de Juárez | Q64: Nahuatzen | U64: Mariscala de Juárez | V64: Cuyoaco | AA64: San Pedro de la Cueva | AD64: Ziltlaltépec de Trinidad Sánchez Santos | AE64: Coxquihui | AF64: Quintana Roo
F65: Mazatán | G65: Santa Isabel | M65: San Marcos | N65: Tepeapulco | O65: Mezquitic | P65: Nextlalpan | Q65: Nocupétaro | U65: Mártires de Tacubaya | V65: Domingo Arenas | AA65: Santa Ana | AE65: Coyutla | AF65: Río Lagartos
F66: Metapa | G66: Satevó | M66: San Miguel Totolapan | N66: Tepehuacán de Guerrero | O66: Mixtlán | P66: Nezahualcóyotl | Q66: Nuevo Parangaricutiro | U66: Matías Romero Avendaño | V66: Eloxochitlán | AA66: Santa Cruz | AE66: Cuichapa | AF66: Sacalum
F67: Mitontic | G67: Saucillo | M67: Taxco de Alarcón | N67: Tepeji del Río de Ocampo | O67: Ocotlán | P67: Nicolás Romero | Q67: Nuevo Urecho | U67: Mazatlán Villa de Flores | V67: Epatlán | AA67: Sáric | AE67: Cuitláhuac | AF67: Samahil
F68: Montecristo de Guerrero | G68: Temósachic | M68: Tecoanapa | N68: Tepetitlán | O68: Ojuelos de Jalisco | P68: Nopaltepec | Q68: Numarán | U68: Mesones Hidalgo | V68: Esperanza | AA68: Soyopa | AE68: El Higo | AF68: San Felipe
F69: Motozintla | G69: Urique | M69: Técpan de Galeana | N69: Tetepango | O69: Pihuamo | P69: Ocoyoacac | Q69: Ocampo | U69: Miahuatlán de Porfirio Díaz | V69: Francisco Z. Mena | AA69: Suaqui Grande | AE69: Emiliano Zapata | AF69: Sanahcat
F70: Nicolás Ruiz | G70: Uruachi | M70: Teloloapan | N70: Tezontepec de Aldama | O70: Poncitlán | P70: Ocuilan | Q70: Pajacuarán | U70: Mixistlán de la Reforma | V70: General Felipe Ángeles | AA70: Tepache | AE70: Espinal | AF70: Santa Elena
F71: Ocosingo | G71: Valle de Zaragoza | M71: Tepecoacuilco de Trujano | N71: Tianguistengo | O71: Puerto Vallarta | P71: Otumba | Q71: Panindícuaro | U71: Monjas | V71: Guadalupe | AA71: Trincheras | AE71: Filomeno Mata | AF71: Seyé
F72: Ocotepec | M72: Tetipac | N72: Tizayuca | O72: Quitupan | P72: Otzoloapan | Q72: Paracho | U72: Natividad | V72: Guadalupe Victoria | AA72: Tubutama | AE72: Fortín | AF72: Sinanché
F73: Ocozocoautla de Espinosa | M73: Tixtla de Guerrero | N73: Tlahuelilpan | O73: San Cristóbal de la Barranca | P73: Otzolotepec | Q73: Parácuaro | U73: Nazareno Etla | V73: Hermenegildo Galeana | AA73: Ures | AE73: Gutiérrez Zamora | AF73: Sotuta
F74: Ostuacán | M74: Tlacoachistlahuaca | N74: Tlahuiltepa | O74: San Diego de Alejandría | P74: Ozumba | Q74: Pátzcuaro | U74: Nejapa de Madero | V74: Huaquechula | AA74: Villa Hidalgo | AE74: Hidalgotitlán | AF74: Sucilá
F75: Osumacinta | M75: Tlacoapa | N75: Tlanalapa | O75: San Gabriel | P75: Papalotla | Q75: Penjamillo | U75: Nuevo Zoquiápam | V75: Huatlatlauca | AA75: Villa Pesqueira | AE75: Huatusco | AF75: Sudzal
F76: Oxchuc | M76: Tlalchapa | N76: Tlanchinol | O76: San Ignacio Cerro Gordo | P76: Polotitlán | Q76: Peribán | U76: Oaxaca de Juárez | V76: Huauchinango | AA76: Yécora | AE76: Huayacocotla | AF76: Suma
F77: Palenque | M77: Tlalixtaquilla de Maldonado | N77: Tlaxcoapan | O77: San Juan de los Lagos | P77: Rayón | Q77: Purépero | U77: Ocotlán de Morelos | V77: Huehuetla | AE77: Hueyapan de Ocampo | AF77: Tahdziú
F78: Pantelhó | M78: Tlapa de Comonfort | N78: Tolcayuca | O78: San Juanito de Escobedo | P78: San Antonio la Isla | Q78: Puruándiro | U78: Pinotepa de Don Luis | V78: Huehuetlán el Chico | AE78: Huiloapan de Cuauhtémoc | AF78: Tahmek
F79: Pantepec | M79: Tlapehuala | N79: Tula de Allende | O79: San Julián | P79: San Felipe del Progreso | Q79: Queréndaro | U79: Pluma Hidalgo | V79: Huehuetlán el Grande | AE79: Ignacio de la Llave | AF79: Teabo
F80: Pichucalco | M80: Xalpatláhuac | N80: Tulancingo de Bravo | O80: San Marcos | P80: San José del Rincón | Q80: Quiroga | U80: Putla Villa de Guerrero | V80: Huejotzingo | AE80: Ilamatlán | AF80: Tecoh
F81: Pijijiapan | M81: Xochihuehuetlán | N81: Villa de Tezontepec | O81: San Martín de Bolaños | P81: San Martín de las Pirámides | Q81: Sahuayo | U81: Reforma de Pineda | V81: Hueyapan | AE81: Isla | AF81: Tekal de Venegas
F82: Pueblo Nuevo Solistahuacán | M82: Xochistlahuaca | N82: Xochiatipan | O82: San Martín Hidalgo | P82: San Mateo Atenco | Q82: Salvador Escalante | U82: Reyes Etla | V82: Hueytamalco | AE82: Ixcatepec | AF82: Tekantó
F83: Rayón | M83: Zapotitlán Tablas | N83: Xochicoatlán | O83: San Miguel el Alto | P83: San Simón de Guerrero | Q83: San Lucas | U83: Rojas de Cuauhtémoc | V83: Hueytlalpan | AE83: Ixhuacán de los Reyes | AF83: Tekax
F84: Reforma | M84: Zirándaro | N84: Yahualica | O84: San Sebastián del Oeste | P84: Santo Tomás | Q84: Santa Ana Maya | U84: Salina Cruz | V84: Huitzilan de Serdán | AE84: Ixhuatlán de Madero | AF84: Tekit
F85: Sabanilla | M85: Zitlala | N85: Zacualtipán de Ángeles | O85: Santa María de los Ángeles | P85: Soyaniquilpan de Juárez | Q85: Senguio | U85: San Agustín Amatengo | V85: Huitziltepec | AE85: Ixhuatlán del Café | AF85: Tekom
F86: Salto de Agua | N86: Zapotlán de Juárez | O86: Santa María del Oro | P86: Sultepec | Q86: Susupuato | U86: San Agustín Atenango | V86: Ixcamilpa de Guerrero | AE86: Ixhuatlán del Sureste | AF86: Telchac Pueblo
F87: San Andrés Duraznal | N87: Zempoala | O87: Sayula | P87: Tecámac | Q87: Tacámbaro | U87: San Agustín Chayuco | V87: Ixcaquixtla | AE87: Ixhuatlancillo | AF87: Telchac Puerto
F88: San Cristóbal de las Casas | N88: Zimapán | O88: Tala | P88: Tejupilco | Q88: Tancítaro | U88: San Agustín de las Juntas | V88: Ixtacamaxtitlán | AE88: Ixmatlahuacan | AF88: Temax
F89: San Fernando | O89: Talpa de Allende | P89: Temamatla | Q89: Tangamandapio | U89: San Agustín Etla | V89: Ixtepec | AE89: Ixtaczoquitlán | AF89: Temozón
F90: San Juan Cancuc | O90: Tamazula de Gordiano | P90: Temascalapa | Q90: Tangancícuaro | U90: San Agustín Loxicha | V90: Izúcar de Matamoros | AE90: Jalacingo | AF90: Tepakán
F91: San Lucas | O91: Tapalpa | P91: Temascalcingo | Q91: Tanhuato | U91: San Agustín Tlacotepec | V91: Jalpan | AE91: Jalcomulco | AF91: Tetiz
F92: Santiago el Pinar | O92: Tecalitlán | P92: Temascaltepec | Q92: Taretan | U92: San Agustín Yatareni | V92: Jolalpan | AE92: Jáltipan | AF92: Teya
F93: Siltepec | O93: Techaluta de Montenegro | P93: Temoaya | Q93: Tarímbaro | U93: San Andrés Cabecera Nueva | V93: Jonotla | AE93: Jamapa | AF93: Ticul
F94: Simojovel | O94: Tecolotlán | P94: Tenancingo | Q94: Tepalcatepec | U94: San Andrés Dinicuiti | V94: Jopala | AE94: Jesús Carranza | AF94: Timucuy
F95: Sitalá | O95: Tenamaxtlán | P95: Tenango del Aire | Q95: Tingambato | U95: San Andrés Huaxpaltepec | V95: Juan C. Bonilla | AE95: Jilotepec | AF95: Tinum
F96: Socoltenango | O96: Teocaltiche | P96: Tenango del Valle | Q96: Tingüindín | U96: San Andrés Huayápam | V96: Juan Galindo | AE96: José Azueta | AF96: Tixcacalcupul
F97: Solosuchiapa | O97: Teocuitatlán de Corona | P97: Teoloyucán | Q97: Tiquicheo de Nicolás Romero | U97: San Andrés Ixtlahuaca | V97: Juan N. Méndez | AE97: Juan Rodríguez Clara | AF97: Tixkokob
F98: Soyaló | O98: Tepatitlán de Morelos | P98: Teotihuacán | Q98: Tlalpujahua | U98: San Andrés Lagunas | V98: La Magdalena Tlatlauquitepec | AE98: Juchique de Ferrer | AF98: Tixmehuac
F99: Suchiapa | O99: Tequila | P99: Tepetlaoxtoc | Q99: Tlazazalca | U99: San Andrés Nuxiño | V99: Lafragua | AE99: La Antigua | AF99: Tixpéhual
F100: Suchiate | O100: Teuchitlán | P100: Tepetlixpa | Q100: Tocumbo | U100: San Andrés Paxtlán | V100: Libres | AE100: La Perla | AF100: Tizimín
F101: Sunuapa | O101: Tizapán el Alto | P101: Tepotzotlán | Q101: Tumbiscatío | U101: San Andrés Sinaxtla | V101: Los Reyes de Juárez | AE101: Landero y Coss | AF101: Tunkás
F102: Tapachula | O102: Tlajomulco de Zúñiga | P102: Tequixquiac | Q102: Turicato | U102: San Andrés Solaga | V102: Mazapiltepec de Juárez | AE102: Las Choapas | AF102: Tzucacab
F103: Tapalapa | O103: Tlaquepaque | P103: Texcaltitlán | Q103: Tuxpan | U103: San Andrés Teotilálpam | V103: Mixtla | AE103: Las Minas | AF103: Uayma
F104: Tapilula | O104: Tolimán | P104: Texcalyacac | Q104: Tuzantla | U104: San Andrés Tepetlapa | V104: Molcaxac | AE104: Las Vigas de Ramírez | AF104: Ucú
F105: Tecpatán | O105: Tomatlán | P105: Texcoco | Q105: Tzintzuntzan | U105: San Andrés Yaá | V105: Honey | AE105: Lerdo de Tejada | AF105: Umán
F106: Tenejapa | O106: Tonalá | P106: Tezoyuca | Q106: Tzitzio | U106: San Andrés Zabache | V106: Naupan | AE106: Los Reyes | AF106: Valladolid
F107: Teopisca | O107: Tonaya | P107: Tianguistenco | Q107: Uruapan | U107: San Andrés Zautla | V107: Nauzontla | AE107: Magdalena | AF107: Xocchel
F108: Tila | O108: Tonila | P108: Timilpan | Q108: Venustiano Carranza | U108: San Antonino Castillo Velasco | V108: Nealtican | AE108: Maltrata | AF108: Yaxcabá
F109: Tonalá | O109: Totatiche | P109: Tlalmanalco | Q109: Villamar | U109: San Antonino el Alto | V109: Nicolás Bravo | AE109: Manlio Fabio Altamirano | AF109: Yaxkukul
F110: Totolapa | O110: Tototlán | P110: Tlalnepantla de Baz | Q110: Vista Hermosa | U110: San Antonino Monte Verde | V110: Nopalucan | AE110: Mariano Escobedo | AF110: Yobaín
F111: Tumbalá | O111: Tuxcacuesco | P111: Tlatlaya | Q111: Yurécuaro | U111: San Antonio Acutla | V111: Ocotepec | AE111: Martínez de la Torre
F112: Tuxtla Chico | O112: Tuxcueca | P112: Toluca | Q112: Zacapu | U112: San Antonio de la Cal | V112: Ocoyucan | AE112: Mecatlán
F113: Tuxtla Gutiérrez | O113: Tuxpan | P113: Tonanitla | Q113: Zamora | U113: San Antonio Huitepec | V113: Olintla | AE113: Mecayapan
F114: Tuzantán | O114: Unión de San Antonio | P114: Tonatico | Q114: Zináparo | U114: San Antonio Nanahuatípam | V114: Oriental | AE114: Medellín
F115: Tzimol | O115: Unión de Tula | P115: Tultepec | Q115: Zinapécuaro | U115: San Antonio Sinicahua | V115: Pahuatlán | AE115: Miahuatlán
F116: Unión Juárez | O116: Valle de Guadalupe | P116: Tultitlán | Q116: Ziracuaretiro | U116: San Antonio Tepetlapa | V116: Palmar de Bravo | AE116: Minatitlán
F117: Venustiano Carranza | O117: Valle de Juárez | P117: Valle de Bravo | Q117: Zitácuaro | U117: San Baltazar Chichicápam | V117: Pantepec | AE117: Misantla
F118: Villa Comaltitlán | O118: Villa Corona | P118: Valle de Chalco Solidaridad | U118: San Baltazar Loxicha | V118: Petlalcingo | AE118: Mixtla de Altamirano
F119: Villa Corzo | O119: Villa Guerrero | P119: Villa de Allende | U119: San Baltazar Yatzachi el Bajo | V119: Piaxtla | AE119: Moloacán
F120: Villaflores | O120: Villa Hidalgo | P120: Villa del Carbón | U120: San Bartolo Coyotepec | V120: Puebla | AE120: Nanchital de Lázaro Cárdenas del Río
F121: Yajalón | O121: Villa Purificación | P121: Villa Guerrero | U121: San Bartolo Soyaltepec | V121: Quecholac | AE121: Naolinco
F122: Zinacantán | O122: Yahualica de González Gallo | P122: Villa Victoria | U122: San Bartolo Yautepec | V122: Quimixtlán | AE122: Naranjal
O123: Zacoalco de Torres | P123: Xalatlaco | U123: San Bartolomé Ayautla | V123: Rafael Lara Grajales | AE123: Naranjos Amatlán
O124: Zapopan | P124: Xonacatlán | U124: San Bartolomé Loxicha | V124: San Andrés Cholula | AE124: Nautla
O125: Zapotiltic | P125: Zacazonapan | U125: San Bartolomé Quialana | V125: San Antonio Cañada | AE125: Nogales
O126: Zapotitlán de Vadillo | P126: Zacualpan | U126: San Bartolomé Yucuañe | V126: San Diego la Mesa Tochimiltzingo | AE126: Oluta
O127: Zapotlán del Rey | P127: Zinacantepec | U127: San Bartolomé Zoogocho | V127: San Felipe Teotlalcingo | AE127: Omealca
O128: Zapotlán el Grande | P128: Zumpahuacán | U128: San Bernardo Mixtepec | V128: San Felipe Tepatlán | AE128: Orizaba
O129: Zapotlanejo | P129: Zumpango | U129: San Blas Atempa | V129: San Gabriel Chilac | AE129: Otatitlán
U130: San Carlos Yautepec | V130: San Gregorio Atzompa | AE130: Oteapan
U131: San Cristóbal Amatlán | V131: San Jerónimo Tecuanipan | AE131: Ozuluama de Mascareñas
U132: San Cristóbal Amoltepec | V132: San Jerónimo Xayacatlán | AE132: Pajapan
U133: San Cristóbal Lachirioag | V133: San José Chiapa | AE133: Pánuco
U134: San Cristóbal Suchixtlahuaca | V134: San José Miahuatlán | AE134: Papantla
U135: San Dionisio del Mar | V135: San Juan Atenco | AE135: Paso de Ovejas
U136: San Dionisio Ocotepec | V136: San Juan Atzompa | AE136: Paso del Macho
U137: San Dionisio Ocotlán | V137: San Martín Texmelucan | AE137: Perote
U138: San Esteban Atatlahuca | V138: San Martín Totoltepec | AE138: Platón Sánchez
U139: San Felipe Jalapa de Díaz | V139: San Matías Tlalancaleca | AE139: Playa Vicente
U140: San Felipe Tejalápam | V140: San Miguel Ixitlán | AE140: Poza Rica de Hidalgo
U141: San Felipe Usila | V141: San Miguel Xoxtla | AE141: Pueblo Viejo
U142: San Francisco Cahuacuá | V142: San Nicolás Buenos Aires | AE142: Puente Nacional
U143: San Francisco Cajonos | V143: San Nicolás de los Ranchos | AE143: Rafael Delgado
U144: San Francisco Chapulapa | V144: San Pablo Anicano | AE144: Rafael Lucio
U145: San Francisco Chindúa | V145: San Pedro Cholula | AE145: Río Blanco
U146: San Francisco del Mar | V146: San Pedro Yeloixtlahuaca | AE146: Saltabarranca
U147: San Francisco Huehuetlán | V147: San Salvador el Seco | AE147: San Andrés Tenejapan
U148: San Francisco Ixhuatán | V148: San Salvador el Verde | AE148: San Andrés Tuxtla
U149: San Francisco Jaltepetongo | V149: San Salvador Huixcolotla | AE149: San Juan Evangelista
U150: San Francisco Lachigoló | V150: San Sebastián Tlacotepec | AE150: San Rafael
U151: San Francisco Logueche | V151: Santa Catarina Tlaltempan | AE151: Santiago Sochiapan
U152: San Francisco Nuxaño | V152: Santa Inés Ahuatempan | AE152: Santiago Tuxtla
U153: San Francisco Ozolotepec | V153: Santa Isabel Cholula | AE153: Sayula de Alemán
U154: San Francisco Sola | V154: Santiago Miahuatlán | AE154: Sochiapa
U155: San Francisco Telixtlahuaca | V155: Santo Tomás Hueyotlipan | AE155: Soconusco
U156: San Francisco Teopan | V156: Soltepec | AE156: Soledad Atzompa
U157: San Francisco Tlapancingo | V157: Tecali de Herrera | AE157: Soledad de Doblado
U158: San Gabriel Mixtepec | V158: Tecamachalco | AE158: Soteapan
U159: San Ildefonso Amatlán | V159: Tecomatlán | AE159: Tamalín
U160: San Ildefonso Sola | V160: Tehuacán | AE160: Tamiahua
U161: San Ildefonso Villa Alta | V161: Tehuitzingo | AE161: Tampico Alto
U162: San Jacinto Amilpas | V162: Tenampulco | AE162: Tancoco
U163: San Jacinto Tlacotepec | V163: Teopantlán | AE163: Tantima
U164: San Jerónimo Coatlán | V164: Teotlalco | AE164: Tantoyuca
U165: San Jerónimo Silacayoapilla | V165: Tepanco de López | AE165: Tatahuicapan de Juárez
U166: San Jerónimo Sosola | V166: Tepango de Rodríguez | AE166: Tatatila
U167: San Jerónimo Taviche | V167: Tepatlaxco de Hidalgo | AE167: Tecolutla
U168: San Jerónimo Tecóatl | V168: Tepeaca | AE168: Tehuipango
U169: San Jerónimo Tlacochahuaya | V169: Tepemaxalco | AE169: Álamo Temapache
U170: San Jorge Nuchita | V170: Tepeojuma | AE170: Tempoal
U171: San José Ayuquila | V171: Tepetzintla | AE171: Tenampa
U172: San José Chiltepec | V172: Tepexco | AE172: Tenochtitlán
U173: San José del Peñasco | V173: Tepexi de Rodríguez | AE173: Teocelo
U174: San José del Progreso | V174: Tepeyahualco | AE174: Tepatlaxco
U175: San José Estancia Grande | V175: Tepeyahualco de Cuauhtémoc | AE175: Tepetlán
U176: San José Independencia | V176: Tetela de Ocampo | AE176: Tepetzintla
U177: San José Lachiguiri | V177: Teteles de Avila Castillo | AE177: Tequila
U178: San José Tenango | V178: Teziutlán | AE178: Texcatepec
U179: San Juan Achiutla | V179: Tianguismanalco | AE179: Texhuacán
U180: San Juan Atepec | V180: Tilapa | AE180: Texistepec
U181: San Juan Bautista Atatlahuca | V181: Tlachichuca | AE181: Tezonapa
U182: San Juan Bautista Coixtlahuaca | V182: Tlacotepec de Benito Juárez | AE182: Tierra Blanca
U183: San Juan Bautista Cuicatlán | V183: Tlacuilotepec | AE183: Tihuatlán
U184: San Juan Bautista Guelache | V184: Tlahuapan | AE184: Tlachichilco
U185: San Juan Bautista Jayacatlán | V185: Tlaltenango | AE185: Tlacojalpan
U186: San Juan Bautista Lo de Soto | V186: Tlanepantla | AE186: Tlacolulan
U187: San Juan Bautista Suchitepec | V187: Tlaola | AE187: Tlacotalpan
U188: San Juan Bautista Tlachichilco | V188: Tlapacoya | AE188: Tlacotepec de Mejía
U189: San Juan Bautista Tlacoatzintepec | V189: Tlapanalá | AE189: Tlalixcoyan
U190: San Juan Bautista Tuxtepec | V190: Tlatlauquitepec | AE190: Tlalnelhuayocan
U191: San Juan Bautista Valle Nacional | V191: Tlaxco | AE191: Tlaltetela
U192: San Juan Cacahuatepec | V192: Tochimilco | AE192: Tlapacoyan
U193: San Juan Chicomezúchil | V193: Tochtepec | AE193: Tlaquilpa
U194: San Juan Chilateca | V194: Totoltepec de Guerrero | AE194: Tlilapan
U195: San Juan Cieneguilla | V195: Tulcingo | AE195: Tomatlán
U196: San Juan Coatzóspam | V196: Tuzamapan de Galeana | AE196: Tonayán
U197: San Juan Colorado | V197: Tzicatlacoyan | AE197: Totutla
U198: San Juan Comaltepec | V198: Venustiano Carranza | AE198: Tres Valles
U199: San Juan Cotzocón | V199: Vicente Guerrero | AE199: Tuxpan
U200: San Juan de los Cués | V200: Xayacatlán de Bravo | AE200: Tuxtilla
U201: San Juan del Estado | V201: Xicotepec | AE201: Ursulo Galván
U202: San Juan del Río | V202: Xicotlán | AE202: Uxpanapa
U203: San Juan Diuxi | V203: Xiutetelco | AE203: Vega de Alatorre
... 371 more rows

Sheet proceso 1 (hidden)
D1: 2 | E1: 3 | F1: 4 | G1: 5 | H1: 6 | I1: 7 | J1: 8 | K1: 9 | L1: 10 | M1: 11 | N1: 12 | O1: 13 | P1: 14 | Q1: 15 | R1: 16
C2: ='remesas municipio'!K4 -> 0
C3: ='remesas municipio'!K6 -> 0 | D3: 2013 | E3: 2014 | F3: 2015 | G3: 2016 | H3: 2017 | I3: 2018 | J3: 2019 | K3: 2020 | L3: 2021 | M3: 2022 | N3: 2023 | O3: 2024 | P3: 2025 | Q3: giim_ent | R3: reg_mig
C4: ='remesas municipio'!J2 -> Baja_California | D4: =VLOOKUP($C4,$C$8:$R$39,D1,FALSE) -> 626.668859 | E4: =VLOOKUP($C4,$C$8:$R$39,E1,FALSE) -> 629.898863 | F4: 673.477592 | G4: 683.561523 | H4: 764.636217 | I4: 875.117895 | J4: 935.994946 | K4: 1215.586026 | L4: 1375.942152 | M4: 1390.788391 | N4: 1447.326449 | O4: =VLOOKUP($C4,$C$8:$R$39,O1,FALSE) -> 1447.133567 | P4: 1768.4392 | Q4: Medio | R4: Norte
D7: 2013 | E7: 2014 | F7: 2015 | G7: 2016 | H7: 2017 | I7: 2018 | J7: 2019 | K7: 2020 | L7: 2021 | M7: 2022 | N7: 2023 | O7: 2024 | P7: 2025 | Q7: giim_ent | R7: reg_mig
C8: Aguascalientes | D8: 316.796097 | E8: 334.539576 | F8: 357.095192 | G8: 405.702479 | H8: 444.717232 | I8: 486.169524 | J8: 517.594092 | K8: 556.632172 | L8: 710.990834 | M8: 860.163448 | N8: 938.873986 | O8: 958.179022 | P8: 937.3284 | Q8: Alto | R8: Tradicional
C9: Baja_California | D9: 626.668859 | E9: 629.898863 | F9: 673.477592 | G9: 683.561523 | H9: 764.636217 | I9: 875.117895 | J9: 935.994946 | K9: 1215.586026 | L9: 1375.942152 | M9: 1390.788391 | N9: 1447.326449 | O9: 1447.133567 | P9: 1768.4392 | Q9: Medio | R9: Norte
C10: Baja_California_Sur | D10: 47.431548 | E10: 48.065502 | F10: 52.367859 | G10: 56.115304 | H10: 67.961925 | I10: 79.650028 | J10: 88.77999 | K10: 111.110893 | L10: 127.973578 | M10: 204.181479 | N10: 178.274549 | O10: 149.949643 | P10: 143.8753 | Q10: Muy bajo | R10: Norte
C11: Campeche | D11: 56.931529 | E11: 57.690196 | F11: 58.164513 | G11: 67.008374 | H11: 77.436922 | I11: 81.72656 | J11: 91.217887 | K11: 119.09418 | L11: 150.90639 | M11: 160.522842 | N11: 173.696197 | O11: 169.296742 | P11: 175.2142 | Q11: Muy bajo | R11: Sur-Sureste
C12: Chiapas | D12: 520.484785 | E12: 519.68215 | F12: 593.231106 | G12: 593.035855 | H12: 668.276024 | I12: 844.964837 | J12: 1034.745864 | K12: 1181.093112 | L12: 1935.527082 | M12: 3190.711009 | N12: 4367.288893 | O12: 4168.433864 | P12: 4158.6144 | Q12: Bajo | R12: Sur-Sureste
C13: Chihuahua | D13: 533.542355 | E13: 565.716145 | F13: 662.81885 | G13: 715.528706 | H13: 828.50416 | I13: 995.331535 | J13: 1147.362482 | K13: 1284.102019 | L13: 1597.445174 | M13: 1625.926059 | N13: 1591.878611 | O13: 1477.507089 | P13: 1355.4136 | Q13: Medio | R13: Norte
C14: Ciudad_de_México | D14: 1444.923882 | E14: 1558.798612 | F14: 1094.200105 | G14: 1435.325962 | H14: 1330.210533 | I14: 1466.624352 | J14: 1761.613273 | K14: 2194.247215 | L14: 3000.277171 | M14: 3184.201866 | N14: 3867.938695 | O14: 4684.691106 | P14: 3886.6325 | Q14: Muy bajo | R14: Centro
C15: Coahuila | D15: 338.880208 | E15: 404.931149 | F15: 411.923775 | G15: 430.927599 | H15: 535.433211 | I15: 605.668077 | J15: 657.470098 | K15: 734.534407 | L15: 924.604595 | M15: 1061.194687 | N15: 1051.836113 | O15: 951.173787 | P15: 853.4444 | Q15: Bajo | R15: Norte
C16: Colima | D16: 190.108149 | E16: 223.872521 | F16: 234.77693 | G16: 257.955954 | H16: 311.523497 | I16: 331.04216 | J16: 311.935939 | K16: 359.387814 | L16: 444.468064 | M16: 467.83087 | N16: 479.47628 | O16: 455.113527 | P16: 416.2375 | Q16: Medio | R16: Tradicional
C17: Durango | D17: 475.866143 | E17: 507.793805 | F17: 610.439092 | G17: 621.163287 | H17: 736.756168 | I17: 833.775082 | J17: 903.90137 | K17: 987.220622 | L17: 1272.644458 | M17: 1361.767399 | N17: 1391.036781 | O17: 1370.733382 | P17: 1303.3114 | Q17: Alto | R17: Tradicional
C18: Guanajuato | D18: 2080.269512 | E18: 2161.99926 | F18: 2257.763827 | G18: 2459.620372 | H18: 2806.225326 | I18: 3108.646954 | J18: 3388.210781 | K18: 3552.550209 | L18: 4380.323036 | M18: 5053.892743 | N18: 5414.469814 | O18: 5645.283038 | P18: 5513.67 | Q18: Muy alto | R18: Tradicional
C19: Guerrero | D19: 1250.02877 | E19: 1245.175602 | F19: 1313.129226 | G19: 1406.41367 | H19: 1535.039758 | I19: 1669.34619 | J19: 1804.768089 | K19: 2006.707795 | L19: 2682.051521 | M19: 2990.072949 | N19: 3181.967927 | O19: 3286.218748 | P19: 3395.5626 | Q19: Alto | R19: Sur-Sureste
C20: Hidalgo | D20: 653.465334 | E20: 744.624568 | F20: 748.303025 | G20: 785.209645 | H20: 858.92043 | I20: 932.478918 | J20: 988.844457 | K20: 1056.996648 | L20: 1325.398563 | M20: 1692.522602 | N20: 1754.777493 | O20: 1784.339867 | P20: 1768.7307 | Q20: Alto | R20: Centro
C21: Jalisco | D21: 1818.196586 | E21: 2020.279615 | F21: 2226.072056 | G21: 2581.177934 | H21: 2917.942228 | I21: 3348.116787 | J21: 3570.100274 | K21: 4229.704776 | L21: 5285.622629 | M21: 5389.011244 | N21: 5355.885452 | O21: 5503.097974 | P21: 5144.2939 | Q21: Medio | R21: Tradicional
C22: México | D22: 1485.727866 | E22: 1512.018464 | F22: 1602.500739 | G22: 1650.224923 | H22: 1814.475529 | I22: 1967.910638 | J22: 2109.423709 | K22: 2495.258388 | L22: 3216.036951 | M22: 3554.604271 | N22: 4353.757413 | O22: 4601.495848 | P22: 3663.6029 | Q22: Muy bajo | R22: Centro
C23: Michoacán | D23: 2124.301631 | E23: 2320.105483 | F23: 2550.934608 | G23: 2821.458991 | H23: 3123.361349 | I23: 3503.314368 | J23: 3718.829752 | K23: 4185.98638 | L23: 5094.211221 | M23: 5340.892503 | N23: 5409.58161 | O23: 5646.597499 | P23: 5392.7127 | Q23: Muy alto | R23: Tradicional
C24: Morelos | D24: 533.447792 | E24: 545.376874 | F24: 589.676409 | G24: 597.767897 | H24: 661.634243 | I24: 695.904815 | J24: 729.611425 | K24: 782.071775 | L24: 1029.711783 | M24: 1111.137493 | N24: 1149.074773 | O24: 1144.192212 | P24: 1166.2041 | Q24: Medio | R24: Centro
C25: Nayarit | D25: 332.874741 | E25: 373.707096 | F25: 402.344183 | G25: 448.356835 | H25: 508.462356 | I25: 561.293788 | J25: 599.395391 | K25: 694.292727 | L25: 870.452502 | M25: 868.45135 | N25: 874.828989 | O25: 857.652367 | P25: 789.5207 | Q25: Muy alto | R25: Tradicional
C26: Nuevo_León | D26: 611.734712 | E26: 629.569408 | F26: 653.888404 | G26: 664.180635 | H26: 883.67754 | I26: 951.658144 | J26: 975.299809 | K26: 1044.525071 | L26: 1330.257083 | M26: 1454.554846 | N26: 1471.712049 | O26: 1354.98552 | P26: 1180.6869 | Q26: Bajo | R26: Norte
C27: Oaxaca | D27: 1193.573743 | E27: 1256.680857 | F27: 1299.077852 | G27: 1460.939683 | H27: 1580.442264 | I27: 1789.952203 | J27: 1873.849296 | K27: 1961.101576 | L27: 2460.857492 | M27: 2937.941994 | N27: 3214.0492 | O27: 3433.455408 | P27: 3507.7053 | Q27: Alto | R27: Sur-Sureste
C28: Puebla | D28: 1384.079907 | E28: 1384.825958 | F28: 1373.475891 | G28: 1501.128368 | H28: 1661.810087 | I28: 1756.866167 | J28: 1830.697831 | K28: 1933.622862 | L28: 2184.613425 | M28: 2773.766955 | N28: 3144.924902 | O28: 3366.79254 | P28: 3425.6777 | Q28: Bajo | R28: Centro
